Workbook

Sheet TCRI_Report
A1: TCRI_風險趨勢與組成
V8: 違約情況
B9: 請於下方儲存格輸入您所需要查詢的公司
V10: 時間 | X10: 違約與否(D)
V11: =Raw!B$3 -> 2020-03-31 | X11: =IF(Raw!$B$6<=4,"低度風險",IF(AND(Raw!$B$6>=5,Raw!$B$6<=6),"中度風險",IF(AND(Raw!$B$6>=7,Raw!$B$6<=9),"高度風險","違約"))) -> 低度風險
V12: =Raw!C$3 -> 2019-12-31 | X12: =IF(Raw!$C$6<=4,"低度風險",IF(AND(Raw!$C$6>=5,Raw!$C$6<=6),"中度風險",IF(AND(Raw!$C$6>=7,Raw!$C$6<=9),"高度風險","違約"))) -> 低度風險
V13: =Raw!D$3 -> 2019-09-27 | X13: =IF(Raw!$D$6<=4,"低度風險",IF(AND(Raw!$D$6>=5,Raw!$D$6<=6),"中度風險",IF(AND(Raw!$D$6>=7,Raw!$D$6<=9),"高度風險","違約"))) -> 低度風險
B14: 3702 | V14: =Raw!E$3 -> 2019-06-28 | X14: =IF(Raw!$E$6<=4,"低度風險",IF(AND(Raw!$E$6>=5,Raw!$E$6<=6),"中度風險",IF(AND(Raw!$E$6>=7,Raw!$E$6<=9),"高度風險","違約"))) -> 低度風險
V15: =Raw!F$3 -> 2019-03-29 | X15: =IF(Raw!$F$6<=4,"低度風險",IF(AND(Raw!$F$6>=5,Raw!$F$6<=6),"中度風險",IF(AND(Raw!$F$6>=7,Raw!$F$6<=9),"高度風險","違約"))) -> 低度風險
V16: =Raw!G$3 -> 2018-12-28 | X16: =IF(Raw!$G$6<=4,"低度風險",IF(AND(Raw!$G$6>=5,Raw!$G$6<=6),"中度風險",IF(AND(Raw!$G$6>=7,Raw!$G$6<=9),"高度風險","違約"))) -> 低度風險
V17: =Raw!H$3 -> 2018-09-28 | X17: =IF(Raw!$H$6<=4,"低度風險",IF(AND(Raw!$H$6>=5,Raw!$H$6<=6),"中度風險",IF(AND(Raw!$H$6>=7,Raw!$H$6<=9),"高度風險","違約"))) -> 低度風險
V18: =Raw!I$3 -> 2018-06-29 | X18: =IF(Raw!$I$6<=4,"低度風險",IF(AND(Raw!$I$6>=5,Raw!$I$6<=6),"中度風險",IF(AND(Raw!$I$6>=7,Raw!$I$6<=9),"高度風險","違約"))) -> 低度風險

Sheet Performance
A1: TCRI_獲利能力分析
V8: 違約情況
B9: 請於下方儲存格輸入您所需要查詢的公司
V10: 時間 | X10: 違約與否(D)
V11: =Raw!B$3 -> 2020-03-31 | X11: =IF(Raw!$B$6<=4,"低度風險",IF(AND(Raw!$B$6>=5,Raw!$B$6<=6),"中度風險",IF(AND(Raw!$B$6>=7,Raw!$B$6<=9),"高度風險","違約"))) -> 低度風險
V12: =Raw!C$3 -> 2019-12-31 | X12: =IF(Raw!$C$6<=4,"低度風險",IF(AND(Raw!$C$6>=5,Raw!$C$6<=6),"中度風險",IF(AND(Raw!$C$6>=7,Raw!$C$6<=9),"高度風險","違約"))) -> 低度風險
V13: =Raw!D$3 -> 2019-09-27 | X13: =IF(Raw!$D$6<=4,"低度風險",IF(AND(Raw!$D$6>=5,Raw!$D$6<=6),"中度風險",IF(AND(Raw!$D$6>=7,Raw!$D$6<=9),"高度風險","違約"))) -> 低度風險
B14: 3702 | V14: =Raw!E$3 -> 2019-06-28 | X14: =IF(Raw!$E$6<=4,"低度風險",IF(AND(Raw!$E$6>=5,Raw!$E$6<=6),"中度風險",IF(AND(Raw!$E$6>=7,Raw!$E$6<=9),"高度風險","違約"))) -> 低度風險
V15: =Raw!F$3 -> 2019-03-29 | X15: =IF(Raw!$F$6<=4,"低度風險",IF(AND(Raw!$F$6>=5,Raw!$F$6<=6),"中度風險",IF(AND(Raw!$F$6>=7,Raw!$F$6<=9),"高度風險","違約"))) -> 低度風險
V16: =Raw!G$3 -> 2018-12-28 | X16: =IF(Raw!$G$6<=4,"低度風險",IF(AND(Raw!$G$6>=5,Raw!$G$6<=6),"中度風險",IF(AND(Raw!$G$6>=7,Raw!$G$6<=9),"高度風險","違約"))) -> 低度風險
V17: =Raw!H$3 -> 2018-09-28 | X17: =IF(Raw!$H$6<=4,"低度風險",IF(AND(Raw!$H$6>=5,Raw!$H$6<=6),"中度風險",IF(AND(Raw!$H$6>=7,Raw!$H$6<=9),"高度風險","違約"))) -> 低度風險
V18: =Raw!I$3 -> 2018-06-29 | X18: =IF(Raw!$I$6<=4,"低度風險",IF(AND(Raw!$I$6>=5,Raw!$I$6<=6),"中度風險",IF(AND(Raw!$I$6>=7,Raw!$I$6<=9),"高度風險","違約"))) -> 低度風險

Sheet Liquidity
A1: TCRI_償債能力分析
V8: 違約情況
B9: 請於下方儲存格輸入您所需要查詢的公司
V10: 時間 | X10: 違約與否(D)
V11: =Raw!B$3 -> 2020-03-31 | X11: =IF(Raw!$B$6<=4,"低度風險",IF(AND(Raw!$B$6>=5,Raw!$B$6<=6),"中度風險",IF(AND(Raw!$B$6>=7,Raw!$B$6<=9),"高度風險","違約"))) -> 低度風險
V12: =Raw!C$3 -> 2019-12-31 | X12: =IF(Raw!$C$6<=4,"低度風險",IF(AND(Raw!$C$6>=5,Raw!$C$6<=6),"中度風險",IF(AND(Raw!$C$6>=7,Raw!$C$6<=9),"高度風險","違約"))) -> 低度風險
V13: =Raw!D$3 -> 2019-09-27 | X13: =IF(Raw!$D$6<=4,"低度風險",IF(AND(Raw!$D$6>=5,Raw!$D$6<=6),"中度風險",IF(AND(Raw!$D$6>=7,Raw!$D$6<=9),"高度風險","違約"))) -> 低度風險
B14: 3702 | V14: =Raw!E$3 -> 2019-06-28 | X14: =IF(Raw!$E$6<=4,"低度風險",IF(AND(Raw!$E$6>=5,Raw!$E$6<=6),"中度風險",IF(AND(Raw!$E$6>=7,Raw!$E$6<=9),"高度風險","違約"))) -> 低度風險
V15: =Raw!F$3 -> 2019-03-29 | X15: =IF(Raw!$F$6<=4,"低度風險",IF(AND(Raw!$F$6>=5,Raw!$F$6<=6),"中度風險",IF(AND(Raw!$F$6>=7,Raw!$F$6<=9),"高度風險","違約"))) -> 低度風險
V16: =Raw!G$3 -> 2018-12-28 | X16: =IF(Raw!$G$6<=4,"低度風險",IF(AND(Raw!$G$6>=5,Raw!$G$6<=6),"中度風險",IF(AND(Raw!$G$6>=7,Raw!$G$6<=9),"高度風險","違約"))) -> 低度風險
V17: =Raw!H$3 -> 2018-09-28 | X17: =IF(Raw!$H$6<=4,"低度風險",IF(AND(Raw!$H$6>=5,Raw!$H$6<=6),"中度風險",IF(AND(Raw!$H$6>=7,Raw!$H$6<=9),"高度風險","違約"))) -> 低度風險
V18: =Raw!I$3 -> 2018-06-29 | X18: =IF(Raw!$I$6<=4,"低度風險",IF(AND(Raw!$I$6>=5,Raw!$I$6<=6),"中度風險",IF(AND(Raw!$I$6>=7,Raw!$I$6<=9),"高度風險","違約"))) -> 低度風險

Sheet Corporate Governance
A1: TCRI_公司治理分析
V8: 違約情況
B9: 請於下方儲存格輸入您所需要查詢的公司
V10: 時間 | X10: 違約與否(D)
V11: =Raw!B$3 -> 2020-03-31 | X11: =IF(Raw!$B$6<=4,"低度風險",IF(AND(Raw!$B$6>=5,Raw!$B$6<=6),"中度風險",IF(AND(Raw!$B$6>=7,Raw!$B$6<=9),"高度風險","違約"))) -> 低度風險
V12: =Raw!C$3 -> 2019-12-31 | X12: =IF(Raw!$C$6<=4,"低度風險",IF(AND(Raw!$C$6>=5,Raw!$C$6<=6),"中度風險",IF(AND(Raw!$C$6>=7,Raw!$C$6<=9),"高度風險","違約"))) -> 低度風險
V13: =Raw!D$3 -> 2019-09-27 | X13: =IF(Raw!$D$6<=4,"低度風險",IF(AND(Raw!$D$6>=5,Raw!$D$6<=6),"中度風險",IF(AND(Raw!$D$6>=7,Raw!$D$6<=9),"高度風險","違約"))) -> 低度風險
B14: 3702 | V14: =Raw!E$3 -> 2019-06-28 | X14: =IF(Raw!$E$6<=4,"低度風險",IF(AND(Raw!$E$6>=5,Raw!$E$6<=6),"中度風險",IF(AND(Raw!$E$6>=7,Raw!$E$6<=9),"高度風險","違約"))) -> 低度風險
V15: =Raw!F$3 -> 2019-03-29 | X15: =IF(Raw!$F$6<=4,"低度風險",IF(AND(Raw!$F$6>=5,Raw!$F$6<=6),"中度風險",IF(AND(Raw!$F$6>=7,Raw!$F$6<=9),"高度風險","違約"))) -> 低度風險
V16: =Raw!G$3 -> 2018-12-28 | X16: =IF(Raw!$G$6<=4,"低度風險",IF(AND(Raw!$G$6>=5,Raw!$G$6<=6),"中度風險",IF(AND(Raw!$G$6>=7,Raw!$G$6<=9),"高度風險","違約"))) -> 低度風險
V17: =Raw!H$3 -> 2018-09-28 | X17: =IF(Raw!$H$6<=4,"低度風險",IF(AND(Raw!$H$6>=5,Raw!$H$6<=6),"中度風險",IF(AND(Raw!$H$6>=7,Raw!$H$6<=9),"高度風險","違約"))) -> 低度風險
V18: =Raw!I$3 -> 2018-06-29 | X18: =IF(Raw!$I$6<=4,"低度風險",IF(AND(Raw!$I$6>=5,Raw!$I$6<=6),"中度風險",IF(AND(Raw!$I$6>=7,Raw!$I$6<=9),"高度風險","違約"))) -> 低度風險

Sheet Business Activity
A1: TCRI_企業活動力分析
V8: 違約情況
B9: 請於下方儲存格輸入您所需要查詢的公司
V10: 時間 | X10: 違約與否(D)
V11: =Raw!B$3 -> 2020-03-31 | X11: =IF(Raw!$B$6<=4,"低度風險",IF(AND(Raw!$B$6>=5,Raw!$B$6<=6),"中度風險",IF(AND(Raw!$B$6>=7,Raw!$B$6<=9),"高度風險","違約"))) -> 低度風險
V12: =Raw!C$3 -> 2019-12-31 | X12: =IF(Raw!$C$6<=4,"低度風險",IF(AND(Raw!$C$6>=5,Raw!$C$6<=6),"中度風險",IF(AND(Raw!$C$6>=7,Raw!$C$6<=9),"高度風險","違約"))) -> 低度風險
V13: =Raw!D$3 -> 2019-09-27 | X13: =IF(Raw!$D$6<=4,"低度風險",IF(AND(Raw!$D$6>=5,Raw!$D$6<=6),"中度風險",IF(AND(Raw!$D$6>=7,Raw!$D$6<=9),"高度風險","違約"))) -> 低度風險
B14: 3702 | V14: =Raw!E$3 -> 2019-06-28 | X14: =IF(Raw!$E$6<=4,"低度風險",IF(AND(Raw!$E$6>=5,Raw!$E$6<=6),"中度風險",IF(AND(Raw!$E$6>=7,Raw!$E$6<=9),"高度風險","違約"))) -> 低度風險
V15: =Raw!F$3 -> 2019-03-29 | X15: =IF(Raw!$F$6<=4,"低度風險",IF(AND(Raw!$F$6>=5,Raw!$F$6<=6),"中度風險",IF(AND(Raw!$F$6>=7,Raw!$F$6<=9),"高度風險","違約"))) -> 低度風險
V16: =Raw!G$3 -> 2018-12-28 | X16: =IF(Raw!$G$6<=4,"低度風險",IF(AND(Raw!$G$6>=5,Raw!$G$6<=6),"中度風險",IF(AND(Raw!$G$6>=7,Raw!$G$6<=9),"高度風險","違約"))) -> 低度風險
V17: =Raw!H$3 -> 2018-09-28 | X17: =IF(Raw!$H$6<=4,"低度風險",IF(AND(Raw!$H$6>=5,Raw!$H$6<=6),"中度風險",IF(AND(Raw!$H$6>=7,Raw!$H$6<=9),"高度風險","違約"))) -> 低度風險
V18: =Raw!I$3 -> 2018-06-29 | X18: =IF(Raw!$I$6<=4,"低度風險",IF(AND(Raw!$I$6>=5,Raw!$I$6<=6),"中度風險",IF(AND(Raw!$I$6>=7,Raw!$I$6<=9),"高度風險","違約"))) -> 低度風險

Sheet Financial resilience
A1: TCRI_資金應變能力
V8: 違約情況
B9: 請於下方儲存格輸入您所需要查詢的公司
V10: 時間 | X10: 違約與否(D)
V11: =Raw!B$3 -> 2020-03-31 | X11: =IF(Raw!$B$6<=4,"低度風險",IF(AND(Raw!$B$6>=5,Raw!$B$6<=6),"中度風險",IF(AND(Raw!$B$6>=7,Raw!$B$6<=9),"高度風險","違約"))) -> 低度風險
V12: =Raw!C$3 -> 2019-12-31 | X12: =IF(Raw!$C$6<=4,"低度風險",IF(AND(Raw!$C$6>=5,Raw!$C$6<=6),"中度風險",IF(AND(Raw!$C$6>=7,Raw!$C$6<=9),"高度風險","違約"))) -> 低度風險
V13: =Raw!D$3 -> 2019-09-27 | X13: =IF(Raw!$D$6<=4,"低度風險",IF(AND(Raw!$D$6>=5,Raw!$D$6<=6),"中度風險",IF(AND(Raw!$D$6>=7,Raw!$D$6<=9),"高度風險","違約"))) -> 低度風險
B14: 3702 | V14: =Raw!E$3 -> 2019-06-28 | X14: =IF(Raw!$E$6<=4,"低度風險",IF(AND(Raw!$E$6>=5,Raw!$E$6<=6),"中度風險",IF(AND(Raw!$E$6>=7,Raw!$E$6<=9),"高度風險","違約"))) -> 低度風險
V15: =Raw!F$3 -> 2019-03-29 | X15: =IF(Raw!$F$6<=4,"低度風險",IF(AND(Raw!$F$6>=5,Raw!$F$6<=6),"中度風險",IF(AND(Raw!$F$6>=7,Raw!$F$6<=9),"高度風險","違約"))) -> 低度風險
V16: =Raw!G$3 -> 2018-12-28 | X16: =IF(Raw!$G$6<=4,"低度風險",IF(AND(Raw!$G$6>=5,Raw!$G$6<=6),"中度風險",IF(AND(Raw!$G$6>=7,Raw!$G$6<=9),"高度風險","違約"))) -> 低度風險
V17: =Raw!H$3 -> 2018-09-28 | X17: =IF(Raw!$H$6<=4,"低度風險",IF(AND(Raw!$H$6>=5,Raw!$H$6<=6),"中度風險",IF(AND(Raw!$H$6>=7,Raw!$H$6<=9),"高度風險","違約"))) -> 低度風險
V18: =Raw!I$3 -> 2018-06-29 | X18: =IF(Raw!$I$6<=4,"低度風險",IF(AND(Raw!$I$6>=5,Raw!$I$6<=6),"中度風險",IF(AND(Raw!$I$6>=7,Raw!$I$6<=9),"高度風險","違約"))) -> 低度風險
U27: b

Sheet Raw (hidden)
B1: =B2&B3 -> 3702 大聯大43921 | C1: =C2&C3 -> 3702 大聯大43830 | D1: 3702 大聯大43735 | E1: 3702 大聯大43644 | F1: 3702 大聯大43553 | G1: 3702 大聯大43462 | H1: 3702 大聯大43371 | I1: 3702 大聯大43280 | M1: =A2 -> 3702 大聯大
A2: 3702 大聯大 | B2: =A2 -> 3702 大聯大 | C2: =B2 -> 3702 大聯大 | D2: 3702 大聯大 | E2: 3702 大聯大 | F2: 3702 大聯大 | G2: 3702 大聯大 | H2: 3702 大聯大 | I2: 3702 大聯大
A3: Data Field | B3: 2020-03-31 | C3: 2019-12-31 | D3: 2019-09-27 | E3: 2019-06-28 | F3: 2019-03-29 | G3: 2018-12-28 | H3: 2018-09-28 | I3: 2018-06-29 | M3: =M1&"_風險成因分析表" -> 3702 大聯大_風險成因分析表
A4: 報表別F/M | B4: M | C4: M | D4: M | E4: M | F4: M | G4: M | H4: M | I4: M | M4: =M1&"_獲利能力相關指標" -> 3702 大聯大_獲利能力相關指標
A5: 升降 | B5: - | C5: - | D5: - | E5: - | F5: - | G5: - | H5: - | I5: - | M5: =M1&"_負債相關比率" -> 3702 大聯大_負債相關比率
A6: TCRI | B6: 4 | C6: 4 | D6: 4 | E6: 4 | F6: 4 | G6: 4 | H6: 4 | I6: 4 | M6: =M1&"_公司治理相關指標" -> 3702 大聯大_公司治理相關指標
A7: 系統分級 | B7: 4 4 | C7: 4 4 | D7: 3 3 | E7: 4 4 | F7: 3 3 | G7: 4 4 | H7: 4 4 | I7: 4 4 | M7: =M1&"_企業活動力指標" -> 3702 大聯大_企業活動力指標
A8: APLr | B8: AP | C8: A | D8: AP | E8: AP | F8: AP | G8: A | H8: A | I8: AP
A9: MGT易手 | I9: +
A10: 炒股
A11: 庫藏股
A12: CFO不一致 | B12: + | C12: + | D12: + | G12: + | H12: + | I12: +
A13: 總分 | B13: 549 | C13: 569 | D13: 591 | E13: 584 | F13: 604 | G13: 590 | H13: 553 | I13: 582
A14: ADE減分 | B14: 0 | C14: 0 | D14: 0 | E14: 0 | F14: 0 | G14: 0 | H14: 0 | I14: 0
A15: 規模 | B15: 140 | C15: 140 | D15: 140 | E15: 140 | F15: 140 | G15: 140 | H15: 140 | I15: 140
A16: 獲利 | B16: 27 | C16: 29 | D16: 28 | E16: 29 | F16: 26 | G16: 34 | H16: 34 | I16: 34
A17: 安全 | B17: 46 | C17: 51 | D17: 61 | E17: 54 | F17: 60 | G17: 50 | H17: 40 | I17: 48
A18: 效率 | B18: 52 | C18: 51 | D18: 44 | E18: 54 | F18: 64 | G18: 57 | H18: 50 | I18: 56
A19: EPS | B19: 0.99 | C19: 3.84 | D19: 2.81 | E19: 1.75 | F19: 0.78 | G19: 4.22 | H19: 3.27 | I19: 2.24
A20: 總資產 | B20: 2489 | C20: 2303 | D20: 2192 | E20: 1972 | F20: 1882 | G20: 1961 | H20: 2114 | I20: 1968
A21: 營收 | B21: 1310 | C21: 5276 | D21: 3818 | E21: 2410 | F21: 1118 | G21: 5451 | H21: 4133 | I21: 2629
A22: 常續性利益 | B22: 16.63 | C22: 64.24 | D22: 46.89 | E22: 29.3 | F22: 12.99 | G22: 69.68 | H22: 52.52 | I22: 34.28
A23: 淨值報酬% | B23: 2.56 | C23: 10.82 | D23: 7.81 | E23: 5.39 | F23: 2.33 | G23: 13.04 | H23: 10 | I23: 6.54
A24: 資產報酬% | B24: 0.87 | C24: 3.8 | D24: 2.88 | E24: 1.93 | F24: 0.92 | G24: 4.7 | H24: 3.36 | I24: 2.26
A25: 營業利益% | B25: 1.89 | C25: 1.91 | D25: 1.96 | E25: 2.01 | F25: 1.94 | G25: 2.03 | H25: 2.05 | I25: 2.1
A26: 借款依存度% | B26: 144 | C26: 136 | D26: 116 | E26: 130 | F26: 115 | G26: 139 | H26: 154 | I26: 141
A27: 或有負債/股東權益% | B27: 0 | C27: 0 | D27: 0 | E27: 0 | F27: 0 | G27: 0 | H27: 0 | I27: 0
A28: 速動比率 | B28: 82 | C28: 86 | D28: 91 | E28: 89 | F28: 86 | G28: 90 | H28: 84 | I28: 85
A29: 利息支出率 | B29: 0.37 | C29: 0.4 | D29: 0.45 | E29: 0.45 | F29: 0.45 | G29: 0.42 | H29: 0.38 | I29: 0.35
A30: 季底收款天數 | B30: 89 | C30: 95 | D30: 104 | E30: 92 | F30: 75 | G30: 88 | H30: 98 | I30: 91
A31: 季底售貨天數 | B31: 57 | C31: 49 | D31: 52 | E31: 48 | F31: 50 | G31: 45 | H31: 47 | I31: 45
A32: 營收成長% | B32: 17 | C32: -3 | D32: -8 | E32: -8 | F32: -9 | G32: 2 | H32: 5 | I32: 6
A33: CFO | B33: -6.43 | C33: -11.13 | D33: -24.12 | E33: 52.11 | F33: 92.95 | G33: -12.22 | H33: -72.91 | I33: -53.63
A34: 營業利益 | B34: 21.91 | C34: 97.13 | D34: 71.98 | E34: 46.48 | F34: 20.64 | G34: 105.77 | H34: 80.33 | I34: 51.06
A35: 借款息% | B35: 2.5 | C35: 2.83 | D35: 3.19 | E35: 3.23 | F35: 3.23 | G35: 3.09 | H35: 2.91 | I35: 2.72
A36: 季底收款天增減 | B36: -6 | C36: 7 | D36: 16 | E36: 4 | F36: -13 | G36: 5 | H36: 15 | I36: 8
A37: 平均收款天增減 | B37: 1900-01-01 | C37: 1900-01-08 | D37: 1900-01-15 | E37: 1900-01-15 | F37: 1900-01-13 | G37: 1900-01-01 | H37: 1900-01-06 | I37: 1900-01-06
A38: 平均售貨天增減 | B38: 1900-01-06 | C38: 1900-01-05 | D38: 1900-01-08 | E38: 1900-01-09 | F38: 1900-01-14 | G38: 1900-01-04 | H38: 1900-01-05 | I38: 1900-01-06
A39: 存貨增減 | B39: 1900-05-17T03:36:00 | C39: 1900-01-29T11:45:36 | D39: 1900-02-19T20:38:24 | E39: 1900-01-08T18:14:24 | F39: 1900-02-15T03:21:36 | G39: 1900-03-12T23:45:36 | H39: 1900-04-11T03:36:00 | I39: 1900-03-11T04:48:00
A40: EVA | B40: -1.63 | C40: 0.97 | D40: -0.31 | E40: -1.3 | F40: -2.31 | G40: 1.61 | H40: 0.45 | I40: -0.46
A41: EVA_OP | B41: 1.52 | C41: 1.51 | D41: 1.51 | E41: 1.56 | F41: 1.49 | G41: 1.61 | H41: 1.67 | I41: 1.75
A42: 現金充裕度 | B42: 121.72 | C42: 98.6 | D42: 90.3 | E42: 63.94 | F42: 57.99 | G42: 67.32 | H42: 37.56 | I42: 24.04
A43: 過度投資額 | B43: -129 | C43: -227 | D43: -33 | E43: 0 | F43: 0 | G43: -79 | H43: -193 | I43: -97
A44: 借款 | B44: 951 | C44: 873 | D44: 757 | E44: 698 | F44: 648 | G44: 760 | H44: 817 | I44: 744
A45: 股東權益 | B45: 659 | C45: 640 | D45: 653 | E45: 539 | F45: 565 | G45: 548 | H45: 530 | I45: 528
A46: 評等日 | B46: 2020-06-15 | C46: 2020-06-15 | D46: 2019-12-10 | E46: 2019-09-16 | F46: 2019-06-05 | G46: 2019-06-05 | H46: 2018-12-12 | I46: 2018-09-11
A47: 資料日 | B47: 2020-05-21 | C47: 2020-04-02 | D47: 2019-11-19 | E47: 2019-08-21 | F47: 2019-05-22 | G47: 2019-04-03 | H47: 2018-11-17 | I47: 2018-08-22
A48: 設立日 | B48: 2005-11-09 | C48: 2005-11-09 | D48: 2005-11-09 | E48: 2005-11-09 | F48: 2005-11-09 | G48: 2005-11-09 | H48: 2005-11-09 | I48: 2005-11-09
A49: 上市日 | B49: 2005-11-09 | C49: 2005-11-09 | D49: 2005-11-09 | E49: 2005-11-09 | F49: 2005-11-09 | G49: 2005-11-09 | H49: 2005-11-09 | I49: 2005-11-09
A50: 狀況
A51: TCRI | B51: =IF(B6="D",10,B6) -> 4 | C51: =IF(C6="D",10,C6) -> 4 | D51: 4 | E51: 4 | F51: 4 | G51: 4 | H51: 4 | I51: 4

Sheet Ratio_Raw (hidden)
A1: 3702 大聯大
A2: Data Field | B2: 2020-06-30 | C2: 2020-03-31 | D2: 2019-12-31 | E2: 2019-09-27 | F2: 2019-06-28 | G2: 2019-03-29 | H2: 2018-12-28 | I2: 2018-09-28 | K2: Data Field | L2: 2020-07-31 | M2: 2020-06-30 | N2: 2020-05-29 | O2: 2020-04-30 | P2: 2020-03-31 | Q2: 2020-02-27 | R2: 2020-01-31 | S2: 2019-12-31
A3: ROE(A)－稅後 | B3: 5.99 | C3: 2.57 | D3: 10.95 | E3: 7.92 | F3: 5.44 | G3: 2.36 | H3: 14.06 | I3: 11.23 | K3: 董監質押股% | L3: 16.57 | M3: 16.45 | N3: 16.37 | O3: 16.37 | P3: 16.37 | Q3: 16.37 | R3: 16.37 | S3: 16.37
A4: ROA(A)稅後息前 | B4: 1.99 | C4: 0.89 | D4: 3.93 | E4: 2.97 | F4: 1.99 | G4: 0.95 | H4: 5.07 | I4: 3.75 | K4: 董監事親屬質押% | L4: 0 | M4: 0 | N4: 0 | O4: 0 | P4: 0 | Q4: 0 | R4: 0 | S4: 0
A5: 營業利益率(單) | B5: 1.72 | C5: 1.67 | D5: 1.73 | E5: 1.81 | F5: 2 | G5: 1.85 | H5: 1.93 | I5: 1.95 | K5: 大股東質押% | L5: 0 | M5: 0 | N5: 0 | O5: 0 | P5: 0 | Q5: 0 | R5: 0 | S5: 0
A6: 營業毛利率(單) | B6: 3.93 | C6: 4.02 | D6: 3.97 | E6: 4.25 | F6: 4.4 | G6: 4.45 | H6: 4.36 | I6: 4.32 | K6: 經理人質押股% | L6: 72.62 | M6: 72.62 | N6: 72.62 | O6: 72.62 | P6: 72.62 | Q6: 72.62 | R6: 72.62 | S6: 72.62
A7: 速動比率 | B7: 86.71 | C7: 81.25 | D7: 85.74 | E7: 90.61 | F7: 88.51 | G7: 86.49 | H7: 90.22 | I7: 84.08
A8: 流動比率 | B8: 133.84 | C8: 133.62 | D8: 131.22 | E8: 140.79 | F8: 141.58 | G8: 147.84 | H8: 143.1 | I8: 130.9
A9: 負債比率 | B9: 73.63 | C9: 73.54 | D9: 72.23 | E9: 70.21 | F9: 72.65 | G9: 70 | H9: 72.04 | I9: 74.91
A10: 借款依存度 | B10: 154.86 | C10: 144.46 | D10: 136.45 | E10: 116.01 | F10: 129.5 | G10: 114.84 | H10: 138.69 | I10: 154.07
A11: 或有負債/淨值 | B11: 0.11 | C11: 0.1 | D11: 0.07 | E11: 0 | F11: 0.07 | G11: 0.09 | H11: 0.04 | I11: 0
A12: 季底收款天數 | B12: 97.74 | C12: 88.9 | D12: 94.55 | E12: 103.68 | F12: 91.83 | G12: 74.61 | H12: 87.57 | I12: 97.95
A13: 季底售貨天數 | B13: 46.93 | C13: 56.84 | D13: 48.97 | E13: 51.94 | F13: 47.92 | G13: 49.67 | H13: 45.38 | I13: 46.78
A14: 現金充裕度 | B14: 112.72 | C14: 121.72 | D14: 98.6 | E14: 90.3 | F14: 63.94 | G14: 57.99 | H14: 67.32 | I14: 37.56
A15: 過度投資額 | B15: -170 | C15: -129 | D15: -227 | E15: -33 | F15: 0 | G15: 0 | H15: -79 | I15: -193
A16: 借款息% | B16: 2.25 | C16: 2.5 | D16: 2.83 | E16: 3.19 | F16: 3.23 | G16: 3.23 | H16: 3.09 | I16: 2.91
A17: 現金及約當現金 | B17: 12648682 | C17: 13227536 | D17: 9992582 | E17: 9600092 | F17: 6163396 | G17: 5572934 | H17: 7116888 | I17: 8390620
A18: 透過損益按公允價值衡量之金融資產－流動 | B18: 44649 | C18: 34773 | D18: 339649 | E18: 33667 | F18: 31731 | G18: 29882 | H18: 28469 | I18: 28388
A19: 短期借款 | B19: 66689067 | C19: 64918062 | D19: 68891614 | E19: 57676703 | F19: 51276959 | G19: 46045135 | H19: 57221436 | I19: 63128811
A20: 應付商業本票∕承兌匯票 | B20: 6017504 | C20: 5936216 | D20: 5555424 | E20: 4696502 | F20: 5036983 | G20: 5054831 | H20: 4957027 | I20: 4855308
A21: 一年內到期長期負債 | B21: 6549552 | C21: 7684062 | D21: 5502585 | E21: 5717932 | F21: 185515 | G21: 390860 | H21: 491244 | I21: 6840408
A22: 特別股負債－流動 | B22: 0 | C22: 0 | D22: 0 | E22: 0 | F22: 0 | G22: 0 | H22: 0 | I22: 0
A23: 自有資金承擔銀行風險 | B23: =SUM(B17:B18)-SUM(B19:B22) -> -66562792 | C23: =SUM(C17:C18)-SUM(C19:C22) -> -65276031 | D23: -69617392 | E23: -58457378 | F23: -50304330 | G23: -45888010 | H23: -55524350 | I23: -66405519

Sheet ROA (hidden)
B1: TEJ產業名 | C1: TEJ子產業名 | D1: ROA(A)稅後息前 | E1: ROA(A)稅後息前 | F1: ROA(A)稅後息前 | G1: ROA(A)稅後息前 | H1: ROA(A)稅後息前 | I1: ROA(A)稅後息前 | J1: ROA(A)稅後息前 | K1: ROA(A)稅後息前
A2: 公司 | D2: 2020-06-30 | E2: 2020-03-31 | F2: 2019-12-31 | G2: 2019-09-27 | H2: 2019-06-28 | I2: 2019-03-29 | J2: 2018-12-28 | K2: 2018-09-28
A3: 000104 臺銀證券 | B3: M30A 證券 | C3: M30A 證券 | F3: 2.08 | H3: 0.73 | J3: 1.41
A4: 000116 日盛證券 | B4: M30A 證券 | C4: M30A 證券 | D4: 1.13 | E4: 0.22 | F4: 1.84 | G4: 1.47 | H4: 0.77 | I4: 0.43 | J4: 2.35 | K4: 2.07
A5: 000218 亞東證券 | B5: M30A 證券 | C5: M30A 證券 | F5: 1.52 | H5: 0.96 | J5: 0.41
A6: 000511 富隆證券 | B6: M30A 證券 | C6: M30A 證券 | F6: 10.88 | H6: -2.63 | J6: -4.59
A7: 000532 高橋證券 | B7: M30A 證券 | C7: M30A 證券 | D7: 2.14 | F7: 2.79 | H7: 1.02 | J7: 3.24
A8: 000538 第一金證 | B8: M30A 證券 | C8: M30A 證券 | E8: -0.37 | F8: 1.45 | G8: 0.98 | H8: 0.4 | I8: 0.31 | J8: 0.74 | K8: 1.09
A9: 000546 寶盛證券 | B9: M30A 證券 | C9: M30A 證券 | D9: 0.22 | F9: 2.98 | H9: 3.02 | J9: 0.05
A10: 000560 永興證券 | B10: M30A 證券 | C10: M30A 證券 | D10: 1.67 | F10: 0.96 | H10: -0.14 | J10: 2.13
A11: 000587 光隆證券 | B11: M30A 證券 | C11: M30A 證券 | F11: 3.49 | H11: 1.44 | J11: 3.65
A12: 000601 奔亞證券 | B12: M30A 證券 | C12: M30A 證券 | F12: 1.59 | H12: 3.01 | J12: 0.3
A13: 000616 中信證券 | B13: M30A 證券 | C13: M30A 證券 | E13: -0.86 | F13: 2.41 | G13: 1.89 | H13: 1.03 | I13: 0.55 | J13: 1.42 | K13: 1.54
A14: 000638 光和證券 | B14: M30A 證券 | C14: M30A 證券 | F14: 1.95 | H14: 0.1 | J14: -0.35
A15: 000646 大昌證券 | B15: M30A 證券 | C15: M30A 證券 | F15: 2.01 | H15: 0.98 | J15: 0.05
A16: 000695 福勝證券 | B16: M30A 證券 | C16: M30A 證券 | D16: 1.26 | F16: 1.05 | H16: 0.23 | J16: 1.93
A17: 000700 兆豐證券 | B17: M30A 證券 | C17: M30A 證券 | E17: 0.15 | F17: 1.99 | G17: 1.58 | H17: 0.83 | I17: 0.3 | J17: 0.82 | K17: 0.68
A18: 000708 石橋證券 | B18: M30A 證券 | C18: M30A 證券 | D18: -1.29 | F18: -3.67 | H18: -1.35 | J18: -6.33
A19: 000775 北城證券 | B19: M30A 證券 | C19: M30A 證券 | F19: 1.64 | H19: 0.73 | J19: 2.19
A20: 000779 國票證券 | B20: M30A 證券 | C20: M30A 證券 | E20: 0.07 | F20: 2.33 | G20: 1.93 | H20: 1 | I20: 0.5 | J20: 1.08 | K20: 1.06
A21: 000815 台新證券 | B21: M30A 證券 | C21: M30A 證券 | E21: -0.83 | F21: 2.13 | G21: 1.31 | H21: 0.77 | I21: 0.5 | J21: 0.85 | K21: 1.37
A22: 000838 安泰證券 | B22: M30A 證券 | C22: M30A 證券 | F22: 1.94 | H22: 0.79 | J22: 2.49
A23: 000856 新光證券 | B23: M30A 證券 | C23: M30A 證券 | F23: 4.85 | H23: 2.53 | J23: 5.43
A24: 000888 國泰證券 | B24: M30A 證券 | C24: M30A 證券 | E24: 0.59 | F24: 2.33 | G24: 1.9 | H24: 0.98 | I24: 0.34 | J24: 1.69 | K24: 1.53
A25: 000930 華南永昌證券 | B25: M30A 證券 | C25: M30A 證券 | E25: -10.05 | F25: 2.33 | G25: 1.6 | H25: 0.84 | I25: 0.46 | J25: 1.28 | K25: 1.32
A26: 000960 富邦證券 | B26: M30A 證券 | C26: M30A 證券 | E26: 0.23 | F26: 2.62 | G26: 2.17 | H26: 1.24 | I26: 0.65 | J26: 2.02 | K26: 1.92
A27: 000980 元大證券 | B27: M30A 證券 | C27: M30A 證券 | D27: 0.93 | E27: 0.37 | F27: 2.03 | G27: 1.56 | H27: 0.97 | I27: 0.5 | J27: 2.1 | K27: 1.73
A28: 0009A0 永豐金證券 | B28: M30A 證券 | C28: M30A 證券 | E28: 0.21 | F28: 2.24 | G28: 1.71 | H28: 1.01 | I28: 0.49 | J28: 0.97 | K28: 0.84
A29: 1101 台泥 | B29: M11A 水泥製造 | C29: M11A 水泥製造 | D29: 3.45 | E29: 1.07 | F29: 7.65 | G29: 5.76 | H29: 3.55 | I29: 1.31 | J29: 7.98 | K29: 6.37
A30: 1102 亞泥 | B30: M11A 水泥製造 | C30: M11A 水泥製造 | D30: 2.49 | E30: 0.48 | F30: 8.22 | G30: 6.35 | H30: 4.25 | I30: 1.48 | J30: 6.17 | K30: 4.9
A31: 1103 嘉泥 | B31: M11A 水泥製造 | C31: M11A 水泥製造 | D31: 0.03 | E31: -0.51 | F31: 2.6 | G31: 3.14 | H31: 0.69 | I31: 0.52 | J31: 1.07 | K31: 2.37
A32: 1104 環泥 | B32: M11A 水泥製造 | C32: M11A 水泥製造 | D32: 2.14 | E32: 0.24 | F32: 5.08 | G32: 3.17 | H32: 2.05 | I32: 0.72 | J32: 4.88 | K32: 3.52
A33: 1108 幸福 | B33: M11A 水泥製造 | C33: M11A 水泥製造 | D33: 3.25 | E33: 1.36 | F33: 1.06 | G33: 0.32 | H33: 0.01 | I33: -0.29 | J33: -2.41 | K33: -0.43
A34: 1109 信大 | B34: M11A 水泥製造 | C34: M11A 水泥製造 | D34: 4.39 | E34: 1.27 | F34: 13.79 | G34: 9.88 | H34: 5.73 | I34: 2.07 | J34: 13.6 | K34: 8.89
A35: 1110 東泥 | B35: M11A 水泥製造 | C35: M11A 水泥製造 | D35: -0.2 | E35: -0.31 | F35: 0.39 | G35: 0.44 | H35: 0.28 | I35: 0.32 | J35: 0.71 | K35: 0.98
A36: 1111 欣欣水泥 | B36: M11A 水泥製造 | C36: M11A 水泥製造 | D36: 0.37 | F36: 0.5 | H36: 1.38 | J36: 1.38
A37: 1201 味全 | B37: M12C 飲料乳品 | C37: M12C 飲料乳品 | D37: 0.94 | E37: 0.32 | F37: 7.46 | G37: 6.88 | H37: 5.97 | I37: 5.54 | J37: 4.3 | K37: 4.19
A38: 1203 味王 | B38: M12Z 其他食品 | C38: M12Z 其他食品 | D38: 3.8 | E38: 2.27 | F38: 7.9 | G38: 5.84 | H38: 4 | I38: 1.98 | J38: 7.83 | K38: 6
A39: 1210 大成 | B39: M12B 油脂飼料 | C39: M12B 油脂飼料 | D39: 3.79 | E39: 1.71 | F39: 7.35 | G39: 5.41 | H39: 3.08 | I39: 1.33 | J39: 6.39 | K39: 4.84
A40: 1213 大飲 | B40: M12C 飲料乳品 | C40: M12C 飲料乳品 | D40: 0.18 | E40: -0.74 | F40: -2.55 | G40: -2.14 | H40: -1.36 | I40: -0.51 | J40: -7.68 | K40: -0.01
A41: 1215 卜蜂 | B41: M12B 油脂飼料 | C41: M12B 油脂飼料 | D41: 3.91 | E41: 1.35 | F41: 10.96 | G41: 5.95 | H41: 4.13 | I41: 1.72 | J41: 7.05 | K41: 4.82
A42: 1216 統一 | B42: M12C 飲料乳品 | C42: M12C 飲料乳品 | D42: 3.43 | E42: 1.5 | F42: 6.9 | G42: 5.82 | H42: 3.97 | I42: 1.91 | J42: 6.85 | K42: 5.78
A43: 1217 愛之味 | B43: M12A 罐頭加工 | C43: M12A 罐頭加工 | D43: 1.02 | E43: 0.41 | F43: 1.34 | G43: 1.49 | H43: 0.62 | I43: 0.34 | J43: 1.42 | K43: 1.3
A44: 1218 泰山 | B44: M12B 油脂飼料 | C44: M12B 油脂飼料 | D44: 3.93 | E44: 1.47 | F44: 6.63 | G44: 5.69 | H44: 2.76 | I44: 1.24 | J44: 6.07 | K44: 5.27
A45: 1219 福壽 | B45: M12B 油脂飼料 | C45: M12B 油脂飼料 | D45: 3.73 | E45: 2.92 | F45: 2.16 | G45: 0.66 | H45: 0.37 | I45: 0.32 | J45: -0.66 | K45: -0.69
A46: 1220 台榮 | B46: M12B 油脂飼料 | C46: M12B 油脂飼料 | D46: 2.35 | E46: 0.62 | F46: 4.59 | G46: 3.11 | H46: 1.5 | I46: 0.54 | J46: 3.82 | K46: 2.99
A47: 1225 福懋油 | B47: M12B 油脂飼料 | C47: M12B 油脂飼料 | D47: 2.23 | E47: 1.23 | F47: 5.98 | G47: 4.11 | H47: 2.66 | I47: 1.4 | J47: 4.78 | K47: 3.27
A48: 1227 佳格 | B48: M12Z 其他食品 | C48: M12Z 其他食品 | D48: 6.37 | E48: 2.42 | F48: 14.11 | G48: 10.49 | H48: 6.04 | I48: 3.39 | J48: 12.99 | K48: 9.88
A49: 1229 聯華 | B49: M12B 油脂飼料 | C49: M12B 油脂飼料 | D49: 3.44 | E49: 0.5 | F49: 8.3 | G49: 7.04 | H49: 3.42 | I49: 2.79 | J49: 8.33 | K49: 6.47
A50: 1231 聯華食 | B50: M12Z 其他食品 | C50: M12Z 其他食品 | D50: 3.13 | E50: 1.39 | F50: 7.58 | G50: 4.52 | H50: 3.01 | I50: 1.64 | J50: 8.4 | K50: 5.68
A51: 1232 大統益 | B51: M12B 油脂飼料 | C51: M12B 油脂飼料 | D51: 8.64 | E51: 4.5 | F51: 17.87 | G51: 13.94 | H51: 9.27 | I51: 5.48 | J51: 17.05 | K51: 11.97
A52: 1233 天仁 | B52: M12Z 其他食品 | C52: M12Z 其他食品 | D52: 0.62 | E52: 0.35 | F52: 6.94 | G52: 5.58 | H52: 3.8 | I52: 1.96 | J52: 8.28 | K52: 6.83
A53: 1234 黑松 | B53: M12C 飲料乳品 | C53: M12C 飲料乳品 | D53: 1.26 | E53: 0.49 | F53: 3.77 | G53: 3.01 | H53: 1.42 | I53: 0.73 | J53: 3.11 | K53: 2.52
A54: 1235 興泰 | B54: M12B 油脂飼料 | C54: M12B 油脂飼料 | D54: 0.02 | E54: -0.25 | F54: 1.3 | G54: 1.2 | H54: -0.59 | I54: -0.45 | J54: 2.08 | K54: 2.62
A55: 1236 宏亞 | B55: M12Z 其他食品 | C55: M12Z 其他食品 | D55: -1.4 | E55: 0.57 | F55: 0.71 | G55: -1.12 | H55: -1.59 | I55: 0.35 | J55: 0.61 | K55: -1.17
A56: 1237 台糖 | B56: M12Z 其他食品 | C56: M12Z 其他食品 | D56: 0.05 | F56: 0.52 | H56: 0.11 | J56: 1.07
A57: 1240 茂生農經 | B57: M12B 油脂飼料 | C57: M12B 油脂飼料 | D57: 3.67 | E57: 1.87 | F57: 8.38 | G57: 6.71 | H57: 4.76 | I57: 2.12 | J57: 6.47 | K57: 4.05
A58: 1242 新東陽 | B58: M12A 罐頭加工 | C58: M12A 罐頭加工 | D58: 0.47 | F58: 3.32 | H58: 2.06 | J58: 3.51
A59: 1246 中聯油脂 | B59: M12B 油脂飼料 | C59: M12B 油脂飼料 | D59: 2.13 | F59: 4.23 | H59: 2.28 | J59: 3.8
A60: 1256 鮮活果汁-KY | B60: M12C 飲料乳品 | C60: M12C 飲料乳品 | D60: 7.09 | E60: 0.45 | F60: 19.36 | G60: 16.05 | H60: 9.78 | I60: 3.45 | J60: 18.23 | K60: 15.68
A61: 1258 其祥-KY | B61: M12Z 其他食品 | C61: M12Z 其他食品 | D61: -0.8 | E61: -2.38 | F61: -4.29 | G61: -1.61 | H61: -1.72 | I61: -0.02 | J61: -4.77 | K61: -3.63
A62: 1259 安心 | B62: M27A 餐飲飯店 | C62: M27A2 餐飲業 | D62: 1.17 | E62: 0.1 | F62: 4.33 | G62: 3.66 | H62: 1.88 | I62: 0.73 | J62: 4.1 | K62: 3.53
A63: 1260 富味鄉 | B63: M12B 油脂飼料 | C63: M12B 油脂飼料 | D63: 0.62 | F63: 3.71 | H63: 3.12 | J63: 6.09
A64: 1264 德麥 | B64: M12Z 其他食品 | C64: M12Z 其他食品 | D64: 7.22 | E64: 3.46 | F64: 16.88 | G64: 12.85 | H64: 8.17 | I64: 3.9 | J64: 16.73 | K64: 12.97
A65: 1267 京華堂 | B65: M12Z 其他食品 | C65: M12Z 其他食品 | D65: 0.94 | F65: 2.69 | H65: -2.06 | J65: -14.12
A66: 1268 漢來美食 | B66: M27A 餐飲飯店 | C66: M27A2 餐飲業 | D66: 1.69 | E66: 0.72 | F66: 8.97 | G66: 7.57 | H66: 5.52 | I66: 3.69 | J66: 7.84 | K66: 6.04
A67: 1269 乾杯 | B67: M27A 餐飲飯店 | C67: M27A2 餐飲業 | D67: -1.23 | F67: 5.87 | H67: 1.75 | I67: 1.87 | J67: 6.58
A68: 1271 晨暉生技 | B68: M17C 藥 | C68: M17C2 機能性食品 | D68: 18.86 | F68: 12.73 | H68: 4.14 | J68: -4.2
A69: 1293 利統 | B69: M12Z 其他食品 | C69: M12Z 其他食品 | D69: 6.3 | F69: -2.13 | H69: -4.66 | J69: 2.71
A70: 1301 台塑 | B70: M13A 石化 | C70: M13A1 泛用塑膠 | D70: -0.09 | E70: -0.02 | F70: 7.69 | G70: 7.02 | H70: 3.73 | I70: 1.66 | J70: 10.38 | K70: 9.68
A71: 1303 南亞 | B71: M13A 石化 | C71: M13A1 泛用塑膠 | D71: 0.76 | E71: 0.27 | F71: 4.36 | G71: 3.52 | H71: 1.97 | I71: 0.95 | J71: 9.7 | K71: 8.7
A72: 1304 台聚 | B72: M13A 石化 | C72: M13A1 泛用塑膠 | D72: 1.97 | E72: 0.98 | F72: 3.94 | G72: 2.86 | H72: 1.98 | I72: 0.91 | J72: 3.09 | K72: 3.25
A73: 1305 華夏 | B73: M13A 石化 | C73: M13A1 泛用塑膠 | D73: 2.31 | E73: 2.81 | F73: 5.51 | G73: 3.37 | H73: 1.81 | I73: 1.45 | J73: 10.48 | K73: 9.69
A74: 1307 三芳 | B74: M13A 石化 | C74: M13A6 合成皮 | D74: 0.29 | E74: 0.74 | F74: 3.13 | G74: 2.48 | H74: 1.48 | I74: 0.75 | J74: 2.29 | K74: 1.77
A75: 1308 亞聚 | B75: M13A 石化 | C75: M13A1 泛用塑膠 | D75: 2.41 | E75: 0.96 | F75: 5.33 | G75: 3.56 | H75: 2.25 | I75: 0.91 | J75: 2.09 | K75: 1.93
A76: 1309 台達化 | B76: M13A 石化 | C76: M13A1 泛用塑膠 | D76: 6 | E76: 1.95 | F76: 5.25 | G76: 4.08 | H76: 3.85 | I76: 2.41 | J76: 2.88 | K76: 4.49
A77: 1310 台苯 | B77: M13A 石化 | C77: M13A1 泛用塑膠 | D77: -1.87 | E77: -3.54 | F77: 8.97 | G77: 8.49 | H77: 6.1 | I77: 3.18 | J77: 11.21 | K77: 10.41
A78: 1312 國喬 | B78: M13A 石化 | C78: M13A1 泛用塑膠 | D78: 2.48 | E78: 0.15 | F78: 7.11 | G78: 6.06 | H78: 4.39 | I78: 1.99 | J78: 10.9 | K78: 9.87
A79: 1313 聯成 | B79: M13A 石化 | C79: M13A7 可塑劑 | D79: -0.16 | E79: -1.75 | F79: 0.4 | G79: 0.44 | H79: -0.77 | I79: -0.11 | J79: 2.43 | K79: 2.52
A80: 1314 中石化 | B80: M13A 石化 | C80: M13A5 化纖 | D80: 0.56 | E80: 0.05 | F80: 1.98 | G80: 1.33 | H80: 1.1 | I80: 0.37 | J80: 5.07 | K80: 4.73
A81: 1315 達新 | B81: M13A 石化 | C81: M13A8 塑膠加工 | D81: 43.25 | E81: 0.1 | F81: 7.11 | G81: 7.76 | H81: 4.9 | I81: 0.07 | J81: 2.44 | K81: 2.88
A82: 1316 上曜 | B82: M25A 建設 | C82: M25A 建設 | D82: -1.24 | E82: -0.82 | F82: -0.91 | G82: -1.58 | H82: -1.47 | I82: -0.63 | J82: 4.65 | K82: 6.67
A83: 1319 東陽 | B83: M15D 汽車組件 | C83: M15D 汽車組件 | D83: 1.03 | E83: 0.97 | F83: 5.37 | G83: 4.03 | H83: 2.76 | I83: 1.35 | J83: 5.53 | K83: 4.16
A84: 1321 大洋 | B84: M13A 石化 | C84: M13A8 塑膠加工 | D84: 0.84 | E84: -0.29 | F84: 1.2 | G84: 1.23 | H84: 0.17 | I84: 0.31 | J84: -0.44 | K84: 0.34
A85: 1323 永裕 | B85: M13A 石化 | C85: M13A8 塑膠加工 | D85: 3.79 | E85: 1.69 | F85: 7.83 | G85: 5.82 | H85: 3.78 | I85: 1.66 | J85: 9.11 | K85: 6.78
A86: 1324 地球 | B86: M13A 石化 | C86: M13A9 膠帶 | D86: 0.64 | E86: 0.68 | F86: 0.26 | G86: -0.13 | H86: 0.04 | I86: -0.28 | J86: 0.09 | K86: 0.29
A87: 1325 恒大 | B87: M14F 不織布 | C87: M14F 不織布 | D87: 30.74 | E87: 6.7 | F87: 1.83 | G87: 1.47 | H87: 1.13 | I87: 0.53 | J87: 3.15 | K87: 2.38
A88: 1326 台化 | B88: M13A 石化 | C88: M13A1 泛用塑膠 | D88: -0.36 | E88: -0.76 | F88: 6.08 | G88: 5.52 | H88: 3 | I88: 1.62 | J88: 9.84 | K88: 9.06
A89: 1328 中油 | B89: M13C 輕油製解 | C89: M13C 輕油製解 | D89: -3.06 | F89: 4.45 | H89: 3.59 | J89: 4.82
A90: 1333 恩得利 | B90: M23D 電子零組件 | C90: M23D2 連接器 | G90: -2.5 | H90: -5.81 | I90: -5.96 | J90: -23.36 | K90: -20.35
A91: 1336 台翰 | B91: M23D 電子零組件 | C91: M23D4 機殼 | D91: 8.33 | E91: 0.24 | F91: 3.46 | G91: 2.46 | H91: 1.37 | I91: 0.22 | J91: 4.77 | K91: 3.85
A92: 1337 再生-KY | B92: M13B 塑膠製品 | C92: M13B 塑膠製品 | D92: -3.09 | E92: -1.58 | F92: -7.92 | G92: -6.5 | H92: -4.6 | I92: -2.32 | J92: -19.53 | K92: -4.51
A93: 1338 廣華-KY | B93: M15D 汽車組件 | C93: M15D 汽車組件 | D93: 0.26 | E93: 0.01 | F93: 4.44 | G93: 3.02 | H93: 2.07 | I93: 1.06 | J93: 5.36 | K93: 4.39
A94: 1339 昭輝 | B94: M15D 汽車組件 | C94: M15D 汽車組件 | D94: 1 | E94: 1.33 | F94: 6.79 | G94: 6.21 | H94: 4.77 | I94: 1.71 | J94: 4.92 | K94: 4.63
A95: 1340 勝悅-KY | B95: M13B 塑膠製品 | C95: M13B 塑膠製品 | D95: -2.88 | E95: -1.47 | F95: -6.75 | G95: -3.21 | H95: -1.59 | I95: -0.52 | J95: 1.95 | K95: 2.94
A96: 1341 富林-KY | B96: M13A 石化 | C96: M13A6 合成皮 | D96: 4.87 | E96: 3.35 | F96: 13.48 | G96: 9.92 | H96: 5.32 | I96: 2.14 | J96: 8.86 | K96: 5.87
A97: 1342 八貫 | B97: M13B 塑膠製品 | C97: M13B 塑膠製品 | D97: 5.6 | E97: 3.82 | F97: 13.11 | H97: 6.48 | I97: 2.6 | J97: 13.12
A98: 1343 旭東 | B98: M13B 塑膠製品 | C98: M13B 塑膠製品 | D98: 0.38 | F98: 5.51 | H98: 4.3 | J98: 15.52
A99: 1402 遠東新 | B99: M14A 人纖 | C99: M14A1 聚酯絲棉 | D99: 1.26 | E99: 0.58 | F99: 3.33 | G99: 2.68 | H99: 1.71 | I99: 0.72 | J99: 3.8 | K99: 3.35
A100: 1408 中紡 | B100: M14A 人纖 | C100: M14A1 聚酯絲棉 | D100: -1.78 | F100: -2.68 | H100: -2.61 | J100: 3.78
A101: 1409 新纖 | B101: M14A 人纖 | C101: M14A1 聚酯絲棉 | D101: 0.01 | E101: 0.23 | F101: 1.64 | G101: 1.41 | H101: 0.8 | I101: 0.31 | J101: 2.12 | K101: 1.69
A102: 1410 南染 | B102: M14E 染整 | C102: M14E 染整 | D102: 2.08 | E102: 1.22 | F102: 4.58 | G102: 3.71 | H102: 2.27 | I102: 0.99 | J102: 7.3 | K102: 5.57
A103: 1413 宏洲 | B103: M14A 人纖 | C103: M14A2 加工絲 | D103: -3.55 | E103: -1.32 | F103: 3 | G103: 3.76 | H103: 3.37 | I103: 1.7 | J103: 10.72 | K103: 8.17
A104: 1414 東和 | B104: M14B 棉紡 | C104: M14B1 聚酯紗棉紗 | D104: 0 | E104: -0.45 | F104: 0.99 | G104: -0.14 | H104: -0.31 | I104: -0.21 | J104: 0.97 | K104: 0.91
A105: 1416 廣豐 | B105: M29A 百貨批發 | C105: M29A1 百貨購物中 | D105: -2.46 | E105: -0.32 | F105: -1.28 | G105: -0.14 | H105: 0.33 | I105: 0.32 | J105: 3.74 | K105: 1.02
A106: 1417 嘉裕 | B106: M14C 成衣 | C106: M14C1 成衣製造 | D106: -2.24 | E106: -1.59 | F106: 7.45 | G106: -1.34 | H106: -0.93 | I106: -1.06 | J106: -5.28 | K106: -3.34
A107: 1418 東華 | B107: M14B 棉紡 | C107: M14B2 亞克力纖維 | D107: -4.72 | E107: -2.16 | F107: -7.32 | G107: -5.21 | H107: -3.01 | I107: -1.28 | J107: -9.03 | K107: -7.77
A108: 1419 新紡 | B108: M14C 成衣 | C108: M14C2 織布 | D108: 0.29 | E108: 0.16 | F108: 3.19 | G108: 2.79 | H108: 0.47 | I108: 0 | J108: 2.28 | K108: 1.96
A109: 1423 利華 | B109: M14D 毛紡 | C109: M14D2 毛紡 | D109: -3.18 | E109: -1.79 | F109: -1.39 | G109: -1.1 | H109: 0.05 | I109: 0.4 | J109: 3.75 | K109: 3.12
A110: 1432 大魯閣 | B110: M29A 百貨批發 | C110: M29A1 百貨購物中 | D110: -0.43 | E110: -0.15 | F110: -14.15 | G110: -3.33 | H110: -2.3 | I110: -1.07 | J110: -7.2 | K110: -4.64
A111: 1434 福懋 | B111: M14C 成衣 | C111: M14C2 織布 | D111: 2.19 | E111: 0.52 | F111: 5.53 | G111: 4.29 | H111: 3.22 | I111: 0.64 | J111: 5.85 | K111: 5.08
A112: 1435 中福 | B112: M23E 網路設備 | C112: M23E1 數據機 | D112: -0.8 | E112: -1.18 | F112: 1.95 | G112: 1.06 | H112: 1.28 | I112: 1.2 | J112: -1.13 | K112: -0.28
A113: 1436 華友聯 | B113: M25A 建設 | C113: M25A 建設 | D113: 0.95 | E113: 0.57 | F113: 3.47 | G113: 0.82 | H113: 0.93 | I113: 0.93 | J113: 5.48 | K113: 3.62
A114: 1437 勤益控 | B114: M25F 物業管理 | C114: M25F 物業管理 | D114: 1.4 | E114: 0.4 | F114: 3.17 | G114: 2.52 | H114: 1.73 | I114: 1.35 | J114: 2.91 | K114: 2.5
A115: 1438 三地開發 | B115: M25A 建設 | C115: M25A 建設 | D115: 8.54 | E115: 7.79 | F115: -1.78 | G115: -1.57 | H115: 0.01 | I115: 0.19 | J115: -1.98 | K115: -0.67
A116: 1439 中和 | B116: M14D 毛紡 | C116: M14D2 毛紡 | D116: -1.07 | E116: -0.27 | F116: 39.85 | G116: 37.87 | H116: 37.84 | I116: -0.33 | J116: -3.38 | K116: -2.1
A117: 1440 南紡 | B117: M14A 人纖 | C117: M14A1 聚酯絲棉 | D117: 0.08 | E117: 0.3 | F117: 0.65 | G117: 0.49 | H117: 0.51 | I117: 0.17 | J117: 2.78 | K117: 2.83
A118: 1441 大東 | B118: M14B 棉紡 | C118: M14B1 聚酯紗棉紗 | D118: -7.2 | E118: -3.75 | F118: -10.77 | G118: -7.91 | H118: -5.42 | I118: -2.25 | J118: 32.01 | K118: 36.76
A119: 1442 名軒 | B119: M25A 建設 | C119: M25A 建設 | D119: 0.11 | E119: -0.07 | F119: 0.89 | G119: 0.99 | H119: -0.32 | I119: -0.05 | J119: 1.15 | K119: 1.47
A120: 1443 立益 | B120: M14B 棉紡 | C120: M14B1 聚酯紗棉紗 | D120: -0.7 | E120: 0.27 | F120: 1.65 | G120: 0.58 | H120: 1.25 | I120: 1.25 | J120: -11.46 | K120: -10.61
A121: 1444 力麗 | B121: M14A 人纖 | C121: M14A2 加工絲 | D121: -1.49 | E121: -2.05 | F121: 0.06 | G121: 1.99 | H121: 1.99 | I121: 0.87 | J121: 2.32 | K121: 2.4
A122: 1445 大宇 | B122: M14C 成衣 | C122: M14C2 織布 | D122: -1.64 | E122: -0.09 | F122: -1.94 | G122: -1.35 | H122: -0.45 | I122: -0.18 | J122: -1.11 | K122: -0.83
A123: 1446 宏和 | B123: M14C 成衣 | C123: M14C2 織布 | D123: -0.87 | E123: 0.06 | F123: 0.14 | G123: -0.65 | H123: -0.44 | I123: -0.3 | J123: -0.64 | K123: -0.91
A124: 1447 力鵬 | B124: M14A 人纖 | C124: M14A7 尼龍絲 | D124: -1.88 | E124: -0.72 | F124: -1.05 | G124: 1.09 | H124: 1 | I124: 0.72 | J124: 1.28 | K124: 2.59
A125: 1449 佳和 | B125: M14C 成衣 | C125: M14C2 織布 | D125: -1.22 | E125: -0.62 | F125: -0.11 | G125: 0.81 | H125: 0.63 | I125: 0.93 | J125: -1.25 | K125: -0.71
A126: 1451 年興 | B126: M14C 成衣 | C126: M14C1 成衣製造 | D126: -4.14 | E126: -2.57 | F126: -0.68 | G126: -0.15 | H126: -0.03 | I126: 0.12 | J126: 3.97 | K126: 2.7
A127: 1452 宏益 | B127: M14A 人纖 | C127: M14A2 加工絲 | D127: -0.58 | E127: 0.14 | F127: 6.42 | G127: 5.1 | H127: 3.11 | I127: 1.81 | J127: 7.11 | K127: 6.16
A128: 1453 大將 | B128: M25A 建設 | C128: M25A 建設 | D128: -0.87 | E128: -3.98 | F128: -3.42 | G128: -0.09 | H128: 0.54 | I128: 0.81 | J128: 24.81 | K128: 26.22
A129: 1454 台富 | B129: M14C 成衣 | C129: M14C2 織布 | D129: -1.19 | E129: 0.05 | F129: 1.79 | G129: 1.85 | H129: 1.66 | I129: 0.46 | J129: 1.03 | K129: 1.32
A130: 1455 集盛 | B130: M14A 人纖 | C130: M14A7 尼龍絲 | D130: -3.96 | E130: -2.07 | F130: -2.77 | G130: -0.85 | H130: 0.09 | I130: 0.04 | J130: 0.79 | K130: 2.77
A131: 1456 怡華 | B131: M14C 成衣 | C131: M14C2 織布 | D131: 0.12 | E131: 0.08 | F131: 1.46 | G131: 0.62 | H131: 0.49 | I131: 0.15 | J131: 1.36 | K131: 0.24
A132: 1457 宜進 | B132: M14A 人纖 | C132: M14A2 加工絲 | D132: 3.25 | E132: -0.14 | F132: 4.2 | G132: 3.66 | H132: 3.1 | I132: 2.71 | J132: 5.34 | K132: 4.58
A133: 1459 聯發 | B133: M14A 人纖 | C133: M14A2 加工絲 | D133: -3.6 | E133: -5.43 | F133: -0.55 | G133: -1.13 | H133: 0.54 | I133: 1.18 | J133: -4.39 | K133: 1.87
A134: 1460 宏遠 | B134: M14C 成衣 | C134: M14C2 織布 | D134: -2.47 | E134: -0.95 | F134: -1.37 | G134: 0.07 | H134: 0.5 | I134: 0.29 | J134: 1.85 | K134: 1.63
A135: 1463 強盛 | B135: M14E 染整 | C135: M14E 染整 | D135: 1.56 | E135: 1.72 | F135: 4.61 | G135: 4.43 | H135: 2.69 | I135: 1.85 | J135: 10.65 | K135: 9.42
A136: 1464 得力 | B136: M14C 成衣 | C136: M14C2 織布 | D136: -0.38 | E136: 0.54 | F136: 4.4 | G136: 3.27 | H136: 2.25 | I136: 0.86 | J136: 2.39 | K136: 1.71
A137: 1465 偉全 | B137: M14C 成衣 | C137: M14C2 織布 | D137: -0.39 | E137: 0.02 | F137: -12.29 | G137: -9.25 | H137: -7.25 | I137: -7.17 | J137: 1.01 | K137: -0.76
A138: 1466 聚隆 | B138: M14A 人纖 | C138: M14A7 尼龍絲 | D138: -1.28 | E138: -0.23 | F138: -2.24 | G138: 0.04 | H138: 0.47 | I138: 0.72 | J138: -2.31 | K138: -1.42
A139: 1467 南緯 | B139: M14C 成衣 | C139: M14C1 成衣製造 | D139: -4.48 | E139: -2.12 | F139: -1.3 | G139: 0.47 | H139: -0.08 | I139: -0.15 | J139: 0.4 | K139: -0.99
A140: 1468 昶和 | B140: M14C 成衣 | C140: M14C2 織布 | D140: 1.36 | E140: 1.39 | F140: 2.9 | G140: 2.66 | H140: 2.13 | I140: 0.94 | J140: 2.56 | K140: 2.37
A141: 1470 大統新創 | B141: M14E 染整 | C141: M14E 染整 | D141: 0.72 | E141: 1.47 | F141: 6.6 | G141: 5.4 | H141: 3.82 | I141: 1.9 | J141: 4.37 | K141: 2.84
A142: 1471 首利 | B142: M23D 電子零組件 | C142: M23D3 電源供應器 | D142: -7.48 | E142: -5.31 | F142: -23.62 | G142: -19.95 | H142: -11.68 | I142: -4.74 | J142: -16.18 | K142: -7.96
A143: 1472 三洋紡 | B143: M14A 人纖 | C143: M14A7 尼龍絲 | D143: -15.03 | E143: -6.17 | F143: 5.44 | G143: 7.72 | H143: 11.75 | I143: -3.64 | J143: -6.87 | K143: -6.14
A144: 1473 台南 | B144: M14C 成衣 | C144: M14C1 成衣製造 | D144: -1.75 | E144: 0.26 | F144: 1.92 | G144: 2.03 | H144: 1.53 | I144: 1.77 | J144: 1.65 | K144: -0.12
A145: 1474 弘裕 | B145: M14C 成衣 | C145: M14C2 織布 | D145: 0.69 | E145: 0.1 | F145: 1.43 | G145: -0.21 | H145: -0.21 | I145: 0.04 | J145: 3.09 | K145: 2.03
A146: 1475 本盟 | B146: M14C 成衣 | C146: M14C2 織布 | D146: -7.86 | E146: -4.42 | F146: 20.81 | G146: 24.54 | H146: -32.33 | I146: -14.83 | J146: -38.78 | K146: -37.4
A147: 1476 儒鴻 | B147: M14C 成衣 | C147: M14C1 成衣製造 | D147: 6.01 | E147: 3 | F147: 19.15 | G147: 14.45 | H147: 8.65 | I147: 4.06 | J147: 20.94 | K147: 15.38
A148: 1477 聚陽 | B148: M14C 成衣 | C148: M14C1 成衣製造 | D148: 5.29 | E148: 3.05 | F148: 14.25 | G148: 11.27 | H148: 6.31 | I148: 3.73 | J148: 12.11 | K148: 9.29
A149: 1480 東盟開發 | B149: M20A 金屬基本 | C149: M20A6 不銹鋼 | D149: -2.44 | F149: 1.94 | H149: -0.58 | J149: 3.39
A150: 1489 日南紡織 | B150: M14B 棉紡 | C150: M14B1 聚酯紗棉紗 | D150: -3.25 | F150: -2.4 | H150: -0.36 | J150: 1.33
A151: 1503 士電 | B151: M15B 電機製品 | C151: M15B1 電機 | D151: 2.34 | E151: 1.3 | F151: 4.41 | G151: 3.41 | H151: 2.34 | I151: 1.32 | J151: 3.92 | K151: 3.19
A152: 1504 東元 | B152: M15B 電機製品 | C152: M15B1 電機 | D152: 2.16 | E152: 0.59 | F152: 3.9 | G152: 3.19 | H152: 2.17 | I152: 0.8 | J152: 3.97 | K152: 3.07
A153: 1506 正道 | B153: M15D 汽車組件 | C153: M15D 汽車組件 | D153: -9.79 | E153: -3.14 | F153: -11.87 | G153: -5.87 | H153: -2.22 | I153: -0.76 | J153: -3.8 | K153: 0.52
A154: 1507 永大 | B154: M15B 電機製品 | C154: M15B1 電機 | D154: 2.48 | E154: 0.71 | F154: 4.53 | G154: 3.5 | H154: 1.15 | I154: 0.67 | J154: 3.21 | K154: 2.75
A155: 1512 瑞利 | B155: M15D 汽車組件 | C155: M15D 汽車組件 | D155: -2.64 | E155: -0.92 | F155: -14.41 | G155: -2.37 | H155: -0.72 | I155: -1.03 | J155: -4.41 | K155: -2.06
A156: 1513 中興電 | B156: M15B 電機製品 | C156: M15B1 電機 | D156: 1.83 | E156: 0.57 | F156: 3.67 | G156: 2.86 | H156: 1.57 | I156: 0.85 | J156: 3.56 | K156: 2.76
A157: 1514 亞力 | B157: M15B 電機製品 | C157: M15B1 電機 | D157: 3.07 | E157: 1.54 | F157: 5.32 | G157: 3.94 | H157: 2.64 | I157: 1.24 | J157: 4.04 | K157: 2.77
A158: 1515 力山 | B158: M15A 機械業 | C158: M15A1 工具機 | D158: 3.31 | E158: 1.39 | F158: 8.32 | G158: 5.58 | H158: 3.16 | I158: 1.66 | J158: 7.34 | K158: 2.91
A159: 1516 川飛 | B159: M99Z 其他 | C159: M99ZC 其他製造業 | D159: 3.63 | E159: 1.7 | F159: 3.11 | G159: 2.03 | H159: 1.21 | I159: -0.06 | J159: 4.26 | K159: 4.28
A160: 1517 利奇 | B160: M15E 自行車組件 | C160: M15E 自行車組件 | D160: -0.89 | E160: -1.61 | F160: 0.35 | G160: 0.47 | H160: 0.35 | I160: 0.31 | J160: 1.28 | K160: 2.18
A161: 1519 華城 | B161: M15B 電機製品 | C161: M15B1 電機 | D161: 1.59 | E161: 0.1 | F161: 5.73 | G161: 3 | H161: 1.33 | I161: 2.06 | J161: 1.11 | K161: -1.23
A162: 1521 大億 | B162: M15D 汽車組件 | C162: M15D 汽車組件 | D162: 2.33 | E162: 1.8 | F162: 10.21 | G162: 8.64 | H162: 6.41 | I162: 3.35 | J162: 8.84 | K162: 6.77
A163: 1522 堤維西 | B163: M15D 汽車組件 | C163: M15D 汽車組件 | D163: 0.53 | E163: 0.43 | F163: 3.87 | G163: 3.2 | H163: 2.46 | I163: 1.08 | J163: 3.41 | K163: 2.74
A164: 1524 耿鼎 | B164: M15D 汽車組件 | C164: M15D 汽車組件 | D164: 0.55 | E164: 0.7 | F164: 3.33 | G164: 2.56 | H164: 1.75 | I164: 0.88 | J164: 4.24 | K164: 3.13
A165: 1525 江申 | B165: M15D 汽車組件 | C165: M15D 汽車組件 | D165: 2.16 | E165: 0.31 | F165: 5.82 | G165: 4.04 | H165: 2.39 | I165: 2.06 | J165: 9.3 | K165: 6.2
A166: 1526 日馳 | B166: M15E 自行車組件 | C166: M15E 自行車組件 | D166: 6.32 | E166: 1.48 | F166: 5 | G166: 3.63 | H166: 2.75 | I166: 0.6 | J166: 7.34 | K166: 5.17
A167: 1527 鑽全 | B167: M15A 機械業 | C167: M15A1 工具機 | D167: 3.96 | E167: 2.72 | F167: 6.53 | G167: 4.94 | H167: 3.52 | I167: 1.74 | J167: 7.74 | K167: 5.74
A168: 1528 恩德 | B168: M15A 機械業 | C168: M15A1 工具機 | D168: -1.08 | E168: -0.15 | F168: -4.51 | G168: -2.14 | H168: -1.13 | I168: 0.19 | J168: 1.23 | K168: 1.48
A169: 1529 樂士 | B169: M15B 電機製品 | C169: M15B1 電機 | D169: 0.9 | E169: 0.31 | F169: 3.31 | G169: 0.52 | H169: 0.18 | I169: 0.21 | J169: 5.41 | K169: 3.48
A170: 1530 亞崴 | B170: M15A 機械業 | C170: M15A1 工具機 | D170: 8.53 | E170: 8.01 | F170: 1.85 | G170: 2.08 | H170: 1.72 | I170: 0.77 | J170: 4.65 | K170: 3.32
A171: 1531 高林股 | B171: M15A 機械業 | C171: M15A3 紡織工具機 | D171: -1.21 | E171: -0.41 | F171: 0.68 | G171: 1.28 | H171: 0.81 | I171: 0.59 | J171: 2.93 | K171: 2.09
A172: 1532 勤美 | B172: M15A 機械業 | C172: M15A2 模具零件 | D172: 0.33 | E172: -0.01 | F172: 2.17 | G172: 1.78 | H172: 1.52 | I172: 0.73 | J172: 5.77 | K172: 3.85
A173: 1533 車王電 | B173: M15D 汽車組件 | C173: M15D 汽車組件 | D173: -0.58 | E173: -0.09 | F173: 2.66 | G173: 2.48 | H173: 2.11 | I173: 0.58 | J173: 4.72 | K173: 3.08
A174: 1535 中宇 | B174: M15B 電機製品 | C174: M15B2 機電工程 | D174: 1.26 | E174: 0.51 | F174: 1.84 | G174: 1.23 | H174: 0.71 | I174: 0.29 | J174: 1.31 | K174: 0.83
A175: 1536 和大 | B175: M15D 汽車組件 | C175: M15D 汽車組件 | D175: 0.9 | E175: 0.93 | F175: 4.43 | G175: 3.81 | H175: 2.6 | I175: 1.33 | J175: 8.66 | K175: 6.86
A176: 1537 廣隆 | B176: M23D 電子零組件 | C176: M23D7 3C二次電池 | D176: 7.26 | E176: 3.86 | F176: 17.96 | G176: 13.5 | H176: 9.05 | I176: 4.54 | J176: 17.83 | K176: 14.38
A177: 1538 正峰 | B177: M15A 機械業 | C177: M15A1 工具機 | D177: 10.54 | E177: 11.84 | F177: -12.35 | G177: -4.21 | H177: -3.86 | I177: -3.57 | J177: -6.59 | K177: -4.52
A178: 1539 巨庭 | B178: M15A 機械業 | C178: M15A1 工具機 | D178: 0.63 | E178: 0.87 | F178: 2.54 | G178: 3.24 | H178: 2.37 | I178: 1.51 | J178: 3.79 | K178: 3.95
A179: 1540 喬福 | B179: M15A 機械業 | C179: M15A1 工具機 | D179: -1.11 | E179: 1.22 | F179: 6.49 | G179: 7.98 | H179: 6.07 | I179: 2.68 | J179: 7.8 | K179: 5.7
A180: 1541 錩泰 | B180: M15A 機械業 | C180: M15A1 工具機 | D180: 6.77 | E180: 4.09 | F180: 8.78 | G180: 6.62 | H180: 3.21 | I180: 1.61 | J180: 2.96 | K180: 3.94
A181: 1550 台全電機 | B181: M15D 汽車組件 | C181: M15D 汽車組件 | D181: -0.43 | F181: 5.81 | H181: 3.28 | J181: 9.01
A182: 1557 金豐 | B182: M15A 機械業 | C182: M15A1 工具機 | D182: 1.75 | F182: 2.87 | H182: 1.27 | J182: 6.4
A183: 1558 伸興 | B183: M15A 機械業 | C183: M15A3 紡織工具機 | D183: 4.59 | E183: 1.9 | F183: 10.43 | G183: 8.57 | H183: 4.41 | I183: 1.25 | J183: 13.98 | K183: 11.45
A184: 1560 中砂 | B184: M15A 機械業 | C184: M15A2 模具零件 | D184: 3.4 | E184: 1.82 | F184: 7.49 | G184: 5.42 | H184: 3.53 | I184: 2.18 | J184: 11.79 | K184: 8.24
A185: 1563 巧新 | B185: M15D 汽車組件 | C185: M15D 汽車組件 | D185: -0.91 | F185: 4.09 | H185: 3.23 | J185: 7.55
A186: 1565 精華 | B186: M17G 醫療耗材 | C186: M17G 醫療耗材 | D186: 4.76 | E186: 3.04 | F186: 15.15 | G186: 11.45 | H186: 7.83 | I186: 4.38 | J186: 19.37 | K186: 14.83
A187: 1568 倉佑 | B187: M15D 汽車組件 | C187: M15D 汽車組件 | D187: -0.37 | E187: -0.54 | F187: 1.15 | G187: 0.98 | H187: 1.36 | I187: 0.68 | J187: 3.12 | K187: 2.92
A188: 1569 濱川 | B188: M23D 電子零組件 | C188: M23D9A 沖壓零組件 | D188: 3.11 | E188: 0.53 | F188: 2.83 | G188: 1.59 | H188: 1.01 | I188: 0.46 | J188: 1.79 | K188: 1.17
A189: 1570 力肯 | B189: M15A 機械業 | C189: M15A1 工具機 | D189: 3.16 | E189: 1.97 | F189: 8.14 | G189: 5.72 | H189: 3.36 | I189: 1.05 | J189: 9.36 | K189: 6.76
A190: 1580 新麥 | B190: M15Z 其他電製品 | C190: M15Z 其他電製品 | D190: 3.09 | E190: 1.03 | F190: 15.96 | G190: 11.68 | H190: 6.19 | I190: 2.4 | J190: 15.06 | K190: 10.4
A191: 1582 信錦 | B191: M23D 電子零組件 | C191: M23D4 機殼 | D191: 5.02 | E191: 1.42 | F191: 10.41 | G191: 8.6 | H191: 4.85 | I191: 2.15 | J191: 10.49 | K191: 7.65
A192: 1583 程泰 | B192: M15A 機械業 | C192: M15A1 工具機 | D192: 4.8 | E192: 3.94 | F192: 2.74 | G192: 2.68 | H192: 1.96 | I192: 0.99 | J192: 5.59 | K192: 4.01
A193: 1584 精剛 | B193: M20A 金屬基本 | C193: M20A6 不銹鋼 | D193: 0.45 | E193: -0.1 | F193: -2.02 | G193: -1.08 | H193: -0.68 | I193: -0.43 | J193: -2.34 | K193: -1.35
A194: 1585 鎧鉅 | B194: M23B 主機板 | C194: M23B3X PCB上-其他 | D194: -11.59 | F194: -9.72 | H194: -4.26 | J194: -10.73
A195: 1586 和勤 | B195: M23D 電子零組件 | C195: M23D9A 沖壓零組件 | D195: 2.02 | E195: 0.59 | F195: 1.36 | G195: 0.76 | H195: 0.46 | I195: -0.85 | J195: 4.21 | K195: 3.8
A196: 1587 吉茂 | B196: M15D 汽車組件 | C196: M15D 汽車組件 | D196: 4.33 | E196: 0.39 | F196: 0.72 | G196: 0.66 | H196: 0.61 | I196: 0.26 | J196: 2.05 | K196: 0.35
A197: 1589 永冠-KY | B197: M15A 機械業 | C197: M15A2 模具零件 | D197: 0.93 | E197: -0.66 | F197: 2.09 | G197: 0.68 | H197: -0.08 | I197: -0.46 | J197: -1.15 | K197: -0.97
A198: 1590 亞德客-KY | B198: M15A 機械業 | C198: M15A2 模具零件 | D198: 4.57 | E198: 1.18 | F198: 7.92 | G198: 5.6 | H198: 4.26 | I198: 2.06 | J198: 9.44 | K198: 7.27
A199: 1591 駿吉-KY | B199: M15A 機械業 | C199: M15A1 工具機 | D199: 0.79 | E199: -0.32 | F199: 2.16 | G199: 3.75 | H199: 2.91 | I199: 1.69 | J199: 8.3 | K199: 6.05
A200: 1592 英瑞-KY | B200: M15D 汽車組件 | C200: M15D 汽車組件 | D200: -2.74 | E200: -1.26 | F200: -3.17 | G200: -1.74 | H200: -2.4 | I200: -1.98 | J200: -3.21 | K200: -1.67
... 2288 more rows

Sheet ROE (hidden)
B1: TEJ產業名 | C1: TEJ子產業名 | D1: ROE(A)－稅後 | E1: ROE(A)－稅後 | F1: ROE(A)－稅後 | G1: ROE(A)－稅後 | H1: ROE(A)－稅後 | I1: ROE(A)－稅後 | J1: ROE(A)－稅後 | K1: ROE(A)－稅後 | N1: CSRC分類-門類 | O1: CSRC分類-大類 | P1: =D2 -> 2020-06-30 | Q1: =E2 -> 2020-03-31 | R1: 2019-12-31 | S1: 2019-09-27 | T1: 2019-06-28 | U1: 2019-03-29 | V1: 2018-12-28 | W1: 2018-09-28
A2: 公司 | D2: 2020-06-30 | E2: 2020-03-31 | F2: 2019-12-31 | G2: 2019-09-27 | H2: 2019-06-28 | I2: 2019-03-29 | J2: 2018-12-28 | K2: 2018-09-28 | M2: =Raw!M1 -> 3702 大聯大 | N2: =IFERROR(VLOOKUP(M2,A:C,3,0),"") -> M23T2 零組件代理 | O2: =N2&"-ROE(A)－稅後" -> M23T2 零組件代理-ROE(A)－稅後 | P2: =IFERROR(ROUND(AVERAGEIF($C:$C,$N2,D:D),2),"") -> 3.59 | Q2: =IFERROR(ROUND(AVERAGEIF($C:$C,$N2,E:E),2),"") -> 1.61 | R2: 9.01 | S2: 7.87 | T2: 5.41 | U2: 1.92 | V2: 8.63 | W2: 6.89
A3: 000104 臺銀證券 | B3: M30A 證券 | C3: M30A 證券 | F3: 5.3 | H3: 1.81 | J3: 3.4 | O3: =N$2&"-ROA(A)稅後息前" -> M23T2 零組件代理-ROA(A)稅後息前 | P3: =ROUND(AVERAGEIF(ROA!$C:$C,ROE!$N2,ROA!D:D),2) -> 1.84 | Q3: =ROUND(AVERAGEIF(ROA!$C:$C,ROE!$N2,ROA!E:E),2) -> 0.88 | R3: =ROUND(AVERAGEIF(ROA!$C:$C,ROE!$N2,ROA!F:F),2) -> 5.03 | S3: =ROUND(AVERAGEIF(ROA!$C:$C,ROE!$N2,ROA!G:G),2) -> 4.35 | T3: =ROUND(AVERAGEIF(ROA!$C:$C,ROE!$N2,ROA!H:H),2) -> 3.08 | U3: =ROUND(AVERAGEIF(ROA!$C:$C,ROE!$N2,ROA!I:I),2) -> 1.12 | V3: =ROUND(AVERAGEIF(ROA!$C:$C,ROE!$N2,ROA!J:J),2) -> 4.45 | W3: =ROUND(AVERAGEIF(ROA!$C:$C,ROE!$N2,ROA!K:K),2) -> 3.41
A4: 000116 日盛證券 | B4: M30A 證券 | C4: M30A 證券 | D4: 3.04 | E4: 0.44 | F4: 4.35 | G4: 3.61 | H4: 1.81 | I4: 1.02 | J4: 5.79 | K4: 5.32 | O4: =N$2&"-營業利益率" -> M23T2 零組件代理-營業利益率 | P4: =ROUND(AVERAGEIF('Net Income'!$C:$C,ROE!$N2,'Net Income'!D:D),2) -> -1.36 | Q4: =ROUND(AVERAGEIF('Net Income'!$C:$C,ROE!$N2,'Net Income'!E:E),2) -> -0.95 | R4: =ROUND(AVERAGEIF('Net Income'!$C:$C,ROE!$N2,'Net Income'!F:F),2) -> 2.05 | S4: =ROUND(AVERAGEIF('Net Income'!$C:$C,ROE!$N2,'Net Income'!G:G),2) -> 2.81 | T4: =ROUND(AVERAGEIF('Net Income'!$C:$C,ROE!$N2,'Net Income'!H:H),2) -> 1.7 | U4: =ROUND(AVERAGEIF('Net Income'!$C:$C,ROE!$N2,'Net Income'!I:I),2) -> 2.47 | V4: =ROUND(AVERAGEIF('Net Income'!$C:$C,ROE!$N2,'Net Income'!J:J),2) -> 2.39 | W4: =ROUND(AVERAGEIF('Net Income'!$C:$C,ROE!$N2,'Net Income'!K:K),2) -> 3.19
A5: 000218 亞東證券 | B5: M30A 證券 | C5: M30A 證券 | F5: 2.49 | H5: 1.6 | J5: 0.47 | O5: =N$2&"-營業毛利率" -> M23T2 零組件代理-營業毛利率 | P5: =ROUND(AVERAGEIF('Gross Margin'!$C:$C,ROE!$N2,'Gross Margin'!D:D),2) -> 11.53 | Q5: =ROUND(AVERAGEIF('Gross Margin'!$C:$C,ROE!$N2,'Gross Margin'!E:E),2) -> 11.65 | R5: =ROUND(AVERAGEIF('Gross Margin'!$C:$C,ROE!$N2,'Gross Margin'!F:F),2) -> 10.51 | S5: =ROUND(AVERAGEIF('Gross Margin'!$C:$C,ROE!$N2,'Gross Margin'!G:G),2) -> 10.73 | T5: =ROUND(AVERAGEIF('Gross Margin'!$C:$C,ROE!$N2,'Gross Margin'!H:H),2) -> 10.54 | U5: =ROUND(AVERAGEIF('Gross Margin'!$C:$C,ROE!$N2,'Gross Margin'!I:I),2) -> 10.67 | V5: =ROUND(AVERAGEIF('Gross Margin'!$C:$C,ROE!$N2,'Gross Margin'!J:J),2) -> 10.81 | W5: =ROUND(AVERAGEIF('Gross Margin'!$C:$C,ROE!$N2,'Gross Margin'!K:K),2) -> 11.57
A6: 000511 富隆證券 | B6: M30A 證券 | C6: M30A 證券 | F6: 14.15 | H6: -3.5 | J6: -6.35 | O6: =N$2&"-借款依存度" -> M23T2 零組件代理-借款依存度 | P6: =ROUND(AVERAGEIF('Debt to Equity'!$C:$C,ROE!$N2,'Debt to Equity'!D:D),2) -> 74.1 | Q6: =ROUND(AVERAGEIF('Debt to Equity'!$C:$C,ROE!$N2,'Debt to Equity'!E:E),2) -> 77.37 | R6: =ROUND(AVERAGEIF('Debt to Equity'!$C:$C,ROE!$N2,'Debt to Equity'!F:F),2) -> 73.29 | S6: =ROUND(AVERAGEIF('Debt to Equity'!$C:$C,ROE!$N2,'Debt to Equity'!G:G),2) -> 79.46 | T6: =ROUND(AVERAGEIF('Debt to Equity'!$C:$C,ROE!$N2,'Debt to Equity'!H:H),2) -> 79.65 | U6: =ROUND(AVERAGEIF('Debt to Equity'!$C:$C,ROE!$N2,'Debt to Equity'!I:I),2) -> 72.78 | V6: =ROUND(AVERAGEIF('Debt to Equity'!$C:$C,ROE!$N2,'Debt to Equity'!J:J),2) -> 82.9 | W6: =ROUND(AVERAGEIF('Debt to Equity'!$C:$C,ROE!$N2,'Debt to Equity'!K:K),2) -> 81.69
A7: 000532 高橋證券 | B7: M30A 證券 | C7: M30A 證券 | D7: 3.81 | F7: 4.17 | H7: 1.46 | J7: 4.9 | O7: =N$2&"-速動比率" -> M23T2 零組件代理-速動比率 | P7: =ROUND(AVERAGEIF(ACID!$C:$C,ROE!$N2,ACID!D:D),2) -> 165.66 | Q7: =ROUND(AVERAGEIF(ACID!$C:$C,ROE!$N2,ACID!E:E),2) -> 178.28 | R7: =ROUND(AVERAGEIF(ACID!$C:$C,ROE!$N2,ACID!F:F),2) -> 188.97 | S7: =ROUND(AVERAGEIF(ACID!$C:$C,ROE!$N2,ACID!G:G),2) -> 193.94 | T7: =ROUND(AVERAGEIF(ACID!$C:$C,ROE!$N2,ACID!H:H),2) -> 160.49 | U7: =ROUND(AVERAGEIF(ACID!$C:$C,ROE!$N2,ACID!I:I),2) -> 201.3 | V7: =ROUND(AVERAGEIF(ACID!$C:$C,ROE!$N2,ACID!J:J),2) -> 170.28 | W7: =ROUND(AVERAGEIF(ACID!$C:$C,ROE!$N2,ACID!K:K),2) -> 165.36
A8: 000538 第一金證 | B8: M30A 證券 | C8: M30A 證券 | E8: -1.51 | F8: 4.28 | G8: 2.75 | H8: 0.97 | I8: 0.85 | J8: 1.82 | K8: 3.36 | O8: =N$2&"-流動比率" -> M23T2 零組件代理-流動比率 | P8: =ROUND(AVERAGEIF('Current Ratio'!$C:$C,ROE!$N2,'Current Ratio'!D:D),2) -> 218.34 | Q8: =ROUND(AVERAGEIF('Current Ratio'!$C:$C,ROE!$N2,'Current Ratio'!E:E),2) -> 237.04 | R8: =ROUND(AVERAGEIF('Current Ratio'!$C:$C,ROE!$N2,'Current Ratio'!F:F),2) -> 247.95 | S8: =ROUND(AVERAGEIF('Current Ratio'!$C:$C,ROE!$N2,'Current Ratio'!G:G),2) -> 251.32 | T8: =ROUND(AVERAGEIF('Current Ratio'!$C:$C,ROE!$N2,'Current Ratio'!H:H),2) -> 219.47 | U8: =ROUND(AVERAGEIF('Current Ratio'!$C:$C,ROE!$N2,'Current Ratio'!I:I),2) -> 271.69 | V8: =ROUND(AVERAGEIF('Current Ratio'!$C:$C,ROE!$N2,'Current Ratio'!J:J),2) -> 233.47 | W8: =ROUND(AVERAGEIF('Current Ratio'!$C:$C,ROE!$N2,'Current Ratio'!K:K),2) -> 228.44
A9: 000546 寶盛證券 | B9: M30A 證券 | C9: M30A 證券 | D9: 0.24 | F9: 3.27 | H9: 3.33 | J9: 0.06 | O9: =N$2&"-負債比率" -> M23T2 零組件代理-負債比率 | P9: =ROUND(AVERAGEIF('Liabilities Ratio'!$C:$C,ROE!$N2,'Liabilities Ratio'!D:D),2) -> 51.83 | Q9: =ROUND(AVERAGEIF('Liabilities Ratio'!$C:$C,ROE!$N2,'Liabilities Ratio'!E:E),2) -> 50.22 | R9: =ROUND(AVERAGEIF('Liabilities Ratio'!$C:$C,ROE!$N2,'Liabilities Ratio'!F:F),2) -> 50.59 | S9: =ROUND(AVERAGEIF('Liabilities Ratio'!$C:$C,ROE!$N2,'Liabilities Ratio'!G:G),2) -> 51.27 | T9: =ROUND(AVERAGEIF('Liabilities Ratio'!$C:$C,ROE!$N2,'Liabilities Ratio'!H:H),2) -> 52.69 | U9: =ROUND(AVERAGEIF('Liabilities Ratio'!$C:$C,ROE!$N2,'Liabilities Ratio'!I:I),2) -> 49.01 | V9: =ROUND(AVERAGEIF('Liabilities Ratio'!$C:$C,ROE!$N2,'Liabilities Ratio'!J:J),2) -> 51.61 | W9: =ROUND(AVERAGEIF('Liabilities Ratio'!$C:$C,ROE!$N2,'Liabilities Ratio'!K:K),2) -> 51.97
A10: 000560 永興證券 | B10: M30A 證券 | C10: M30A 證券 | D10: 2.49 | F10: 1.18 | H10: -0.21 | J10: 2.76 | O10: =N$2&"-或有負債/淨值" -> M23T2 零組件代理-或有負債/淨值 | P10: =ROUND(AVERAGEIF('Contingent Liabilities'!$C:$C,ROE!$N2,'Contingent Liabilities'!D:D),2) -> 0.23 | Q10: =ROUND(AVERAGEIF('Contingent Liabilities'!$C:$C,ROE!$N2,'Contingent Liabilities'!E:E),2) -> 0.15 | R10: =ROUND(AVERAGEIF('Contingent Liabilities'!$C:$C,ROE!$N2,'Contingent Liabilities'!F:F),2) -> 0.12 | S10: =ROUND(AVERAGEIF('Contingent Liabilities'!$C:$C,ROE!$N2,'Contingent Liabilities'!G:G),2) -> 0.28 | T10: =ROUND(AVERAGEIF('Contingent Liabilities'!$C:$C,ROE!$N2,'Contingent Liabilities'!H:H),2) -> 0.28 | U10: =ROUND(AVERAGEIF('Contingent Liabilities'!$C:$C,ROE!$N2,'Contingent Liabilities'!I:I),2) -> 0.2 | V10: =ROUND(AVERAGEIF('Contingent Liabilities'!$C:$C,ROE!$N2,'Contingent Liabilities'!J:J),2) -> 0.3 | W10: =ROUND(AVERAGEIF('Contingent Liabilities'!$C:$C,ROE!$N2,'Contingent Liabilities'!K:K),2) -> 0.32
A11: 000587 光隆證券 | B11: M30A 證券 | C11: M30A 證券 | F11: 4.09 | H11: 1.75 | J11: 4.4 | O11: =N$2&"-董監質押股%" -> M23T2 零組件代理-董監質押股% | P11: =ROUND(AVERAGEIF('Dir. & Sup. Pledged'!$C:$C,ROE!$N2,'Dir. & Sup. Pledged'!D:D),2) -> 7.45 | Q11: =ROUND(AVERAGEIF('Dir. & Sup. Pledged'!$C:$C,ROE!$N2,'Dir. & Sup. Pledged'!E:E),2) -> 6.77 | R11: =ROUND(AVERAGEIF('Dir. & Sup. Pledged'!$C:$C,ROE!$N2,'Dir. & Sup. Pledged'!F:F),2) -> 7.74 | S11: =ROUND(AVERAGEIF('Dir. & Sup. Pledged'!$C:$C,ROE!$N2,'Dir. & Sup. Pledged'!G:G),2) -> 7.92 | T11: =ROUND(AVERAGEIF('Dir. & Sup. Pledged'!$C:$C,ROE!$N2,'Dir. & Sup. Pledged'!H:H),2) -> 7.92 | U11: =ROUND(AVERAGEIF('Dir. & Sup. Pledged'!$C:$C,ROE!$N2,'Dir. & Sup. Pledged'!I:I),2) -> 7.95 | V11: =ROUND(AVERAGEIF('Dir. & Sup. Pledged'!$C:$C,ROE!$N2,'Dir. & Sup. Pledged'!J:J),2) -> 8.68 | W11: =ROUND(AVERAGEIF('Dir. & Sup. Pledged'!$C:$C,ROE!$N2,'Dir. & Sup. Pledged'!K:K),2) -> 8.68
A12: 000601 奔亞證券 | B12: M30A 證券 | C12: M30A 證券 | F12: 2.13 | H12: 5.01 | J12: -0.25 | O12: =N$2&"-董監事親屬質押%" -> M23T2 零組件代理-董監事親屬質押% | P12: =ROUND(AVERAGEIF('Dir. & Sup. Relatives Pledged'!$C:$C,ROE!$N2,'Dir. & Sup. Relatives Pledged'!D:D),2) -> 2.29 | Q12: =ROUND(AVERAGEIF('Dir. & Sup. Relatives Pledged'!$C:$C,ROE!$N2,'Dir. & Sup. Relatives Pledged'!E:E),2) -> 2.42 | R12: =ROUND(AVERAGEIF('Dir. & Sup. Relatives Pledged'!$C:$C,ROE!$N2,'Dir. & Sup. Relatives Pledged'!F:F),2) -> 2.43 | S12: =ROUND(AVERAGEIF('Dir. & Sup. Relatives Pledged'!$C:$C,ROE!$N2,'Dir. & Sup. Relatives Pledged'!G:G),2) -> 2.51 | T12: =ROUND(AVERAGEIF('Dir. & Sup. Relatives Pledged'!$C:$C,ROE!$N2,'Dir. & Sup. Relatives Pledged'!H:H),2) -> 2.67 | U12: =ROUND(AVERAGEIF('Dir. & Sup. Relatives Pledged'!$C:$C,ROE!$N2,'Dir. & Sup. Relatives Pledged'!I:I),2) -> 3.73 | V12: =ROUND(AVERAGEIF('Dir. & Sup. Relatives Pledged'!$C:$C,ROE!$N2,'Dir. & Sup. Relatives Pledged'!J:J),2) -> 1.77 | W12: =ROUND(AVERAGEIF('Dir. & Sup. Relatives Pledged'!$C:$C,ROE!$N2,'Dir. & Sup. Relatives Pledged'!K:K),2) -> 1.77
A13: 000616 中信證券 | B13: M30A 證券 | C13: M30A 證券 | E13: -3.44 | F13: 6.66 | G13: 5.36 | H13: 2.67 | I13: 1.38 | J13: 3.43 | K13: 4.31 | O13: =N$2&"-大股東質押%" -> M23T2 零組件代理-大股東質押% | P13: =ROUND(AVERAGEIF('Big Shareholder Pledged'!$C:$C,ROE!$N2,'Big Shareholder Pledged'!D:D),2) -> 0 | Q13: =ROUND(AVERAGEIF('Big Shareholder Pledged'!$C:$C,ROE!$N2,'Big Shareholder Pledged'!E:E),2) -> 0 | R13: =ROUND(AVERAGEIF('Big Shareholder Pledged'!$C:$C,ROE!$N2,'Big Shareholder Pledged'!F:F),2) -> 0 | S13: =ROUND(AVERAGEIF('Big Shareholder Pledged'!$C:$C,ROE!$N2,'Big Shareholder Pledged'!G:G),2) -> 0 | T13: =ROUND(AVERAGEIF('Big Shareholder Pledged'!$C:$C,ROE!$N2,'Big Shareholder Pledged'!H:H),2) -> 0 | U13: =ROUND(AVERAGEIF('Big Shareholder Pledged'!$C:$C,ROE!$N2,'Big Shareholder Pledged'!I:I),2) -> 0 | V13: =ROUND(AVERAGEIF('Big Shareholder Pledged'!$C:$C,ROE!$N2,'Big Shareholder Pledged'!J:J),2) -> 0 | W13: =ROUND(AVERAGEIF('Big Shareholder Pledged'!$C:$C,ROE!$N2,'Big Shareholder Pledged'!K:K),2) -> 0
A14: 000638 光和證券 | B14: M30A 證券 | C14: M30A 證券 | F14: 3.41 | H14: -0.03 | J14: -1.19 | O14: =N$2&"-經理人質押股%" -> M23T2 零組件代理-經理人質押股% | P14: =ROUND(AVERAGEIF('Manager Pledged'!$C:$C,ROE!$N2,'Manager Pledged'!D:D),2) -> 4.62 | Q14: =ROUND(AVERAGEIF('Manager Pledged'!$C:$C,ROE!$N2,'Manager Pledged'!E:E),2) -> 4.62 | R14: =ROUND(AVERAGEIF('Manager Pledged'!$C:$C,ROE!$N2,'Manager Pledged'!F:F),2) -> 4.62 | S14: =ROUND(AVERAGEIF('Manager Pledged'!$C:$C,ROE!$N2,'Manager Pledged'!G:G),2) -> 4.62 | T14: =ROUND(AVERAGEIF('Manager Pledged'!$C:$C,ROE!$N2,'Manager Pledged'!H:H),2) -> 4.64 | U14: =ROUND(AVERAGEIF('Manager Pledged'!$C:$C,ROE!$N2,'Manager Pledged'!I:I),2) -> 3.04 | V14: =ROUND(AVERAGEIF('Manager Pledged'!$C:$C,ROE!$N2,'Manager Pledged'!J:J),2) -> 3.04 | W14: =ROUND(AVERAGEIF('Manager Pledged'!$C:$C,ROE!$N2,'Manager Pledged'!K:K),2) -> 3.04
A15: 000646 大昌證券 | B15: M30A 證券 | C15: M30A 證券 | F15: 5.09 | H15: 2.38 | J15: -0.21 | O15: =N$2&"-收款天數" -> M23T2 零組件代理-收款天數 | P15: =ROUND(AVERAGEIF('AR Turnover Days'!$C:$C,ROE!$N2,'AR Turnover Days'!D:D),2) -> 88.94 | Q15: =ROUND(AVERAGEIF('AR Turnover Days'!$C:$C,ROE!$N2,'AR Turnover Days'!E:E),2) -> 84.08 | R15: =ROUND(AVERAGEIF('AR Turnover Days'!$C:$C,ROE!$N2,'AR Turnover Days'!F:F),2) -> 90.17 | S15: =ROUND(AVERAGEIF('AR Turnover Days'!$C:$C,ROE!$N2,'AR Turnover Days'!G:G),2) -> 97.45 | T15: =ROUND(AVERAGEIF('AR Turnover Days'!$C:$C,ROE!$N2,'AR Turnover Days'!H:H),2) -> 85.79 | U15: =ROUND(AVERAGEIF('AR Turnover Days'!$C:$C,ROE!$N2,'AR Turnover Days'!I:I),2) -> 82.9 | V15: =ROUND(AVERAGEIF('AR Turnover Days'!$C:$C,ROE!$N2,'AR Turnover Days'!J:J),2) -> 92.56 | W15: =ROUND(AVERAGEIF('AR Turnover Days'!$C:$C,ROE!$N2,'AR Turnover Days'!K:K),2) -> 98.19
A16: 000695 福勝證券 | B16: M30A 證券 | C16: M30A 證券 | D16: 2.12 | F16: 1.54 | H16: 0.31 | J16: 2.78 | O16: =N$2&"-售貨天數" -> M23T2 零組件代理-售貨天數 | P16: =ROUND(AVERAGEIF('Inventory Turnover Days'!$C:$C,ROE!$N2,'Inventory Turnover Days'!D:D),2) -> 49.89 | Q16: =ROUND(AVERAGEIF('Inventory Turnover Days'!$C:$C,ROE!$N2,'Inventory Turnover Days'!E:E),2) -> 49.33 | R16: =ROUND(AVERAGEIF('Inventory Turnover Days'!$C:$C,ROE!$N2,'Inventory Turnover Days'!F:F),2) -> 50.59 | S16: =ROUND(AVERAGEIF('Inventory Turnover Days'!$C:$C,ROE!$N2,'Inventory Turnover Days'!G:G),2) -> 52.25 | T16: =ROUND(AVERAGEIF('Inventory Turnover Days'!$C:$C,ROE!$N2,'Inventory Turnover Days'!H:H),2) -> 58.6 | U16: =ROUND(AVERAGEIF('Inventory Turnover Days'!$C:$C,ROE!$N2,'Inventory Turnover Days'!I:I),2) -> 59.02 | V16: =ROUND(AVERAGEIF('Inventory Turnover Days'!$C:$C,ROE!$N2,'Inventory Turnover Days'!J:J),2) -> 60.78 | W16: =ROUND(AVERAGEIF('Inventory Turnover Days'!$C:$C,ROE!$N2,'Inventory Turnover Days'!K:K),2) -> 59.15
A17: 000700 兆豐證券 | B17: M30A 證券 | C17: M30A 證券 | E17: 0.36 | F17: 6.84 | G17: 5.26 | H17: 2.62 | I17: 0.81 | J17: 2.08 | K17: 2.02 | P17: ='Dir. & Sup. Pledged'!D2 -> 2020-07-31 | Q17: ='Dir. & Sup. Pledged'!E2 -> 2020-06-30 | R17: ='Dir. & Sup. Pledged'!F2 -> 2020-05-29 | S17: ='Dir. & Sup. Pledged'!G2 -> 2020-04-30 | T17: ='Dir. & Sup. Pledged'!H2 -> 2020-03-31 | U17: ='Dir. & Sup. Pledged'!I2 -> 2020-02-27 | V17: ='Dir. & Sup. Pledged'!J2 -> 2020-01-31 | W17: ='Dir. & Sup. Pledged'!K2 -> 2019-12-31
A18: 000708 石橋證券 | B18: M30A 證券 | C18: M30A 證券 | D18: -2.04 | F18: -5.05 | H18: -1.8 | J18: -8.71 | O18: =N$2&"- 現金充裕度" -> M23T2 零組件代理- 現金充裕度 | P18: =ROUND(AVERAGEIF('Sufficiency of Cash'!$C:$C,ROE!$N2,'Sufficiency of Cash'!D:D),2) -> 15.29 | Q18: =ROUND(AVERAGEIF('Sufficiency of Cash'!$C:$C,ROE!$N2,'Sufficiency of Cash'!E:E),2) -> 7.14 | R18: =ROUND(AVERAGEIF('Sufficiency of Cash'!$C:$C,ROE!$N2,'Sufficiency of Cash'!F:F),2) -> 13.75 | S18: =ROUND(AVERAGEIF('Sufficiency of Cash'!$C:$C,ROE!$N2,'Sufficiency of Cash'!G:G),2) -> 15.07 | T18: =ROUND(AVERAGEIF('Sufficiency of Cash'!$C:$C,ROE!$N2,'Sufficiency of Cash'!H:H),2) -> 11.9 | U18: =ROUND(AVERAGEIF('Sufficiency of Cash'!$C:$C,ROE!$N2,'Sufficiency of Cash'!I:I),2) -> 10.58 | V18: =ROUND(AVERAGEIF('Sufficiency of Cash'!$C:$C,ROE!$N2,'Sufficiency of Cash'!J:J),2) -> 11.08 | W18: =ROUND(AVERAGEIF('Sufficiency of Cash'!$C:$C,ROE!$N2,'Sufficiency of Cash'!K:K),2) -> 9.21
A19: 000775 北城證券 | B19: M30A 證券 | C19: M30A 證券 | F19: 2.97 | H19: 1.21 | J19: 3.84 | O19: =N$2&"-過度投資額" -> M23T2 零組件代理-過度投資額 | P19: =ROUND(AVERAGEIF('Ineffective Investment'!$C:$C,ROE!$N2,'Ineffective Investment'!D:D),2) -> -11 | Q19: =ROUND(AVERAGEIF('Ineffective Investment'!$C:$C,ROE!$N2,'Ineffective Investment'!E:E),2) -> -18.35 | R19: =ROUND(AVERAGEIF('Ineffective Investment'!$C:$C,ROE!$N2,'Ineffective Investment'!F:F),2) -> -7.43 | S19: =ROUND(AVERAGEIF('Ineffective Investment'!$C:$C,ROE!$N2,'Ineffective Investment'!G:G),2) -> -3.19 | T19: =ROUND(AVERAGEIF('Ineffective Investment'!$C:$C,ROE!$N2,'Ineffective Investment'!H:H),2) -> -3.18 | U19: =ROUND(AVERAGEIF('Ineffective Investment'!$C:$C,ROE!$N2,'Ineffective Investment'!I:I),2) -> -2.19 | V19: =ROUND(AVERAGEIF('Ineffective Investment'!$C:$C,ROE!$N2,'Ineffective Investment'!J:J),2) -> -8.45 | W19: =ROUND(AVERAGEIF('Ineffective Investment'!$C:$C,ROE!$N2,'Ineffective Investment'!K:K),2) -> -13.78
A20: 000779 國票證券 | B20: M30A 證券 | C20: M30A 證券 | E20: -0.06 | F20: 9.74 | G20: 7.89 | H20: 4.08 | I20: 2 | J20: 3.73 | K20: 4.01 | O20: =N$2&"-借款息" -> M23T2 零組件代理-借款息 | P20: =ROUND(AVERAGEIF('Interest Expense-to-Debts'!$C:$C,ROE!$N2,'Interest Expense-to-Debts'!D:D),2) -> 2.33 | Q20: =ROUND(AVERAGEIF('Interest Expense-to-Debts'!$C:$C,ROE!$N2,'Interest Expense-to-Debts'!E:E),2) -> 2.6 | R20: =ROUND(AVERAGEIF('Interest Expense-to-Debts'!$C:$C,ROE!$N2,'Interest Expense-to-Debts'!F:F),2) -> 3.03 | S20: =ROUND(AVERAGEIF('Interest Expense-to-Debts'!$C:$C,ROE!$N2,'Interest Expense-to-Debts'!G:G),2) -> 3.24 | T20: =ROUND(AVERAGEIF('Interest Expense-to-Debts'!$C:$C,ROE!$N2,'Interest Expense-to-Debts'!H:H),2) -> -19 | U20: =ROUND(AVERAGEIF('Interest Expense-to-Debts'!$C:$C,ROE!$N2,'Interest Expense-to-Debts'!I:I),2) -> 3.04 | V20: =ROUND(AVERAGEIF('Interest Expense-to-Debts'!$C:$C,ROE!$N2,'Interest Expense-to-Debts'!J:J),2) -> 2.89 | W20: =ROUND(AVERAGEIF('Interest Expense-to-Debts'!$C:$C,ROE!$N2,'Interest Expense-to-Debts'!K:K),2) -> -21.36
A21: 000815 台新證券 | B21: M30A 證券 | C21: M30A 證券 | E21: -4.44 | F21: 7.84 | G21: 4.57 | H21: 2.54 | I21: 1.85 | J21: 2.19 | K21: 4.63 | O21: =N$2&"-自有資金承擔銀行風險" -> M23T2 零組件代理-自有資金承擔銀行風險 | P21: =ROUND(AVERAGEIF(自有資金承擔銀行風險!$C:$C,ROE!$N2,自有資金承擔銀行風險!AZ:AZ),2) -> -3122560.03 | Q21: =ROUND(AVERAGEIF(自有資金承擔銀行風險!$C:$C,ROE!$N2,自有資金承擔銀行風險!BA:BA),2) -> -3416673.13 | R21: =ROUND(AVERAGEIF(自有資金承擔銀行風險!$C:$C,ROE!$N2,自有資金承擔銀行風險!BB:BB),2) -> -3029974.8 | S21: =ROUND(AVERAGEIF(自有資金承擔銀行風險!$C:$C,ROE!$N2,自有資金承擔銀行風險!BC:BC),2) -> -2961970.13 | T21: =ROUND(AVERAGEIF(自有資金承擔銀行風險!$C:$C,ROE!$N2,自有資金承擔銀行風險!BD:BD),2) -> -2639926.93 | U21: =ROUND(AVERAGEIF(自有資金承擔銀行風險!$C:$C,ROE!$N2,自有資金承擔銀行風險!BE:BE),2) -> -2559355.1 | V21: =ROUND(AVERAGEIF(自有資金承擔銀行風險!$C:$C,ROE!$N2,自有資金承擔銀行風險!BF:BF),2) -> -2992521.93 | W21: =ROUND(AVERAGEIF(自有資金承擔銀行風險!$C:$C,ROE!$N2,自有資金承擔銀行風險!BG:BG),2) -> -3392318.13
A22: 000838 安泰證券 | B22: M30A 證券 | C22: M30A 證券 | F22: 2.85 | H22: 1.13 | J22: 3.61
A23: 000856 新光證券 | B23: M30A 證券 | C23: M30A 證券 | F23: 15.28 | H23: 7.46 | J23: 17.3
A24: 000888 國泰證券 | B24: M30A 證券 | C24: M30A 證券 | E24: 2.39 | F24: 8.57 | G24: 6.77 | H24: 3.53 | I24: 1.22 | J24: 6.16 | K24: 5.78
A25: 000930 華南永昌證券 | B25: M30A 證券 | C25: M30A 證券 | E25: -44.28 | F25: 7.34 | G25: 4.92 | H25: 2.6 | I25: 1.41 | J25: 3.73 | K25: 4.31
A26: 000960 富邦證券 | B26: M30A 證券 | C26: M30A 證券 | E26: 0.45 | F26: 7.94 | G26: 6.74 | H26: 3.9 | I26: 2.04 | J26: 6 | K26: 6.23
A27: 000980 元大證券 | B27: M30A 證券 | C27: M30A 證券 | D27: 4.82 | E27: 1.61 | F27: 8.56 | G27: 6.55 | H27: 4.08 | I27: 2.06 | J27: 9.45 | K27: 8.29
A28: 0009A0 永豐金證券 | B28: M30A 證券 | C28: M30A 證券 | E28: 0.4 | F28: 7.1 | G28: 5.28 | H28: 3.07 | I28: 1.52 | J28: 1.81 | K28: 2.22
A29: 1101 台泥 | B29: M11A 水泥製造 | C29: M11A 水泥製造 | D29: 5.99 | E29: 1.67 | F29: 12.54 | G29: 9.55 | H29: 6 | I29: 2.08 | J29: 12.94 | K29: 10.07
A30: 1102 亞泥 | B30: M11A 水泥製造 | C30: M11A 水泥製造 | D30: 4.15 | E30: 0.67 | F30: 13.54 | G30: 10.43 | H30: 7.11 | I30: 2.34 | J30: 9.77 | K30: 7.83
A31: 1103 嘉泥 | B31: M11A 水泥製造 | C31: M11A 水泥製造 | D31: -0.23 | E31: -0.95 | F31: 3.67 | G31: 4.55 | H31: 0.84 | I31: 0.69 | J31: 1.27 | K31: 3.19
A32: 1104 環泥 | B32: M11A 水泥製造 | C32: M11A 水泥製造 | D32: 2.73 | E32: 0.27 | F32: 6.35 | G32: 3.94 | H32: 2.57 | I32: 0.87 | J32: 6.01 | K32: 4.31
A33: 1108 幸福 | B33: M11A 水泥製造 | C33: M11A 水泥製造 | D33: 5.19 | E33: 2.16 | F33: 1.07 | G33: -0.02 | H33: -0.37 | I33: -0.71 | J33: -4.64 | K33: -1.13
A34: 1109 信大 | B34: M11A 水泥製造 | C34: M11A 水泥製造 | D34: 5.62 | E34: 1.58 | F34: 17.87 | G34: 12.67 | H34: 7.46 | I34: 2.58 | J34: 17.31 | K34: 10.94
A35: 1110 東泥 | B35: M11A 水泥製造 | C35: M11A 水泥製造 | D35: -0.25 | E35: -0.37 | F35: 0.39 | G35: 0.46 | H35: 0.29 | I35: 0.35 | J35: 0.77 | K35: 1.06
A36: 1111 欣欣水泥 | B36: M11A 水泥製造 | C36: M11A 水泥製造 | D36: 0.39 | F36: 0.54 | H36: 1.5 | J36: 1.48
A37: 1201 味全 | B37: M12C 飲料乳品 | C37: M12C 飲料乳品 | D37: 1.65 | E37: 0.39 | F37: 20.55 | G37: 19.55 | H37: 17.7 | I37: 16.46 | J37: 12.41 | K37: 13
A38: 1203 味王 | B38: M12Z 其他食品 | C38: M12Z 其他食品 | D38: 5.74 | E38: 3.39 | F38: 11.86 | G38: 8.86 | H38: 6.11 | I38: 3.01 | J38: 12.26 | K38: 9.62
A39: 1210 大成 | B39: M12B 油脂飼料 | C39: M12B 油脂飼料 | D39: 6.94 | E39: 3.15 | F39: 12.78 | G39: 9.51 | H39: 5.32 | I39: 2.18 | J39: 10.98 | K39: 8.48
A40: 1213 大飲 | B40: M12C 飲料乳品 | C40: M12C 飲料乳品 | D40: -0.66 | E40: -2.27 | F40: -7.37 | G40: -6.06 | H40: -3.86 | I40: -1.54 | J40: -13.76 | K40: -0.22
A41: 1215 卜蜂 | B41: M12B 油脂飼料 | C41: M12B 油脂飼料 | D41: 8.27 | E41: 2.7 | F41: 22.95 | G41: 12.84 | H41: 8.89 | I41: 3.55 | J41: 14 | K41: 9.62
A42: 1216 統一 | B42: M12C 飲料乳品 | C42: M12C 飲料乳品 | D42: 9.18 | E42: 3.76 | F42: 16.55 | G42: 14.06 | H42: 9.68 | I42: 4.43 | J42: 14.9 | K42: 12.68
A43: 1217 愛之味 | B43: M12A 罐頭加工 | C43: M12A 罐頭加工 | D43: 1.26 | E43: 0.42 | F43: 1.03 | G43: 1.75 | H43: 0.41 | I43: 0.26 | J43: 1.01 | K43: 1.25
A44: 1218 泰山 | B44: M12B 油脂飼料 | C44: M12B 油脂飼料 | D44: 5.39 | E44: 1.9 | F44: 8.95 | G44: 7.86 | H44: 3.83 | I44: 1.63 | J44: 9.09 | K44: 8.34
A45: 1219 福壽 | B45: M12B 油脂飼料 | C45: M12B 油脂飼料 | D45: 7.62 | E45: 6.07 | F45: 3.64 | G45: 0.51 | H45: 0.18 | I45: 0.39 | J45: -2.46 | K45: -2.28
A46: 1220 台榮 | B46: M12B 油脂飼料 | C46: M12B 油脂飼料 | D46: 2.89 | E46: 0.73 | F46: 5.72 | G46: 3.81 | H46: 1.82 | I46: 0.62 | J46: 4.69 | K46: 3.65
A47: 1225 福懋油 | B47: M12B 油脂飼料 | C47: M12B 油脂飼料 | D47: 4.41 | E47: 2.36 | F47: 10.91 | G47: 7.82 | H47: 4.86 | I47: 2.38 | J47: 8.3 | K47: 5.79
A48: 1227 佳格 | B48: M12Z 其他食品 | C48: M12Z 其他食品 | D48: 9.7 | E48: 3.53 | F48: 20.94 | G48: 15.33 | H48: 9.05 | I48: 4.83 | J48: 19.11 | K48: 14.41
A49: 1229 聯華 | B49: M12B 油脂飼料 | C49: M12B 油脂飼料 | D49: 4.3 | E49: 0.59 | F49: 10.11 | G49: 8.81 | H49: 4.23 | I49: 3.39 | J49: 9.91 | K49: 7.65
A50: 1231 聯華食 | B50: M12Z 其他食品 | C50: M12Z 其他食品 | D50: 6.58 | E50: 2.64 | F50: 14.8 | G50: 8.98 | H50: 6.02 | I50: 3.16 | J50: 16.5 | K50: 11.51
A51: 1232 大統益 | B51: M12B 油脂飼料 | C51: M12B 油脂飼料 | D51: 13.35 | E51: 6.4 | F51: 24.75 | G51: 19.4 | H51: 13.73 | I51: 7.41 | J51: 23.85 | K51: 17.08
A52: 1233 天仁 | B52: M12Z 其他食品 | C52: M12Z 其他食品 | D52: 0.83 | E52: 0.45 | F52: 9.73 | G52: 7.87 | H52: 5.54 | I52: 2.73 | J52: 11.24 | K52: 9.28
A53: 1234 黑松 | B53: M12C 飲料乳品 | C53: M12C 飲料乳品 | D53: 1.58 | E53: 0.61 | F53: 4.77 | G53: 3.88 | H53: 1.85 | I53: 0.93 | J53: 3.96 | K53: 3.28
A54: 1235 興泰 | B54: M12B 油脂飼料 | C54: M12B 油脂飼料 | D54: -0.39 | E54: -0.65 | F54: 1.22 | G54: 1.29 | H54: -1.06 | I54: -0.75 | J54: 2.29 | K54: 3.17
A55: 1236 宏亞 | B55: M12Z 其他食品 | C55: M12Z 其他食品 | D55: -2.36 | E55: 0.86 | F55: 0.9 | G55: -1.87 | H55: -2.51 | I55: 0.47 | J55: 0.74 | K55: -2.03
A56: 1237 台糖 | B56: M12Z 其他食品 | C56: M12Z 其他食品 | D56: 0.06 | F56: 0.73 | H56: 0.15 | J56: 1.53
A57: 1240 茂生農經 | B57: M12B 油脂飼料 | C57: M12B 油脂飼料 | D57: 5.72 | E57: 2.98 | F57: 12.43 | G57: 9.48 | H57: 6.36 | I57: 2.88 | J57: 9.57 | K57: 5.9
A58: 1242 新東陽 | B58: M12A 罐頭加工 | C58: M12A 罐頭加工 | D58: 0.55 | F58: 4.86 | H58: 3.16 | J58: 5.29
A59: 1246 中聯油脂 | B59: M12B 油脂飼料 | C59: M12B 油脂飼料 | D59: 5.88 | F59: 11.04 | H59: 5.99 | J59: 9.14
A60: 1256 鮮活果汁-KY | B60: M12C 飲料乳品 | C60: M12C 飲料乳品 | D60: 10.97 | E60: 0.56 | F60: 28.54 | G60: 24.52 | H60: 15.08 | I60: 4.92 | J60: 26.73 | K60: 23.76
A61: 1258 其祥-KY | B61: M12Z 其他食品 | C61: M12Z 其他食品 | D61: -6.92 | E61: -12.57 | F61: -22.87 | G61: -10.36 | H61: -9.42 | I61: -1.43 | J61: -18.14 | K61: -13.44
A62: 1259 安心 | B62: M27A 餐飲飯店 | C62: M27A2 餐飲業 | D62: 2.49 | E62: 0.02 | F62: 8.06 | G62: 7.14 | H62: 3.64 | I62: 1.31 | J62: 6.78 | K62: 5.84
A63: 1260 富味鄉 | B63: M12B 油脂飼料 | C63: M12B 油脂飼料 | D63: 0.44 | F63: 5.89 | H63: 4.91 | J63: 9.96
A64: 1264 德麥 | B64: M12Z 其他食品 | C64: M12Z 其他食品 | D64: 9.11 | E64: 4.13 | F64: 20.29 | G64: 15.27 | H64: 10.26 | I64: 4.61 | J64: 20 | K64: 15.32
A65: 1267 京華堂 | B65: M12Z 其他食品 | C65: M12Z 其他食品 | D65: 1.07 | F65: 3.24 | H65: -2.94 | J65: -19.24
A66: 1268 漢來美食 | B66: M27A 餐飲飯店 | C66: M27A2 餐飲業 | D66: 4.04 | E66: 1.51 | F66: 18.91 | G66: 16.14 | H66: 12.59 | I66: 7.86 | J66: 13.77 | K66: 10.44
A67: 1269 乾杯 | B67: M27A 餐飲飯店 | C67: M27A2 餐飲業 | D67: -4.01 | F67: 10.59 | H67: 2.81 | I67: 3.48 | J67: 12.04
A68: 1271 晨暉生技 | B68: M17C 藥 | C68: M17C2 機能性食品 | D68: 20.99 | F68: 14.74 | H68: 4.74 | J68: -5.33
A69: 1293 利統 | B69: M12Z 其他食品 | C69: M12Z 其他食品 | D69: 14.78 | F69: -6.45 | H69: -11.38 | J69: 4.46
A70: 1301 台塑 | B70: M13A 石化 | C70: M13A1 泛用塑膠 | D70: -0.32 | E70: -0.12 | F70: 10.59 | G70: 9.68 | H70: 5.28 | I70: 2.23 | J70: 14.15 | K70: 13.25
A71: 1303 南亞 | B71: M13A 石化 | C71: M13A1 泛用塑膠 | D71: 1.08 | E71: 0.34 | F71: 6.25 | G71: 5.09 | H71: 2.88 | I71: 1.27 | J71: 13.97 | K71: 12.7
A72: 1304 台聚 | B72: M13A 石化 | C72: M13A1 泛用塑膠 | D72: 3.22 | E72: 1.61 | F72: 6.72 | G72: 4.91 | H72: 3.44 | I72: 1.57 | J72: 5.24 | K72: 5.64
A73: 1305 華夏 | B73: M13A 石化 | C73: M13A1 泛用塑膠 | D73: 3.24 | E73: 3.92 | F73: 7.92 | G73: 4.9 | H73: 2.74 | I73: 2.13 | J73: 15.86 | K73: 14.7
A74: 1307 三芳 | B74: M13A 石化 | C74: M13A6 合成皮 | D74: 0.3 | E74: 1.26 | F74: 5.22 | G74: 4.13 | H74: 2.43 | I74: 1.21 | J74: 3.65 | K74: 2.87
A75: 1308 亞聚 | B75: M13A 石化 | C75: M13A1 泛用塑膠 | D75: 3.64 | E75: 1.46 | F75: 8.28 | G75: 5.59 | H75: 3.51 | I75: 1.4 | J75: 2.95 | K75: 2.68
A76: 1309 台達化 | B76: M13A 石化 | C76: M13A1 泛用塑膠 | D76: 10.58 | E76: 3.34 | F76: 9.6 | G76: 7.69 | H76: 7.43 | I76: 4.75 | J76: 5.27 | K76: 9.48
A77: 1310 台苯 | B77: M13A 石化 | C77: M13A1 泛用塑膠 | D77: -2.43 | E77: -4.45 | F77: 11.8 | G77: 11.16 | H77: 8.52 | I77: 4.2 | J77: 15.52 | K77: 14.77
A78: 1312 國喬 | B78: M13A 石化 | C78: M13A1 泛用塑膠 | D78: 2.82 | E78: 0.16 | F78: 8.23 | G78: 7.03 | H78: 5.08 | I78: 2.31 | J78: 12.83 | K78: 11.65
A79: 1313 聯成 | B79: M13A 石化 | C79: M13A7 可塑劑 | D79: -1.01 | E79: -4.25 | F79: -0.7 | G79: -0.31 | H79: -2.65 | I79: -0.69 | J79: 3.67 | K79: 4.13
A80: 1314 中石化 | B80: M13A 石化 | C80: M13A5 化纖 | D80: 0.68 | E80: 0 | F80: 2.58 | G80: 1.68 | H80: 1.42 | I80: 0.46 | J80: 6.6 | K80: 6.11
A81: 1315 達新 | B81: M13A 石化 | C81: M13A8 塑膠加工 | D81: 49.5 | E81: 0.11 | F81: 8.66 | G81: 9.53 | H81: 6.11 | I81: 0.06 | J81: 3.05 | K81: 3.63
A82: 1316 上曜 | B82: M25A 建設 | C82: M25A 建設 | D82: -4.46 | E82: -2.83 | F82: -3.06 | G82: -3.93 | H82: -3.48 | I82: -1.39 | J82: 8.17 | K82: 11.76
A83: 1319 東陽 | B83: M15D 汽車組件 | C83: M15D 汽車組件 | D83: 1.38 | E83: 1.43 | F83: 8.32 | G83: 6.29 | H83: 4.39 | I83: 2.12 | J83: 8.94 | K83: 6.81
A84: 1321 大洋 | B84: M13A 石化 | C84: M13A8 塑膠加工 | D84: 1.55 | E84: -0.71 | F84: 2.2 | G84: 2.4 | H84: 0.17 | I84: 0.57 | J84: -1.42 | K84: 0.38
A85: 1323 永裕 | B85: M13A 石化 | C85: M13A8 塑膠加工 | D85: 8.13 | E85: 3.57 | F85: 15.19 | G85: 11.28 | H85: 7.34 | I85: 3.01 | J85: 16.53 | K85: 12.42
A86: 1324 地球 | B86: M13A 石化 | C86: M13A9 膠帶 | D86: 0.81 | E86: 0.86 | F86: 0.32 | G86: -0.18 | H86: 0.05 | I86: -0.37 | J86: 0.12 | K86: 0.38
A87: 1325 恒大 | B87: M14F 不織布 | C87: M14F 不織布 | D87: 34.64 | E87: 7.35 | F87: 1.95 | G87: 1.56 | H87: 1.23 | I87: 0.57 | J87: 3.37 | K87: 2.55
A88: 1326 台化 | B88: M13A 石化 | C88: M13A1 泛用塑膠 | D88: -0.67 | E88: -1.13 | F88: 7.89 | G88: 7.18 | H88: 3.97 | I88: 2.07 | J88: 13.02 | K88: 12.07
A89: 1328 中油 | B89: M13C 輕油製解 | C89: M13C 輕油製解 | D89: -8.44 | F89: 10.75 | H89: 8.72 | J89: 12.29
A90: 1333 恩得利 | B90: M23D 電子零組件 | C90: M23D2 連接器 | G90: -6.3 | H90: -13.97 | I90: -14.23 | J90: -49.29 | K90: -43.75
A91: 1336 台翰 | B91: M23D 電子零組件 | C91: M23D4 機殼 | D91: 11.51 | E91: 0.21 | F91: 4.4 | G91: 3.1 | H91: 1.71 | I91: 0.14 | J91: 6.54 | K91: 5.44
A92: 1337 再生-KY | B92: M13B 塑膠製品 | C92: M13B 塑膠製品 | D92: -3.39 | E92: -1.72 | F92: -8.64 | G92: -7 | H92: -4.94 | I92: -2.5 | J92: -21.22 | K92: -4.89
A93: 1338 廣華-KY | B93: M15D 汽車組件 | C93: M15D 汽車組件 | D93: 0.11 | E93: -0.13 | F93: 5.83 | G93: 3.9 | H93: 2.69 | I93: 1.35 | J93: 7.26 | K93: 5.96
A94: 1339 昭輝 | B94: M15D 汽車組件 | C94: M15D 汽車組件 | D94: 1.28 | E94: 1.83 | F94: 10.59 | G94: 9.91 | H94: 7.74 | I94: 2.89 | J94: 8.37 | K94: 8.14
A95: 1340 勝悅-KY | B95: M13B 塑膠製品 | C95: M13B 塑膠製品 | D95: -3.01 | E95: -1.53 | F95: -7.07 | G95: -3.37 | H95: -1.68 | I95: -0.56 | J95: 2.05 | K95: 3.1
A96: 1341 富林-KY | B96: M13A 石化 | C96: M13A6 合成皮 | D96: 8.75 | E96: 5.58 | F96: 24.02 | G96: 17.97 | H96: 10.26 | I96: 3.73 | J96: 18.34 | K96: 12.78
A97: 1342 八貫 | B97: M13B 塑膠製品 | C97: M13B 塑膠製品 | D97: 8.54 | E97: 5.78 | F97: 21.19 | H97: 10.85 | I97: 4.4 | J97: 22.85
A98: 1343 旭東 | B98: M13B 塑膠製品 | C98: M13B 塑膠製品 | D98: 0.44 | F98: 11.02 | H98: 9.7 | J98: 40.9
A99: 1402 遠東新 | B99: M14A 人纖 | C99: M14A1 聚酯絲棉 | D99: 2.38 | E99: 1.06 | F99: 6.1 | G99: 4.86 | H99: 3.19 | I99: 1.26 | J99: 7.03 | K99: 6.24
A100: 1408 中紡 | B100: M14A 人纖 | C100: M14A1 聚酯絲棉
A101: 1409 新纖 | B101: M14A 人纖 | C101: M14A1 聚酯絲棉 | D101: -0.26 | E101: 0.82 | F101: 5.99 | G101: 5.21 | H101: 2.86 | I101: 1.07 | J101: 7.91 | K101: 6.37
A102: 1410 南染 | B102: M14E 染整 | C102: M14E 染整 | D102: 2.58 | E102: 1.51 | F102: 5.53 | G102: 4.63 | H102: 2.83 | I102: 1.19 | J102: 8.85 | K102: 6.79
A103: 1413 宏洲 | B103: M14A 人纖 | C103: M14A2 加工絲 | D103: -8.82 | E103: -3.3 | F103: 5.87 | G103: 7.02 | H103: 6.35 | I103: 3.29 | J103: 23.89 | K103: 18.09
A104: 1414 東和 | B104: M14B 棉紡 | C104: M14B1 聚酯紗棉紗 | D104: -0.08 | E104: -0.71 | F104: 1.18 | G104: -0.42 | H104: -0.61 | I104: -0.38 | J104: 1.24 | K104: 1.18
A105: 1416 廣豐 | B105: M29A 百貨批發 | C105: M29A1 百貨購物中 | D105: -5.04 | E105: -0.82 | F105: -3.28 | G105: -0.96 | H105: 0.13 | I105: 0.34 | J105: 5.9 | K105: 1.17
A106: 1417 嘉裕 | B106: M14C 成衣 | C106: M14C1 成衣製造 | D106: -2.89 | E106: -2.05 | F106: 9.74 | G106: -1.66 | H106: -1.16 | I106: -1.32 | J106: -6.77 | K106: -4.3
A107: 1418 東華 | B107: M14B 棉紡 | C107: M14B2 亞克力纖維 | D107: -21.98 | E107: -9.83 | F107: -28.84 | G107: -20.22 | H107: -11.67 | I107: -4.94 | J107: -46.51 | K107: -166.44
A108: 1419 新紡 | B108: M14C 成衣 | C108: M14C2 織布 | D108: 0.3 | E108: 0.17 | F108: 4.42 | G108: 3.91 | H108: 0.56 | I108: -0.07 | J108: 3.16 | K108: 2.72
A109: 1423 利華 | B109: M14D 毛紡 | C109: M14D2 毛紡 | D109: -3.48 | E109: -1.96 | F109: -1.52 | G109: -1.21 | H109: 0.05 | I109: 0.43 | J109: 4.1 | K109: 3.62
A110: 1432 大魯閣 | B110: M29A 百貨批發 | C110: M29A1 百貨購物中 | D110: -5.09 | E110: -2.18 | F110: -43.64 | G110: -11.27 | H110: -7.37 | I110: -3.48 | J110: -11.42 | K110: -7.44
A111: 1434 福懋 | B111: M14C 成衣 | C111: M14C2 織布 | D111: 2.71 | E111: 0.58 | F111: 6.65 | G111: 5.21 | H111: 3.99 | I111: 0.73 | J111: 7.18 | K111: 6.19
A112: 1435 中福 | B112: M23E 網路設備 | C112: M23E1 數據機 | D112: -0.95 | E112: -1.41 | F112: 2.31 | G112: 1.26 | H112: 1.52 | I112: 1.42 | J112: -1.35 | K112: -0.34
A113: 1436 華友聯 | B113: M25A 建設 | C113: M25A 建設 | D113: 2.31 | E113: 1.38 | F113: 8.83 | G113: 1.09 | H113: 1.94 | I113: 2.29 | J113: 14.1 | K113: 9.44
A114: 1437 勤益控 | B114: M25F 物業管理 | C114: M25F 物業管理 | D114: 2.14 | E114: 0.53 | F114: 4.78 | G114: 3.86 | H114: 2.66 | I114: 2.2 | J114: 4.41 | K114: 3.91
A115: 1438 三地開發 | B115: M25A 建設 | C115: M25A 建設 | D115: 9.66 | E115: 8.81 | F115: -2.02 | G115: -1.78 | H115: 0.01 | I115: 0.22 | J115: -2.24 | K115: -0.75
A116: 1439 中和 | B116: M14D 毛紡 | C116: M14D2 毛紡 | D116: -1.18 | E116: -0.27 | F116: 41.34 | G116: 39.87 | H116: 39.84 | I116: -0.36 | J116: -3.67 | K116: -2.29
A117: 1440 南紡 | B117: M14A 人纖 | C117: M14A1 聚酯絲棉 | D117: -0.16 | E117: 0.39 | F117: 0.47 | G117: 0.34 | H117: 0.55 | I117: 0.11 | J117: 4.23 | K117: 4.44
A118: 1441 大東 | B118: M14B 棉紡 | C118: M14B1 聚酯紗棉紗 | D118: -19.24 | E118: -9.71 | F118: -24.75 | G118: -17.91 | H118: -11.91 | I118: -4.84 | J118: 91.6 | K118: 99.28
A119: 1442 名軒 | B119: M25A 建設 | C119: M25A 建設 | D119: 0.09 | E119: -0.24 | F119: 1.95 | G119: 2.1 | H119: -0.7 | I119: -0.1 | J119: 2.22 | K119: 2.78
A120: 1443 立益 | B120: M14B 棉紡 | C120: M14B1 聚酯紗棉紗 | D120: -9.14 | E120: -0.15 | F120: 0.94 | G120: -3.75 | H120: 2.85 | I120: 5.63 | J120: -105.83 | K120: -93.97
A121: 1444 力麗 | B121: M14A 人纖 | C121: M14A2 加工絲 | D121: -2.64 | E121: -3.58 | F121: -0.55 | G121: 2.82 | H121: 3 | I121: 1.21 | J121: 3.08 | K121: 3.5
A122: 1445 大宇 | B122: M14C 成衣 | C122: M14C2 織布 | D122: -2.02 | E122: -0.11 | F122: -2.35 | G122: -1.62 | H122: -0.54 | I122: -0.21 | J122: -1.33 | K122: -0.98
A123: 1446 宏和 | B123: M14C 成衣 | C123: M14C2 織布 | D123: -2.57 | E123: 0.07 | F123: 0.02 | G123: -1.83 | H123: -1.21 | I123: -0.78 | J123: -1.73 | K123: -2.29
A124: 1447 力鵬 | B124: M14A 人纖 | C124: M14A7 尼龍絲 | D124: -3.7 | E124: -1.46 | F124: -2.38 | G124: 1.61 | H124: 1.57 | I124: 1.14 | J124: 1.74 | K124: 4.42
A125: 1449 佳和 | B125: M14C 成衣 | C125: M14C2 織布 | D125: -14.01 | E125: -7.97 | F125: -14.54 | G125: -3.63 | H125: -1.57 | I125: 3.85 | J125: -18.6 | K125: -11.83
A126: 1451 年興 | B126: M14C 成衣 | C126: M14C1 成衣製造 | D126: -5.38 | E126: -3.37 | F126: -0.94 | G126: -0.23 | H126: -0.06 | I126: 0.14 | J126: 5.38 | K126: 3.75
A127: 1452 宏益 | B127: M14A 人纖 | C127: M14A2 加工絲 | D127: -0.64 | E127: 0.15 | F127: 7.04 | G127: 5.56 | H127: 3.54 | I127: 1.98 | J127: 7.85 | K127: 6.72
A128: 1453 大將 | B128: M25A 建設 | C128: M25A 建設 | D128: -0.88 | E128: -4.11 | F128: -3.49 | G128: -0.1 | H128: 0.55 | I128: 0.82 | J128: 29.01 | K128: 30.56
A129: 1454 台富 | B129: M14C 成衣 | C129: M14C2 織布 | D129: -1.63 | E129: 0.03 | F129: 2.28 | G129: 2.36 | H129: 2.13 | I129: 0.58 | J129: 1.28 | K129: 1.66
A130: 1455 集盛 | B130: M14A 人纖 | C130: M14A7 尼龍絲 | D130: -5.33 | E130: -2.86 | F130: -4.09 | G130: -1.32 | H130: 0.14 | I130: 0.04 | J130: 1.17 | K130: 4.33
A131: 1456 怡華 | B131: M14C 成衣 | C131: M14C2 織布 | D131: -1.85 | E131: -0.61 | F131: 2.15 | G131: -0.34 | H131: 0.01 | I131: -0.4 | J131: 1.06 | K131: -1.87
A132: 1457 宜進 | B132: M14A 人纖 | C132: M14A2 加工絲 | D132: 6.72 | E132: -0.8 | F132: 8.42 | G132: 7.28 | H132: 6.32 | I132: 5.71 | J132: 10.14 | K132: 8.89
A133: 1459 聯發 | B133: M14A 人纖 | C133: M14A2 加工絲 | D133: -8.44 | E133: -12.08 | F133: -2.72 | G133: -3.6 | H133: 0.33 | I133: 2.2 | J133: -11.08 | K133: 2.98
A134: 1460 宏遠 | B134: M14C 成衣 | C134: M14C2 織布 | D134: -8.08 | E134: -3.22 | F134: -5.44 | G134: -1.19 | H134: 0.36 | I134: 0.29 | J134: 3.14 | K134: 2.91
A135: 1463 強盛 | B135: M14E 染整 | C135: M14E 染整 | D135: 1.76 | E135: 1.91 | F135: 5.12 | G135: 4.92 | H135: 3.12 | I135: 2.06 | J135: 11.9 | K135: 10.57
A136: 1464 得力 | B136: M14C 成衣 | C136: M14C2 織布 | D136: -2.46 | E136: 1 | F136: 10.7 | G136: 7.81 | H136: 5.9 | I136: 1.99 | J136: 4.68 | K136: 3.37
A137: 1465 偉全 | B137: M14C 成衣 | C137: M14C2 織布 | D137: -0.5 | E137: 0.01 | F137: -14.83 | G137: -10.99 | H137: -8.56 | I137: -8.62 | J137: 1.2 | K137: -0.9
A138: 1466 聚隆 | B138: M14A 人纖 | C138: M14A7 尼龍絲 | D138: -3.37 | E138: -0.81 | F138: -6.22 | G138: -0.82 | H138: 0.45 | I138: 1.3 | J138: -6.17 | K138: -3.99
A139: 1467 南緯 | B139: M14C 成衣 | C139: M14C1 成衣製造 | D139: -14.01 | E139: -6.74 | F139: -6.76 | G139: -0.79 | H139: -1.64 | I139: -1.14 | J139: -1.75 | K139: -5.15
A140: 1468 昶和 | B140: M14C 成衣 | C140: M14C2 織布 | D140: 2.04 | E140: 2.48 | F140: 4.64 | G140: 4.56 | H140: 3.89 | I140: 1.76 | J140: 3.92 | K140: 4.02
A141: 1470 大統新創 | B141: M14E 染整 | C141: M14E 染整 | D141: 0.84 | E141: 1.8 | F141: 7.88 | G141: 6.48 | H141: 4.65 | I141: 2.28 | J141: 5.19 | K141: 3.36
A142: 1471 首利 | B142: M23D 電子零組件 | C142: M23D3 電源供應器 | D142: -16.85 | E142: -10.65 | F142: -43.12 | G142: -35.29 | H142: -20 | I142: -7.94 | J142: -27.69 | K142: -13.51
A143: 1472 三洋紡 | B143: M14A 人纖 | C143: M14A7 尼龍絲 | D143: -57.71 | E143: -21.58 | F143: 14.17 | G143: 21.05 | H143: 29.26 | I143: -11.25 | J143: -19.88 | K143: -17.5
A144: 1473 台南 | B144: M14C 成衣 | C144: M14C1 成衣製造 | D144: -3.1 | E144: 0.24 | F144: 2.1 | G144: 2.35 | H144: 1.89 | I144: 2.49 | J144: 1.67 | K144: -0.91
A145: 1474 弘裕 | B145: M14C 成衣 | C145: M14C2 織布 | D145: 1 | E145: 0.03 | F145: 2.04 | G145: -0.99 | H145: -0.81 | I145: -0.11 | J145: 5.48 | K145: 3.7
A146: 1475 本盟 | B146: M14C 成衣 | C146: M14C2 織布 | D146: -11.95 | E146: -13.96 | F146: 58.62 | G146: 67.04 | H146: -129.98 | I146: -49.08 | J146: -92.84 | K146: -99.5
A147: 1476 儒鴻 | B147: M14C 成衣 | C147: M14C1 成衣製造 | D147: 8.14 | E147: 3.77 | F147: 24.55 | G147: 18.6 | H147: 12.02 | I147: 5.19 | J147: 27.38 | K147: 20.4
A148: 1477 聚陽 | B148: M14C 成衣 | C148: M14C1 成衣製造 | D148: 8.74 | E148: 4.52 | F148: 21.34 | G148: 17.01 | H148: 10.01 | I148: 5.36 | J148: 17.51 | K148: 13.34
A149: 1480 東盟開發 | B149: M20A 金屬基本 | C149: M20A6 不銹鋼 | D149: -8.27 | F149: 2.94 | H149: -3.08 | J149: 7.06
A150: 1489 日南紡織 | B150: M14B 棉紡 | C150: M14B1 聚酯紗棉紗 | D150: -3.76 | F150: -2.88 | H150: -0.49 | J150: 1.27
A151: 1503 士電 | B151: M15B 電機製品 | C151: M15B1 電機 | D151: 3.79 | E151: 2.09 | F151: 7.21 | G151: 5.67 | H151: 3.92 | I151: 2.18 | J151: 6.4 | K151: 5.26
A152: 1504 東元 | B152: M15B 電機製品 | C152: M15B1 電機 | D152: 3.29 | E152: 0.89 | F152: 5.86 | G152: 4.81 | H152: 3.29 | I152: 1.19 | J152: 5.97 | K152: 4.68
A153: 1506 正道 | B153: M15D 汽車組件 | C153: M15D 汽車組件 | D153: -28.55 | E153: -11.05 | F153: -34.29 | G153: -17.19 | H153: -6.73 | I153: -2.42 | J153: -10.46 | K153: -0.37
A154: 1507 永大 | B154: M15B 電機製品 | C154: M15B1 電機 | D154: 4.94 | E154: 1.33 | F154: 8.56 | G154: 6.68 | H154: 2.24 | I154: 1.23 | J154: 6.3 | K154: 5.44
A155: 1512 瑞利 | B155: M15D 汽車組件 | C155: M15D 汽車組件 | D155: -33.49 | E155: -11.93 | F155: -94.09 | G155: -15.38 | H155: -5.89 | I155: -6.06 | J155: -28.59 | K155: -14.19
A156: 1513 中興電 | B156: M15B 電機製品 | C156: M15B1 電機 | D156: 4.89 | E156: 1.38 | F156: 8.28 | G156: 6.56 | H156: 3.49 | I156: 1.85 | J156: 7.42 | K156: 6
A157: 1514 亞力 | B157: M15B 電機製品 | C157: M15B1 電機 | D157: 5.81 | E157: 2.81 | F157: 9.93 | G157: 7.57 | H157: 5.1 | I157: 2.33 | J157: 7.47 | K157: 4.99
A158: 1515 力山 | B158: M15A 機械業 | C158: M15A1 工具機 | D158: 6.74 | E158: 2.57 | F158: 18.61 | G158: 12.96 | H158: 7.21 | I158: 3.85 | J158: 18.39 | K158: 6.3
A159: 1516 川飛 | B159: M99Z 其他 | C159: M99ZC 其他製造業 | D159: 4.27 | E159: 2.07 | F159: 3.55 | G159: 2.28 | H159: 1.37 | I159: -0.07 | J159: 4.5 | K159: 4.93
A160: 1517 利奇 | B160: M15E 自行車組件 | C160: M15E 自行車組件 | D160: -1.22 | E160: -2.15 | F160: 0.49 | G160: 0.65 | H160: 0.49 | I160: 0.43 | J160: 1.8 | K160: 3.04
A161: 1519 華城 | B161: M15B 電機製品 | C161: M15B1 電機 | D161: 3.95 | E161: 0.12 | F161: 12.89 | G161: 7.09 | H161: 2.78 | I161: 4.68 | J161: 1.72 | K161: -3.47
A162: 1521 大億 | B162: M15D 汽車組件 | C162: M15D 汽車組件 | D162: 4.57 | E162: 3.32 | F162: 19.22 | G162: 16.67 | H162: 12.69 | I162: 5.98 | J162: 16.87 | K162: 13.29
A163: 1522 堤維西 | B163: M15D 汽車組件 | C163: M15D 汽車組件 | D163: 0.74 | E163: 0.92 | F163: 10.56 | G163: 9.08 | H163: 7.19 | I163: 3.02 | J163: 9.24 | K163: 7.53
A164: 1524 耿鼎 | B164: M15D 汽車組件 | C164: M15D 汽車組件 | D164: 0.83 | E164: 1.34 | F164: 6.56 | G164: 5.06 | H164: 3.57 | I164: 1.75 | J164: 8.81 | K164: 6.47
A165: 1525 江申 | B165: M15D 汽車組件 | C165: M15D 汽車組件 | D165: 2.66 | E165: 0.37 | F165: 7.05 | G165: 4.86 | H165: 2.92 | I165: 2.49 | J165: 11.33 | K165: 7.6
A166: 1526 日馳 | B166: M15E 自行車組件 | C166: M15E 自行車組件 | D166: 9.99 | E166: 2.3 | F166: 8.06 | G166: 6.01 | H166: 4.59 | I166: 0.94 | J166: 15.59 | K166: 12.88
A167: 1527 鑽全 | B167: M15A 機械業 | C167: M15A1 工具機 | D167: 4.77 | E167: 3.19 | F167: 14.88 | G167: 16.72 | H167: 12.8 | I167: 6.09 | J167: 30.3 | K167: 23.18
A168: 1528 恩德 | B168: M15A 機械業 | C168: M15A1 工具機 | D168: -2.92 | E168: -0.6 | F168: -10.97 | G168: -5.61 | H168: -3.03 | I168: 0.16 | J168: 1.62 | K168: 2.54
A169: 1529 樂士 | B169: M15B 電機製品 | C169: M15B1 電機 | D169: 1.08 | E169: 0.3 | F169: 4.84 | G169: 0.58 | H169: 0.13 | I169: 0.24 | J169: 6.92 | K169: 4.04
A170: 1530 亞崴 | B170: M15A 機械業 | C170: M15A1 工具機 | D170: 18.07 | E170: 16.63 | F170: 3.51 | G170: 4.28 | H170: 3.66 | I170: 1.67 | J170: 10.98 | K170: 7.99
A171: 1531 高林股 | B171: M15A 機械業 | C171: M15A3 紡織工具機 | D171: -1.46 | E171: -0.5 | F171: 0.8 | G171: 1.54 | H171: 0.98 | I171: 0.71 | J171: 3.29 | K171: 2.59
A172: 1532 勤美 | B172: M15A 機械業 | C172: M15A2 模具零件 | D172: 0.16 | E172: -0.42 | F172: 4.05 | G172: 3.24 | H172: 2.86 | I172: 1.33 | J172: 12.43 | K172: 8.38
A173: 1533 車王電 | B173: M15D 汽車組件 | C173: M15D 汽車組件 | D173: -1.78 | E173: -0.44 | F173: 4.51 | G173: 4.28 | H173: 3.76 | I173: 0.92 | J173: 8.48 | K173: 5.49
A174: 1535 中宇 | B174: M15B 電機製品 | C174: M15B2 機電工程 | D174: 2.52 | E174: 1.02 | F174: 4.25 | G174: 2.91 | H174: 1.73 | I174: 0.67 | J174: 3.23 | K174: 1.93
A175: 1536 和大 | B175: M15D 汽車組件 | C175: M15D 汽車組件 | D175: 1.86 | E175: 2.16 | F175: 9.68 | G175: 8.47 | H175: 5.82 | I175: 2.77 | J175: 18.39 | K175: 14.83
A176: 1537 廣隆 | B176: M23D 電子零組件 | C176: M23D7 3C二次電池 | D176: 10.58 | E176: 5.04 | F176: 25.25 | G176: 19.63 | H176: 13.6 | I176: 6.33 | J176: 26.06 | K176: 21.4
A177: 1538 正峰 | B177: M15A 機械業 | C177: M15A1 工具機 | D177: 42.04 | E177: 44.32 | F177: -64.3 | G177: -22.7 | H177: -18.75 | I177: -15.71 | J177: -26.93 | K177: -18.2
A178: 1539 巨庭 | B178: M15A 機械業 | C178: M15A1 工具機 | D178: 1.31 | E178: 2.06 | F178: 5.22 | G178: 6.72 | H178: 4.83 | I178: 3.08 | J178: 7.81 | K178: 9.43
A179: 1540 喬福 | B179: M15A 機械業 | C179: M15A1 工具機 | D179: -1.32 | E179: 1.41 | F179: 7.98 | G179: 9.82 | H179: 7.88 | I179: 3.49 | J179: 9.66 | K179: 7.02
A180: 1541 錩泰 | B180: M15A 機械業 | C180: M15A1 工具機 | D180: 15.61 | E180: 9.36 | F180: 21.07 | G180: 17.02 | H180: 8.59 | I180: 3.95 | J180: 6.98 | K180: 9.43
A181: 1550 台全電機 | B181: M15D 汽車組件 | C181: M15D 汽車組件 | D181: -0.65 | F181: 8.69 | H181: 4.87 | J181: 14.49
A182: 1557 金豐 | B182: M15A 機械業 | C182: M15A1 工具機 | D182: 3.1 | F182: 5.16 | H182: 2.32 | J182: 12.51
A183: 1558 伸興 | B183: M15A 機械業 | C183: M15A3 紡織工具機 | D183: 6.55 | E183: 2.48 | F183: 14.26 | G183: 11.9 | H183: 6.3 | I183: 1.71 | J183: 20.29 | K183: 17.25
A184: 1560 中砂 | B184: M15A 機械業 | C184: M15A2 模具零件 | D184: 6.3 | E184: 3.15 | F184: 11.78 | G184: 8.41 | H184: 5.45 | I184: 3.16 | J184: 16.27 | K184: 11.62
A185: 1563 巧新 | B185: M15D 汽車組件 | C185: M15D 汽車組件 | D185: -2.67 | F185: 8.43 | H185: 7.23 | J185: 16.6
A186: 1565 精華 | B186: M17G 醫療耗材 | C186: M17G 醫療耗材 | D186: 7.16 | E186: 4.29 | F186: 22.25 | G186: 17.36 | H186: 12.74 | I186: 6.45 | J186: 29.78 | K186: 23.16
A187: 1568 倉佑 | B187: M15D 汽車組件 | C187: M15D 汽車組件 | D187: -1.18 | E187: -1.35 | F187: 1.78 | G187: 1.58 | H187: 2.66 | I187: 1.29 | J187: 5.95 | K187: 5.94
A188: 1569 濱川 | B188: M23D 電子零組件 | C188: M23D9A 沖壓零組件 | D188: 6.33 | E188: 0.64 | F188: 4.18 | G188: 1.83 | H188: 1.02 | I188: 0.41 | J188: 1.75 | K188: 0.97
A189: 1570 力肯 | B189: M15A 機械業 | C189: M15A1 工具機 | D189: 3.85 | E189: 2.35 | F189: 9.76 | G189: 6.99 | H189: 4.22 | I189: 1.26 | J189: 11.69 | K189: 8.59
A190: 1580 新麥 | B190: M15Z 其他電製品 | C190: M15Z 其他電製品 | D190: 4.55 | E190: 1.4 | F190: 23.68 | G190: 17.18 | H190: 9.71 | I190: 3.48 | J190: 23.31 | K190: 16.22
A191: 1582 信錦 | B191: M23D 電子零組件 | C191: M23D4 機殼 | D191: 9.02 | E191: 2.36 | F191: 16.72 | G191: 12.9 | H191: 7.58 | I191: 3.15 | J191: 15.44 | K191: 11.68
A192: 1583 程泰 | B192: M15A 機械業 | C192: M15A1 工具機 | D192: 9.78 | E192: 8.11 | F192: 5.48 | G192: 5.59 | H192: 4.26 | I192: 2.17 | J192: 13.25 | K192: 9.71
A193: 1584 精剛 | B193: M20A 金屬基本 | C193: M20A6 不銹鋼 | D193: 0.41 | E193: -0.66 | F193: -6.89 | G193: -3.97 | H193: -2.52 | I193: -1.44 | J193: -7.32 | K193: -4.54
A194: 1585 鎧鉅 | B194: M23B 主機板 | C194: M23B3X PCB上-其他 | D194: -47.84 | F194: -32.73 | H194: -13.88 | J194: -27.58
A195: 1586 和勤 | B195: M23D 電子零組件 | C195: M23D9A 沖壓零組件 | D195: 4.14 | E195: 0.94 | F195: 1.43 | G195: 0.06 | H195: -0.04 | I195: -2.38 | J195: 6.96 | K195: 6.65
A196: 1587 吉茂 | B196: M15D 汽車組件 | C196: M15D 汽車組件 | D196: 8.6 | E196: 0.53 | F196: 0.18 | G196: 0.33 | H196: 0.6 | I196: 0.19 | J196: 3.36 | K196: -0.1
A197: 1589 永冠-KY | B197: M15A 機械業 | C197: M15A2 模具零件 | D197: 1.05 | E197: -1.46 | F197: 2.03 | G197: -0.09 | H197: -1.07 | I197: -1.29 | J197: -3.05 | K197: -2.34
A198: 1590 亞德客-KY | B198: M15A 機械業 | C198: M15A2 模具零件 | D198: 9.37 | E198: 2.21 | F198: 15.45 | G198: 10.96 | H198: 8.37 | I198: 3.89 | J198: 17.17 | K198: 13.38
A199: 1591 駿吉-KY | B199: M15A 機械業 | C199: M15A1 工具機 | D199: 0.57 | E199: -0.9 | F199: 1.99 | G199: 5.12 | H199: 4.23 | I199: 2.59 | J199: 12.07 | K199: 8.8
A200: 1592 英瑞-KY | B200: M15D 汽車組件 | C200: M15D 汽車組件 | D200: -10.92 | E200: -4.96 | F200: -15.22 | G200: -9.23 | H200: -10.05 | I200: -7.13 | J200: -12.19 | K200: -7.1
... 2288 more rows

Sheet Net Income (hidden)
B1: TEJ產業名 | C1: TEJ子產業名 | D1: 營業利益率 | E1: 營業利益率 | F1: 營業利益率 | G1: 營業利益率 | H1: 營業利益率 | I1: 營業利益率 | J1: 營業利益率 | K1: 營業利益率
A2: 公司 | D2: 2020-06-30 | E2: 2020-03-31 | F2: 2019-12-31 | G2: 2019-09-27 | H2: 2019-06-28 | I2: 2019-03-29 | J2: 2018-12-28 | K2: 2018-09-28
A3: 000104 臺銀證券 | B3: M30A 證券 | C3: M30A 證券 | F3: 31.28 | H3: 22.47 | J3: 14.67
A4: 000116 日盛證券 | B4: M30A 證券 | C4: M30A 證券 | D4: 40.69 | E4: 7.94 | F4: 13.01 | G4: 28.7 | H4: 13.07 | I4: 16.92 | J4: 4.08 | K4: 30.61
A5: 000218 亞東證券 | B5: M30A 證券 | C5: M30A 證券
A6: 000511 富隆證券 | B6: M30A 證券 | C6: M30A 證券
A7: 000532 高橋證券 | B7: M30A 證券 | C7: M30A 證券 | D7: 23.42
A8: 000538 第一金證 | B8: M30A 證券 | C8: M30A 證券 | E8: -44.83 | F8: 17.63 | G8: 22.07 | H8: -7.77 | I8: 8.6 | J8: -56.38 | K8: -2.83
A9: 000546 寶盛證券 | B9: M30A 證券 | C9: M30A 證券
A10: 000560 永興證券 | B10: M30A 證券 | C10: M30A 證券
A11: 000587 光隆證券 | B11: M30A 證券 | C11: M30A 證券
A12: 000601 奔亞證券 | B12: M30A 證券 | C12: M30A 證券
A13: 000616 中信證券 | B13: M30A 證券 | C13: M30A 證券 | E13: -781.53 | F13: 20.89 | G13: 37.32 | H13: 23.01 | I13: 25.17 | J13: -25.08 | K13: -4.92
A14: 000638 光和證券 | B14: M30A 證券 | C14: M30A 證券
A15: 000646 大昌證券 | B15: M30A 證券 | C15: M30A 證券
A16: 000695 福勝證券 | B16: M30A 證券 | C16: M30A 證券
A17: 000700 兆豐證券 | B17: M30A 證券 | C17: M30A 證券 | E17: -49.47 | F17: 26.04 | G17: 33.34 | H17: 21.32 | I17: 14.25 | J17: -17.79 | K17: 17.52
A18: 000708 石橋證券 | B18: M30A 證券 | C18: M30A 證券 | D18: -50.89
A19: 000775 北城證券 | B19: M30A 證券 | C19: M30A 證券
A20: 000779 國票證券 | B20: M30A 證券 | C20: M30A 證券 | E20: 6.97 | F20: 25.59 | G20: 25.85 | H20: 19.2 | I20: 19.64 | J20: -8.02 | K20: 11.89
A21: 000815 台新證券 | B21: M30A 證券 | C21: M30A 證券 | E21: -328.33 | F21: 34.08 | G21: 27.49 | H21: 13.53 | I21: 26.63 | J21: -105.51 | K21: -14.9
A22: 000838 安泰證券 | B22: M30A 證券 | C22: M30A 證券
A23: 000856 新光證券 | B23: M30A 證券 | C23: M30A 證券
A24: 000888 國泰證券 | B24: M30A 證券 | C24: M30A 證券 | E24: 20.58 | F24: 15.79 | G24: 23.7 | H24: 20.82 | I24: 12.13 | J24: 2.32 | K24: 13.42
A25: 000930 華南永昌證券 | B25: M30A 證券 | C25: M30A 證券 | F25: 26.27 | G25: 27.19 | H25: 11.25 | I25: 15.85 | J25: -19.93 | K25: 14.7
A26: 000960 富邦證券 | B26: M30A 證券 | C26: M30A 證券 | E26: 5.2 | F26: -21.62 | G26: 29.02 | H26: 22.36 | I26: 22.09 | J26: -8.26 | K26: 31.67
A27: 000980 元大證券 | B27: M30A 證券 | C27: M30A 證券 | D27: 32.98 | E27: 16.96 | F27: 22.1 | G27: 24.01 | H27: 22.57 | I27: 23.87 | J27: 18.16 | K27: 22.71
A28: 0009A0 永豐金證券 | B28: M30A 證券 | C28: M30A 證券 | E28: -1.09 | F28: 19.27 | G28: 19.85 | H28: 13.47 | I28: 9.69 | J28: -8.52 | K28: 12.23
A29: 1101 台泥 | B29: M11A 水泥製造 | C29: M11A 水泥製造 | D29: 30.61 | E29: 20.3 | F29: 26.3 | G29: 26.32 | H29: 24.69 | I29: 19.85 | J29: 20.62 | K29: 22.85
A30: 1102 亞泥 | B30: M11A 水泥製造 | C30: M11A 水泥製造 | D30: 25.99 | E30: 15.11 | F30: 24.99 | G30: 20.76 | H30: 27.09 | I30: 19.2 | J30: 25.96 | K30: 20.8
A31: 1103 嘉泥 | B31: M11A 水泥製造 | C31: M11A 水泥製造 | D31: -31.9 | E31: -32.08 | F31: -40.06 | G31: -23.56 | H31: -13.41 | I31: -12.37 | J31: -10.88 | K31: -3.39
A32: 1104 環泥 | B32: M11A 水泥製造 | C32: M11A 水泥製造 | D32: 8.62 | E32: 5.38 | F32: 7.57 | G32: 2.69 | H32: 1.61 | I32: 0.85 | J32: 5.25 | K32: 3.61
A33: 1108 幸福 | B33: M11A 水泥製造 | C33: M11A 水泥製造 | D33: 13.23 | E33: 9.97 | F33: 5.37 | G33: 3.47 | H33: 1.62 | I33: -3.16 | J33: -9.3 | K33: -5.35
A34: 1109 信大 | B34: M11A 水泥製造 | C34: M11A 水泥製造 | D34: 29.75 | E34: 18.64 | F34: 25.92 | G34: 27.6 | H34: 29.2 | I34: 20.9 | J34: 31.46 | K34: 26.13
A35: 1110 東泥 | B35: M11A 水泥製造 | C35: M11A 水泥製造 | D35: -2.78 | E35: -3.25 | F35: 1.36 | G35: -2.27 | H35: -5.8 | I35: 3.51 | J35: 4.53 | K35: 0.35
A36: 1111 欣欣水泥 | B36: M11A 水泥製造 | C36: M11A 水泥製造
A37: 1201 味全 | B37: M12C 飲料乳品 | C37: M12C 飲料乳品 | D37: 2.82 | E37: 1.13 | F37: 1.01 | G37: 5.86 | H37: 3.43 | I37: -0.32 | J37: 1.16 | K37: 5.82
A38: 1203 味王 | B38: M12Z 其他食品 | C38: M12Z 其他食品 | D38: 12.24 | E38: 17.74 | F38: 14.92 | G38: 14.13 | H38: 14.62 | I38: 14.77 | J38: 17.75 | K38: 16.38
A39: 1210 大成 | B39: M12B 油脂飼料 | C39: M12B 油脂飼料 | D39: 5.68 | E39: 4.5 | F39: 5.27 | G39: 5.64 | H39: 4.41 | I39: 3.71 | J39: 3.09 | K39: 3.09
A40: 1213 大飲 | B40: M12C 飲料乳品 | C40: M12C 飲料乳品 | D40: -25.56 | E40: -17.18 | F40: -12.5 | G40: -9.22 | H40: -15.49 | I40: -0.61 | J40: -11.3 | K40: -1.18
A41: 1215 卜蜂 | B41: M12B 油脂飼料 | C41: M12B 油脂飼料 | D41: 10.08 | E41: 4.26 | F41: 4.58 | G41: 7.01 | H41: 9.47 | I41: 6.7 | J41: 7.36 | K41: 5.58
A42: 1216 統一 | B42: M12C 飲料乳品 | C42: M12C 飲料乳品 | D42: 7.68 | E42: 6.65 | F42: 3.89 | G42: 7.08 | H42: 8.27 | I42: 6.97 | J42: 4.48 | K42: 6.58
A43: 1217 愛之味 | B43: M12A 罐頭加工 | C43: M12A 罐頭加工 | D43: 5.27 | E43: 6.66 | F43: -2.52 | G43: 5.33 | H43: 4.47 | I43: 2.32 | J43: -8.74 | K43: 5.86
A44: 1218 泰山 | B44: M12B 油脂飼料 | C44: M12B 油脂飼料 | D44: 3.27 | E44: 4.12 | F44: -1.36 | G44: 5.75 | H44: 0.55 | I44: 1.98 | J44: -2.96 | K44: 4.3
A45: 1219 福壽 | B45: M12B 油脂飼料 | C45: M12B 油脂飼料 | D45: 2.47 | E45: 0.17 | F45: -0.74 | G45: 0.73 | H45: 0.52 | I45: 0.64 | J45: -0.2 | K45: -5.37
A46: 1220 台榮 | B46: M12B 油脂飼料 | C46: M12B 油脂飼料 | D46: 5.62 | E46: 7.15 | F46: 6.92 | G46: 8.12 | H46: 6.23 | I46: 2.21 | J46: 3.74 | K46: 2.55
A47: 1225 福懋油 | B47: M12B 油脂飼料 | C47: M12B 油脂飼料 | D47: 3.35 | E47: 3.92 | F47: 4.55 | G47: 4.59 | H47: 3.54 | I47: 4.02 | J47: 4.11 | K47: 0.8
A48: 1227 佳格 | B48: M12Z 其他食品 | C48: M12Z 其他食品 | D48: 15.64 | E48: 11.08 | F48: 13.92 | G48: 16.42 | H48: 11.93 | I48: 13.81 | J48: 12.27 | K48: 13.2
A49: 1229 聯華 | B49: M12B 油脂飼料 | C49: M12B 油脂飼料 | D49: 26.31 | E49: 5.57 | F49: 4.64 | G49: 25.93 | H49: 3.74 | I49: 5.55 | J49: 6.89 | K49: 5.21
A50: 1231 聯華食 | B50: M12Z 其他食品 | C50: M12Z 其他食品 | D50: 6.75 | E50: 6.3 | F50: 11.2 | G50: 5.63 | H50: 5.53 | I50: 4.79 | J50: 9.28 | K50: 9.18
A51: 1232 大統益 | B51: M12B 油脂飼料 | C51: M12B 油脂飼料 | D51: 8.26 | E51: 8.04 | F51: 6.93 | G51: 6.67 | H51: 6.25 | I51: 8.89 | J51: 7.88 | K51: 5.74
A52: 1233 天仁 | B52: M12Z 其他食品 | C52: M12Z 其他食品 | D52: -1.57 | E52: 1.7 | F52: 7.42 | G52: 7.8 | H52: 6.79 | I52: 9.72 | J52: 4.69 | K52: 7.95
A53: 1234 黑松 | B53: M12C 飲料乳品 | C53: M12C 飲料乳品 | D53: 4.49 | E53: 1.42 | F53: 5.66 | G53: 9.55 | H53: 2.72 | I53: 1.73 | J53: 1.78 | K53: 6.29
A54: 1235 興泰 | B54: M12B 油脂飼料 | C54: M12B 油脂飼料 | D54: -30.45 | E54: -97.97 | F54: 15.07 | G54: 52.85 | H54: -22.7 | I54: -72.57 | J54: -88.06 | K54: 55.98
A55: 1236 宏亞 | B55: M12Z 其他食品 | C55: M12Z 其他食品 | D55: -22.33 | E55: 2.36 | F55: 6.63 | G55: 2.59 | H55: -17.83 | I55: 1.5 | J55: 8.8 | K55: -3.95
A56: 1237 台糖 | B56: M12Z 其他食品 | C56: M12Z 其他食品
A57: 1240 茂生農經 | B57: M12B 油脂飼料 | C57: M12B 油脂飼料 | D57: 6.15 | E57: 6.62 | F57: 4.55 | G57: 2.33 | H57: 8.24 | I57: 7.37 | J57: 8.29 | K57: 0.11
A58: 1242 新東陽 | B58: M12A 罐頭加工 | C58: M12A 罐頭加工
A59: 1246 中聯油脂 | B59: M12B 油脂飼料 | C59: M12B 油脂飼料
A60: 1256 鮮活果汁-KY | B60: M12C 飲料乳品 | C60: M12C 飲料乳品 | D60: 29.11 | E60: 6.53 | F60: 17.62 | G60: 24.17 | H60: 24.1 | I60: 16.56 | J60: 14.45 | K60: 23.41
A61: 1258 其祥-KY | B61: M12Z 其他食品 | C61: M12Z 其他食品 | D61: 5.24 | E61: -6.37 | F61: -7.33 | G61: 2.2 | H61: -11.01 | I61: -0.4 | J61: -6.34 | K61: -8.59
A62: 1259 安心 | B62: M27A 餐飲飯店 | C62: M27A2 餐飲業 | D62: 2.15 | E62: 1.87 | F62: 1.94 | G62: 4.35 | H62: 4.13 | I62: 2.15 | J62: 1.91 | K62: 4.14
A63: 1260 富味鄉 | B63: M12B 油脂飼料 | C63: M12B 油脂飼料 | D63: 1.36 | F63: 3.22 | H63: 5.82 | J63: 9.32
A64: 1264 德麥 | B64: M12Z 其他食品 | C64: M12Z 其他食品 | D64: 16.74 | E64: 17.03 | F64: 18.33 | G64: 17.73 | H64: 18.27 | I64: 16.46 | J64: 17.71 | K64: 18.05
A65: 1267 京華堂 | B65: M12Z 其他食品 | C65: M12Z 其他食品
A66: 1268 漢來美食 | B66: M27A 餐飲飯店 | C66: M27A2 餐飲業 | D66: -8.77 | E66: 3.56 | F66: 6.72 | G66: 7.66 | H66: 6.85 | I66: 14.37 | J66: 6.1 | K66: 6.01
A67: 1269 乾杯 | B67: M27A 餐飲飯店 | C67: M27A2 餐飲業 | D67: -2.05 | F67: 7.98 | H67: 5.07 | I67: 7.24 | J67: 4.93
A68: 1271 晨暉生技 | B68: M17C 藥 | C68: M17C2 機能性食品
A69: 1293 利統 | B69: M12Z 其他食品 | C69: M12Z 其他食品
A70: 1301 台塑 | B70: M13A 石化 | C70: M13A1 泛用塑膠 | D70: 5.63 | E70: 5.93 | F70: 5.24 | G70: 9.6 | H70: 13.46 | I70: 9.94 | J70: 8.35 | K70: 9.41
A71: 1303 南亞 | B71: M13A 石化 | C71: M13A1 泛用塑膠 | D71: 5.47 | E71: 4.35 | F71: 4.65 | G71: 2.75 | H71: 3.2 | I71: 3.21 | J71: 4.92 | K71: 8.9
A72: 1304 台聚 | B72: M13A 石化 | C72: M13A1 泛用塑膠 | D72: 6.82 | E72: 8.73 | F72: 7.09 | G72: 5.27 | H72: 4.26 | I72: 4.51 | J72: -1.4 | K72: 2.17
A73: 1305 華夏 | B73: M13A 石化 | C73: M13A1 泛用塑膠 | D73: -4.43 | E73: 11.78 | F73: 8.99 | G73: 5.92 | H73: 0.69 | I73: 5.69 | J73: 3.09 | K73: 7.86
A74: 1307 三芳 | B74: M13A 石化 | C74: M13A6 合成皮 | D74: -6.23 | E74: 6.33 | F74: 7.41 | G74: 7.26 | H74: 5.32 | I74: 5.26 | J74: 4.79 | K74: 3.56
A75: 1308 亞聚 | B75: M13A 石化 | C75: M13A1 泛用塑膠 | D75: 11.37 | E75: 13.8 | F75: 17.55 | G75: 11.23 | H75: 11.12 | I75: 6.96 | J75: 2.41 | K75: -0.62
A76: 1309 台達化 | B76: M13A 石化 | C76: M13A1 泛用塑膠 | D76: 12.25 | E76: 5.31 | F76: 3.18 | G76: 0.55 | H76: 3.28 | I76: 4.56 | J76: -3.93 | K76: 0.58
A77: 1310 台苯 | B77: M13A 石化 | C77: M13A1 泛用塑膠 | D77: 2.78 | E77: -20.49 | F77: 0.03 | G77: 10.84 | H77: 11.33 | I77: 11.8 | J77: 1.96 | K77: 14.05
A78: 1312 國喬 | B78: M13A 石化 | C78: M13A1 泛用塑膠 | D78: 8.73 | E78: -3.99 | F78: 1.75 | G78: 6.31 | H78: 10.71 | I78: 7.47 | J78: 5.4 | K78: 13.87
A79: 1313 聯成 | B79: M13A 石化 | C79: M13A7 可塑劑 | D79: 7.14 | E79: -11.81 | F79: 0.27 | G79: 1.59 | H79: -2.7 | I79: -1.4 | J79: -0.56 | K79: 1.87
A80: 1314 中石化 | B80: M13A 石化 | C80: M13A5 化纖 | D80: -15.84 | E80: -3.55 | F80: -13.55 | G80: 0.32 | H80: 4.87 | I80: -1.75 | J80: 0.64 | K80: 11.88
A81: 1315 達新 | B81: M13A 石化 | C81: M13A8 塑膠加工 | D81: -2.22 | E81: 0.25 | F81: -0.16 | G81: 5.7 | H81: 0.77 | I81: -1.06 | J81: -1.55 | K81: 4.44
A82: 1316 上曜 | B82: M25A 建設 | C82: M25A 建設 | D82: -6.49 | E82: -14.39 | F82: 8.09 | G82: -34.88 | H82: -44.6 | I82: -50.46 | J82: -43.11 | K82: -14.99
A83: 1319 東陽 | B83: M15D 汽車組件 | C83: M15D 汽車組件 | D83: -9.21 | E83: 8.89 | F83: 10.84 | G83: 9.57 | H83: 9.43 | I83: 10.12 | J83: 8.25 | K83: 7.37
A84: 1321 大洋 | B84: M13A 石化 | C84: M13A8 塑膠加工 | D84: 6.18 | E84: -2.51 | F84: -2.98 | G84: -2.1 | H84: -2.24 | I84: -2.38 | J84: -3.13 | K84: -2.5
A85: 1323 永裕 | B85: M13A 石化 | C85: M13A8 塑膠加工 | D85: 14.79 | E85: 14.15 | F85: 14.35 | G85: 12.08 | H85: 12.18 | I85: 10.74 | J85: 12.46 | K85: 12.56
A86: 1324 地球 | B86: M13A 石化 | C86: M13A9 膠帶 | D86: -0.32 | E86: 1.24 | F86: 2.71 | G86: -0.23 | H86: 2.36 | I86: -1.39 | J86: -0.05 | K86: 0.37
A87: 1325 恒大 | B87: M14F 不織布 | C87: M14F 不織布 | D87: 63.93 | E87: 37.61 | F87: 7.77 | G87: 1.08 | H87: 3.66 | I87: 5.02 | J87: 5.61 | K87: 5.07
A88: 1326 台化 | B88: M13A 石化 | C88: M13A1 泛用塑膠 | D88: 4.55 | E88: -2.98 | F88: 0.31 | G88: 3.21 | H88: 6.36 | I88: 9.39 | J88: 4.06 | K88: 10.79
A89: 1328 中油 | B89: M13C 輕油製解 | C89: M13C 輕油製解
A90: 1333 恩得利 | B90: M23D 電子零組件 | C90: M23D2 連接器 | G90: 3.74 | H90: -0.61 | I90: -3 | J90: -7.57 | K90: -10.88
A91: 1336 台翰 | B91: M23D 電子零組件 | C91: M23D4 機殼 | D91: -6.92 | E91: 2.14 | F91: 7.33 | G91: 5.67 | H91: 3.56 | I91: 2.55 | J91: 5.3 | K91: 6.85
A92: 1337 再生-KY | B92: M13B 塑膠製品 | C92: M13B 塑膠製品 | D92: -56.9 | E92: -73.97 | F92: -34.52 | G92: -53.2 | H92: -73.3 | I92: -54.23 | J92: -333.56 | K92: -46.59
A93: 1338 廣華-KY | B93: M15D 汽車組件 | C93: M15D 汽車組件 | D93: -0.27 | E93: -4.51 | F93: 9.72 | G93: 6.87 | H93: 8.35 | I93: 6.28 | J93: 8.06 | K93: 7.32
A94: 1339 昭輝 | B94: M15D 汽車組件 | C94: M15D 汽車組件 | D94: 10.73 | E94: 17.43 | F94: 21.44 | G94: 17.03 | H94: 19.57 | I94: 13.34 | J94: 19.97 | K94: 5.86
A95: 1340 勝悅-KY | B95: M13B 塑膠製品 | C95: M13B 塑膠製品 | D95: -51.34 | E95: -99.25 | F95: -43.69 | G95: -48.44 | H95: -26.37 | I95: -15.66 | J95: -22.44 | K95: 4.14
A96: 1341 富林-KY | B96: M13A 石化 | C96: M13A6 合成皮 | D96: 5.42 | E96: 13.77 | F96: 12.73 | G96: 12.76 | H96: 12.47 | I96: 9.23 | J96: 10.67 | K96: 6.38
A97: 1342 八貫 | B97: M13B 塑膠製品 | C97: M13B 塑膠製品 | D97: 10.86 | E97: 17.64 | F97: 14.84 | H97: 17.88 | I97: 13.59 | J97: 11.27
A98: 1343 旭東 | B98: M13B 塑膠製品 | C98: M13B 塑膠製品
A99: 1402 遠東新 | B99: M14A 人纖 | C99: M14A1 聚酯絲棉 | D99: 5.02 | E99: 3.32 | F99: 3.64 | G99: 6.26 | H99: 6.42 | I99: 5.55 | J99: 2.06 | K99: 8.12
A100: 1408 中紡 | B100: M14A 人纖 | C100: M14A1 聚酯絲棉 | D100: -2.58 | F100: 1.2 | H100: -0.08 | J100: -0.31
A101: 1409 新纖 | B101: M14A 人纖 | C101: M14A1 聚酯絲棉 | D101: 9.16 | E101: 5.24 | F101: 5.85 | G101: 8.63 | H101: 8.38 | I101: 5.89 | J101: 7.01 | K101: 8.97
A102: 1410 南染 | B102: M14E 染整 | C102: M14E 染整 | D102: 19.61 | E102: 17.81 | F102: 23.16 | G102: 16.98 | H102: 19.77 | I102: 16 | J102: 25.29 | K102: 24.58
A103: 1413 宏洲 | B103: M14A 人纖 | C103: M14A2 加工絲 | D103: -21.47 | E103: -8.81 | F103: -2.52 | G103: 1.12 | H103: 4.27 | I103: 3.45 | J103: 4.74 | K103: 4.52
A104: 1414 東和 | B104: M14B 棉紡 | C104: M14B1 聚酯紗棉紗 | D104: 1.48 | E104: -9.29 | F104: -11.02 | G104: -10.75 | H104: -4.97 | I104: -6.88 | J104: -0.82 | K104: 0.63
A105: 1416 廣豐 | B105: M29A 百貨批發 | C105: M29A1 百貨購物中 | D105: -38.46 | E105: -48.76 | F105: -33.79 | G105: -17.53 | H105: -2.63 | I105: -23.95 | J105: -203.11 | K105: -1.78
A106: 1417 嘉裕 | B106: M14C 成衣 | C106: M14C1 成衣製造 | D106: -30 | E106: -24.08 | F106: -19.77 | G106: -29.56 | H106: -11.89 | I106: -18.05 | J106: -19.36 | K106: -36.94
A107: 1418 東華 | B107: M14B 棉紡 | C107: M14B2 亞克力纖維 | D107: -322.31 | E107: -147.52 | F107: -186.38 | G107: -142.52 | H107: -76.93 | I107: -40.87 | J107: -87.87 | K107: -36
A108: 1419 新紡 | B108: M14C 成衣 | C108: M14C2 織布 | D108: 1.67 | E108: 4.55 | F108: 10.73 | G108: 2.68 | H108: 8.05 | I108: -3.31 | J108: 7.16 | K108: -0.87
A109: 1423 利華 | B109: M14D 毛紡 | C109: M14D2 毛紡 | D109: -76.96 | E109: -96.77 | F109: -25.52 | G109: -39.62 | H109: -12.01 | I109: 4.39 | J109: -0.77 | K109: 11.61
A110: 1432 大魯閣 | B110: M29A 百貨批發 | C110: M29A1 百貨購物中 | D110: -14.89 | E110: 5.01 | F110: -24.51 | G110: -15.7 | H110: -19.63 | I110: -11.73 | J110: -34.68 | K110: -5.92
A111: 1434 福懋 | B111: M14C 成衣 | C111: M14C2 織布 | D111: 0.79 | E111: 4.33 | F111: -79.57 | G111: 5.49 | H111: 6.44 | I111: 6.04 | J111: 3.15 | K111: 5.71
A112: 1435 中福 | B112: M23E 網路設備 | C112: M23E1 數據機 | D112: -114.32 | E112: -149.18 | F112: -65.83 | G112: -93.1 | H112: -81.7 | I112: -78.83 | J112: -26.14 | K112: -59.8
A113: 1436 華友聯 | B113: M25A 建設 | C113: M25A 建設 | D113: 15.69 | E113: 17.11 | F113: 19.66 | G113: 0.24 | H113: 6.88 | I113: 16.76 | J113: 15.63 | K113: 16.86
A114: 1437 勤益控 | B114: M25F 物業管理 | C114: M25F 物業管理 | D114: 52.69 | E114: 72.07 | F114: 6.44 | G114: 47.81 | H114: 33.25 | I114: 64.55 | J114: 47.5 | K114: 48.38
A115: 1438 三地開發 | B115: M25A 建設 | C115: M25A 建設 | D115: 42.74 | E115: 55.16 | F115: -189400 | G115: -51300 | H115: -194700 | I115: -46460 | J115: -22825 | K115: -38040
A116: 1439 中和 | B116: M14D 毛紡 | C116: M14D2 毛紡 | D116: -38.22 | E116: -16.9 | F116: 163.18 | G116: -30.19 | H116: -170.06 | I116: -17.68 | J116: -49.5 | K116: -44.66
A117: 1440 南紡 | B117: M14A 人纖 | C117: M14A1 聚酯絲棉 | D117: -9.63 | E117: 0.43 | F117: -2.72 | G117: -6.8 | H117: -1.44 | I117: -2.44 | J117: -3.27 | K117: 4.5
A118: 1441 大東 | B118: M14B 棉紡 | C118: M14B1 聚酯紗棉紗 | D118: -33.79 | E118: -18.68 | F118: -15.41 | G118: -21.68 | H118: -24.05 | I118: -17.49 | J118: -24.93 | K118: -13.5
A119: 1442 名軒 | B119: M25A 建設 | C119: M25A 建設 | D119: 6.7 | E119: -4.58 | F119: -1.16 | G119: -4.81 | H119: -18.79 | I119: -2.79 | J119: -42.28 | K119: 27.37
A120: 1443 立益 | B120: M14B 棉紡 | C120: M14B1 聚酯紗棉紗 | D120: 14.25 | E120: 10.09 | F120: 12.07 | G120: 17.21 | H120: 17.01 | I120: 11.61 | J120: -14.59 | K120: -30.25
A121: 1444 力麗 | B121: M14A 人纖 | C121: M14A2 加工絲 | D121: -5.87 | E121: -2.48 | F121: -2.31 | G121: 0.2 | H121: 2.85 | I121: 2.28 | J121: -1.71 | K121: 2.86
A122: 1445 大宇 | B122: M14C 成衣 | C122: M14C2 織布 | D122: -30.34 | E122: -1.32 | F122: -4.11 | G122: -9.69 | H122: -2.53 | I122: -2.21 | J122: -3.3 | K122: -2.32
A123: 1446 宏和 | B123: M14C 成衣 | C123: M14C2 織布 | D123: -31.92 | E123: -3.78 | F123: 15.49 | G123: -8.08 | H123: -5.53 | I123: -19.68 | J123: -16.48 | K123: -16.4
A124: 1447 力鵬 | B124: M14A 人纖 | C124: M14A7 尼龍絲 | D124: -6.62 | E124: -8.14 | F124: -5.49 | G124: -0.56 | H124: -4.78 | I124: 2.04 | J124: -13.96 | K124: 0.22
A125: 1449 佳和 | B125: M14C 成衣 | C125: M14C2 織布 | D125: -10.63 | E125: -13.95 | F125: -10.79 | G125: -8.23 | H125: -4.65 | I125: 0.47 | J125: -5.51 | K125: -6.26
A126: 1451 年興 | B126: M14C 成衣 | C126: M14C1 成衣製造 | D126: -23.36 | E126: -5.93 | F126: -1.62 | G126: 0.64 | H126: -3.18 | I126: -0.76 | J126: 2.58 | K126: 6.85
A127: 1452 宏益 | B127: M14A 人纖 | C127: M14A2 加工絲 | D127: -24.14 | E127: 6.87 | F127: 9.83 | G127: 4.51 | H127: 10 | I127: 11.55 | J127: 6.49 | K127: 9
A128: 1453 大將 | B128: M25A 建設 | C128: M25A 建設 | D128: -0.59 | E128: -34.88 | F128: -116.33 | G128: -6196.4 | H128: -2840.75 | I128: -2961.6 | J128: -1828.7 | K128: -135.31
A129: 1454 台富 | B129: M14C 成衣 | C129: M14C2 織布 | D129: -18.54 | E129: -0.37 | F129: 0.42 | G129: -1.33 | H129: 5.21 | I129: 1.3 | J129: -2.21 | K129: -1.24
A130: 1455 集盛 | B130: M14A 人纖 | C130: M14A7 尼龍絲 | D130: -24.72 | E130: -3.81 | F130: -9.44 | G130: -2.75 | H130: -1.53 | I130: -2.36 | J130: -5.28 | K130: 0.52
A131: 1456 怡華 | B131: M14C 成衣 | C131: M14C2 織布 | D131: 4.8 | E131: 6.44 | F131: 8.08 | G131: 8.51 | H131: 6.26 | I131: 5.89 | J131: 55.7 | K131: 8.61
A132: 1457 宜進 | B132: M14A 人纖 | C132: M14A2 加工絲 | D132: 156.56 | E132: 3.93 | F132: 19.06 | G132: 6.04 | H132: 8.04 | I132: 35.19 | J132: 8.4 | K132: -21.45
A133: 1459 聯發 | B133: M14A 人纖 | C133: M14A2 加工絲 | D133: -40.65 | E133: -6.53 | F133: -7.78 | G133: -10.97 | H133: -3.42 | I133: -4.52 | J133: -9.24 | K133: -4.06
A134: 1460 宏遠 | B134: M14C 成衣 | C134: M14C2 織布 | D134: -21.19 | E134: -8 | F134: -4.94 | G134: -0.66 | H134: 2.55 | I134: 1.88 | J134: 2.91 | K134: 1.79
A135: 1463 強盛 | B135: M14E 染整 | C135: M14E 染整 | D135: -36.7 | E135: 19.22 | F135: -18.04 | G135: 8.36 | H135: 0.26 | I135: 13.77 | J135: 15.5 | K135: 15.67
A136: 1464 得力 | B136: M14C 成衣 | C136: M14C2 織布 | D136: -15.54 | E136: 4.63 | F136: 9.21 | G136: 7.1 | H136: 7.85 | I136: 4.5 | J136: 4.12 | K136: 4.18
A137: 1465 偉全 | B137: M14C 成衣 | C137: M14C2 織布 | D137: -3.9 | E137: -8.8 | F137: -18.63 | G137: -30.72 | H137: -5.89 | I137: -41.58 | K137: -1.4
A138: 1466 聚隆 | B138: M14A 人纖 | C138: M14A7 尼龍絲 | D138: -18.28 | E138: 0.06 | F138: -5.95 | G138: 2.59 | H138: 0.93 | I138: 0.94 | J138: -4.16 | K138: -3.25
A139: 1467 南緯 | B139: M14C 成衣 | C139: M14C1 成衣製造 | D139: -13.7 | E139: -11.74 | F139: -6.43 | G139: 2.88 | H139: 1.63 | I139: -2.79 | J139: -0.07 | K139: 1.83
A140: 1468 昶和 | B140: M14C 成衣 | C140: M14C2 織布 | D140: 1.39 | E140: 6.83 | F140: -38.27 | G140: 3.81 | H140: 5.96 | I140: 4.88 | J140: -4.42 | K140: -8.32
A141: 1470 大統新創 | B141: M14E 染整 | C141: M14E 染整 | D141: -15.47 | E141: 9.98 | F141: 9.37 | G141: 10.11 | H141: 10.52 | I141: 12.05 | J141: 10.85 | K141: 7.48
A142: 1471 首利 | B142: M23D 電子零組件 | C142: M23D3 電源供應器 | D142: -15.83 | E142: -37.74 | F142: -18.89 | G142: -42.5 | H142: -64.34 | I142: -21.02 | J142: -20.16 | K142: -24.53
A143: 1472 三洋紡 | B143: M14A 人纖 | C143: M14A7 尼龍絲 | D143: -81.84 | E143: -93.17 | F143: -21.49 | G143: -20.6 | H143: 229.82 | I143: -47.33 | J143: -6.57 | K143: -5.05
A144: 1473 台南 | B144: M14C 成衣 | C144: M14C1 成衣製造 | D144: -12.15 | E144: 0.56 | F144: -3.19 | G144: 1.4 | H144: -1.18 | I144: 5.44 | J144: 2.76 | K144: 3.98
A145: 1474 弘裕 | B145: M14C 成衣 | C145: M14C2 織布 | D145: 0.23 | E145: 1.45 | F145: 1.61 | G145: 1.37 | H145: -0.97 | I145: -1.85 | J145: 0.34 | K145: 2.89
A146: 1475 本盟 | B146: M14C 成衣 | C146: M14C2 織布 | D146: -1.83 | E146: -40.72 | F146: -33.53 | G146: -34.63 | H146: -39.06 | I146: -72.83 | J146: -190.29 | K146: -185.18
A147: 1476 儒鴻 | B147: M14C 成衣 | C147: M14C1 成衣製造 | D147: 16.37 | E147: 15.35 | F147: 19.08 | G147: 20.78 | H147: 20.01 | I147: 17.76 | J147: 19.91 | K147: 19.72
A148: 1477 聚陽 | B148: M14C 成衣 | C148: M14C1 成衣製造 | D148: 9.38 | E148: 9.72 | F148: 9.16 | G148: 9.93 | H148: 7.97 | I148: 9.55 | J148: 8.52 | K148: 9.11
A149: 1480 東盟開發 | B149: M20A 金屬基本 | C149: M20A6 不銹鋼
A150: 1489 日南紡織 | B150: M14B 棉紡 | C150: M14B1 聚酯紗棉紗
A151: 1503 士電 | B151: M15B 電機製品 | C151: M15B1 電機 | D151: 8.37 | E151: 10.34 | F151: 4.94 | G151: 7.73 | H151: 7.47 | I151: 8.48 | J151: 3.96 | K151: 6.82
A152: 1504 東元 | B152: M15B 電機製品 | C152: M15B1 電機 | D152: 10.27 | E152: 7.58 | F152: 5.48 | G152: 8.08 | H152: 8.07 | I152: 7.91 | J152: 6.55 | K152: 7.33
A153: 1506 正道 | B153: M15D 汽車組件 | C153: M15D 汽車組件 | D153: -29.52 | E153: -23.92 | F153: -40.68 | G153: -26.92 | H153: -15.56 | I153: -14.34 | J153: -43.84 | K153: -9.09
A154: 1507 永大 | B154: M15B 電機製品 | C154: M15B1 電機 | D154: 9.52 | E154: 8.19 | F154: 7.1 | G154: 7.33 | H154: 3.64 | I154: 6.45 | J154: 3.98 | K154: 5.93
A155: 1512 瑞利 | B155: M15D 汽車組件 | C155: M15D 汽車組件 | D155: -20.62 | E155: -9.27 | F155: -19.52 | G155: -12.9 | H155: 0.57 | I155: -12.2 | J155: -7.38 | K155: -6.05
A156: 1513 中興電 | B156: M15B 電機製品 | C156: M15B1 電機 | D156: 8.32 | E156: 7.98 | F156: 4.66 | G156: 7.92 | H156: 4.9 | I156: 3.46 | J156: 4.75 | K156: 3.89
A157: 1514 亞力 | B157: M15B 電機製品 | C157: M15B1 電機 | D157: 8.61 | E157: 7.34 | F157: 4 | G157: 7.52 | H157: 5.96 | I157: 6.04 | J157: 4.37 | K157: 3.61
A158: 1515 力山 | B158: M15A 機械業 | C158: M15A1 工具機 | D158: 10.23 | E158: 6.74 | F158: 12.14 | G158: 9.69 | H158: 4.36 | I158: 7.67 | J158: 16.24 | K158: 6.37
A159: 1516 川飛 | B159: M99Z 其他 | C159: M99ZC 其他製造業 | D159: 4.99 | E159: 2.98 | F159: 2.26 | G159: 1.95 | H159: 2.57 | I159: -0.43 | J159: 1.16 | K159: 2.27
A160: 1517 利奇 | B160: M15E 自行車組件 | C160: M15E 自行車組件 | D160: 1.88 | E160: -9.04 | F160: -2.16 | G160: -3.46 | H160: -4.93 | I160: -0.43 | J160: -7.68 | K160: -1.05
A161: 1519 華城 | B161: M15B 電機製品 | C161: M15B1 電機 | D161: 7.81 | E161: 0.31 | F161: 7.68 | G161: 7.35 | H161: -4.36 | I161: 4.69 | J161: 8.09 | K161: 3.26
A162: 1521 大億 | B162: M15D 汽車組件 | C162: M15D 汽車組件 | D162: -3.77 | E162: 5.36 | F162: 4.09 | G162: 6.45 | H162: 9.21 | I162: 10.27 | J162: 3.64 | K162: 2.8
A163: 1522 堤維西 | B163: M15D 汽車組件 | C163: M15D 汽車組件 | D163: -0.82 | E163: 3.23 | F163: 5.48 | G163: 6.14 | H163: 6.08 | I163: 6.35 | J163: 2.46 | K163: 2.6
A164: 1524 耿鼎 | B164: M15D 汽車組件 | C164: M15D 汽車組件 | D164: -5.41 | E164: 6.02 | F164: 9.76 | G164: 7.98 | H164: 9.88 | I164: 8.4 | J164: 10.37 | K164: 10.69
A165: 1525 江申 | B165: M15D 汽車組件 | C165: M15D 汽車組件 | D165: 1.91 | E165: -3.91 | F165: 2.47 | G165: -2.36 | H165: 4.15 | I165: 3.6 | J165: 4.71 | K165: 0.29
A166: 1526 日馳 | B166: M15E 自行車組件 | C166: M15E 自行車組件 | D166: 2.61 | E166: 11.74 | F166: 11.34 | G166: 8.71 | H166: 12.61 | I166: 5.54 | J166: 7.58 | K166: 13.98
A167: 1527 鑽全 | B167: M15A 機械業 | C167: M15A1 工具機 | D167: 13.58 | E167: 17.02 | F167: 14.74 | G167: 17.31 | H167: 16.62 | I167: 17.67 | J167: 18.11 | K167: 19.42
A168: 1528 恩德 | B168: M15A 機械業 | C168: M15A1 工具機 | D168: -6.19 | E168: 0.42 | F168: -10.64 | G168: -2.94 | H168: -7.4 | I168: -6.1 | J168: -1.08 | K168: 3.31
A169: 1529 樂士 | B169: M15B 電機製品 | C169: M15B1 電機 | D169: 5.15 | E169: 5.62 | F169: 7.04 | G169: 3.56 | H169: 2.53 | I169: -0.11 | J169: 7.25 | K169: 2.69
A170: 1530 亞崴 | B170: M15A 機械業 | C170: M15A1 工具機 | D170: 4.85 | E170: -2.83 | F170: 0.37 | G170: 4.78 | H170: 8.86 | I170: 8.8 | J170: 2.63 | K170: 8.03
A171: 1531 高林股 | B171: M15A 機械業 | C171: M15A3 紡織工具機 | D171: -11.36 | E171: -11.83 | F171: -2.95 | G171: 3.58 | H171: -1.72 | I171: 4 | J171: 5.28 | K171: 9.31
A172: 1532 勤美 | B172: M15A 機械業 | C172: M15A2 模具零件 | D172: 6.82 | E172: 0.57 | F172: 7.07 | G172: 3.54 | H172: 9.07 | I172: 9.6 | J172: 15.05 | K172: 19.28
A173: 1533 車王電 | B173: M15D 汽車組件 | C173: M15D 汽車組件 | D173: -5.54 | E173: -0.68 | F173: 3.74 | G173: 3.53 | H173: 8.99 | I173: 6.73 | J173: 13.05 | K173: 4.92
A174: 1535 中宇 | B174: M15B 電機製品 | C174: M15B2 機電工程 | D174: 0.42 | E174: 0.8 | F174: 0.55 | G174: 0.51 | H174: 0.47 | I174: -0.05 | J174: -0.39 | K174: -0.93
A175: 1536 和大 | B175: M15D 汽車組件 | C175: M15D 汽車組件 | D175: -1.23 | E175: 11.53 | F175: 12.22 | G175: 14.04 | H175: 13.4 | I175: 15.17 | J175: 16.77 | K175: 19.02
A176: 1537 廣隆 | B176: M23D 電子零組件 | C176: M23D7 3C二次電池 | D176: 16.6 | E176: 14.7 | F176: 17.87 | G176: 15.81 | H176: 16.02 | I176: 16.49 | J176: 13.54 | K176: 16.72
A177: 1538 正峰 | B177: M15A 機械業 | C177: M15A1 工具機 | D177: -23.61 | E177: -49.06 | F177: -41.04 | G177: -22.3 | H177: -14.42 | I177: -36.57 | J177: -18.57 | K177: -29.01
A178: 1539 巨庭 | B178: M15A 機械業 | C178: M15A1 工具機 | D178: 6.51 | E178: 4.18 | F178: 4.44 | G178: 7.63 | H178: 6.02 | I178: 6.5 | J178: 0.93 | K178: 5.49
A179: 1540 喬福 | B179: M15A 機械業 | C179: M15A1 工具機 | D179: -51.89 | E179: 3.04 | F179: 8.83 | G179: 18.58 | H179: 24.07 | I179: 19.11 | J179: 9.33 | K179: 19.81
A180: 1541 錩泰 | B180: M15A 機械業 | C180: M15A1 工具機 | D180: 14.06 | E180: 12.45 | F180: 9.35 | G180: 11.3 | H180: 11.88 | I180: 5.94 | J180: -6.46 | K180: 4.46
A181: 1550 台全電機 | B181: M15D 汽車組件 | C181: M15D 汽車組件
A182: 1557 金豐 | B182: M15A 機械業 | C182: M15A1 工具機 | D182: 2.97 | F182: 7.84 | H182: 3.89 | J182: 9.16
A183: 1558 伸興 | B183: M15A 機械業 | C183: M15A3 紡織工具機 | D183: 16.71 | E183: 9.13 | F183: 12.47 | G183: 18.12 | H183: 14.75 | I183: 8.86 | J183: 12.08 | K183: 20.48
A184: 1560 中砂 | B184: M15A 機械業 | C184: M15A2 模具零件 | D184: 14.42 | E184: 13.25 | F184: 17.45 | G184: 14.95 | H184: 10.67 | I184: 12.19 | J184: 12.55 | K184: 14.73
A185: 1563 巧新 | B185: M15D 汽車組件 | C185: M15D 汽車組件 | D185: -11.55 | F185: 12.05 | H185: 13.54 | J185: 15.03
A186: 1565 精華 | B186: M17G 醫療耗材 | C186: M17G 醫療耗材 | D186: 18.18 | E186: 22.86 | F186: 27.34 | G186: 23.49 | H186: 24.02 | I186: 29.03 | J186: 30.06 | K186: 31.02
A187: 1568 倉佑 | B187: M15D 汽車組件 | C187: M15D 汽車組件 | D187: -5.06 | E187: -6.52 | F187: 3.36 | G187: -2.37 | H187: 2.11 | I187: 2.61 | J187: 0.38 | K187: 2.52
A188: 1569 濱川 | B188: M23D 電子零組件 | C188: M23D9A 沖壓零組件 | D188: 14.37 | E188: 4.58 | F188: 10.77 | G188: 3.9 | H188: 3.03 | I188: 4.29 | J188: 7.93 | K188: 5.64
A189: 1570 力肯 | B189: M15A 機械業 | C189: M15A1 工具機 | D189: 11.94 | E189: 15.86 | F189: 15.04 | G189: 16.82 | H189: 15.81 | I189: 8.14 | J189: 14.81 | K189: 17.63
A190: 1580 新麥 | B190: M15Z 其他電製品 | C190: M15Z 其他電製品 | D190: 10.54 | E190: 7.35 | F190: 17.16 | G190: 17.97 | H190: 14.59 | I190: 12.97 | J190: 16.45 | K190: 16.57
A191: 1582 信錦 | B191: M23D 電子零組件 | C191: M23D4 機殼 | D191: 18.92 | E191: 12.81 | F191: 17.27 | G191: 15.28 | H191: 13.93 | I191: 12.81 | J191: 14.7 | K191: 14.71
A192: 1583 程泰 | B192: M15A 機械業 | C192: M15A1 工具機 | D192: 5.23 | E192: -3.62 | F192: 4.02 | G192: 7.06 | H192: 9.46 | I192: 9.69 | J192: 5.68 | K192: 10.23
A193: 1584 精剛 | B193: M20A 金屬基本 | C193: M20A6 不銹鋼 | D193: -5.11 | E193: -3.1 | F193: -7.1 | G193: -3.94 | H193: -6.28 | I193: -5.38 | J193: -12.37 | K193: -5.66
A194: 1585 鎧鉅 | B194: M23B 主機板 | C194: M23B3X PCB上-其他 | D194: -166.88 | F194: -63.82 | H194: -42.9 | J194: -49.86
A195: 1586 和勤 | B195: M23D 電子零組件 | C195: M23D9A 沖壓零組件 | D195: 10.78 | E195: 4.99 | F195: 9.1 | G195: 0.69 | H195: 5.27 | I195: -6.3 | J195: 3.21 | K195: 10.01
A196: 1587 吉茂 | B196: M15D 汽車組件 | C196: M15D 汽車組件 | D196: 4.28 | E196: 0.88 | F196: 2.13 | G196: 0.42 | H196: 2.26 | I196: 1.92 | J196: 8.9 | K196: 5.01
A197: 1589 永冠-KY | B197: M15A 機械業 | C197: M15A2 模具零件 | D197: 7.23 | E197: -9.85 | F197: 4.4 | G197: 4.83 | H197: 2.45 | I197: -2.44 | J197: -1.7 | K197: -2.78
A198: 1590 亞德客-KY | B198: M15A 機械業 | C198: M15A2 模具零件 | D198: 34.42 | E198: 21.94 | F198: 26.19 | G198: 24.85 | H198: 26.95 | I198: 22.79 | J198: 22.49 | K198: 24.29
A199: 1591 駿吉-KY | B199: M15A 機械業 | C199: M15A1 工具機 | D199: 4.3 | E199: -3.98 | F199: -16.53 | G199: -6.34 | H199: 5.51 | I199: 3.71 | J199: 7 | K199: 9.62
A200: 1592 英瑞-KY | B200: M15D 汽車組件 | C200: M15D 汽車組件 | D200: -11.41 | E200: -12.51 | F200: -10.82 | G200: 2.95 | H200: -6.38 | I200: -16.6 | J200: -15.95 | K200: -8.6
... 2288 more rows

Sheet Gross Margin (hidden)
B1: TEJ產業名 | C1: TEJ子產業名 | D1: 營業毛利率 | E1: 營業毛利率 | F1: 營業毛利率 | G1: 營業毛利率 | H1: 營業毛利率 | I1: 營業毛利率 | J1: 營業毛利率 | K1: 營業毛利率
A2: 公司 | D2: 2020-06-30 | E2: 2020-03-31 | F2: 2019-12-31 | G2: 2019-09-27 | H2: 2019-06-28 | I2: 2019-03-29 | J2: 2018-12-28 | K2: 2018-09-28
A3: 000104 臺銀證券 | B3: M30A 證券 | C3: M30A 證券 | F3: 91.18 | H3: 91.36 | J3: 89.62
A4: 000116 日盛證券 | B4: M30A 證券 | C4: M30A 證券 | D4: 89.89 | E4: 81.34 | F4: 84.49 | G4: 85.64 | H4: 82.79 | I4: 85.01 | J4: 82.41 | K4: 88.26
A5: 000218 亞東證券 | B5: M30A 證券 | C5: M30A 證券
A6: 000511 富隆證券 | B6: M30A 證券 | C6: M30A 證券
A7: 000532 高橋證券 | B7: M30A 證券 | C7: M30A 證券 | D7: 94.44
A8: 000538 第一金證 | B8: M30A 證券 | C8: M30A 證券 | E8: 82.46 | F8: 91.06 | G8: 91.46 | H8: 88.84 | I8: 90.79 | J8: 84.54 | K8: 89.33
A9: 000546 寶盛證券 | B9: M30A 證券 | C9: M30A 證券
A10: 000560 永興證券 | B10: M30A 證券 | C10: M30A 證券
A11: 000587 光隆證券 | B11: M30A 證券 | C11: M30A 證券
A12: 000601 奔亞證券 | B12: M30A 證券 | C12: M30A 證券
A13: 000616 中信證券 | B13: M30A 證券 | C13: M30A 證券 | E13: -56.41 | F13: 89.54 | G13: 90.68 | H13: 87.65 | I13: 89.39 | J13: 81.34 | K13: 84.58
A14: 000638 光和證券 | B14: M30A 證券 | C14: M30A 證券
A15: 000646 大昌證券 | B15: M30A 證券 | C15: M30A 證券
A16: 000695 福勝證券 | B16: M30A 證券 | C16: M30A 證券
A17: 000700 兆豐證券 | B17: M30A 證券 | C17: M30A 證券 | E17: 74 | F17: 88.6 | G17: 89.11 | H17: 86.78 | I17: 86.44 | J17: 77.9 | K17: 84.95
A18: 000708 石橋證券 | B18: M30A 證券 | C18: M30A 證券 | D18: 94.54
A19: 000775 北城證券 | B19: M30A 證券 | C19: M30A 證券
A20: 000779 國票證券 | B20: M30A 證券 | C20: M30A 證券 | E20: 83.03 | F20: 87.84 | G20: 88.21 | H20: 85.83 | I20: 87.35 | J20: 82.05 | K20: 86.48
A21: 000815 台新證券 | B21: M30A 證券 | C21: M30A 證券 | E21: 8.06 | F21: 90.44 | G21: 87.28 | H21: 86 | I21: 89.8 | J21: 72.23 | K21: 78.89
A22: 000838 安泰證券 | B22: M30A 證券 | C22: M30A 證券
A23: 000856 新光證券 | B23: M30A 證券 | C23: M30A 證券
A24: 000888 國泰證券 | B24: M30A 證券 | C24: M30A 證券 | E24: 89.48 | F24: 91.33 | G24: 88.28 | H24: 91.09 | I24: 89.91 | J24: 88.43 | K24: 85.37
A25: 000930 華南永昌證券 | B25: M30A 證券 | C25: M30A 證券 | F25: 89.05 | G25: 88.75 | H25: 86.75 | I25: 88.26 | J25: 80.76 | K25: 85.68
A26: 000960 富邦證券 | B26: M30A 證券 | C26: M30A 證券 | E26: 80.88 | F26: 70.11 | G26: 87.4 | H26: 87.42 | I26: 88.72 | J26: 82.11 | K26: 88.02
A27: 000980 元大證券 | B27: M30A 證券 | C27: M30A 證券 | D27: 86.54 | E27: 80.65 | F27: 80.52 | G27: 79.11 | H27: 78.12 | I27: 78.98 | J27: 79.01 | K27: 80.31
A28: 0009A0 永豐金證券 | B28: M30A 證券 | C28: M30A 證券 | E28: 76.56 | F28: 83.01 | G28: 82.85 | H28: 79.71 | I28: 80.98 | J28: 73.06 | K28: 77.25
A29: 1101 台泥 | B29: M11A 水泥製造 | C29: M11A 水泥製造 | D29: 35.71 | E29: 26.3 | F29: 29.47 | G29: 31.52 | H29: 29.72 | I29: 25.59 | J29: 25.55 | K29: 26.76
A30: 1102 亞泥 | B30: M11A 水泥製造 | C30: M11A 水泥製造 | D30: 32.07 | E30: 20.16 | F30: 27.69 | G30: 24.8 | H30: 30.85 | I30: 23.67 | J30: 27.91 | K30: 25.12
A31: 1103 嘉泥 | B31: M11A 水泥製造 | C31: M11A 水泥製造 | D31: -0.62 | E31: -3.93 | F31: 7.37 | G31: 8.79 | H31: 12.19 | I31: 14.42 | J31: 11.56 | K31: 15.1
A32: 1104 環泥 | B32: M11A 水泥製造 | C32: M11A 水泥製造 | D32: 16.84 | E32: 13.44 | F32: 15.2 | G32: 11.52 | H32: 10.43 | I32: 8.96 | J32: 12.33 | K32: 12.49
A33: 1108 幸福 | B33: M11A 水泥製造 | C33: M11A 水泥製造 | D33: 18.75 | E33: 16.55 | F33: 10.52 | G33: 9.67 | H33: 7.78 | I33: 3.2 | J33: -2.62 | K33: 0.93
A34: 1109 信大 | B34: M11A 水泥製造 | C34: M11A 水泥製造 | D34: 36.18 | E34: 27.72 | F34: 34.35 | G34: 33.92 | H34: 34.54 | I34: 28.62 | J34: 37.44 | K34: 32.43
A35: 1110 東泥 | B35: M11A 水泥製造 | C35: M11A 水泥製造 | D35: 3.04 | E35: 2.28 | F35: 6.94 | G35: 4.8 | H35: -0.21 | I35: 8.38 | J35: 10.07 | K35: 6.8
A36: 1111 欣欣水泥 | B36: M11A 水泥製造 | C36: M11A 水泥製造
A37: 1201 味全 | B37: M12C 飲料乳品 | C37: M12C 飲料乳品 | D37: 28.81 | E37: 28.07 | F37: 27.5 | G37: 32.64 | H37: 30.7 | I37: 29.73 | J37: 29.8 | K37: 33.53
A38: 1203 味王 | B38: M12Z 其他食品 | C38: M12Z 其他食品 | D38: 32.63 | E38: 34.39 | F38: 31.65 | G38: 30.36 | H38: 32.07 | I38: 31.21 | J38: 31.9 | K38: 32.21
A39: 1210 大成 | B39: M12B 油脂飼料 | C39: M12B 油脂飼料 | D39: 15.1 | E39: 14.78 | F39: 14.59 | G39: 16.27 | H39: 14.87 | I39: 14.6 | J39: 13.17 | K39: 14.1
A40: 1213 大飲 | B40: M12C 飲料乳品 | C40: M12C 飲料乳品 | D40: -5.1 | E40: -2.53 | F40: 7.11 | G40: 2.84 | H40: 3 | I40: 11.2 | J40: 10.66 | K40: 6.52
A41: 1215 卜蜂 | B41: M12B 油脂飼料 | C41: M12B 油脂飼料 | D41: 16.7 | E41: 11.79 | F41: 12.35 | G41: 14.37 | H41: 16.19 | I41: 14.35 | J41: 14.87 | K41: 12.54
A42: 1216 統一 | B42: M12C 飲料乳品 | C42: M12C 飲料乳品 | D42: 35.13 | E42: 34.28 | F42: 32.2 | G42: 35.26 | H42: 35.37 | I42: 34.42 | J42: 32.28 | K42: 34.1
A43: 1217 愛之味 | B43: M12A 罐頭加工 | C43: M12A 罐頭加工 | D43: 35.17 | E43: 32.19 | F43: 28.58 | G43: 32.09 | H43: 33.82 | I43: 30.92 | J43: 27.9 | K43: 32.62
A44: 1218 泰山 | B44: M12B 油脂飼料 | C44: M12B 油脂飼料 | D44: 20.11 | E44: 18.1 | F44: 15.45 | G44: 20.67 | H44: 17.77 | I44: 18.13 | J44: 16.5 | K44: 20
A45: 1219 福壽 | B45: M12B 油脂飼料 | C45: M12B 油脂飼料 | D45: 10.31 | E45: 9.17 | F45: 7.63 | G45: 8.38 | H45: 7.64 | I45: 8.88 | J45: 6.49 | K45: 3.1
A46: 1220 台榮 | B46: M12B 油脂飼料 | C46: M12B 油脂飼料 | D46: 14.06 | E46: 16.61 | F46: 13.65 | G46: 16.09 | H46: 14.85 | I46: 11.12 | J46: 11.31 | K46: 10.95
A47: 1225 福懋油 | B47: M12B 油脂飼料 | C47: M12B 油脂飼料 | D47: 9.05 | E47: 9.52 | F47: 9.96 | G47: 9.37 | H47: 8.91 | I47: 9.8 | J47: 9.25 | K47: 5
A48: 1227 佳格 | B48: M12Z 其他食品 | C48: M12Z 其他食品 | D48: 31.01 | E48: 28.41 | F48: 29.42 | G48: 33.04 | H48: 30.51 | I48: 30.47 | J48: 28.9 | K48: 32.61
A49: 1229 聯華 | B49: M12B 油脂飼料 | C49: M12B 油脂飼料 | D49: 34.81 | E49: 17.49 | F49: 16.24 | G49: 35.66 | H49: 16.09 | I49: 16.38 | J49: 16.42 | K49: 15.96
A50: 1231 聯華食 | B50: M12Z 其他食品 | C50: M12Z 其他食品 | D50: 20.11 | E50: 20.49 | F50: 24.79 | G50: 20.55 | H50: 20.02 | I50: 20.94 | J50: 23.33 | K50: 22.96
A51: 1232 大統益 | B51: M12B 油脂飼料 | C51: M12B 油脂飼料 | D51: 12.99 | E51: 12.85 | F51: 11.42 | G51: 11.15 | H51: 10.92 | I51: 13.65 | J51: 12.53 | K51: 10
A52: 1233 天仁 | B52: M12Z 其他食品 | C52: M12Z 其他食品 | D52: 56.3 | E52: 56.92 | F52: 57.75 | G52: 57.71 | H52: 57.22 | I52: 58.84 | J52: 56.78 | K52: 56.54
A53: 1234 黑松 | B53: M12C 飲料乳品 | C53: M12C 飲料乳品 | D53: 29.49 | E53: 22.32 | F53: 26.95 | G53: 31.49 | H53: 26.92 | I53: 20.81 | J53: 12.88 | K53: 31.12
A54: 1235 興泰 | B54: M12B 油脂飼料 | C54: M12B 油脂飼料 | D54: 16.11 | E54: -17.27 | F54: 35.12 | G54: 73.14 | H54: 11.78 | I54: 1.9 | J54: -4.7 | K54: 74.2
A55: 1236 宏亞 | B55: M12Z 其他食品 | C55: M12Z 其他食品 | D55: 18.51 | E55: 29.07 | F55: 30.3 | G55: 30.29 | H55: 19.47 | I55: 24.77 | J55: 33.53 | K55: 23.28
A56: 1237 台糖 | B56: M12Z 其他食品 | C56: M12Z 其他食品
A57: 1240 茂生農經 | B57: M12B 油脂飼料 | C57: M12B 油脂飼料 | D57: 16.76 | E57: 14.68 | F57: 12.72 | G57: 12.91 | H57: 18.67 | I57: 15.3 | J57: 13.69 | K57: 7.74
A58: 1242 新東陽 | B58: M12A 罐頭加工 | C58: M12A 罐頭加工
A59: 1246 中聯油脂 | B59: M12B 油脂飼料 | C59: M12B 油脂飼料
A60: 1256 鮮活果汁-KY | B60: M12C 飲料乳品 | C60: M12C 飲料乳品 | D60: 45.67 | E60: 34.42 | F60: 37.92 | G60: 39.56 | H60: 39.55 | I60: 35.96 | J60: 35.72 | K60: 38.01
A61: 1258 其祥-KY | B61: M12Z 其他食品 | C61: M12Z 其他食品 | D61: 19.25 | E61: 8.1 | F61: 8.27 | G61: 16.61 | H61: 5.85 | I61: 14.61 | J61: 11.13 | K61: 6.65
A62: 1259 安心 | B62: M27A 餐飲飯店 | C62: M27A2 餐飲業 | D62: 26.58 | E62: 24.35 | F62: 25.04 | G62: 27.33 | H62: 26.64 | I62: 24.61 | J62: 25.39 | K62: 26.07
A63: 1260 富味鄉 | B63: M12B 油脂飼料 | C63: M12B 油脂飼料 | D63: 10.5 | F63: 12.76 | H63: 14.27 | J63: 18.48
A64: 1264 德麥 | B64: M12Z 其他食品 | C64: M12Z 其他食品 | D64: 34.56 | E64: 36.2 | F64: 37.49 | G64: 37 | H64: 37.72 | I64: 36.49 | J64: 37.02 | K64: 36.82
A65: 1267 京華堂 | B65: M12Z 其他食品 | C65: M12Z 其他食品
A66: 1268 漢來美食 | B66: M27A 餐飲飯店 | C66: M27A2 餐飲業 | D66: 37.58 | E66: 42.21 | F66: 44.29 | G66: 42.4 | H66: 43.3 | I66: 46.2 | J66: 43.57 | K66: 42.06
A67: 1269 乾杯 | B67: M27A 餐飲飯店 | C67: M27A2 餐飲業 | D67: 49.25 | F67: 59.31 | H67: 49.19 | I67: 56.6 | J67: 52.96
A68: 1271 晨暉生技 | B68: M17C 藥 | C68: M17C2 機能性食品
A69: 1293 利統 | B69: M12Z 其他食品 | C69: M12Z 其他食品
A70: 1301 台塑 | B70: M13A 石化 | C70: M13A1 泛用塑膠 | D70: 12.29 | E70: 12.62 | F70: 11.52 | G70: 15.59 | H70: 18.77 | I70: 15.37 | J70: 14.2 | K70: 14.7
A71: 1303 南亞 | B71: M13A 石化 | C71: M13A1 泛用塑膠 | D71: 12.63 | E71: 11.48 | F71: 11.4 | G71: 9.22 | H71: 9.5 | I71: 9.19 | J71: 11.15 | K71: 14.89
A72: 1304 台聚 | B72: M13A 石化 | C72: M13A1 泛用塑膠 | D72: 13.89 | E72: 16.2 | F72: 14.21 | G72: 11.79 | H72: 10.89 | I72: 11.56 | J72: 5.68 | K72: 7.93
A73: 1305 華夏 | B73: M13A 石化 | C73: M13A1 泛用塑膠 | D73: 4.97 | E73: 20.06 | F73: 17.29 | G73: 13.69 | H73: 8.17 | I73: 13.9 | J73: 10.21 | K73: 15.4
A74: 1307 三芳 | B74: M13A 石化 | C74: M13A6 合成皮 | D74: 13.56 | E74: 23.05 | F74: 25.77 | G74: 23.24 | H74: 23.11 | I74: 20.17 | J74: 20.67 | K74: 17.76
A75: 1308 亞聚 | B75: M13A 石化 | C75: M13A1 泛用塑膠 | D75: 14.97 | E75: 17.96 | F75: 20.95 | G75: 14.88 | H75: 14.65 | I75: 10.35 | J75: 5.42 | K75: 2.67
A76: 1309 台達化 | B76: M13A 石化 | C76: M13A1 泛用塑膠 | D76: 16.62 | E76: 10.65 | F76: 7.54 | G76: 4.53 | H76: 7.52 | I76: 8.55 | J76: -0.09 | K76: 3.54
A77: 1310 台苯 | B77: M13A 石化 | C77: M13A1 泛用塑膠 | D77: 5.53 | E77: -17.68 | F77: 1.63 | G77: 13.15 | H77: 14.39 | I77: 15.26 | J77: 4.05 | K77: 17.18
A78: 1312 國喬 | B78: M13A 石化 | C78: M13A1 泛用塑膠 | D78: 17.35 | E78: 3.7 | F78: 8.2 | G78: 12.47 | H78: 16.6 | I78: 13.81 | J78: 10.61 | K78: 18.86
A79: 1313 聯成 | B79: M13A 石化 | C79: M13A7 可塑劑 | D79: 11.53 | E79: -6.51 | F79: 4.2 | G79: 5.63 | H79: 1.72 | I79: 1.58 | J79: 3.68 | K79: 5.21
A80: 1314 中石化 | B80: M13A 石化 | C80: M13A5 化纖 | D80: -7.04 | E80: 4.65 | F80: -2.11 | G80: 6.35 | H80: 11.05 | I80: 3.78 | J80: 8.54 | K80: 16.39
A81: 1315 達新 | B81: M13A 石化 | C81: M13A8 塑膠加工 | D81: 15.74 | E81: 16.91 | F81: 13.57 | G81: 17.76 | H81: 18.55 | I81: 16.05 | J81: 13.55 | K81: 18.02
A82: 1316 上曜 | B82: M25A 建設 | C82: M25A 建設 | D82: 4.97 | E82: 31.54 | F82: 22.28 | G82: 11 | H82: 13.13 | I82: 9.72 | J82: 8.04 | K82: 19.25
A83: 1319 東陽 | B83: M15D 汽車組件 | C83: M15D 汽車組件 | D83: 8.63 | E83: 25.9 | F83: 25.41 | G83: 25.01 | H83: 25.15 | I83: 24.37 | J83: 23.85 | K83: 22.52
A84: 1321 大洋 | B84: M13A 石化 | C84: M13A8 塑膠加工 | D84: 13.16 | E84: 5.01 | F84: 3.18 | G84: 4.9 | H84: 4.66 | I84: 5.36 | J84: 3.56 | K84: 4.63
A85: 1323 永裕 | B85: M13A 石化 | C85: M13A8 塑膠加工 | D85: 26.47 | E85: 26.37 | F85: 25.58 | G85: 24.39 | H85: 24.2 | I85: 21.06 | J85: 23.09 | K85: 23.84
A86: 1324 地球 | B86: M13A 石化 | C86: M13A9 膠帶 | D86: 17.42 | E86: 17.15 | F86: 16.3 | G86: 15.85 | H86: 18.34 | I86: 14.66 | J86: 13.58 | K86: 16.13
A87: 1325 恒大 | B87: M14F 不織布 | C87: M14F 不織布 | D87: 68.8 | E87: 43.1 | F87: 14.07 | G87: 7.96 | H87: 10.11 | I87: 11.35 | J87: 10.42 | K87: 11
A88: 1326 台化 | B88: M13A 石化 | C88: M13A1 泛用塑膠 | D88: 10.62 | E88: 2.63 | F88: 6.23 | G88: 8.33 | H88: 11.03 | I88: 13.72 | J88: 8.02 | K88: 14.39
A89: 1328 中油 | B89: M13C 輕油製解 | C89: M13C 輕油製解
A90: 1333 恩得利 | B90: M23D 電子零組件 | C90: M23D2 連接器 | G90: 25.84 | H90: 23.81 | I90: 27.82 | J90: 20.82 | K90: 23.65
A91: 1336 台翰 | B91: M23D 電子零組件 | C91: M23D4 機殼 | D91: 10.08 | E91: 13.03 | F91: 18 | G91: 16.26 | H91: 13.92 | I91: 12.49 | J91: 15.81 | K91: 16.52
A92: 1337 再生-KY | B92: M13B 塑膠製品 | C92: M13B 塑膠製品 | D92: -24.47 | E92: -22.77 | F92: -5.82 | G92: -21.71 | H92: -35.06 | I92: -25.46 | J92: -156.29 | K92: -13.94
A93: 1338 廣華-KY | B93: M15D 汽車組件 | C93: M15D 汽車組件 | D93: 16.54 | E93: 20.67 | F93: 25.87 | G93: 25.35 | H93: 25.86 | I93: 25.59 | J93: 25.76 | K93: 23.22
A94: 1339 昭輝 | B94: M15D 汽車組件 | C94: M15D 汽車組件 | D94: 26.91 | E94: 31.55 | F94: 33.12 | G94: 30.25 | H94: 32.36 | I94: 25.18 | J94: 31.34 | K94: 18
A95: 1340 勝悅-KY | B95: M13B 塑膠製品 | C95: M13B 塑膠製品 | D95: -32.85 | E95: -70.55 | F95: -29.2 | G95: -31.01 | H95: -13.18 | I95: -5.56 | J95: -2.26 | K95: 14.68
A96: 1341 富林-KY | B96: M13A 石化 | C96: M13A6 合成皮 | D96: 16.28 | E96: 22.24 | F96: 20.86 | G96: 21.53 | H96: 21.17 | I96: 19.07 | J96: 19.54 | K96: 16.17
A97: 1342 八貫 | B97: M13B 塑膠製品 | C97: M13B 塑膠製品 | D97: 20.38 | E97: 26.31 | F97: 24.65 | H97: 27.76 | I97: 22.02 | J97: 24.96
A98: 1343 旭東 | B98: M13B 塑膠製品 | C98: M13B 塑膠製品
A99: 1402 遠東新 | B99: M14A 人纖 | C99: M14A1 聚酯絲棉 | D99: 19.64 | E99: 18.19 | F99: 16.28 | G99: 18.73 | H99: 18.86 | I99: 17.56 | J99: 14.83 | K99: 19.84
A100: 1408 中紡 | B100: M14A 人纖 | C100: M14A1 聚酯絲棉 | D100: 9.08 | F100: 11.19 | H100: 13.4 | J100: 9.89
A101: 1409 新纖 | B101: M14A 人纖 | C101: M14A1 聚酯絲棉 | D101: 20.59 | E101: 15.43 | F101: 15.6 | G101: 17.22 | H101: 16.14 | I101: 13.65 | J101: 15.06 | K101: 16.83
A102: 1410 南染 | B102: M14E 染整 | C102: M14E 染整 | D102: 34.89 | E102: 35.72 | F102: 39.02 | G102: 33.32 | H102: 36.24 | I102: 35.52 | J102: 37.77 | K102: 38.12
A103: 1413 宏洲 | B103: M14A 人纖 | C103: M14A2 加工絲 | D103: -16.03 | E103: -4.39 | F103: 1.01 | G103: 3.88 | H103: 7.4 | I103: 6.13 | J103: 6.98 | K103: 6.92
A104: 1414 東和 | B104: M14B 棉紡 | C104: M14B1 聚酯紗棉紗 | D104: 14.77 | E104: -0.82 | F104: 1.8 | G104: 0.25 | H104: 3.63 | I104: 1.12 | J104: 5.98 | K104: 9.81
A105: 1416 廣豐 | B105: M29A 百貨批發 | C105: M29A1 百貨購物中 | D105: 67.25 | E105: 87.54 | F105: 95.97 | G105: 99.98 | H105: 77.17 | I105: 99.98 | J105: -2.79 | K105: 78.72
A106: 1417 嘉裕 | B106: M14C 成衣 | C106: M14C1 成衣製造 | D106: 25.01 | E106: 26.46 | F106: 25.41 | G106: 22.87 | H106: 27.57 | I106: 22.13 | J106: 19.42 | K106: 15.63
A107: 1418 東華 | B107: M14B 棉紡 | C107: M14B2 亞克力纖維 | D107: -250.51 | E107: -98.49 | F107: -134.39 | G107: -94.26 | H107: -46.24 | I107: -18.83 | J107: -63.16 | K107: -20.63
A108: 1419 新紡 | B108: M14C 成衣 | C108: M14C2 織布 | D108: 28.88 | E108: 24.8 | F108: 29.49 | G108: 26.51 | H108: 33.44 | I108: 23.84 | J108: 31.09 | K108: 27.46
A109: 1423 利華 | B109: M14D 毛紡 | C109: M14D2 毛紡 | D109: -67.07 | E109: -84.18 | F109: -16.39 | G109: -32.79 | H109: -6.61 | I109: 12.27 | J109: 8.92 | K109: 16.8
A110: 1432 大魯閣 | B110: M29A 百貨批發 | C110: M29A1 百貨購物中 | D110: 90.88 | E110: 89.29 | F110: 88.47 | G110: 85.75 | H110: 85.38 | I110: 82.38 | J110: 84.06 | K110: 57.18
A111: 1434 福懋 | B111: M14C 成衣 | C111: M14C2 織布 | D111: 10.34 | E111: 11.83 | F111: -45.33 | G111: 12.03 | H111: 12.77 | I111: 12.11 | J111: 9.74 | K111: 12.12
A112: 1435 中福 | B112: M23E 網路設備 | C112: M23E1 數據機 | D112: 92.67 | E112: 93.13 | F112: 94.47 | G112: 94.05 | H112: 93.54 | I112: 94.08 | J112: 94.92 | K112: 93.82
A113: 1436 華友聯 | B113: M25A 建設 | C113: M25A 建設 | D113: 29.04 | E113: 28 | F113: 28.48 | G113: 29.69 | H113: 29.29 | I113: 26.07 | J113: 26.32 | K113: 24.84
A114: 1437 勤益控 | B114: M25F 物業管理 | C114: M25F 物業管理 | D114: 70.5 | E114: 81 | F114: 48.23 | G114: 67.78 | H114: 68 | I114: 76.69 | J114: 61.66 | K114: 70.21
A115: 1438 三地開發 | B115: M25A 建設 | C115: M25A 建設 | D115: 73.76 | E115: 63 | F115: 0 | G115: 50 | H115: 0 | I115: -760 | J115: 25 | K115: 40
A116: 1439 中和 | B116: M14D 毛紡 | C116: M14D2 毛紡 | D116: -2.65 | E116: -0.26 | F116: -0.9 | G116: 0.15 | H116: 1.12 | I116: 1.11 | J116: 1.06 | K116: 3.45
A117: 1440 南紡 | B117: M14A 人纖 | C117: M14A1 聚酯絲棉 | D117: 3.93 | E117: 9.76 | F117: 6.61 | G117: 2.53 | H117: 6.97 | I117: 6.07 | J117: 5.4 | K117: 12.69
A118: 1441 大東 | B118: M14B 棉紡 | C118: M14B1 聚酯紗棉紗 | D118: -20.79 | E118: -8.08 | F118: 0.42 | G118: -7.98 | H118: -8.62 | I118: -3.96 | J118: -12.92 | K118: 2.75
A119: 1442 名軒 | B119: M25A 建設 | C119: M25A 建設 | D119: 19.09 | E119: 21.86 | F119: 16.46 | G119: 13.13 | H119: 1.28 | I119: 15.5 | J119: -10.77 | K119: 44.31
A120: 1443 立益 | B120: M14B 棉紡 | C120: M14B1 聚酯紗棉紗 | D120: 27.78 | E120: 21.71 | F120: 26.6 | G120: 27.15 | H120: 25.27 | I120: 25.74 | J120: -6.86 | K120: -3.47
A121: 1444 力麗 | B121: M14A 人纖 | C121: M14A2 加工絲 | D121: 1.96 | E121: 4.1 | F121: 3.88 | G121: 6.03 | H121: 8.53 | I121: 7.92 | J121: 3.78 | K121: 8.21
A122: 1445 大宇 | B122: M14C 成衣 | C122: M14C2 織布 | D122: -14.36 | E122: 9.42 | F122: 5.62 | G122: 1.82 | H122: 5.92 | I122: 6.62 | J122: 5.79 | K122: 5.58
A123: 1446 宏和 | B123: M14C 成衣 | C123: M14C2 織布 | D123: 26.51 | E123: 21.29 | F123: 34.52 | G123: 12.83 | H123: 13.04 | I123: 8.82 | J123: 7.87 | K123: 5.7
A124: 1447 力鵬 | B124: M14A 人纖 | C124: M14A7 尼龍絲 | D124: -0.67 | E124: -2.55 | F124: -0.54 | G124: 4.6 | H124: -0.47 | I124: 6.57 | J124: -9.73 | K124: 4.25
A125: 1449 佳和 | B125: M14C 成衣 | C125: M14C2 織布 | D125: 5.23 | E125: 5.25 | F125: 7.27 | G125: 4.23 | H125: 9.63 | I125: 13.5 | J125: 11.15 | K125: 7.99
A126: 1451 年興 | B126: M14C 成衣 | C126: M14C1 成衣製造 | D126: -14.06 | E126: 1.79 | F126: 3.32 | G126: 6.54 | H126: 4.2 | I126: 6.34 | J126: 8.4 | K126: 13.01
A127: 1452 宏益 | B127: M14A 人纖 | C127: M14A2 加工絲 | D127: -10.36 | E127: 13.84 | F127: 16.93 | G127: 12.12 | H127: 16.04 | I127: 17.34 | J127: 12.36 | K127: 14.76
A128: 1453 大將 | B128: M25A 建設 | C128: M25A 建設 | D128: 27.79 | E128: 1.76 | F128: -91.74 | G128: 100 | H128: 35.85 | I128: 57.38 | J128: 6.65 | K128: -19.79
A129: 1454 台富 | B129: M14C 成衣 | C129: M14C2 織布 | D129: -4.51 | E129: 8.45 | F129: 8.75 | G129: 8.7 | H129: 14.25 | I129: 9.14 | J129: 4.37 | K129: 6.51
A130: 1455 集盛 | B130: M14A 人纖 | C130: M14A7 尼龍絲 | D130: -18.87 | E130: 0.68 | F130: -6.07 | G130: 1.29 | H130: 2.04 | I130: 1.06 | J130: -2.57 | K130: 3.87
A131: 1456 怡華 | B131: M14C 成衣 | C131: M14C2 織布 | D131: 19.47 | E131: 21.56 | F131: 15.33 | G131: 19.63 | H131: 12.41 | I131: 16.05 | J131: 21.92 | K131: 22.36
A132: 1457 宜進 | B132: M14A 人纖 | C132: M14A2 加工絲 | D132: -3.15 | E132: 10 | F132: 45.58 | G132: 11.18 | H132: 12.7 | I132: 11.15 | J132: 12.32 | K132: 12.19
A133: 1459 聯發 | B133: M14A 人纖 | C133: M14A2 加工絲 | D133: -28.88 | E133: 0.27 | F133: -2.18 | G133: -5.11 | H133: 1.68 | I133: 0.02 | J133: -5.16 | K133: 0.5
A134: 1460 宏遠 | B134: M14C 成衣 | C134: M14C2 織布 | D134: 3.72 | E134: 11.1 | F134: 11.47 | G134: 13.08 | H134: 20.8 | I134: 18.01 | J134: 18.29 | K134: 17.78
A135: 1463 強盛 | B135: M14E 染整 | C135: M14E 染整 | D135: -9.59 | E135: 31.62 | F135: 15.5 | G135: 23.77 | H135: 14.3 | I135: 29.24 | J135: 29.14 | K135: 29.57
A136: 1464 得力 | B136: M14C 成衣 | C136: M14C2 織布 | D136: 8.05 | E136: 18.43 | F136: 20.25 | G136: 19.1 | H136: 17.34 | I136: 18.04 | J136: 16.77 | K136: 16.11
A137: 1465 偉全 | B137: M14C 成衣 | C137: M14C2 織布 | D137: 10.31 | E137: 5.89 | F137: -7.26 | G137: 14.28 | H137: 4.86 | I137: 12.88 | K137: 11.72
A138: 1466 聚隆 | B138: M14A 人纖 | C138: M14A7 尼龍絲 | D138: -2.52 | E138: 9.04 | F138: 1.58 | G138: 10.19 | H138: 8.62 | I138: 7.18 | J138: 2.04 | K138: 2.13
A139: 1467 南緯 | B139: M14C 成衣 | C139: M14C1 成衣製造 | D139: 8.85 | E139: 10.48 | F139: 13.49 | G139: 18.52 | H139: 18.79 | I139: 16.5 | J139: 19.1 | K139: 17.92
A140: 1468 昶和 | B140: M14C 成衣 | C140: M14C2 織布 | D140: 14.55 | E140: 18.57 | F140: -32.75 | G140: 13.94 | H140: 19.17 | I140: 20.27 | J140: 10.3 | K140: 10.42
A141: 1470 大統新創 | B141: M14E 染整 | C141: M14E 染整 | D141: 4.79 | E141: 24.4 | F141: 25.84 | G141: 25.79 | H141: 25.36 | I141: 27.79 | J141: 25 | K141: 22.99
A142: 1471 首利 | B142: M23D 電子零組件 | C142: M23D3 電源供應器 | D142: -1.13 | E142: 2.62 | F142: -1.64 | G142: -1 | H142: -20.99 | I142: -3.98 | J142: -7.04 | K142: -4.24
A143: 1472 三洋紡 | B143: M14A 人纖 | C143: M14A7 尼龍絲 | D143: 23.16 | E143: -24.48 | F143: 22.61 | G143: 13.63 | H143: 2.04 | I143: -22.18 | J143: 6.52 | K143: 4.97
A144: 1473 台南 | B144: M14C 成衣 | C144: M14C1 成衣製造 | D144: 9.3 | E144: 13.52 | F144: 11.58 | G144: 13.47 | H144: 12.89 | I144: 16.97 | J144: 15.09 | K144: 14.77
A145: 1474 弘裕 | B145: M14C 成衣 | C145: M14C2 織布 | D145: 14.09 | E145: 12.2 | F145: 10.87 | G145: 10.42 | H145: 8.18 | I145: 7.52 | J145: 9.27 | K145: 11.74
A146: 1475 本盟 | B146: M14C 成衣 | C146: M14C2 織布 | D146: 22.26 | E146: 7.47 | F146: 13.32 | G146: 3.25 | H146: -16.71 | I146: -25.3 | J146: -153.27 | K146: -151.85
A147: 1476 儒鴻 | B147: M14C 成衣 | C147: M14C1 成衣製造 | D147: 27.18 | E147: 25.91 | F147: 28.58 | G147: 29.67 | H147: 29.35 | I147: 27.68 | J147: 30.09 | K147: 29.17
A148: 1477 聚陽 | B148: M14C 成衣 | C148: M14C1 成衣製造 | D148: 21.91 | E148: 19.62 | F148: 19.16 | G148: 19.89 | H148: 19.32 | I148: 21.79 | J148: 21.04 | K148: 19.13
A149: 1480 東盟開發 | B149: M20A 金屬基本 | C149: M20A6 不銹鋼
A150: 1489 日南紡織 | B150: M14B 棉紡 | C150: M14B1 聚酯紗棉紗
A151: 1503 士電 | B151: M15B 電機製品 | C151: M15B1 電機 | D151: 20.04 | E151: 19.48 | F151: 18.33 | G151: 19.36 | H151: 18.67 | I151: 18.64 | J151: 14.05 | K151: 19.16
A152: 1504 東元 | B152: M15B 電機製品 | C152: M15B1 電機 | D152: 26.71 | E152: 24.83 | F152: 20.61 | G152: 25.77 | H152: 24.73 | I152: 24.8 | J152: 23.9 | K152: 23.41
A153: 1506 正道 | B153: M15D 汽車組件 | C153: M15D 汽車組件 | D153: -2.87 | E153: 0.04 | F153: -6.64 | G153: 8.75 | H153: 6.99 | I153: 13.39 | J153: -11.33 | K153: 12.17
A154: 1507 永大 | B154: M15B 電機製品 | C154: M15B1 電機 | D154: 25.22 | E154: 26.85 | F154: 23.42 | G154: 24.53 | H154: 23.12 | I154: 24.19 | J154: 21.29 | K154: 23.28
A155: 1512 瑞利 | B155: M15D 汽車組件 | C155: M15D 汽車組件 | D155: 1.31 | E155: 7.97 | F155: -2.28 | G155: 1.72 | H155: 10.49 | I155: 3 | J155: 2.65 | K155: 3.97
A156: 1513 中興電 | B156: M15B 電機製品 | C156: M15B1 電機 | D156: 23.35 | E156: 18.62 | F156: 16.98 | G156: 17.67 | H156: 18.7 | I156: 12.87 | J156: 14.43 | K156: 10.91
A157: 1514 亞力 | B157: M15B 電機製品 | C157: M15B1 電機 | D157: 19.91 | E157: 18.19 | F157: 14.79 | G157: 22.24 | H157: 16.41 | I157: 17.56 | J157: 15.55 | K157: 16.48
A158: 1515 力山 | B158: M15A 機械業 | C158: M15A1 工具機 | D158: 18.52 | E158: 16.68 | F158: 22.73 | G158: 20.08 | H158: 17.08 | I158: 18.93 | J158: 22.89 | K158: 20.72
A159: 1516 川飛 | B159: M99Z 其他 | C159: M99ZC 其他製造業 | D159: 6.8 | E159: 3.98 | F159: 3.72 | G159: 3.61 | H159: 3.59 | I159: 3.24 | J159: 3.54 | K159: 3.42
A160: 1517 利奇 | B160: M15E 自行車組件 | C160: M15E 自行車組件 | D160: 13.63 | E160: 8.06 | F160: 11.87 | G160: 9.53 | H160: 9.54 | I160: 13.21 | J160: 8.5 | K160: 11.51
A161: 1519 華城 | B161: M15B 電機製品 | C161: M15B1 電機 | D161: 17.98 | E161: 15.28 | F161: 15.35 | G161: 18.88 | H161: 10.6 | I161: 19.08 | J161: 16.58 | K161: 13.27
A162: 1521 大億 | B162: M15D 汽車組件 | C162: M15D 汽車組件 | D162: 9.02 | E162: 15.91 | F162: 15.78 | G162: 17.18 | H162: 19.08 | I162: 19.39 | J162: 14.01 | K162: 13.51
A163: 1522 堤維西 | B163: M15D 汽車組件 | C163: M15D 汽車組件 | D163: 19.65 | E163: 21.38 | F163: 24.34 | G163: 24.42 | H163: 22.5 | I163: 23.76 | J163: 22.16 | K163: 21.03
A164: 1524 耿鼎 | B164: M15D 汽車組件 | C164: M15D 汽車組件 | D164: 9.73 | E164: 18.14 | F164: 20.62 | G164: 19.67 | H164: 22.31 | I164: 19.4 | J164: 22.14 | K164: 21.38
A165: 1525 江申 | B165: M15D 汽車組件 | C165: M15D 汽車組件 | D165: 9.51 | E165: 6.59 | F165: 10.1 | G165: 4.24 | H165: 11.88 | I165: 10.96 | J165: 11.27 | K165: 8.61
A166: 1526 日馳 | B166: M15E 自行車組件 | C166: M15E 自行車組件 | D166: 15.02 | E166: 23.88 | F166: 25.33 | G166: 23.1 | H166: 24.76 | I166: 22.88 | J166: 23.33 | K166: 27.37
A167: 1527 鑽全 | B167: M15A 機械業 | C167: M15A1 工具機 | D167: 24.4 | E167: 27.8 | F167: 27.04 | G167: 28.33 | H167: 29.49 | I167: 28.74 | J167: 30.87 | K167: 29.75
A168: 1528 恩德 | B168: M15A 機械業 | C168: M15A1 工具機 | D168: 23.41 | E168: 32.74 | F168: 20.37 | G168: 25.5 | H168: 25.64 | I168: 27.61 | J168: 21.25 | K168: 29.26
A169: 1529 樂士 | B169: M15B 電機製品 | C169: M15B1 電機 | D169: 15.7 | E169: 9.95 | F169: 9.27 | G169: 8.77 | H169: 12.75 | I169: 13.26 | J169: 12.89 | K169: 12.99
A170: 1530 亞崴 | B170: M15A 機械業 | C170: M15A1 工具機 | D170: 17.97 | E170: 12.91 | F170: 15.53 | G170: 18.62 | H170: 22.49 | I170: 21.03 | J170: 13.76 | K170: 19.14
A171: 1531 高林股 | B171: M15A 機械業 | C171: M15A3 紡織工具機 | D171: 12.36 | E171: 8.45 | F171: 13.55 | G171: 18.26 | H171: 16 | I171: 16.83 | J171: 21.51 | K171: 21.26
A172: 1532 勤美 | B172: M15A 機械業 | C172: M15A2 模具零件 | D172: 25.17 | E172: 19.11 | F172: 23.79 | G172: 20.73 | H172: 24.92 | I172: 24.34 | J172: 29.86 | K172: 31.12
A173: 1533 車王電 | B173: M15D 汽車組件 | C173: M15D 汽車組件 | D173: 28.03 | E173: 29.29 | F173: 34.31 | G173: 32.65 | H173: 32.78 | I173: 34.26 | J173: 32.76 | K173: 32.5
A174: 1535 中宇 | B174: M15B 電機製品 | C174: M15B2 機電工程 | D174: 5.54 | E174: 6.64 | F174: 6.11 | G174: 6.33 | H174: 6.19 | I174: 4.46 | J174: 3.89 | K174: 3.6
A175: 1536 和大 | B175: M15D 汽車組件 | C175: M15D 汽車組件 | D175: 16.69 | E175: 26.42 | F175: 27.42 | G175: 28.49 | H175: 26.95 | I175: 29.22 | J175: 29.67 | K175: 32.23
A176: 1537 廣隆 | B176: M23D 電子零組件 | C176: M23D7 3C二次電池 | D176: 21.94 | E176: 21.42 | F176: 24.88 | G176: 22.51 | H176: 23.15 | I176: 22.96 | J176: 22.78 | K176: 22.9
A177: 1538 正峰 | B177: M15A 機械業 | C177: M15A1 工具機 | D177: 15.53 | E177: 9.2 | F177: 14.93 | G177: 11.01 | H177: 15.49 | I177: 9.36 | J177: 14.77 | K177: 14.8
A178: 1539 巨庭 | B178: M15A 機械業 | C178: M15A1 工具機 | D178: 11.09 | E178: 9.42 | F178: 9.68 | G178: 12.25 | H178: 10.5 | I178: 11.18 | J178: 8.56 | K178: 10.59
A179: 1540 喬福 | B179: M15A 機械業 | C179: M15A1 工具機 | D179: -3.86 | E179: 15.48 | F179: 20.18 | G179: 29.3 | H179: 34.72 | I179: 31.48 | J179: 18.11 | K179: 30.2
A180: 1541 錩泰 | B180: M15A 機械業 | C180: M15A1 工具機 | D180: 21.47 | E180: 20.37 | F180: 20.31 | G180: 18.47 | H180: 18.68 | I180: 15.84 | J180: 15.06 | K180: 13.02
A181: 1550 台全電機 | B181: M15D 汽車組件 | C181: M15D 汽車組件
A182: 1557 金豐 | B182: M15A 機械業 | C182: M15A1 工具機 | D182: 22.92 | F182: 27.87 | H182: 26.5 | J182: 23.71
A183: 1558 伸興 | B183: M15A 機械業 | C183: M15A3 紡織工具機 | D183: 27.1 | E183: 23.38 | F183: 25.54 | G183: 26.34 | H183: 24.4 | I183: 23.24 | J183: 25.21 | K183: 27.33
A184: 1560 中砂 | B184: M15A 機械業 | C184: M15A2 模具零件 | D184: 31.1 | E184: 29.51 | F184: 32.22 | G184: 30.72 | H184: 27.71 | I184: 26.55 | J184: 27.08 | K184: 28.72
A185: 1563 巧新 | B185: M15D 汽車組件 | C185: M15D 汽車組件 | D185: 2.06 | F185: 20.71 | H185: 24.73 | J185: 29.95
A186: 1565 精華 | B186: M17G 醫療耗材 | C186: M17G 醫療耗材 | D186: 25.62 | E186: 30.59 | F186: 34.24 | G186: 31.37 | H186: 32.17 | I186: 36.16 | J186: 37.79 | K186: 38.31
A187: 1568 倉佑 | B187: M15D 汽車組件 | C187: M15D 汽車組件 | D187: 7.21 | E187: 5.18 | F187: 13.85 | G187: 7.99 | H187: 11.89 | I187: 14.37 | J187: 10 | K187: 12.29
A188: 1569 濱川 | B188: M23D 電子零組件 | C188: M23D9A 沖壓零組件 | D188: 23.3 | E188: 17.37 | F188: 24.9 | G188: 17.55 | H188: 18.08 | I188: 17.69 | J188: 22.24 | K188: 17.73
A189: 1570 力肯 | B189: M15A 機械業 | C189: M15A1 工具機 | D189: 23.79 | E189: 28.8 | F189: 24.49 | G189: 29.3 | H189: 26.98 | I189: 21.82 | J189: 27.55 | K189: 28.8
A190: 1580 新麥 | B190: M15Z 其他電製品 | C190: M15Z 其他電製品 | D190: 38.05 | E190: 41.22 | F190: 40.82 | G190: 41.36 | H190: 40.04 | I190: 41.75 | J190: 40.26 | K190: 39.98
A191: 1582 信錦 | B191: M23D 電子零組件 | C191: M23D4 機殼 | D191: 28.45 | E191: 24.85 | F191: 28.61 | G191: 27.32 | H191: 25 | I191: 24.36 | J191: 26.29 | K191: 24.29
A192: 1583 程泰 | B192: M15A 機械業 | C192: M15A1 工具機 | D192: 21.2 | E192: 16.08 | F192: 20.74 | G192: 24.99 | H192: 25.45 | I192: 26.23 | J192: 20.48 | K192: 24.34
A193: 1584 精剛 | B193: M20A 金屬基本 | C193: M20A6 不銹鋼 | D193: 4.25 | E193: 3.2 | F193: 1.61 | G193: 1.9 | H193: -0.75 | I193: 1.56 | J193: 2.12 | K193: 6.92
A194: 1585 鎧鉅 | B194: M23B 主機板 | C194: M23B3X PCB上-其他 | D194: -98.1 | F194: -12.51 | H194: -12 | J194: -25.97
A195: 1586 和勤 | B195: M23D 電子零組件 | C195: M23D9A 沖壓零組件 | D195: 22.4 | E195: 19.8 | F195: 19.69 | G195: 13.57 | H195: 15.8 | I195: 8.01 | J195: 18.13 | K195: 20.96
A196: 1587 吉茂 | B196: M15D 汽車組件 | C196: M15D 汽車組件 | D196: 26.27 | E196: 20.99 | F196: 22.78 | G196: 21.52 | H196: 22.29 | I196: 23.89 | J196: 26.56 | K196: 25.05
A197: 1589 永冠-KY | B197: M15A 機械業 | C197: M15A2 模具零件 | D197: 21.77 | E197: 11.19 | F197: 20.58 | G197: 18 | H197: 15.61 | I197: 14.04 | J197: 15.64 | K197: 13.84
A198: 1590 亞德客-KY | B198: M15A 機械業 | C198: M15A2 模具零件 | D198: 50.89 | E198: 43.5 | F198: 47.51 | G198: 45.88 | H198: 47.43 | I198: 45.81 | J198: 46.43 | K198: 46.49
A199: 1591 駿吉-KY | B199: M15A 機械業 | C199: M15A1 工具機 | D199: 13.44 | E199: 9.41 | F199: 0.16 | G199: 6.17 | H199: 14.41 | I199: 13.32 | J199: 17.35 | K199: 18.19
A200: 1592 英瑞-KY | B200: M15D 汽車組件 | C200: M15D 汽車組件 | D200: 22.25 | E200: 21.97 | F200: 27.67 | G200: 31.92 | H200: 25.74 | I200: 25.17 | J200: 23.32 | K200: 24.73
... 2288 more rows

Sheet Debt to Equity (hidden)
B1: TEJ產業名 | C1: TEJ子產業名 | D1: 借款依存度 | E1: 借款依存度 | F1: 借款依存度 | G1: 借款依存度 | H1: 借款依存度 | I1: 借款依存度 | J1: 借款依存度 | K1: 借款依存度
A2: 公司 | D2: 2020-06-30 | E2: 2020-03-31 | F2: 2019-12-31 | G2: 2019-09-27 | H2: 2019-06-28 | I2: 2019-03-29 | J2: 2018-12-28 | K2: 2018-09-28
A3: 000104 臺銀證券 | B3: M30A 證券 | C3: M30A 證券 | F3: 27.2 | H3: 19.91 | J3: 7.87
A4: 000116 日盛證券 | B4: M30A 證券 | C4: M30A 證券 | D4: 21.68 | E4: 15.12 | F4: 24.06 | G4: 25.88 | H4: 28.98 | I4: 23.16 | J4: 17.89 | K4: 23.31
A5: 000218 亞東證券 | B5: M30A 證券 | C5: M30A 證券 | F5: 0 | H5: 0 | J5: 0
A6: 000511 富隆證券 | B6: M30A 證券 | C6: M30A 證券 | F6: 5.41 | H6: 10.82 | J6: 8.28
A7: 000532 高橋證券 | B7: M30A 證券 | C7: M30A 證券 | D7: 0 | F7: 0 | H7: 0 | J7: 0
A8: 000538 第一金證 | B8: M30A 證券 | C8: M30A 證券 | E8: 29.18 | F8: 39.86 | G8: 34.92 | H8: 29.46 | I8: 37.32 | J8: 20.48 | K8: 49.64
A9: 000546 寶盛證券 | B9: M30A 證券 | C9: M30A 證券 | D9: 0 | F9: 0 | H9: 0 | J9: 0
A10: 000560 永興證券 | B10: M30A 證券 | C10: M30A 證券 | D10: 0 | F10: 0 | H10: 0 | J10: 0
A11: 000587 光隆證券 | B11: M30A 證券 | C11: M30A 證券 | F11: 0 | H11: 0 | J11: 0
A12: 000601 奔亞證券 | B12: M30A 證券 | C12: M30A 證券 | F12: 51.02 | H12: 46.33 | J12: 53.5
A13: 000616 中信證券 | B13: M30A 證券 | C13: M30A 證券 | E13: 33.16 | F13: 59.73 | G13: 54.16 | H13: 37.87 | I13: 16.18 | J13: 2.16 | K13: 7.12
A14: 000638 光和證券 | B14: M30A 證券 | C14: M30A 證券 | F14: 36.65 | H14: 40.75 | J14: 43.64
A15: 000646 大昌證券 | B15: M30A 證券 | C15: M30A 證券 | F15: 33.06 | H15: 26.85 | J15: 20.52
A16: 000695 福勝證券 | B16: M30A 證券 | C16: M30A 證券 | D16: 0 | F16: 0 | H16: 0 | J16: 0
A17: 000700 兆豐證券 | B17: M30A 證券 | C17: M30A 證券 | E17: 1.95 | F17: 12.97 | G17: 12.37 | H17: 25.76 | I17: 12.4 | J17: 5.26 | K17: 22.83
A18: 000708 石橋證券 | B18: M30A 證券 | C18: M30A 證券 | D18: 0 | F18: 0 | H18: 0 | J18: 0
A19: 000775 北城證券 | B19: M30A 證券 | C19: M30A 證券 | F19: 0 | H19: 0 | J19: 0
A20: 000779 國票證券 | B20: M30A 證券 | C20: M30A 證券 | E20: 94.05 | F20: 86.87 | G20: 92.25 | H20: 113.97 | I20: 104.91 | J20: 93.26 | K20: 109.43
A21: 000815 台新證券 | B21: M30A 證券 | C21: M30A 證券 | E21: 82.16 | F21: 56.06 | G21: 53.5 | H21: 38.5 | I21: 43.79 | J21: 27.89 | K21: 51.91
A22: 000838 安泰證券 | B22: M30A 證券 | C22: M30A 證券 | F22: 0 | H22: 0 | J22: 0
A23: 000856 新光證券 | B23: M30A 證券 | C23: M30A 證券 | F23: 57.7 | H23: 63.9 | J23: 20.78
A24: 000888 國泰證券 | B24: M30A 證券 | C24: M30A 證券 | E24: 33.11 | F24: 89.83 | G24: 67.51 | H24: 89.22 | I24: 84.11 | J24: 52.62 | K24: 69.75
A25: 000930 華南永昌證券 | B25: M30A 證券 | C25: M30A 證券 | E25: 42.37 | F25: 25.35 | G25: 25.72 | H25: 25.96 | I25: 23.63 | J25: 8.03 | K25: 33.24
A26: 000960 富邦證券 | B26: M30A 證券 | C26: M30A 證券 | E26: 16.11 | F26: 14.35 | G26: 13.97 | H26: 27.73 | I26: 13.29 | J26: 2.64 | K26: 12.1
A27: 000980 元大證券 | B27: M30A 證券 | C27: M30A 證券 | D27: 79.89 | E27: 98.29 | F27: 94.92 | G27: 102.97 | H27: 115.96 | I27: 108.59 | J27: 84.85 | K27: 105.14
A28: 0009A0 永豐金證券 | B28: M30A 證券 | C28: M30A 證券 | E28: 65.88 | F28: 41.29 | G28: 33.86 | H28: 49.62 | I28: 41.06 | J28: 55.58 | K28: 73.3
A29: 1101 台泥 | B29: M11A 水泥製造 | C29: M11A 水泥製造 | D29: 67.97 | E29: 54.76 | F29: 55.64 | G29: 60.38 | H29: 59.89 | I29: 54.34 | J29: 53.42 | K29: 46.31
A30: 1102 亞泥 | B30: M11A 水泥製造 | C30: M11A 水泥製造 | D30: 62.86 | E30: 65.82 | F30: 56.65 | G30: 59.87 | H30: 60.68 | I30: 58.34 | J30: 60.64 | K30: 61.79
A31: 1103 嘉泥 | B31: M11A 水泥製造 | C31: M11A 水泥製造 | D31: 46.19 | E31: 46.77 | F31: 40.58 | G31: 38.08 | H31: 36.43 | I31: 36.92 | J31: 36.98 | K31: 32.68
A32: 1104 環泥 | B32: M11A 水泥製造 | C32: M11A 水泥製造 | D32: 15.2 | E32: 15.89 | F32: 15.39 | G32: 15.89 | H32: 14.77 | I32: 13.63 | J32: 13.55 | K32: 13.27
A33: 1108 幸福 | B33: M11A 水泥製造 | C33: M11A 水泥製造 | D33: 42.74 | E33: 44.94 | F33: 45.78 | G33: 49.08 | H33: 52.6 | I33: 54.48 | J33: 54.17 | K33: 42.73
A34: 1109 信大 | B34: M11A 水泥製造 | C34: M11A 水泥製造 | D34: 0 | E34: 1.2 | F34: 3.44 | G34: 3.39 | H34: 6.19 | I34: 6 | J34: 7.5 | K34: 7.86
A35: 1110 東泥 | B35: M11A 水泥製造 | C35: M11A 水泥製造 | D35: 2.03 | E35: 2.39 | F35: 2.33 | G35: 2.69 | H35: 2.44 | I35: 2.42 | J35: 0.59 | K35: 0.58
A36: 1111 欣欣水泥 | B36: M11A 水泥製造 | C36: M11A 水泥製造 | D36: 0 | F36: 0 | H36: 0 | J36: 0
A37: 1201 味全 | B37: M12C 飲料乳品 | C37: M12C 飲料乳品 | D37: 101.52 | E37: 112.8 | F37: 93.55 | G37: 100.3 | H37: 103.55 | I37: 106.23 | J37: 138.96 | K37: 162.81
A38: 1203 味王 | B38: M12Z 其他食品 | C38: M12Z 其他食品 | D38: 11.01 | E38: 12.2 | F38: 12.76 | G38: 10.1 | H38: 12.09 | I38: 13.13 | J38: 10.77 | K38: 10.89
A39: 1210 大成 | B39: M12B 油脂飼料 | C39: M12B 油脂飼料 | D39: 53.2 | E39: 61.1 | F39: 53.62 | G39: 58.64 | H39: 54.05 | I39: 50.24 | J39: 54.67 | K39: 52.65
A40: 1213 大飲 | B40: M12C 飲料乳品 | C40: M12C 飲料乳品 | D40: 109.52 | E40: 112.93 | F40: 103.12 | G40: 103.18 | H40: 102.66 | I40: 101.98 | J40: 94.32 | K40: 82.35
A41: 1215 卜蜂 | B41: M12B 油脂飼料 | C41: M12B 油脂飼料 | D41: 84.13 | E41: 86 | F41: 81.28 | G41: 96.54 | H41: 84.41 | I41: 77.71 | J41: 82.03 | K41: 87.58
A42: 1216 統一 | B42: M12C 飲料乳品 | C42: M12C 飲料乳品 | D42: 60.46 | E42: 53.48 | F42: 55.68 | G42: 61.48 | H42: 57.53 | I42: 55.11 | J42: 60.04 | K42: 60.44
A43: 1217 愛之味 | B43: M12A 罐頭加工 | C43: M12A 罐頭加工 | D43: 73.8 | E43: 79.87 | F43: 77.93 | G43: 78.9 | H43: 78.28 | I43: 81.05 | J43: 77.04 | K43: 80.52
A44: 1218 泰山 | B44: M12B 油脂飼料 | C44: M12B 油脂飼料 | D44: 12.32 | E44: 9.46 | F44: 19.7 | G44: 23.03 | H44: 22.11 | I44: 15.36 | J44: 20.3 | K44: 30.16
A45: 1219 福壽 | B45: M12B 油脂飼料 | C45: M12B 油脂飼料 | D45: 79.23 | E45: 82.48 | F45: 96.61 | G45: 101.69 | H45: 101.85 | I45: 88.71 | J45: 93.47 | K45: 97.09
A46: 1220 台榮 | B46: M12B 油脂飼料 | C46: M12B 油脂飼料 | D46: 5.56 | E46: 8.55 | F46: 12.83 | G46: 9.45 | H46: 9.17 | I46: 11.24 | J46: 14.45 | K46: 11.74
A47: 1225 福懋油 | B47: M12B 油脂飼料 | C47: M12B 油脂飼料 | D47: 86.22 | E47: 78.58 | F47: 88.69 | G47: 103.77 | H47: 79.59 | I47: 60.45 | J47: 58.89 | K47: 67.04
A48: 1227 佳格 | B48: M12Z 其他食品 | C48: M12Z 其他食品 | D48: 6.79 | E48: 11.74 | F48: 8.78 | G48: 6.48 | H48: 7.85 | I48: 9.23 | J48: 11.75 | K48: 14.64
A49: 1229 聯華 | B49: M12B 油脂飼料 | C49: M12B 油脂飼料 | D49: 19.49 | E49: 19.33 | F49: 18.57 | G49: 23.1 | H49: 16.69 | I49: 17.92 | J49: 20.92 | K49: 19.04
A50: 1231 聯華食 | B50: M12Z 其他食品 | C50: M12Z 其他食品 | D50: 84.76 | E50: 59.66 | F50: 51.41 | G50: 50.23 | H50: 53.74 | I50: 50.98 | J50: 49.43 | K50: 64.55
A51: 1232 大統益 | B51: M12B 油脂飼料 | C51: M12B 油脂飼料 | D51: 6.49 | E51: 16.68 | F51: 3.26 | G51: 9.91 | H51: 2.71 | I51: 2.35 | J51: 1.8 | K51: 12.95
A52: 1233 天仁 | B52: M12Z 其他食品 | C52: M12Z 其他食品 | D52: 9.05 | E52: 8.27 | F52: 5.88 | G52: 7.03 | H52: 1 | I52: 2.76 | J52: 6.22 | K52: 7.08
A53: 1234 黑松 | B53: M12C 飲料乳品 | C53: M12C 飲料乳品 | D53: 7.44 | E53: 8.34 | F53: 7.83 | G53: 11.61 | H53: 11.55 | I53: 10.11 | J53: 11.91 | K53: 15
A54: 1235 興泰 | B54: M12B 油脂飼料 | C54: M12B 油脂飼料 | D54: 46.85 | E54: 62.15 | F54: 56.2 | G54: 53.85 | H54: 34.71 | I54: 36.61 | J54: 30.64 | K54: 26.61
A55: 1236 宏亞 | B55: M12Z 其他食品 | C55: M12Z 其他食品 | D55: 33.75 | E55: 33.26 | F55: 27.9 | G55: 25.09 | H55: 25.6 | I55: 26.97 | J55: 23.28 | K55: 24.59
A56: 1237 台糖 | B56: M12Z 其他食品 | C56: M12Z 其他食品 | D56: 0.6 | F56: 0.07 | H56: 0.11 | J56: 0.24
A57: 1240 茂生農經 | B57: M12B 油脂飼料 | C57: M12B 油脂飼料 | D57: 26.58 | E57: 39.4 | F57: 38.99 | G57: 30.8 | H57: 13.94 | I57: 24.88 | J57: 21.52 | K57: 23.82
A58: 1242 新東陽 | B58: M12A 罐頭加工 | C58: M12A 罐頭加工 | D58: 12.21 | F58: 11.06 | H58: 13.54 | J58: 16.83
A59: 1246 中聯油脂 | B59: M12B 油脂飼料 | C59: M12B 油脂飼料 | D59: 82.76 | F59: 60.65 | H59: 65.11 | J59: 58.63
A60: 1256 鮮活果汁-KY | B60: M12C 飲料乳品 | C60: M12C 飲料乳品 | D60: 5.65 | E60: 10.65 | F60: 13.9 | G60: 21.04 | H60: 12.43 | I60: 12.1 | J60: 13.41 | K60: 14.24
A61: 1258 其祥-KY | B61: M12Z 其他食品 | C61: M12Z 其他食品 | D61: 283.28 | E61: 289.69 | F61: 253 | G61: 218.99 | H61: 226.95 | I61: 193.36 | J61: 183.4 | K61: 183.53
A62: 1259 安心 | B62: M27A 餐飲飯店 | C62: M27A2 餐飲業 | D62: 0 | E62: 0 | F62: 0 | G62: 0 | H62: 0 | I62: 0 | J62: 0 | K62: 0
A63: 1260 富味鄉 | B63: M12B 油脂飼料 | C63: M12B 油脂飼料 | D63: 61.41 | F63: 67.38 | H63: 49.4 | J63: 61.12
A64: 1264 德麥 | B64: M12Z 其他食品 | C64: M12Z 其他食品 | D64: 0 | E64: 0 | F64: 0 | G64: 0 | H64: 0 | I64: 0.21 | J64: 0.23 | K64: 0.41
A65: 1267 京華堂 | B65: M12Z 其他食品 | C65: M12Z 其他食品 | D65: 20.4 | F65: 22.22 | H65: 25.08 | J65: 26
A66: 1268 漢來美食 | B66: M27A 餐飲飯店 | C66: M27A2 餐飲業 | D66: 0 | E66: 0 | F66: 0 | G66: 0 | H66: 0 | I66: 0 | J66: 0 | K66: 0
A67: 1269 乾杯 | B67: M27A 餐飲飯店 | C67: M27A2 餐飲業 | D67: 27.28 | F67: 25.94 | H67: 37.85 | I67: 23.99 | J67: 22.38
A68: 1271 晨暉生技 | B68: M17C 藥 | C68: M17C2 機能性食品 | D68: 0 | F68: 0 | H68: 0 | J68: 9.8
A69: 1293 利統 | B69: M12Z 其他食品 | C69: M12Z 其他食品 | D69: 45.84 | F69: 56.82 | H69: 57.66 | J69: 48.73
A70: 1301 台塑 | B70: M13A 石化 | C70: M13A1 泛用塑膠 | D70: 34.47 | E70: 32.87 | F70: 27.44 | G70: 26.81 | H70: 24.58 | I70: 23.06 | J70: 25.34 | K70: 25.36
A71: 1303 南亞 | B71: M13A 石化 | C71: M13A1 泛用塑膠 | D71: 43.77 | E71: 40.2 | F71: 35.59 | G71: 36.78 | H71: 31.06 | I71: 26.44 | J71: 27.93 | K71: 30.36
A72: 1304 台聚 | B72: M13A 石化 | C72: M13A1 泛用塑膠 | D72: 48.49 | E72: 54.38 | F72: 58.95 | G72: 62.45 | H72: 63.37 | I72: 65.24 | J72: 64.13 | K72: 59.84
A73: 1305 華夏 | B73: M13A 石化 | C73: M13A1 泛用塑膠 | D73: 8.78 | E73: 6.29 | F73: 5.74 | G73: 10.66 | H73: 10.64 | I73: 8.33 | J73: 11.35 | K73: 11.48
A74: 1307 三芳 | B74: M13A 石化 | C74: M13A6 合成皮 | D74: 57.57 | E74: 52.36 | F74: 49.74 | G74: 49.19 | H74: 45.07 | I74: 43.79 | J74: 44.04 | K74: 45.16
A75: 1308 亞聚 | B75: M13A 石化 | C75: M13A1 泛用塑膠 | D75: 41.02 | E75: 53.19 | F75: 55.72 | G75: 60.16 | H75: 58.05 | I75: 58.74 | J75: 52.58 | K75: 41.57
A76: 1309 台達化 | B76: M13A 石化 | C76: M13A1 泛用塑膠 | D76: 41.94 | E76: 44.52 | F76: 51.1 | G76: 61.38 | H76: 54.93 | I76: 62.98 | J76: 75.77 | K76: 79.73
A77: 1310 台苯 | B77: M13A 石化 | C77: M13A1 泛用塑膠 | D77: 3.06 | E77: 2.98 | F77: 4.8 | G77: 5.14 | H77: 5.57 | I77: 4.94 | J77: 7.37 | K77: 11.01
A78: 1312 國喬 | B78: M13A 石化 | C78: M13A1 泛用塑膠 | D78: 0.44 | E78: 1.39 | F78: 0.08 | G78: 0.22 | H78: 0.02 | I78: 0.01 | J78: 0.02 | K78: 0.35
A79: 1313 聯成 | B79: M13A 石化 | C79: M13A7 可塑劑 | D79: 80.15 | E79: 99.2 | F79: 88.69 | G79: 92.43 | H79: 93.87 | I79: 97.29 | J79: 101.08 | K79: 102.08
A80: 1314 中石化 | B80: M13A 石化 | C80: M13A5 化纖 | D80: 24.31 | E80: 24.99 | F80: 24.5 | G80: 14.73 | H80: 13.42 | I80: 12.2 | J80: 8.84 | K80: 6.39
A81: 1315 達新 | B81: M13A 石化 | C81: M13A8 塑膠加工 | D81: 1.76 | E81: 4.46 | F81: 4.18 | G81: 4 | H81: 5.45 | I81: 9.9 | J81: 10.95 | K81: 10.26
A82: 1316 上曜 | B82: M25A 建設 | C82: M25A 建設 | D82: 140.57 | E82: 152.32 | F82: 147.24 | G82: 107.56 | H82: 89.43 | I82: 72.55 | J82: 71.11 | K82: 53.16
A83: 1319 東陽 | B83: M15D 汽車組件 | C83: M15D 汽車組件 | D83: 39.03 | E83: 37.41 | F83: 38.13 | G83: 43.02 | H83: 41.92 | I83: 41.65 | J83: 43.55 | K83: 46.92
A84: 1321 大洋 | B84: M13A 石化 | C84: M13A8 塑膠加工 | D84: 57.31 | E84: 68.89 | F84: 72.29 | G84: 78.91 | H84: 80.69 | I84: 74.1 | J84: 74.64 | K84: 73.25
A85: 1323 永裕 | B85: M13A 石化 | C85: M13A8 塑膠加工 | D85: 80.48 | E85: 76.6 | F85: 73.94 | G85: 75.3 | H85: 68.85 | I85: 49.71 | J85: 43.4 | K85: 47.52
A86: 1324 地球 | B86: M13A 石化 | C86: M13A9 膠帶 | D86: 0 | E86: 0 | F86: 0 | G86: 0 | H86: 0 | I86: 0 | J86: 0 | K86: 0
A87: 1325 恒大 | B87: M14F 不織布 | C87: M14F 不織布 | D87: 0 | E87: 0 | F87: 0 | G87: 0 | H87: 0 | I87: 0 | J87: 0 | K87: 0
A88: 1326 台化 | B88: M13A 石化 | C88: M13A1 泛用塑膠 | D88: 31.09 | E88: 31.78 | F88: 24.35 | G88: 23.95 | H88: 20.38 | I88: 20.8 | J88: 24.37 | K88: 24.15
A89: 1328 中油 | B89: M13C 輕油製解 | C89: M13C 輕油製解 | D89: 80.03 | F89: 70.47 | H89: 68.84 | J89: 83.4
A90: 1333 恩得利 | B90: M23D 電子零組件 | C90: M23D2 連接器 | G90: 14.46 | H90: 14.82 | I90: 14.45 | J90: 13.08 | K90: 19.45
A91: 1336 台翰 | B91: M23D 電子零組件 | C91: M23D4 機殼 | D91: 15.09 | E91: 24.06 | F91: 13.1 | G91: 14.36 | H91: 21.07 | I91: 23.76 | J91: 21.82 | K91: 22.82
A92: 1337 再生-KY | B92: M13B 塑膠製品 | C92: M13B 塑膠製品 | D92: 3.52 | E92: 2.38 | F92: 2.34 | G92: 2.31 | H92: 2.26 | I92: 2.21 | J92: 2.16 | K92: 1.83
A93: 1338 廣華-KY | B93: M15D 汽車組件 | C93: M15D 汽車組件 | D93: 20.54 | E93: 21.03 | F93: 18.54 | G93: 19.62 | H93: 16.93 | I93: 17.06 | J93: 19.1 | K93: 19.59
A94: 1339 昭輝 | B94: M15D 汽車組件 | C94: M15D 汽車組件 | D94: 27.2 | E94: 27.96 | F94: 31.71 | G94: 36.66 | H94: 37.03 | I94: 60.44 | J94: 61.13 | K94: 65.2
A95: 1340 勝悅-KY | B95: M13B 塑膠製品 | C95: M13B 塑膠製品 | D95: 0 | E95: 0 | F95: 0 | G95: 0 | H95: 0 | I95: 0 | J95: 0 | K95: 0
A96: 1341 富林-KY | B96: M13A 石化 | C96: M13A6 合成皮 | D96: 62.91 | E96: 49.35 | F96: 46.68 | G96: 55.6 | H96: 64.35 | I96: 58.63 | J96: 63.02 | K96: 83.9
A97: 1342 八貫 | B97: M13B 塑膠製品 | C97: M13B 塑膠製品 | D97: 24.05 | E97: 16.58 | F97: 29.18 | H97: 44.75 | I97: 46.7 | J97: 43.81
A98: 1343 旭東 | B98: M13B 塑膠製品 | C98: M13B 塑膠製品 | D98: 47 | F98: 50.57 | H98: 69.84 | J98: 82.16
A99: 1402 遠東新 | B99: M14A 人纖 | C99: M14A1 聚酯絲棉 | D99: 104.18 | E99: 100.27 | F99: 84.15 | G99: 76.77 | H99: 83.53 | I99: 77.49 | J99: 83.22 | K99: 77.35
A100: 1408 中紡 | B100: M14A 人纖 | C100: M14A1 聚酯絲棉 | D100: -285.56 | F100: -336.95 | H100: -364.52 | J100: -458.08
A101: 1409 新纖 | B101: M14A 人纖 | C101: M14A1 聚酯絲棉 | D101: 52.58 | E101: 53.44 | F101: 54.58 | G101: 52.67 | H101: 52.6 | I101: 48.91 | J101: 46.49 | K101: 48.36
A102: 1410 南染 | B102: M14E 染整 | C102: M14E 染整 | D102: 0 | E102: 0 | F102: 0 | G102: 0 | H102: 0 | I102: 0 | J102: 0 | K102: 0
A103: 1413 宏洲 | B103: M14A 人纖 | C103: M14A2 加工絲 | D103: 99.8 | E103: 98.34 | F103: 90.82 | G103: 48.32 | H103: 41.98 | I103: 45.99 | J103: 48.53 | K103: 36.09
A104: 1414 東和 | B104: M14B 棉紡 | C104: M14B1 聚酯紗棉紗 | D104: 19.68 | E104: 18.49 | F104: 22.7 | G104: 26.44 | H104: 22.57 | I104: 22.37 | J104: 20.23 | K104: 16.97
A105: 1416 廣豐 | B105: M29A 百貨批發 | C105: M29A1 百貨購物中 | D105: 77.43 | E105: 73.93 | F105: 73.41 | G105: 72.06 | H105: 68.14 | I105: 65.87 | J105: 68.76 | K105: 87.61
A106: 1417 嘉裕 | B106: M14C 成衣 | C106: M14C1 成衣製造 | D106: 1.58 | E106: 2.67 | F106: 0 | G106: 5.66 | H106: 6.89 | I106: 7.98 | J106: 9.91 | K106: 10.83
A107: 1418 東華 | B107: M14B 棉紡 | C107: M14B2 亞克力纖維 | D107: 275.08 | E107: 241.1 | F107: 219.43 | G107: 204.61 | H107: 193.72 | I107: 177.37 | J107: 162.27 | K107: 1436.52
A108: 1419 新紡 | B108: M14C 成衣 | C108: M14C2 織布 | D108: 36.73 | E108: 36.83 | F108: 32.45 | G108: 31.34 | H108: 30.43 | I108: 28.66 | J108: 31.76 | K108: 31.95
A109: 1423 利華 | B109: M14D 毛紡 | C109: M14D2 毛紡 | D109: 0 | E109: 0 | F109: 0 | G109: 0 | H109: 0 | I109: 0 | J109: 0 | K109: 0
A110: 1432 大魯閣 | B110: M29A 百貨批發 | C110: M29A1 百貨購物中 | D110: 32.95 | E110: 30.77 | F110: 27.92 | G110: 19.77 | H110: 2.41 | I110: 4.64 | J110: 7.54 | K110: 7.6
A111: 1434 福懋 | B111: M14C 成衣 | C111: M14C2 織布 | D111: 19.12 | E111: 18.53 | F111: 16 | G111: 17.6 | H111: 16.32 | I111: 15.68 | J111: 15.78 | K111: 14.17
A112: 1435 中福 | B112: M23E 網路設備 | C112: M23E1 數據機 | D112: 0 | E112: 0 | F112: 0 | G112: 0 | H112: 0 | I112: 0 | J112: 0 | K112: 0
A113: 1436 華友聯 | B113: M25A 建設 | C113: M25A 建設 | D113: 279.15 | E113: 228.32 | F113: 206.25 | G113: 258.13 | H113: 204.85 | I113: 167.73 | J113: 170.39 | K113: 192.32
A114: 1437 勤益控 | B114: M25F 物業管理 | C114: M25F 物業管理 | D114: 56.15 | E114: 57.86 | F114: 50.6 | G114: 51.46 | H114: 51.85 | I114: 55.19 | J114: 57.82 | K114: 61.13
A115: 1438 三地開發 | B115: M25A 建設 | C115: M25A 建設 | D115: 0 | E115: 0 | F115: 0 | G115: 0 | H115: 0 | I115: 0 | J115: 0 | K115: 0
A116: 1439 中和 | B116: M14D 毛紡 | C116: M14D2 毛紡 | D116: 0 | E116: 0 | F116: 0 | G116: 0 | H116: 0 | I116: 0 | J116: 0 | K116: 0
A117: 1440 南紡 | B117: M14A 人纖 | C117: M14A1 聚酯絲棉 | D117: 61.4 | E117: 58.13 | F117: 49.59 | G117: 48.5 | H117: 48.17 | I117: 44 | J117: 44.23 | K117: 42.07
A118: 1441 大東 | B118: M14B 棉紡 | C118: M14B1 聚酯紗棉紗 | D118: 124.41 | E118: 106.17 | F118: 94.01 | G118: 86.98 | H118: 75.34 | I118: 62.4 | J118: 63 | K118: 52.43
A119: 1442 名軒 | B119: M25A 建設 | C119: M25A 建設 | D119: 134.38 | E119: 127.64 | F119: 123.25 | G119: 111.16 | H119: 111.37 | I119: 97.98 | J119: 93.61 | K119: 87.68
A120: 1443 立益 | B120: M14B 棉紡 | C120: M14B1 聚酯紗棉紗 | D120: 523.71 | E120: 493.16 | F120: 480.24 | G120: 455.08 | H120: 458.45 | I120: 463.63 | J120: 453.35 | K120: 421.73
A121: 1444 力麗 | B121: M14A 人纖 | C121: M14A2 加工絲 | D121: 42.22 | E121: 57.64 | F121: 41.94 | G121: 51.03 | H121: 47.69 | I121: 39.03 | J121: 41.85 | K121: 47.56
A122: 1445 大宇 | B122: M14C 成衣 | C122: M14C2 織布 | D122: 6.21 | E122: 0 | F122: 0 | G122: 0 | H122: 0 | I122: 0 | J122: 0 | K122: 0
A123: 1446 宏和 | B123: M14C 成衣 | C123: M14C2 織布 | D123: 170.13 | E123: 163.29 | F123: 163.64 | G123: 143.66 | H123: 132.72 | I123: 127.65 | J123: 123.66 | K123: 123.25
A124: 1447 力鵬 | B124: M14A 人纖 | C124: M14A7 尼龍絲 | D124: 69.95 | E124: 65.22 | F124: 62.4 | G124: 62.02 | H124: 53.54 | I124: 46.43 | J124: 51.33 | K124: 55.6
A125: 1449 佳和 | B125: M14C 成衣 | C125: M14C2 織布 | D125: 310.46 | E125: 400.19 | F125: 512.24 | G125: 446.46 | H125: 454.29 | I125: 411.87 | J125: 418.06 | K125: 346.02
A126: 1451 年興 | B126: M14C 成衣 | C126: M14C1 成衣製造 | D126: 10.39 | E126: 7.78 | F126: 8.56 | G126: 7.02 | H126: 1.6 | I126: 3.58 | J126: 7.57 | K126: 15.33
A127: 1452 宏益 | B127: M14A 人纖 | C127: M14A2 加工絲 | D127: 0 | E127: 0 | F127: 0 | G127: 0 | H127: 0 | I127: 0 | J127: 0 | K127: 0
A128: 1453 大將 | B128: M25A 建設 | C128: M25A 建設 | D128: 0 | E128: 0 | F128: 0 | G128: 0 | H128: 0 | I128: 0 | J128: 0 | K128: 0
A129: 1454 台富 | B129: M14C 成衣 | C129: M14C2 織布 | D129: 14.19 | E129: 19.24 | F129: 17.06 | G129: 15.07 | H129: 13.02 | I129: 16.22 | J129: 16.89 | K129: 13.19
A130: 1455 集盛 | B130: M14A 人纖 | C130: M14A7 尼龍絲 | D130: 15.78 | E130: 21.76 | F130: 16.44 | G130: 24.95 | H130: 27.56 | I130: 24.84 | J130: 28.12 | K130: 34.49
A131: 1456 怡華 | B131: M14C 成衣 | C131: M14C2 織布 | D131: 328.19 | E131: 296.62 | F131: 280.4 | G131: 301.84 | H131: 296.14 | I131: 302.17 | J131: 302.01 | K131: 284.48
A132: 1457 宜進 | B132: M14A 人纖 | C132: M14A2 加工絲 | D132: 105.31 | E132: 142.27 | F132: 131.52 | G132: 119.08 | H132: 113.23 | I132: 108.18 | J132: 112.76 | K132: 113.38
A133: 1459 聯發 | B133: M14A 人纖 | C133: M14A2 加工絲 | D133: 123.21 | E133: 125.08 | F133: 88.97 | G133: 95.3 | H133: 84.19 | I133: 112.29 | J133: 117.32 | K133: 120.3
A134: 1460 宏遠 | B134: M14C 成衣 | C134: M14C2 織布 | D134: 165.55 | E134: 155.38 | F134: 134.35 | G134: 125.07 | H134: 116.35 | I134: 113.12 | J134: 108.35 | K134: 104.73
A135: 1463 強盛 | B135: M14E 染整 | C135: M14E 染整 | D135: 0 | E135: 0 | F135: 0 | G135: 0 | H135: 0 | I135: 0 | J135: 0 | K135: 0
A136: 1464 得力 | B136: M14C 成衣 | C136: M14C2 織布 | D136: 193.47 | E136: 170.64 | F136: 166.18 | G136: 161.88 | H136: 199.08 | I136: 187.79 | J136: 183.2 | K136: 187.23
A137: 1465 偉全 | B137: M14C 成衣 | C137: M14C2 織布 | D137: 1.72 | E137: 4.24 | F137: 2.62 | G137: 0 | H137: 0 | I137: 0 | J137: 0 | K137: 0
A138: 1466 聚隆 | B138: M14A 人纖 | C138: M14A7 尼龍絲 | D138: 87.34 | E138: 87.36 | F138: 89.17 | G138: 85.18 | H138: 83.81 | I138: 77.27 | J138: 78.77 | K138: 80.52
A139: 1467 南緯 | B139: M14C 成衣 | C139: M14C1 成衣製造 | D139: 118.55 | E139: 145.03 | F139: 118.31 | G139: 126.77 | H139: 125.09 | I139: 118.4 | J139: 120.75 | K139: 156.78
A140: 1468 昶和 | B140: M14C 成衣 | C140: M14C2 織布 | D140: 89.96 | E140: 82.76 | F140: 85.98 | G140: 88.34 | H140: 92.89 | I140: 98.05 | J140: 101.84 | K140: 100.87
A141: 1470 大統新創 | B141: M14E 染整 | C141: M14E 染整 | D141: 3.78 | E141: 4.31 | F141: 4.05 | G141: 4.13 | H141: 4.21 | I141: 4.69 | J141: 4.8 | K141: 4.86
A142: 1471 首利 | B142: M23D 電子零組件 | C142: M23D3 電源供應器 | D142: 58.79 | E142: 59.28 | F142: 54.05 | G142: 46.18 | H142: 40.99 | I142: 34.04 | J142: 34.51 | K142: 32.19
A143: 1472 三洋紡 | B143: M14A 人纖 | C143: M14A7 尼龍絲 | D143: 329 | E143: 223.23 | F143: 173.38 | G143: 153.03 | H143: 120.95 | I143: 106.71 | J143: 136.94 | K143: 119.93
A144: 1473 台南 | B144: M14C 成衣 | C144: M14C1 成衣製造 | D144: 34.94 | E144: 32.31 | F144: 25.53 | G144: 24.24 | H144: 29.59 | I144: 28.76 | J144: 31.85 | K144: 37.11
A145: 1474 弘裕 | B145: M14C 成衣 | C145: M14C2 織布 | D145: 65.08 | E145: 57.75 | F145: 55.79 | G145: 64.4 | H145: 62.84 | I145: 64.37 | J145: 61.35 | K145: 73.81
A146: 1475 本盟 | B146: M14C 成衣 | C146: M14C2 織布 | D146: 8.07 | E146: 95.41 | F146: 82.78 | G146: 57.92 | H146: 156.71 | I146: 54.96 | J146: 32.64 | K146: 116.46
A147: 1476 儒鴻 | B147: M14C 成衣 | C147: M14C1 成衣製造 | D147: 9.74 | E147: 8.25 | F147: 8.68 | G147: 9.46 | H147: 11.8 | I147: 9.71 | J147: 9.63 | K147: 10.71
A148: 1477 聚陽 | B148: M14C 成衣 | C148: M14C1 成衣製造 | D148: 12.74 | E148: 12.59 | F148: 8.9 | G148: 10.57 | H148: 7.34 | I148: 4.67 | J148: 4.46 | K148: 4.83
A149: 1480 東盟開發 | B149: M20A 金屬基本 | C149: M20A6 不銹鋼 | D149: 129.8 | F149: 127.28 | H149: 113.89 | J149: 120.42
A150: 1489 日南紡織 | B150: M14B 棉紡 | C150: M14B1 聚酯紗棉紗 | D150: 9.23 | F150: 3.63 | H150: 8.88 | J150: 3.52
A151: 1503 士電 | B151: M15B 電機製品 | C151: M15B1 電機 | D151: 12.1 | E151: 11.96 | F151: 12.55 | G151: 15.37 | H151: 14 | I151: 12.52 | J151: 14.1 | K151: 19.35
A152: 1504 東元 | B152: M15B 電機製品 | C152: M15B1 電機 | D152: 19.27 | E152: 29.49 | F152: 20.97 | G152: 22 | H152: 21.35 | I152: 23.76 | J152: 23.33 | K152: 26.46
A153: 1506 正道 | B153: M15D 汽車組件 | C153: M15D 汽車組件 | D153: 94.38 | E153: 157.74 | F153: 136.41 | G153: 114.88 | H153: 99.51 | I153: 99.91 | J153: 88.99 | K153: 81.44
A154: 1507 永大 | B154: M15B 電機製品 | C154: M15B1 電機 | D154: 0 | E154: 0 | F154: 0 | G154: 0 | H154: 0 | I154: 0 | J154: 0 | K154: 0
A155: 1512 瑞利 | B155: M15D 汽車組件 | C155: M15D 汽車組件 | D155: 577.16 | E155: 497.9 | F155: 522.02 | G155: 219.11 | H155: 197.28 | I155: 187.75 | J155: 184.62 | K155: 167.99
A156: 1513 中興電 | B156: M15B 電機製品 | C156: M15B1 電機 | D156: 104.77 | E156: 83.26 | F156: 62.52 | G156: 72.22 | H156: 61.99 | I156: 52.32 | J156: 55.1 | K156: 79.53
A157: 1514 亞力 | B157: M15B 電機製品 | C157: M15B1 電機 | D157: 32.49 | E157: 29.07 | F157: 25.68 | G157: 36.62 | H157: 31.57 | I157: 36.01 | J157: 33.02 | K157: 34.54
A158: 1515 力山 | B158: M15A 機械業 | C158: M15A1 工具機 | D158: 23.85 | E158: 28.15 | F158: 22.51 | G158: 37.14 | H158: 27.78 | I158: 35.35 | J158: 50.31 | K158: 63.9
A159: 1516 川飛 | B159: M99Z 其他 | C159: M99ZC 其他製造業 | D159: 0 | E159: 0 | F159: 0 | G159: 0 | H159: 0 | I159: 0 | J159: 0 | K159: 0
A160: 1517 利奇 | B160: M15E 自行車組件 | C160: M15E 自行車組件 | D160: 0 | E160: 0 | F160: 0 | G160: 0 | H160: 0 | I160: 0 | J160: 0 | K160: 0
A161: 1519 華城 | B161: M15B 電機製品 | C161: M15B1 電機 | D161: 57.12 | E161: 45.96 | F161: 35.35 | G161: 89.32 | H161: 67.82 | I161: 68.12 | J161: 36.01 | K161: 55.97
A162: 1521 大億 | B162: M15D 汽車組件 | C162: M15D 汽車組件 | D162: 14.33 | E162: 6.79 | F162: 0 | G162: 11.14 | H162: 4.88 | I162: 3.53 | J162: 0 | K162: 0.76
A163: 1522 堤維西 | B163: M15D 汽車組件 | C163: M15D 汽車組件 | D163: 157.78 | E163: 150.05 | F163: 146.4 | G163: 152.44 | H163: 147 | I163: 143.55 | J163: 146.68 | K163: 150.55
A164: 1524 耿鼎 | B164: M15D 汽車組件 | C164: M15D 汽車組件 | D164: 104.67 | E164: 96.2 | F164: 94.76 | G164: 92.14 | H164: 90.85 | I164: 82.37 | J164: 85.22 | K164: 83.1
A165: 1525 江申 | B165: M15D 汽車組件 | C165: M15D 汽車組件 | D165: 6.05 | E165: 5.89 | F165: 5.35 | G165: 4.19 | H165: 3.63 | I165: 4.8 | J165: 4.47 | K165: 5.78
A166: 1526 日馳 | B166: M15E 自行車組件 | C166: M15E 自行車組件 | D166: 23.32 | E166: 24.45 | F166: 25.46 | G166: 34.18 | H166: 24.43 | I166: 41.51 | J166: 33.19 | K166: 71.15
A167: 1527 鑽全 | B167: M15A 機械業 | C167: M15A1 工具機 | D167: 0 | E167: 0 | F167: 0 | G167: 230.02 | H167: 260.76 | I167: 250.22 | J167: 265.95 | K167: 287.21
A168: 1528 恩德 | B168: M15A 機械業 | C168: M15A1 工具機 | D168: 85.6 | E168: 71.76 | F168: 72.44 | G168: 74.97 | H168: 70.16 | I168: 69.29 | J168: 75.9 | K168: 76.88
A169: 1529 樂士 | B169: M15B 電機製品 | C169: M15B1 電機 | D169: 37.92 | E169: 42.88 | F169: 40.73 | G169: 26.86 | H169: 15.74 | I169: 14.83 | J169: 12.6 | K169: 0.15
A170: 1530 亞崴 | B170: M15A 機械業 | C170: M15A1 工具機 | D170: 61.32 | E170: 65.37 | F170: 82.35 | G170: 82.8 | H170: 77.85 | I170: 93.12 | J170: 90.48 | K170: 91.46
A171: 1531 高林股 | B171: M15A 機械業 | C171: M15A3 紡織工具機 | D171: 2.87 | E171: 2.78 | F171: 2.75 | G171: 2.7 | H171: 2.68 | I171: 2.6 | J171: 2.65 | K171: 5.53
A172: 1532 勤美 | B172: M15A 機械業 | C172: M15A2 模具零件 | D172: 133.32 | E172: 123.22 | F172: 119.82 | G172: 102.79 | H172: 92.92 | I172: 89.26 | J172: 92.35 | K172: 100.06
A173: 1533 車王電 | B173: M15D 汽車組件 | C173: M15D 汽車組件 | D173: 77.31 | E173: 68.73 | F173: 62.86 | G173: 60.75 | H173: 57.04 | I173: 58.32 | J173: 55.91 | K173: 54.52
A174: 1535 中宇 | B174: M15B 電機製品 | C174: M15B2 機電工程 | D174: 0 | E174: 10.43 | F174: 10.45 | G174: 18.95 | H174: 20.66 | I174: 21.34 | J174: 35.02 | K174: 34.07
A175: 1536 和大 | B175: M15D 汽車組件 | C175: M15D 汽車組件 | D175: 143.94 | E175: 132.54 | F175: 128.46 | G175: 128.07 | H175: 110.07 | I175: 92.37 | J175: 94.58 | K175: 101.57
A176: 1537 廣隆 | B176: M23D 電子零組件 | C176: M23D7 3C二次電池 | D176: 1.07 | E176: 0 | F176: 4.31 | G176: 16.37 | H176: 0 | I176: 3.29 | J176: 13.16 | K176: 21.9
A177: 1538 正峰 | B177: M15A 機械業 | C177: M15A1 工具機 | D177: 60.84 | E177: 58.49 | F177: 384.28 | G177: 247.33 | H177: 259.31 | I177: 233.3 | J177: 203.33 | K177: 191.92
A178: 1539 巨庭 | B178: M15A 機械業 | C178: M15A1 工具機 | D178: 165.13 | E178: 137.2 | F178: 117.82 | G178: 82.84 | H178: 69.05 | I178: 78.46 | J178: 83.01 | K178: 106.97
A179: 1540 喬福 | B179: M15A 機械業 | C179: M15A1 工具機 | D179: 2.03 | E179: 1.85 | F179: 0.01 | G179: 0.01 | H179: 0.01 | I179: 9.7 | J179: 10.04 | K179: 9.9
A180: 1541 錩泰 | B180: M15A 機械業 | C180: M15A1 工具機 | D180: 32.62 | E180: 29.97 | F180: 43.92 | G180: 53.66 | H180: 72.24 | I180: 53.55 | J180: 68.12 | K180: 59.11
A181: 1550 台全電機 | B181: M15D 汽車組件 | C181: M15D 汽車組件 | D181: 5.72 | F181: 5.98 | H181: 5.85 | J181: 8.48
A182: 1557 金豐 | B182: M15A 機械業 | C182: M15A1 工具機 | D182: 14.34 | F182: 10.84 | H182: 10.82 | J182: 16.03
A183: 1558 伸興 | B183: M15A 機械業 | C183: M15A3 紡織工具機 | D183: 5.53 | E183: 4.29 | F183: 8.53 | G183: 8.23 | H183: 4.36 | I183: 8.82 | J183: 9.9 | K183: 17.74
A184: 1560 中砂 | B184: M15A 機械業 | C184: M15A2 模具零件 | D184: 64.31 | E184: 51.81 | F184: 45.6 | G184: 38.69 | H184: 21.26 | I184: 16.4 | J184: 15.17 | K184: 22.87
A185: 1563 巧新 | B185: M15D 汽車組件 | C185: M15D 汽車組件 | D185: 124.16 | F185: 111.15 | H185: 114.4 | J185: 110.11
A186: 1565 精華 | B186: M17G 醫療耗材 | C186: M17G 醫療耗材 | D186: 21.03 | E186: 19.08 | F186: 20.68 | G186: 22.7 | H186: 24.77 | I186: 21.39 | J186: 20.25 | K186: 26.28
A187: 1568 倉佑 | B187: M15D 汽車組件 | C187: M15D 汽車組件 | D187: 87.74 | E187: 82.97 | F187: 81.15 | G187: 83.27 | H187: 79.83 | I187: 75.87 | J187: 83.48 | K187: 85.32
A188: 1569 濱川 | B188: M23D 電子零組件 | C188: M23D9A 沖壓零組件 | D188: 95.14 | E188: 90.7 | F188: 89.78 | G188: 90.24 | H188: 80.24 | I188: 85.98 | J188: 86.55 | K188: 82.94
A189: 1570 力肯 | B189: M15A 機械業 | C189: M15A1 工具機 | D189: 0 | E189: 0 | F189: 0 | G189: 0 | H189: 0 | I189: 0 | J189: 0 | K189: 0
A190: 1580 新麥 | B190: M15Z 其他電製品 | C190: M15Z 其他電製品 | D190: 11.23 | E190: 8.26 | F190: 9 | G190: 9.07 | H190: 12.16 | I190: 10.99 | J190: 11.6 | K190: 13.79
A191: 1582 信錦 | B191: M23D 電子零組件 | C191: M23D4 機殼 | D191: 26.71 | E191: 24.69 | F191: 20.23 | G191: 2.38 | H191: 0 | I191: 0 | J191: 4.14 | K191: 3.77
A192: 1583 程泰 | B192: M15A 機械業 | C192: M15A1 工具機 | D192: 66.21 | E192: 71.74 | F192: 80.65 | G192: 82.88 | H192: 83.1 | I192: 92.74 | J192: 94.85 | K192: 101.87
A193: 1584 精剛 | B193: M20A 金屬基本 | C193: M20A6 不銹鋼 | D193: 115.1 | E193: 117.75 | F193: 119.37 | G193: 110.23 | H193: 108.52 | I193: 106.92 | J193: 118.24 | K193: 118.49
A194: 1585 鎧鉅 | B194: M23B 主機板 | C194: M23B3X PCB上-其他 | D194: 342.59 | F194: 204.77 | H194: 171.73 | J194: 145.39
A195: 1586 和勤 | B195: M23D 電子零組件 | C195: M23D9A 沖壓零組件 | D195: 112.33 | E195: 110.38 | F195: 113.96 | G195: 84.15 | H195: 70.47 | I195: 81.87 | J195: 71.54 | K195: 74.9
A196: 1587 吉茂 | B196: M15D 汽車組件 | C196: M15D 汽車組件 | D196: 74.36 | E196: 85.2 | F196: 80.58 | G196: 81.08 | H196: 79.07 | I196: 83.03 | J196: 80.16 | K196: 76.05
A197: 1589 永冠-KY | B197: M15A 機械業 | C197: M15A2 模具零件 | D197: 55.43 | E197: 55.12 | F197: 49.41 | G197: 52.26 | H197: 55.31 | I197: 59.88 | J197: 56.5 | K197: 53.27
A198: 1590 亞德客-KY | B198: M15A 機械業 | C198: M15A2 模具零件 | D198: 98.38 | E198: 102.44 | F198: 100.26 | G198: 99.45 | H198: 95.17 | I198: 88.72 | J198: 88.83 | K198: 88.15
A199: 1591 駿吉-KY | B199: M15A 機械業 | C199: M15A1 工具機 | D199: 59.07 | E199: 50.18 | F199: 43.83 | G199: 49.7 | H199: 49.78 | I199: 54.59 | J199: 56.5 | K199: 58.89
A200: 1592 英瑞-KY | B200: M15D 汽車組件 | C200: M15D 汽車組件 | D200: 117.15 | E200: 120.52 | F200: 124.87 | G200: 114.13 | H200: 135.16 | I200: 137.27 | J200: 122.81 | K200: 125.62
... 2288 more rows

Sheet ACID (hidden)
B1: TEJ產業名 | C1: TEJ子產業名 | D1: 速動比率 | E1: 速動比率 | F1: 速動比率 | G1: 速動比率 | H1: 速動比率 | I1: 速動比率 | J1: 速動比率 | K1: 速動比率
A2: 公司 | D2: 2020-06-30 | E2: 2020-03-31 | F2: 2019-12-31 | G2: 2019-09-27 | H2: 2019-06-28 | I2: 2019-03-29 | J2: 2018-12-28 | K2: 2018-09-28
A3: 000104 臺銀證券 | B3: M30A 證券 | C3: M30A 證券 | F3: 140.2 | H3: 138.18 | J3: 168.08
A4: 000116 日盛證券 | B4: M30A 證券 | C4: M30A 證券 | D4: 128.34 | E4: 128.44 | F4: 130.79 | G4: 127.75 | H4: 127.53 | I4: 132.09 | J4: 134.03 | K4: 135.93
A5: 000218 亞東證券 | B5: M30A 證券 | C5: M30A 證券 | F5: 136.75 | H5: 135.72 | J5: 140.58
A6: 000511 富隆證券 | B6: M30A 證券 | C6: M30A 證券 | F6: 84.36 | H6: 60.76 | J6: 62.14
A7: 000532 高橋證券 | B7: M30A 證券 | C7: M30A 證券 | D7: 171.01 | F7: 215.16 | H7: 238.66 | J7: 273.8
A8: 000538 第一金證 | B8: M30A 證券 | C8: M30A 證券 | E8: 135.69 | F8: 133.23 | G8: 136.13 | H8: 136.96 | I8: 135.44 | J8: 138.94 | K8: 131.07
A9: 000546 寶盛證券 | B9: M30A 證券 | C9: M30A 證券 | D9: 383.23 | F9: 464.91 | H9: 454.71 | J9: 525.48
A10: 000560 永興證券 | B10: M30A 證券 | C10: M30A 證券 | D10: 154.48 | F10: 190.32 | H10: 224.27 | J10: 196.5
A11: 000587 光隆證券 | B11: M30A 證券 | C11: M30A 證券 | F11: 542.11 | H11: 388.63 | J11: 595.62
A12: 000601 奔亞證券 | B12: M30A 證券 | C12: M30A 證券 | F12: 93.03 | H12: 86.79 | J12: 93.68
A13: 000616 中信證券 | B13: M30A 證券 | C13: M30A 證券 | E13: 130.83 | F13: 129.52 | G13: 128.24 | H13: 131.99 | I13: 127.03 | J13: 144.97 | K13: 138.27
A14: 000638 光和證券 | B14: M30A 證券 | C14: M30A 證券 | F14: 119.2 | H14: 123.09 | J14: 125.15
A15: 000646 大昌證券 | B15: M30A 證券 | C15: M30A 證券 | F15: 122.94 | H15: 125.18 | J15: 129.82
A16: 000695 福勝證券 | B16: M30A 證券 | C16: M30A 證券 | D16: 161.84 | F16: 182.37 | H16: 240.18 | J16: 355.27
A17: 000700 兆豐證券 | B17: M30A 證券 | C17: M30A 證券 | E17: 122.64 | F17: 121.91 | G17: 123.55 | H17: 123.72 | I17: 125.8 | J17: 123.09 | K17: 120.12
A18: 000708 石橋證券 | B18: M30A 證券 | C18: M30A 證券 | D18: 125.32 | F18: 148.82 | H18: 179.27 | J18: 216.2
A19: 000775 北城證券 | B19: M30A 證券 | C19: M30A 證券 | F19: 136.3 | H19: 124.42 | J19: 175.37
A20: 000779 國票證券 | B20: M30A 證券 | C20: M30A 證券 | E20: 114.8 | F20: 111.24 | G20: 112.47 | H20: 111.26 | I20: 114 | J20: 110.64 | K20: 113.77
A21: 000815 台新證券 | B21: M30A 證券 | C21: M30A 證券 | E21: 134.87 | F21: 123.57 | G21: 126.52 | H21: 130.41 | I21: 127.93 | J21: 136.38 | K21: 132.63
A22: 000838 安泰證券 | B22: M30A 證券 | C22: M30A 證券 | F22: 215.2 | H22: 231.42 | J22: 293.16
A23: 000856 新光證券 | B23: M30A 證券 | C23: M30A 證券 | F23: 124.42 | H23: 128.52 | J23: 134
A24: 000888 國泰證券 | B24: M30A 證券 | C24: M30A 證券 | E24: 114.89 | F24: 119.15 | G24: 117.98 | H24: 116.25 | I24: 113.09 | J24: 121.4 | K24: 119.96
A25: 000930 華南永昌證券 | B25: M30A 證券 | C25: M30A 證券 | E25: 110.57 | F25: 126.49 | G25: 126.98 | H25: 125.79 | I25: 127.33 | J25: 131.6 | K25: 126.05
A26: 000960 富邦證券 | B26: M30A 證券 | C26: M30A 證券 | E26: 129.61 | F26: 128.68 | G26: 122.45 | H26: 126.1 | I26: 127.36 | J26: 131.16 | K26: 128.49
A27: 000980 元大證券 | B27: M30A 證券 | C27: M30A 證券 | D27: 106.51 | E27: 106.79 | F27: 106.66 | G27: 107.16 | H27: 106.91 | I27: 105.45 | J27: 107.67 | K27: 107.78
A28: 0009A0 永豐金證券 | B28: M30A 證券 | C28: M30A 證券 | E28: 106.28 | F28: 105.6 | G28: 110.96 | H28: 109.8 | I28: 109.43 | J28: 112.06 | K28: 103.74
A29: 1101 台泥 | B29: M11A 水泥製造 | C29: M11A 水泥製造 | D29: 132.92 | E29: 134.21 | F29: 161.88 | G29: 144.15 | H29: 136.03 | I29: 138.54 | J29: 150.8 | K29: 143.49
A30: 1102 亞泥 | B30: M11A 水泥製造 | C30: M11A 水泥製造 | D30: 110.23 | E30: 123.53 | F30: 106.36 | G30: 116.3 | H30: 115.41 | I30: 112.7 | J30: 108.62 | K30: 99.49
A31: 1103 嘉泥 | B31: M11A 水泥製造 | C31: M11A 水泥製造 | D31: 189.47 | E31: 178.73 | F31: 191.29 | G31: 217.08 | H31: 151.75 | I31: 187.76 | J31: 199.81 | K31: 327.82
A32: 1104 環泥 | B32: M11A 水泥製造 | C32: M11A 水泥製造 | D32: 95.71 | E32: 91.1 | F32: 103.16 | G32: 99.4 | H32: 103.08 | I32: 108.36 | J32: 108.26 | K32: 116.37
A33: 1108 幸福 | B33: M11A 水泥製造 | C33: M11A 水泥製造 | D33: 75.88 | E33: 79.08 | F33: 78.68 | G33: 55.35 | H33: 56.15 | I33: 56.37 | J33: 56.84 | K33: 68.49
A34: 1109 信大 | B34: M11A 水泥製造 | C34: M11A 水泥製造 | D34: 220.9 | E34: 282.04 | F34: 212.68 | G34: 196.93 | H34: 176.53 | I34: 203.95 | J34: 185.61 | K34: 187.34
A35: 1110 東泥 | B35: M11A 水泥製造 | C35: M11A 水泥製造 | D35: 134.69 | E35: 151.73 | F35: 133.59 | G35: 121.93 | H35: 120.87 | I35: 140.87 | J35: 181.77 | K35: 219.4
A36: 1111 欣欣水泥 | B36: M11A 水泥製造 | C36: M11A 水泥製造 | D36: 975.04 | F36: 964.15 | H36: 617.65 | J36: 763.57
A37: 1201 味全 | B37: M12C 飲料乳品 | C37: M12C 飲料乳品 | D37: 58.85 | E37: 60.29 | F37: 68.42 | G37: 52.4 | H37: 52.34 | I37: 60.2 | J37: 51.47 | K37: 73.11
A38: 1203 味王 | B38: M12Z 其他食品 | C38: M12Z 其他食品 | D38: 121.52 | E38: 156.54 | F38: 147.94 | G38: 137.38 | H38: 135.1 | I38: 154.55 | J38: 157.31 | K38: 144.79
A39: 1210 大成 | B39: M12B 油脂飼料 | C39: M12B 油脂飼料 | D39: 46.41 | E39: 42.73 | F39: 46.12 | G39: 46.32 | H39: 47.92 | I39: 55.54 | J39: 56.74 | K39: 55.94
A40: 1213 大飲 | B40: M12C 飲料乳品 | C40: M12C 飲料乳品 | D40: 190.95 | E40: 204.19 | F40: 149.29 | G40: 67.82 | H40: 70.36 | I40: 76 | J40: 78.61 | K40: 128.94
A41: 1215 卜蜂 | B41: M12B 油脂飼料 | C41: M12B 油脂飼料 | D41: 34.27 | E41: 46.78 | F41: 46.85 | G41: 35.7 | H41: 36.8 | I41: 33.88 | J41: 41.95 | K41: 40.53
A42: 1216 統一 | B42: M12C 飲料乳品 | C42: M12C 飲料乳品 | D42: 71.39 | E42: 80.36 | F42: 76.8 | G42: 81.07 | H42: 78.19 | I42: 79.48 | J42: 87.3 | K42: 81.32
A43: 1217 愛之味 | B43: M12A 罐頭加工 | C43: M12A 罐頭加工 | D43: 36.39 | E43: 43.52 | F43: 40.65 | G43: 53.91 | H43: 43.34 | I43: 47.12 | J43: 35.45 | K43: 51.28
A44: 1218 泰山 | B44: M12B 油脂飼料 | C44: M12B 油脂飼料 | D44: 81.46 | E44: 112.46 | F44: 135.51 | G44: 124.95 | H44: 99.93 | I44: 133.58 | J44: 118.77 | K44: 119
A45: 1219 福壽 | B45: M12B 油脂飼料 | C45: M12B 油脂飼料 | D45: 105.9 | E45: 114.52 | F45: 87.21 | G45: 93.52 | H45: 81.89 | I45: 90.81 | J45: 100.06 | K45: 82.44
A46: 1220 台榮 | B46: M12B 油脂飼料 | C46: M12B 油脂飼料 | D46: 349.29 | E46: 320.92 | F46: 288.08 | G46: 337.65 | H46: 303.24 | I46: 357.61 | J46: 306.33 | K46: 311.39
A47: 1225 福懋油 | B47: M12B 油脂飼料 | C47: M12B 油脂飼料 | D47: 92.15 | E47: 111.16 | F47: 123.22 | G47: 114 | H47: 127.65 | I47: 169.12 | J47: 153.12 | K47: 92.58
A48: 1227 佳格 | B48: M12Z 其他食品 | C48: M12Z 其他食品 | D48: 147.95 | E48: 176.85 | F48: 174.71 | G48: 172.56 | H48: 150.56 | I48: 182.78 | J48: 150.15 | K48: 148.9
A49: 1229 聯華 | B49: M12B 油脂飼料 | C49: M12B 油脂飼料 | D49: 52.91 | E49: 41.9 | F49: 51.48 | G49: 50.53 | H49: 43.47 | I49: 45.91 | J49: 34.49 | K49: 35.71
A50: 1231 聯華食 | B50: M12Z 其他食品 | C50: M12Z 其他食品 | D50: 74.17 | E50: 84.21 | F50: 80.09 | G50: 83.49 | H50: 81.94 | I50: 93.81 | J50: 97.37 | K50: 90.45
A51: 1232 大統益 | B51: M12B 油脂飼料 | C51: M12B 油脂飼料 | D51: 121.98 | E51: 182.82 | F51: 204.07 | G51: 192.14 | H51: 142.23 | I51: 290.01 | J51: 193.77 | K51: 158.04
A52: 1233 天仁 | B52: M12Z 其他食品 | C52: M12Z 其他食品 | D52: 75.79 | E52: 97.45 | F52: 90.68 | G52: 83.98 | H52: 84.5 | I52: 111.36 | J52: 116.33 | K52: 108.57
A53: 1234 黑松 | B53: M12C 飲料乳品 | C53: M12C 飲料乳品 | D53: 79.06 | E53: 84.88 | F53: 89.4 | G53: 74.3 | H53: 62.5 | I53: 71.71 | J53: 70.17 | K53: 67.01
A54: 1235 興泰 | B54: M12B 油脂飼料 | C54: M12B 油脂飼料 | D54: 229.64 | E54: 196.34 | F54: 202.34 | G54: 206.14 | H54: 276.37 | I54: 265.46 | J54: 289.67 | K54: 337.83
A55: 1236 宏亞 | B55: M12Z 其他食品 | C55: M12Z 其他食品 | D55: 73.36 | E55: 103.73 | F55: 95.67 | G55: 89.97 | H55: 76.77 | I55: 132.09 | J55: 79.13 | K55: 98.38
A56: 1237 台糖 | B56: M12Z 其他食品 | C56: M12Z 其他食品 | D56: 12.57 | F56: 12.25 | H56: 10.97 | J56: 22.79
A57: 1240 茂生農經 | B57: M12B 油脂飼料 | C57: M12B 油脂飼料 | D57: 125.32 | E57: 119.79 | F57: 121.51 | G57: 134.88 | H57: 205.6 | I57: 179.02 | J57: 185.92 | K57: 194.48
A58: 1242 新東陽 | B58: M12A 罐頭加工 | C58: M12A 罐頭加工 | D58: 167.16 | F58: 157.03 | H58: 175.22 | J58: 168.05
A59: 1246 中聯油脂 | B59: M12B 油脂飼料 | C59: M12B 油脂飼料 | D59: 43.9 | F59: 55.77 | H59: 59.61 | J59: 62.21
A60: 1256 鮮活果汁-KY | B60: M12C 飲料乳品 | C60: M12C 飲料乳品 | D60: 111.96 | E60: 123.85 | F60: 125.07 | G60: 124.85 | H60: 111.7 | I60: 131.62 | J60: 139.19 | K60: 144.73
A61: 1258 其祥-KY | B61: M12Z 其他食品 | C61: M12Z 其他食品 | D61: 70.39 | E61: 61.03 | F61: 61.31 | G61: 64.18 | H61: 70 | I61: 69.49 | J61: 74.72 | K61: 83.49
A62: 1259 安心 | B62: M27A 餐飲飯店 | C62: M27A2 餐飲業 | D62: 111.54 | E62: 114.27 | F62: 132.13 | G62: 129.18 | H62: 125.86 | I62: 132.14 | J62: 176.81 | K62: 173.21
A63: 1260 富味鄉 | B63: M12B 油脂飼料 | C63: M12B 油脂飼料 | D63: 60.57 | F63: 58.79 | H63: 69.93 | J63: 50.42
A64: 1264 德麥 | B64: M12Z 其他食品 | C64: M12Z 其他食品 | D64: 188.07 | E64: 361.75 | F64: 337.58 | G64: 368.97 | H64: 247.27 | I64: 431.16 | J64: 368.79 | K64: 403.33
A65: 1267 京華堂 | B65: M12Z 其他食品 | C65: M12Z 其他食品 | D65: 185.77 | F65: 121.72 | H65: 176.75 | J65: 225.61
A66: 1268 漢來美食 | B66: M27A 餐飲飯店 | C66: M27A2 餐飲業 | D66: 71.27 | E66: 73.56 | F66: 71.82 | G66: 61.6 | H66: 46.18 | I66: 51.06 | J66: 49.46 | K66: 36.31
A67: 1269 乾杯 | B67: M27A 餐飲飯店 | C67: M27A2 餐飲業 | D67: 113.53 | F67: 111.21 | H67: 96.81 | I67: 94.19 | J67: 123.81
A68: 1271 晨暉生技 | B68: M17C 藥 | C68: M17C2 機能性食品 | D68: 589.51 | F68: 302.51 | H68: 209.42 | J68: 128.32
A69: 1293 利統 | B69: M12Z 其他食品 | C69: M12Z 其他食品 | D69: 54.59 | F69: 59.52 | H69: 52.41 | J69: 71.31
A70: 1301 台塑 | B70: M13A 石化 | C70: M13A1 泛用塑膠 | D70: 133.36 | E70: 141.34 | F70: 172.35 | G70: 231.46 | H70: 184.87 | I70: 261.7 | J70: 192.63 | K70: 210.57
A71: 1303 南亞 | B71: M13A 石化 | C71: M13A1 泛用塑膠 | D71: 135.09 | E71: 158.23 | F71: 169.54 | G71: 156.23 | H71: 150.59 | I71: 207.27 | J71: 192.13 | K71: 191.82
A72: 1304 台聚 | B72: M13A 石化 | C72: M13A1 泛用塑膠 | D72: 180.98 | E72: 210.52 | F72: 176.42 | G72: 165.47 | H72: 167 | I72: 155.23 | J72: 154.48 | K72: 172.55
A73: 1305 華夏 | B73: M13A 石化 | C73: M13A1 泛用塑膠 | D73: 191.03 | E73: 207.24 | F73: 192.62 | G73: 200.88 | H73: 145.88 | I73: 167.47 | J73: 215.22 | K73: 204.33
A74: 1307 三芳 | B74: M13A 石化 | C74: M13A6 合成皮 | D74: 152.71 | E74: 130.99 | F74: 134.36 | G74: 135.15 | H74: 130.26 | I74: 135.07 | J74: 126.07 | K74: 123.31
A75: 1308 亞聚 | B75: M13A 石化 | C75: M13A1 泛用塑膠 | D75: 130.97 | E75: 138.36 | F75: 178.63 | G75: 155.91 | H75: 154.06 | I75: 176.39 | J75: 142.04 | K75: 134.51
A76: 1309 台達化 | B76: M13A 石化 | C76: M13A1 泛用塑膠 | D76: 174.1 | E76: 195.94 | F76: 172.26 | G76: 154.63 | H76: 156.79 | I76: 143.29 | J76: 124.99 | K76: 99.47
A77: 1310 台苯 | B77: M13A 石化 | C77: M13A1 泛用塑膠 | D77: 108.44 | E77: 113.52 | F77: 140.31 | G77: 144.91 | H77: 118.27 | I77: 155.01 | J77: 135.71 | K77: 130.45
A78: 1312 國喬 | B78: M13A 石化 | C78: M13A1 泛用塑膠 | D78: 444.3 | E78: 463.01 | F78: 240.6 | G78: 229.99 | H78: 234.87 | I78: 228.96 | J78: 203.38 | K78: 175.55
A79: 1313 聯成 | B79: M13A 石化 | C79: M13A7 可塑劑 | D79: 93.44 | E79: 81 | F79: 94.99 | G79: 78.05 | H79: 81.23 | I79: 82.75 | J79: 93.68 | K79: 57.28
A80: 1314 中石化 | B80: M13A 石化 | C80: M13A5 化纖 | D80: 69.9 | E80: 101 | F80: 139.33 | G80: 177.72 | H80: 219.01 | I80: 253.61 | J80: 237.4 | K80: 331.28
A81: 1315 達新 | B81: M13A 石化 | C81: M13A8 塑膠加工 | D81: 666.89 | E81: 220.58 | F81: 266.44 | G81: 430.73 | H81: 332.43 | I81: 269.29 | J81: 281.52 | K81: 310.16
A82: 1316 上曜 | B82: M25A 建設 | C82: M25A 建設 | D82: 10.32 | E82: 12.5 | F82: 10.61 | G82: 30.41 | H82: 44.65 | I82: 62.3 | J82: 80.35 | K82: 66.7
A83: 1319 東陽 | B83: M15D 汽車組件 | C83: M15D 汽車組件 | D83: 68.06 | E83: 76.65 | F83: 74.35 | G83: 73.12 | H83: 68.65 | I83: 71.01 | J83: 71.23 | K83: 72.16
A84: 1321 大洋 | B84: M13A 石化 | C84: M13A8 塑膠加工 | D84: 132.57 | E84: 151.5 | F84: 115.48 | G84: 88.13 | H84: 135.71 | I84: 119.56 | J84: 114.76 | K84: 106.61
A85: 1323 永裕 | B85: M13A 石化 | C85: M13A8 塑膠加工 | D85: 241.61 | E85: 234.11 | F85: 317.88 | G85: 323.43 | H85: 274.92 | I85: 278.12 | J85: 268.91 | K85: 274.59
A86: 1324 地球 | B86: M13A 石化 | C86: M13A9 膠帶 | D86: 241.48 | E86: 251.8 | F86: 248.08 | G86: 223.72 | H86: 205.58 | I86: 220.41 | J86: 223.09 | K86: 223.61
A87: 1325 恒大 | B87: M14F 不織布 | C87: M14F 不織布 | D87: 428.53 | E87: 516.04 | F87: 1577.2 | G87: 2241.86 | H87: 862.9 | I87: 1917.96 | J87: 1483.29 | K87: 1399.05
A88: 1326 台化 | B88: M13A 石化 | C88: M13A1 泛用塑膠 | D88: 149.1 | E88: 155.48 | F88: 204.24 | G88: 210.21 | H88: 176.59 | I88: 209.82 | J88: 192.5 | K88: 200.95
A89: 1328 中油 | B89: M13C 輕油製解 | C89: M13C 輕油製解 | D89: 16.46 | F89: 28.85 | H89: 28.72 | J89: 22.57
A90: 1333 恩得利 | B90: M23D 電子零組件 | C90: M23D2 連接器 | G90: 84.81 | H90: 81.35 | I90: 80.58 | J90: 80.81 | K90: 79.38
A91: 1336 台翰 | B91: M23D 電子零組件 | C91: M23D4 機殼 | D91: 135.29 | E91: 104.86 | F91: 113.23 | G91: 114.73 | H91: 114.69 | I91: 110.61 | J91: 105.12 | K91: 110.85
A92: 1337 再生-KY | B92: M13B 塑膠製品 | C92: M13B 塑膠製品 | D92: 611.23 | E92: 758.73 | F92: 552.35 | G92: 851.32 | H92: 852.31 | I92: 742.46 | J92: 657.44 | K92: 817.39
A93: 1338 廣華-KY | B93: M15D 汽車組件 | C93: M15D 汽車組件 | D93: 135.18 | E93: 164.64 | F93: 156.17 | G93: 154.11 | H93: 162.08 | I93: 180.37 | J93: 170.68 | K93: 178.96
A94: 1339 昭輝 | B94: M15D 汽車組件 | C94: M15D 汽車組件 | D94: 142.39 | E94: 173.13 | F94: 145.1 | G94: 138.47 | H94: 131.96 | I94: 103.37 | J94: 100.45 | K94: 78.6
A95: 1340 勝悅-KY | B95: M13B 塑膠製品 | C95: M13B 塑膠製品 | D95: 2125.22 | E95: 2971.61 | F95: 1821.52 | G95: 2061.01 | H95: 1837.78 | I95: 1782.2 | J95: 2220.66 | K95: 1773.33
A96: 1341 富林-KY | B96: M13A 石化 | C96: M13A6 合成皮 | D96: 52.65 | E96: 67.89 | F96: 81.19 | G96: 78.38 | H96: 62.22 | I96: 69.61 | J96: 81.62 | K96: 64.28
A97: 1342 八貫 | B97: M13B 塑膠製品 | C97: M13B 塑膠製品 | D97: 102.6 | E97: 102.68 | F97: 64.31 | H97: 64.14 | I97: 53.87 | J97: 53.83
A98: 1343 旭東 | B98: M13B 塑膠製品 | C98: M13B 塑膠製品 | D98: 34.47 | F98: 66.62 | H98: 13.88 | J98: 29.42
A99: 1402 遠東新 | B99: M14A 人纖 | C99: M14A1 聚酯絲棉 | D99: 68.26 | E99: 57.02 | F99: 67 | G99: 44.23 | H99: 60.51 | I99: 58.8 | J99: 58.54 | K99: 62.03
A100: 1408 中紡 | B100: M14A 人纖 | C100: M14A1 聚酯絲棉 | D100: 13.28 | F100: 16.32 | H100: 15.84 | J100: 24.56
A101: 1409 新纖 | B101: M14A 人纖 | C101: M14A1 聚酯絲棉 | D101: 30.74 | E101: 27.42 | F101: 26.44 | G101: 23.66 | H101: 23.33 | I101: 22.78 | J101: 21.55 | K101: 21.86
A102: 1410 南染 | B102: M14E 染整 | C102: M14E 染整 | D102: 469.25 | E102: 517.36 | F102: 1049.94 | G102: 454.11 | H102: 464.78 | I102: 992.1 | J102: 800.24 | K102: 718.82
A103: 1413 宏洲 | B103: M14A 人纖 | C103: M14A2 加工絲 | D103: 13.11 | E103: 21.76 | F103: 26.16 | G103: 33.9 | H103: 33.17 | I103: 40.89 | J103: 45.74 | K103: 40.81
A104: 1414 東和 | B104: M14B 棉紡 | C104: M14B1 聚酯紗棉紗 | D104: 80.14 | E104: 77.6 | F104: 77.56 | G104: 54.35 | H104: 58.6 | I104: 57.86 | J104: 56.5 | K104: 68.15
A105: 1416 廣豐 | B105: M29A 百貨批發 | C105: M29A1 百貨購物中 | D105: 14.54 | E105: 12.18 | F105: 13.15 | G105: 13.92 | H105: 19.16 | I105: 43.29 | J105: 30.76 | K105: 28.79
A106: 1417 嘉裕 | B106: M14C 成衣 | C106: M14C1 成衣製造 | D106: 394.61 | E106: 387.01 | F106: 205.44 | G106: 358.65 | H106: 407.33 | I106: 291.41 | J106: 174.05 | K106: 154.38
A107: 1418 東華 | B107: M14B 棉紡 | C107: M14B2 亞克力纖維 | D107: 108.97 | E107: 151.43 | F107: 72.74 | G107: 22.89 | H107: 48.57 | I107: 57.55 | J107: 393.25 | K107: 320.44
A108: 1419 新紡 | B108: M14C 成衣 | C108: M14C2 織布 | D108: 53.7 | E108: 47.91 | F108: 62.62 | G108: 57.37 | H108: 56.67 | I108: 57.69 | J108: 55.76 | K108: 60.02
A109: 1423 利華 | B109: M14D 毛紡 | C109: M14D2 毛紡 | D109: 2565.89 | E109: 2524.15 | F109: 2477.53 | G109: 2491.09 | H109: 2585.43 | I109: 2194.7 | J109: 2081.73 | K109: 280.53
A110: 1432 大魯閣 | B110: M29A 百貨批發 | C110: M29A1 百貨購物中 | D110: 50.77 | E110: 25.14 | F110: 25.09 | G110: 52.04 | H110: 33.89 | I110: 38.75 | J110: 68.39 | K110: 88.41
A111: 1434 福懋 | B111: M14C 成衣 | C111: M14C2 織布 | D111: 69.19 | E111: 89.58 | F111: 99.28 | G111: 125.31 | H111: 120.15 | I111: 148.4 | J111: 145.05 | K111: 172.33
A112: 1435 中福 | B112: M23E 網路設備 | C112: M23E1 數據機 | D112: 7621.5 | E112: 7884.07 | F112: 11701.98 | G112: 5495.77 | H112: 7804.87 | I112: 8124 | J112: 13913.55 | K112: 2458.99
A113: 1436 華友聯 | B113: M25A 建設 | C113: M25A 建設 | D113: 5.89 | E113: 8.05 | F113: 9.16 | G113: 11.75 | H113: 12.44 | I113: 21.78 | J113: 22.61 | K113: 13.12
A114: 1437 勤益控 | B114: M25F 物業管理 | C114: M25F 物業管理 | D114: 290.36 | E114: 718.92 | F114: 520.66 | G114: 562.92 | H114: 534.01 | I114: 648.85 | J114: 718.1 | K114: 739.05
A115: 1438 三地開發 | B115: M25A 建設 | C115: M25A 建設 | D115: 446.75 | E115: 3433.48 | F115: 1883.25 | G115: 12695.42 | H115: 12163.3 | I115: 15961.24 | J115: 17141.68 | K115: 9633.88
A116: 1439 中和 | B116: M14D 毛紡 | C116: M14D2 毛紡 | D116: 427.08 | E116: 11808.52 | F116: 13693.05 | G116: 2726.31 | H116: 3070.54 | I116: 831.91 | J116: 758.34 | K116: 8168.14
A117: 1440 南紡 | B117: M14A 人纖 | C117: M14A1 聚酯絲棉 | D117: 58.35 | E117: 55.44 | F117: 54.03 | G117: 45.17 | H117: 42.45 | I117: 45.74 | J117: 47.81 | K117: 45.53
A118: 1441 大東 | B118: M14B 棉紡 | C118: M14B1 聚酯紗棉紗 | D118: 19.43 | E118: 22.42 | F118: 20.8 | G118: 24.38 | H118: 28.03 | I118: 29.6 | J118: 25.94 | K118: 27.16
A119: 1442 名軒 | B119: M25A 建設 | C119: M25A 建設 | D119: 5.72 | E119: 5.97 | F119: 6.09 | G119: 6.82 | H119: 3.05 | I119: 3.29 | J119: 3.93 | K119: 6.65
A120: 1443 立益 | B120: M14B 棉紡 | C120: M14B1 聚酯紗棉紗 | D120: 7.44 | E120: 7.24 | F120: 7.34 | G120: 6.58 | H120: 7.96 | I120: 7.32 | J120: 7.75 | K120: 9.21
A121: 1444 力麗 | B121: M14A 人纖 | C121: M14A2 加工絲 | D121: 50.54 | E121: 64.21 | F121: 62.57 | G121: 55.66 | H121: 69.48 | I121: 69.75 | J121: 72.18 | K121: 59.93
A122: 1445 大宇 | B122: M14C 成衣 | C122: M14C2 織布 | D122: 209.14 | E122: 275.07 | F122: 235.46 | G122: 248.23 | H122: 253.36 | I122: 260.83 | J122: 206.77 | K122: 246.57
A123: 1446 宏和 | B123: M14C 成衣 | C123: M14C2 織布 | D123: 59.37 | E123: 17.72 | F123: 17.91 | G123: 16.93 | H123: 16.24 | I123: 63.6 | J123: 74.21 | K123: 76.18
A124: 1447 力鵬 | B124: M14A 人纖 | C124: M14A7 尼龍絲 | D124: 56.43 | E124: 61.09 | F124: 81.68 | G124: 76.45 | H124: 79.12 | I124: 86.26 | J124: 87.51 | K124: 97.97
A125: 1449 佳和 | B125: M14C 成衣 | C125: M14C2 織布 | D125: 20.63 | E125: 24.73 | F125: 10.95 | G125: 19.73 | H125: 21.46 | I125: 21.66 | J125: 27.12 | K125: 24.18
A126: 1451 年興 | B126: M14C 成衣 | C126: M14C1 成衣製造 | D126: 157.8 | E126: 161.48 | F126: 181.24 | G126: 187.78 | H126: 193.09 | I126: 195.73 | J126: 185.63 | K126: 158.5
A127: 1452 宏益 | B127: M14A 人纖 | C127: M14A2 加工絲 | D127: 530.34 | E127: 1254.36 | F127: 926.71 | G127: 1061.22 | H127: 426.48 | I127: 945.74 | J127: 669.12 | K127: 870.31
A128: 1453 大將 | B128: M25A 建設 | C128: M25A 建設 | D128: 3905.52 | E128: 1022.82 | F128: 1358.08 | G128: 1552.88 | H128: 1615.64 | I128: 2754.06 | J128: 2581.96 | K128: 3447.16
A129: 1454 台富 | B129: M14C 成衣 | C129: M14C2 織布 | D129: 131 | E129: 111.17 | F129: 120.12 | G129: 117.01 | H129: 116.67 | I129: 115.91 | J129: 116.11 | K129: 126.02
A130: 1455 集盛 | B130: M14A 人纖 | C130: M14A7 尼龍絲 | D130: 59.56 | E130: 72.86 | F130: 86.51 | G130: 76.63 | H130: 78.51 | I130: 88.06 | J130: 87.69 | K130: 79.49
A131: 1456 怡華 | B131: M14C 成衣 | C131: M14C2 織布 | D131: 8.59 | E131: 8.95 | F131: 15.05 | G131: 9.63 | H131: 10 | I131: 10.36 | J131: 10.82 | K131: 14.08
A132: 1457 宜進 | B132: M14A 人纖 | C132: M14A2 加工絲 | D132: 58.02 | E132: 23.23 | F132: 34.47 | G132: 49.32 | H132: 58.36 | I132: 69.01 | J132: 47.57 | K132: 47.97
A133: 1459 聯發 | B133: M14A 人纖 | C133: M14A2 加工絲 | D133: 73.73 | E133: 73.54 | F133: 113.53 | G133: 95.98 | H133: 104.43 | I133: 103.53 | J133: 96.94 | K133: 102.01
A134: 1460 宏遠 | B134: M14C 成衣 | C134: M14C2 織布 | D134: 29.16 | E134: 26.73 | F134: 26.04 | G134: 23.72 | H134: 20.62 | I134: 22.7 | J134: 23.04 | K134: 24.24
A135: 1463 強盛 | B135: M14E 染整 | C135: M14E 染整 | D135: 544.44 | E135: 759.49 | F135: 834.69 | G135: 755.81 | H135: 330.41 | I135: 758.41 | J135: 789.83 | K135: 670.66
A136: 1464 得力 | B136: M14C 成衣 | C136: M14C2 織布 | D136: 63.95 | E136: 71.55 | F136: 72.79 | G136: 73.23 | H136: 67.25 | I136: 70.74 | J136: 52.6 | K136: 65.03
A137: 1465 偉全 | B137: M14C 成衣 | C137: M14C2 織布 | D137: 479.87 | E137: 706.47 | F137: 790.92 | G137: 735.39 | H137: 900.06 | I137: 653.19 | J137: 237.07 | K137: 168.06
A138: 1466 聚隆 | B138: M14A 人纖 | C138: M14A7 尼龍絲 | D138: 66.19 | E138: 99.21 | F138: 94.76 | G138: 98.29 | H138: 99.3 | I138: 57.91 | J138: 58.02 | K138: 66.81
A139: 1467 南緯 | B139: M14C 成衣 | C139: M14C1 成衣製造 | D139: 64.39 | E139: 74.35 | F139: 74.18 | G139: 75.95 | H139: 66.61 | I139: 67.35 | J139: 71.37 | K139: 65.25
A140: 1468 昶和 | B140: M14C 成衣 | C140: M14C2 織布 | D140: 79.04 | E140: 77.58 | F140: 73.82 | G140: 80.79 | H140: 80.08 | I140: 83.91 | J140: 81.37 | K140: 49.44
A141: 1470 大統新創 | B141: M14E 染整 | C141: M14E 染整 | D141: 256.59 | E141: 227.24 | F141: 300.57 | G141: 287.55 | H141: 254.6 | I141: 291.46 | J141: 273.17 | K141: 278.33
A142: 1471 首利 | B142: M23D 電子零組件 | C142: M23D3 電源供應器 | D142: 75.13 | E142: 69.39 | F142: 77.58 | G142: 74.45 | H142: 83.24 | I142: 91.9 | J142: 94.68 | K142: 97.85
A143: 1472 三洋紡 | B143: M14A 人纖 | C143: M14A7 尼龍絲 | D143: 34.44 | E143: 45.26 | F143: 43.58 | G143: 35.92 | H143: 41.57 | I143: 78.2 | J143: 28.57 | K143: 43.87
A144: 1473 台南 | B144: M14C 成衣 | C144: M14C1 成衣製造 | D144: 126.22 | E144: 137.76 | F144: 106.32 | G144: 129.47 | H144: 102.48 | I144: 112.84 | J144: 109.69 | K144: 120.01
A145: 1474 弘裕 | B145: M14C 成衣 | C145: M14C2 織布 | D145: 87.54 | E145: 93.85 | F145: 92.9 | G145: 71.67 | H145: 71.81 | I145: 75.7 | J145: 78.15 | K145: 76.47
A146: 1475 本盟 | B146: M14C 成衣 | C146: M14C2 織布 | D146: 367.28 | E146: 39.79 | F146: 46.44 | G146: 50.64 | H146: 41.36 | I146: 60.12 | J146: 72.84 | K146: 46.25
A147: 1476 儒鴻 | B147: M14C 成衣 | C147: M14C1 成衣製造 | D147: 110.51 | E147: 161.32 | F147: 149.61 | G147: 132.48 | H147: 108.71 | I147: 155.26 | J147: 133.44 | K147: 103.51
A148: 1477 聚陽 | B148: M14C 成衣 | C148: M14C1 成衣製造 | D148: 57.56 | E148: 67.27 | F148: 48.6 | G148: 40.83 | H148: 44.33 | I148: 73.91 | J148: 64.02 | K148: 56.51
A149: 1480 東盟開發 | B149: M20A 金屬基本 | C149: M20A6 不銹鋼 | D149: 8.66 | F149: 6.14 | H149: 6.23 | J149: 1.94
A150: 1489 日南紡織 | B150: M14B 棉紡 | C150: M14B1 聚酯紗棉紗 | D150: 364.49 | F150: 509.05 | H150: 1499.28 | J150: 1231.62
A151: 1503 士電 | B151: M15B 電機製品 | C151: M15B1 電機 | D151: 72.54 | E151: 77.39 | F151: 69.08 | G151: 66.42 | H151: 67.54 | I151: 72.06 | J151: 71.76 | K151: 68.23
A152: 1504 東元 | B152: M15B 電機製品 | C152: M15B1 電機 | D152: 153.07 | E152: 137 | F152: 152.83 | G152: 149.99 | H152: 142.25 | I152: 167.38 | J152: 162.98 | K152: 165.55
A153: 1506 正道 | B153: M15D 汽車組件 | C153: M15D 汽車組件 | D153: 49.33 | E153: 30.8 | F153: 34.74 | G153: 38.17 | H153: 46.92 | I153: 54.92 | J153: 58.19 | K153: 79.71
A154: 1507 永大 | B154: M15B 電機製品 | C154: M15B1 電機 | D154: 83.08 | E154: 87.98 | F154: 88.12 | G154: 87.58 | H154: 83.15 | I154: 89.37 | J154: 86.56 | K154: 81.87
A155: 1512 瑞利 | B155: M15D 汽車組件 | C155: M15D 汽車組件 | D155: 51.15 | E155: 52.08 | F155: 52.54 | G155: 54.36 | H155: 60.22 | I155: 52.75 | J155: 64.19 | K155: 64.56
A156: 1513 中興電 | B156: M15B 電機製品 | C156: M15B1 電機 | D156: 31.62 | E156: 30.07 | F156: 41.15 | G156: 29.02 | H156: 26.09 | I156: 30.59 | J156: 40 | K156: 39.17
A157: 1514 亞力 | B157: M15B 電機製品 | C157: M15B1 電機 | D157: 93.85 | E157: 101.88 | F157: 91.95 | G157: 91.23 | H157: 87.97 | I157: 96.38 | J157: 90.93 | K157: 104.7
A158: 1515 力山 | B158: M15A 機械業 | C158: M15A1 工具機 | D158: 97.99 | E158: 117.12 | F158: 101.56 | G158: 96.94 | H158: 85.88 | I158: 98.37 | J158: 86.69 | K158: 75.07
A159: 1516 川飛 | B159: M99Z 其他 | C159: M99ZC 其他製造業 | D159: 719.44 | E159: 488.41 | F159: 501.74 | G159: 580.92 | H159: 542.53 | I159: 16355.14 | J159: 1376.48 | K159: 419.21
A160: 1517 利奇 | B160: M15E 自行車組件 | C160: M15E 自行車組件 | D160: 235.77 | E160: 294.87 | F160: 259.2 | G160: 272.29 | H160: 259.13 | I160: 266.94 | J160: 263.01 | K160: 272.04
A161: 1519 華城 | B161: M15B 電機製品 | C161: M15B1 電機 | D161: 64.25 | E161: 61.47 | F161: 72.26 | G161: 60.97 | H161: 61.3 | I161: 76.78 | J161: 82.28 | K161: 80.92
A162: 1521 大億 | B162: M15D 汽車組件 | C162: M15D 汽車組件 | D162: 54.7 | E162: 65.62 | F162: 66.43 | G162: 69.59 | H162: 69.3 | I162: 81.21 | J162: 71.51 | K162: 68.04
A163: 1522 堤維西 | B163: M15D 汽車組件 | C163: M15D 汽車組件 | D163: 50.8 | E163: 56.64 | F163: 56.5 | G163: 55.26 | H163: 56.45 | I163: 54.1 | J163: 53.6 | K163: 54.33
A164: 1524 耿鼎 | B164: M15D 汽車組件 | C164: M15D 汽車組件 | D164: 67.42 | E164: 68.01 | F164: 61 | G164: 55.65 | H164: 56.89 | I164: 58.06 | J164: 60.58 | K164: 54.24
A165: 1525 江申 | B165: M15D 汽車組件 | C165: M15D 汽車組件 | D165: 61.14 | E165: 53.08 | F165: 95.03 | G165: 98.49 | H165: 105.18 | I165: 75.4 | J165: 56.34 | K165: 51.61
A166: 1526 日馳 | B166: M15E 自行車組件 | C166: M15E 自行車組件 | D166: 104.54 | E166: 112.63 | F166: 110.87 | G166: 69.86 | H166: 80.03 | I166: 101.03 | J166: 88.61 | K166: 69.12
A167: 1527 鑽全 | B167: M15A 機械業 | C167: M15A1 工具機 | D167: 159.08 | E167: 190.38 | F167: 165.57 | G167: 52.58 | H167: 45.53 | I167: 47.44 | J167: 48.12 | K167: 47.49
A168: 1528 恩德 | B168: M15A 機械業 | C168: M15A1 工具機 | D168: 78.25 | E168: 81.75 | F168: 84.62 | G168: 80.56 | H168: 86.66 | I168: 88.72 | J168: 89.63 | K168: 84.25
A169: 1529 樂士 | B169: M15B 電機製品 | C169: M15B1 電機 | D169: 178.49 | E169: 155.57 | F169: 85.5 | G169: 134.63 | H169: 105.27 | I169: 138.47 | J169: 117.13 | K169: 296.57
A170: 1530 亞崴 | B170: M15A 機械業 | C170: M15A1 工具機 | D170: 80.62 | E170: 87.2 | F170: 61.75 | G170: 59.23 | H170: 51.41 | I170: 61.52 | J170: 62.15 | K170: 59.61
A171: 1531 高林股 | B171: M15A 機械業 | C171: M15A3 紡織工具機 | D171: 418.21 | E171: 533.7 | F171: 565.38 | G171: 441.5 | H171: 364.9 | I171: 377.97 | J171: 303.36 | K171: 243.94
A172: 1532 勤美 | B172: M15A 機械業 | C172: M15A2 模具零件 | D172: 42.46 | E172: 42.48 | F172: 48.23 | G172: 48.43 | H172: 54.06 | I172: 64.6 | J172: 68.91 | K172: 59.45
A173: 1533 車王電 | B173: M15D 汽車組件 | C173: M15D 汽車組件 | D173: 114.78 | E173: 116.62 | F173: 97.97 | G173: 90.29 | H173: 90.92 | I173: 85.11 | J173: 87.6 | K173: 101.93
A174: 1535 中宇 | B174: M15B 電機製品 | C174: M15B2 機電工程 | D174: 106.01 | E174: 101.23 | F174: 107.91 | G174: 102.22 | H174: 102.57 | I174: 102.24 | J174: 100.32 | K174: 85.87
A175: 1536 和大 | B175: M15D 汽車組件 | C175: M15D 汽車組件 | D175: 50.44 | E175: 70.13 | F175: 62.62 | G175: 71.36 | H175: 67.65 | I175: 73.15 | J175: 84.07 | K175: 92.96
A176: 1537 廣隆 | B176: M23D 電子零組件 | C176: M23D7 3C二次電池 | D176: 176.67 | E176: 352.02 | F176: 273.01 | G176: 224.07 | H176: 177.84 | I176: 263.82 | J176: 166.75 | K176: 156.5
A177: 1538 正峰 | B177: M15A 機械業 | C177: M15A1 工具機 | D177: 141.76 | E177: 175.02 | F177: 30.96 | G177: 17.29 | H177: 19.47 | I177: 18.67 | J177: 23.38 | K177: 25.49
A178: 1539 巨庭 | B178: M15A 機械業 | C178: M15A1 工具機 | D178: 40.74 | E178: 48.84 | F178: 61.18 | G178: 82.35 | H178: 77.95 | I178: 69.85 | J178: 67.42 | K178: 54.17
A179: 1540 喬福 | B179: M15A 機械業 | C179: M15A1 工具機 | D179: 370.67 | E179: 523.09 | F179: 503.21 | G179: 501.8 | H179: 290.67 | I179: 287.42 | J179: 277.85 | K179: 275.3
A180: 1541 錩泰 | B180: M15A 機械業 | C180: M15A1 工具機 | D180: 106.7 | E180: 102.27 | F180: 90.45 | G180: 90.88 | H180: 89.18 | I180: 82.59 | J180: 87.04 | K180: 90.53
A181: 1550 台全電機 | B181: M15D 汽車組件 | C181: M15D 汽車組件 | D181: 179.14 | F181: 165.58 | H181: 173.75 | J181: 153.21
A182: 1557 金豐 | B182: M15A 機械業 | C182: M15A1 工具機 | D182: 103.27 | F182: 101.64 | H182: 91.22 | J182: 103.63
A183: 1558 伸興 | B183: M15A 機械業 | C183: M15A3 紡織工具機 | D183: 176.89 | E183: 300.77 | F183: 266.12 | G183: 260.97 | H183: 212.26 | I183: 259.13 | J183: 260.18 | K183: 231.45
A184: 1560 中砂 | B184: M15A 機械業 | C184: M15A2 模具零件 | D184: 68.44 | E184: 72.75 | F184: 92.2 | G184: 83.12 | H184: 62.77 | I184: 84.31 | J184: 96.57 | K184: 88.16
A185: 1563 巧新 | B185: M15D 汽車組件 | C185: M15D 汽車組件 | D185: 55.54 | F185: 63.83 | H185: 97.51 | J185: 116.49
A186: 1565 精華 | B186: M17G 醫療耗材 | C186: M17G 醫療耗材 | D186: 124.34 | E186: 184.2 | F186: 160.68 | G186: 136.47 | H186: 114.98 | I186: 180.02 | J186: 161.33 | K186: 146.52
A187: 1568 倉佑 | B187: M15D 汽車組件 | C187: M15D 汽車組件 | D187: 91.21 | E187: 86.28 | F187: 96.08 | G187: 93.09 | H187: 81.68 | I187: 77.02 | J187: 88.94 | K187: 87.14
A188: 1569 濱川 | B188: M23D 電子零組件 | C188: M23D9A 沖壓零組件 | D188: 83.98 | E188: 79.51 | F188: 74.26 | G188: 65.71 | H188: 65.4 | I188: 69.79 | J188: 72.62 | K188: 75.71
A189: 1570 力肯 | B189: M15A 機械業 | C189: M15A1 工具機 | D189: 298.18 | E189: 364.55 | F189: 350.64 | G189: 263.94 | H189: 231.26 | I189: 299.31 | J189: 310.13 | K189: 255.12
A190: 1580 新麥 | B190: M15Z 其他電製品 | C190: M15Z 其他電製品 | D190: 117.22 | E190: 123.64 | F190: 150.86 | G190: 155.6 | H190: 124.41 | I190: 173.57 | J190: 159.91 | K190: 141.43
A191: 1582 信錦 | B191: M23D 電子零組件 | C191: M23D4 機殼 | D191: 156.68 | E191: 182.29 | F191: 175.52 | G191: 244.8 | H191: 209.1 | I191: 278.11 | J191: 244.2 | K191: 216.36
A192: 1583 程泰 | B192: M15A 機械業 | C192: M15A1 工具機 | D192: 83.32 | E192: 88.11 | F192: 74.27 | G192: 65.85 | H192: 60.41 | I192: 67.87 | J192: 63.77 | K192: 62.35
A193: 1584 精剛 | B193: M20A 金屬基本 | C193: M20A6 不銹鋼 | D193: 41.64 | E193: 57.95 | F193: 64.21 | G193: 30.24 | H193: 36.37 | I193: 34.63 | J193: 36.89 | K193: 42.22
A194: 1585 鎧鉅 | B194: M23B 主機板 | C194: M23B3X PCB上-其他 | D194: 294.59 | F194: 132.97 | H194: 153.13 | J194: 24.01
A195: 1586 和勤 | B195: M23D 電子零組件 | C195: M23D9A 沖壓零組件 | D195: 72.59 | E195: 64.22 | F195: 67.54 | G195: 63.99 | H195: 66.88 | I195: 69.49 | J195: 67.36 | K195: 80.79
A196: 1587 吉茂 | B196: M15D 汽車組件 | C196: M15D 汽車組件 | D196: 68.8 | E196: 65.37 | F196: 63.69 | G196: 64.21 | H196: 61.2 | I196: 63.9 | J196: 68.73 | K196: 66.99
A197: 1589 永冠-KY | B197: M15A 機械業 | C197: M15A2 模具零件 | D197: 152.3 | E197: 159.82 | F197: 161.36 | G197: 156.57 | H197: 146.57 | I197: 147.18 | J197: 160.92 | K197: 176.3
A198: 1590 亞德客-KY | B198: M15A 機械業 | C198: M15A2 模具零件 | D198: 83.99 | E198: 82.53 | F198: 81.55 | G198: 77.38 | H198: 72.14 | I198: 72.96 | J198: 68.72 | K198: 67.63
A199: 1591 駿吉-KY | B199: M15A 機械業 | C199: M15A1 工具機 | D199: 54.35 | E199: 51.08 | F199: 56.09 | G199: 78.51 | H199: 88.44 | I199: 85.35 | J199: 68.53 | K199: 80.06
A200: 1592 英瑞-KY | B200: M15D 汽車組件 | C200: M15D 汽車組件 | D200: 42.15 | E200: 38.93 | F200: 43.06 | G200: 42.91 | H200: 42.81 | I200: 43.49 | J200: 48.4 | K200: 65.71
... 2288 more rows

Sheet Current Ratio (hidden)
B1: TEJ產業名 | C1: TEJ子產業名 | D1: 流動比率 | E1: 流動比率 | F1: 流動比率 | G1: 流動比率 | H1: 流動比率 | I1: 流動比率 | J1: 流動比率 | K1: 流動比率
A2: 公司 | D2: 2020-06-30 | E2: 2020-03-31 | F2: 2019-12-31 | G2: 2019-09-27 | H2: 2019-06-28 | I2: 2019-03-29 | J2: 2018-12-28 | K2: 2018-09-28
A3: 000104 臺銀證券 | B3: M30A 證券 | C3: M30A 證券 | F3: 140.36 | H3: 141.35 | J3: 169.11
A4: 000116 日盛證券 | B4: M30A 證券 | C4: M30A 證券 | D4: 130.62 | E4: 130.46 | F4: 132.6 | G4: 129.53 | H4: 129.06 | I4: 134.19 | J4: 136.51 | K4: 138.19
A5: 000218 亞東證券 | B5: M30A 證券 | C5: M30A 證券 | F5: 199.32 | H5: 204.88 | J5: 220.08
A6: 000511 富隆證券 | B6: M30A 證券 | C6: M30A 證券 | F6: 84.38 | H6: 60.79 | J6: 62.76
A7: 000532 高橋證券 | B7: M30A 證券 | C7: M30A 證券 | D7: 180.36 | F7: 229.84 | H7: 257.07 | J7: 296.15
A8: 000538 第一金證 | B8: M30A 證券 | C8: M30A 證券 | E8: 136.42 | F8: 133.68 | G8: 136.4 | H8: 137.39 | I8: 136.07 | J8: 139.45 | K8: 131.5
A9: 000546 寶盛證券 | B9: M30A 證券 | C9: M30A 證券 | D9: 484.09 | F9: 593.47 | H9: 579.78 | J9: 694
A10: 000560 永興證券 | B10: M30A 證券 | C10: M30A 證券 | D10: 179.02 | F10: 234.85 | H10: 295.88 | J10: 314.37
A11: 000587 光隆證券 | B11: M30A 證券 | C11: M30A 證券 | F11: 564.07 | H11: 403.43 | J11: 619.18
A12: 000601 奔亞證券 | B12: M30A 證券 | C12: M30A 證券 | F12: 117.96 | H12: 105.65 | J12: 111.2
A13: 000616 中信證券 | B13: M30A 證券 | C13: M30A 證券 | E13: 135.63 | F13: 133.42 | G13: 132.16 | H13: 136.25 | I13: 141.26 | J13: 151.07 | K13: 143.42
A14: 000638 光和證券 | B14: M30A 證券 | C14: M30A 證券 | F14: 134.07 | H14: 142.63 | J14: 146.56
A15: 000646 大昌證券 | B15: M30A 證券 | C15: M30A 證券 | F15: 129.32 | H15: 131.66 | J15: 135.96
A16: 000695 福勝證券 | B16: M30A 證券 | C16: M30A 證券 | D16: 224.72 | F16: 272.38 | H16: 396.1 | J16: 405.45
A17: 000700 兆豐證券 | B17: M30A 證券 | C17: M30A 證券 | E17: 122.95 | F17: 122.62 | G17: 124.23 | H17: 124.43 | I17: 127.01 | J17: 124.99 | K17: 120.2
A18: 000708 石橋證券 | B18: M30A 證券 | C18: M30A 證券 | D18: 161.56 | F18: 203.61 | H18: 243.34 | J18: 305.55
A19: 000775 北城證券 | B19: M30A 證券 | C19: M30A 證券 | F19: 171.08 | H19: 194.38 | J19: 233.56
A20: 000779 國票證券 | B20: M30A 證券 | C20: M30A 證券 | E20: 121.38 | F20: 117.09 | G20: 118.46 | H20: 117.35 | I20: 120.39 | J20: 116.86 | K20: 119.44
A21: 000815 台新證券 | B21: M30A 證券 | C21: M30A 證券 | E21: 135.6 | F21: 123.89 | G21: 126.75 | H21: 131.03 | I21: 128.54 | J21: 136.77 | K21: 132.99
A22: 000838 安泰證券 | B22: M30A 證券 | C22: M30A 證券 | F22: 240.17 | H22: 260.76 | J22: 334.96
A23: 000856 新光證券 | B23: M30A 證券 | C23: M30A 證券 | F23: 132.42 | H23: 138.03 | J23: 144.73
A24: 000888 國泰證券 | B24: M30A 證券 | C24: M30A 證券 | E24: 121.65 | F24: 123.76 | G24: 125.97 | H24: 123.54 | I24: 121.4 | J24: 127.21 | K24: 125.79
A25: 000930 華南永昌證券 | B25: M30A 證券 | C25: M30A 證券 | E25: 111.42 | F25: 127.22 | G25: 128.45 | H25: 126.84 | I25: 128.8 | J25: 132.94 | K25: 127.26
A26: 000960 富邦證券 | B26: M30A 證券 | C26: M30A 證券 | E26: 132.65 | F26: 130.44 | G26: 128.84 | H26: 127.91 | I26: 129.06 | J26: 132.54 | K26: 129.77
A27: 000980 元大證券 | B27: M30A 證券 | C27: M30A 證券 | D27: 113.32 | E27: 112.88 | F27: 113.52 | G27: 113.19 | H27: 112.31 | I27: 111.82 | J27: 113.53 | K27: 112.61
A28: 0009A0 永豐金證券 | B28: M30A 證券 | C28: M30A 證券 | E28: 119.28 | F28: 118.76 | G28: 126.18 | H28: 122.65 | I28: 123.66 | J28: 127.13 | K28: 119.58
A29: 1101 台泥 | B29: M11A 水泥製造 | C29: M11A 水泥製造 | D29: 146.19 | E29: 152.84 | F29: 177.58 | G29: 162.23 | H29: 151.12 | I29: 156.96 | J29: 171.12 | K29: 163.7
A30: 1102 亞泥 | B30: M11A 水泥製造 | C30: M11A 水泥製造 | D30: 122.54 | E30: 137.72 | F30: 120.05 | G30: 133.44 | H30: 131.54 | I30: 130.6 | J30: 127.95 | K30: 115.93
A31: 1103 嘉泥 | B31: M11A 水泥製造 | C31: M11A 水泥製造 | D31: 269.51 | E31: 270.99 | F31: 288.01 | G31: 360.51 | H31: 261.84 | I31: 325.95 | J31: 348.97 | K31: 538.13
A32: 1104 環泥 | B32: M11A 水泥製造 | C32: M11A 水泥製造 | D32: 104.68 | E32: 99.69 | F32: 111.36 | G32: 110.88 | H32: 112.37 | I32: 119.17 | J32: 118.14 | K32: 126.86
A33: 1108 幸福 | B33: M11A 水泥製造 | C33: M11A 水泥製造 | D33: 288.47 | E33: 283.28 | F33: 314.58 | G33: 261.34 | H33: 267.68 | I33: 269.26 | J33: 284.47 | K33: 341.87
A34: 1109 信大 | B34: M11A 水泥製造 | C34: M11A 水泥製造 | D34: 267.2 | E34: 343.68 | F34: 251.83 | G34: 248.55 | H34: 211.87 | I34: 259.05 | J34: 228.52 | K34: 252.17
A35: 1110 東泥 | B35: M11A 水泥製造 | C35: M11A 水泥製造 | D35: 322.06 | E35: 348.48 | F35: 306.23 | G35: 339.13 | H35: 319.17 | I35: 386.53 | J35: 491.82 | K35: 600.74
A36: 1111 欣欣水泥 | B36: M11A 水泥製造 | C36: M11A 水泥製造 | D36: 1045.82 | F36: 1023.28 | H36: 673.66 | J36: 821.75
A37: 1201 味全 | B37: M12C 飲料乳品 | C37: M12C 飲料乳品 | D37: 82.56 | E37: 84.04 | F37: 89.66 | G37: 68.24 | H37: 68.97 | I37: 76.58 | J37: 76.59 | K37: 91.49
A38: 1203 味王 | B38: M12Z 其他食品 | C38: M12Z 其他食品 | D38: 226.12 | E38: 262.25 | F38: 249.82 | G38: 230.53 | H38: 219.69 | I38: 239.15 | J38: 253.22 | K38: 219.7
A39: 1210 大成 | B39: M12B 油脂飼料 | C39: M12B 油脂飼料 | D39: 104.38 | E39: 99.2 | F39: 105.52 | G39: 108.65 | H39: 110.78 | I39: 122.93 | J39: 125.42 | K39: 127.53
A40: 1213 大飲 | B40: M12C 飲料乳品 | C40: M12C 飲料乳品 | D40: 222.24 | E40: 241.4 | F40: 188.55 | G40: 80.19 | H40: 81.08 | I40: 86.46 | J40: 89.81 | K40: 139.83
A41: 1215 卜蜂 | B41: M12B 油脂飼料 | C41: M12B 油脂飼料 | D41: 79.71 | E41: 92.18 | F41: 106.14 | G41: 90.46 | H41: 97.7 | I41: 92.17 | J41: 91.43 | K41: 88.34
A42: 1216 統一 | B42: M12C 飲料乳品 | C42: M12C 飲料乳品 | D42: 94.03 | E42: 109.13 | F42: 106.86 | G42: 106.91 | H42: 103.38 | I42: 106.7 | J42: 117.06 | K42: 107.28
A43: 1217 愛之味 | B43: M12A 罐頭加工 | C43: M12A 罐頭加工 | D43: 62.36 | E43: 64.05 | F43: 65.06 | G43: 75.88 | H43: 73.61 | I43: 74.41 | J43: 59.52 | K43: 70.67
A44: 1218 泰山 | B44: M12B 油脂飼料 | C44: M12B 油脂飼料 | D44: 142.08 | E44: 170.14 | F44: 209.73 | G44: 171.71 | H44: 146.38 | I44: 172.86 | J44: 164.22 | K44: 154.1
A45: 1219 福壽 | B45: M12B 油脂飼料 | C45: M12B 油脂飼料 | D45: 184.99 | E45: 186.65 | F45: 164.58 | G45: 165.96 | H45: 148.04 | I45: 162.72 | J45: 170.13 | K45: 158.75
A46: 1220 台榮 | B46: M12B 油脂飼料 | C46: M12B 油脂飼料 | D46: 466.21 | E46: 467.65 | F46: 409.82 | G46: 499.29 | H46: 426.73 | I46: 490.86 | J46: 419.48 | K46: 453.2
A47: 1225 福懋油 | B47: M12B 油脂飼料 | C47: M12B 油脂飼料 | D47: 141.69 | E47: 166.47 | F47: 180.1 | G47: 169.32 | H47: 186.03 | I47: 246.56 | J47: 225.08 | K47: 192.27
A48: 1227 佳格 | B48: M12Z 其他食品 | C48: M12Z 其他食品 | D48: 215.36 | E48: 253.16 | F48: 240.99 | G48: 248.17 | H48: 213.72 | I48: 273.2 | J48: 227.76 | K48: 232.72
A49: 1229 聯華 | B49: M12B 油脂飼料 | C49: M12B 油脂飼料 | D49: 89.23 | E49: 88.67 | F49: 94.72 | G49: 91.32 | H49: 84.69 | I49: 92.22 | J49: 57.13 | K49: 62.31
A50: 1231 聯華食 | B50: M12Z 其他食品 | C50: M12Z 其他食品 | D50: 143.17 | E50: 157.34 | F50: 145.96 | G50: 138.83 | H50: 136.13 | I50: 156.72 | J50: 160.03 | K50: 148.65
A51: 1232 大統益 | B51: M12B 油脂飼料 | C51: M12B 油脂飼料 | D51: 223.31 | E51: 309.74 | F51: 337.41 | G51: 331.05 | H51: 252.12 | I51: 406.79 | J51: 327.27 | K51: 296.22
A52: 1233 天仁 | B52: M12Z 其他食品 | C52: M12Z 其他食品 | D52: 120.36 | E52: 156.38 | F52: 147.38 | G52: 143.14 | H52: 132.58 | I52: 174.49 | J52: 184.43 | K52: 179.93
A53: 1234 黑松 | B53: M12C 飲料乳品 | C53: M12C 飲料乳品 | D53: 261.44 | E53: 322.96 | F53: 316.44 | G53: 256.61 | H53: 222.33 | I53: 279.59 | J53: 255.14 | K53: 219.49
A54: 1235 興泰 | B54: M12B 油脂飼料 | C54: M12B 油脂飼料 | D54: 230.89 | E54: 197.64 | F54: 204.1 | G54: 207.42 | H54: 277.57 | I54: 266.7 | J54: 290.93 | K54: 338.98
A55: 1236 宏亞 | B55: M12Z 其他食品 | C55: M12Z 其他食品 | D55: 138.31 | E55: 159.55 | F55: 144.97 | G55: 142.25 | H55: 142.85 | I55: 204.95 | J55: 131.87 | K55: 155.28
A56: 1237 台糖 | B56: M12Z 其他食品 | C56: M12Z 其他食品 | D56: 185.69 | F56: 232.79 | H56: 166.77 | J56: 263.42
A57: 1240 茂生農經 | B57: M12B 油脂飼料 | C57: M12B 油脂飼料 | D57: 165.23 | E57: 157.54 | F57: 166.53 | G57: 174.21 | H57: 248.88 | I57: 218.44 | J57: 226.64 | K57: 234.8
A58: 1242 新東陽 | B58: M12A 罐頭加工 | C58: M12A 罐頭加工 | D58: 215.22 | F58: 207.07 | H58: 211.66 | J58: 212.53
A59: 1246 中聯油脂 | B59: M12B 油脂飼料 | C59: M12B 油脂飼料 | D59: 64.87 | F59: 72.06 | H59: 77.45 | J59: 86.37
A60: 1256 鮮活果汁-KY | B60: M12C 飲料乳品 | C60: M12C 飲料乳品 | D60: 141.34 | E60: 157.65 | F60: 153.43 | G60: 149.46 | H60: 142.21 | I60: 182.63 | J60: 190.38 | K60: 183.89
A61: 1258 其祥-KY | B61: M12Z 其他食品 | C61: M12Z 其他食品 | D61: 97.41 | E61: 87.57 | F61: 93.69 | G61: 97.05 | H61: 100.1 | I61: 106.38 | J61: 110.86 | K61: 120.68
A62: 1259 安心 | B62: M27A 餐飲飯店 | C62: M27A2 餐飲業 | D62: 136.91 | E62: 141.95 | F62: 156.52 | G62: 150.94 | H62: 147.62 | I62: 155.2 | J62: 207.57 | K62: 204.56
A63: 1260 富味鄉 | B63: M12B 油脂飼料 | C63: M12B 油脂飼料 | D63: 158.87 | F63: 149.18 | H63: 160.79 | J63: 156.52
A64: 1264 德麥 | B64: M12Z 其他食品 | C64: M12Z 其他食品 | D64: 325.6 | E64: 552.59 | F64: 455.07 | G64: 509.37 | H64: 323.88 | I64: 555.18 | J64: 489.91 | K64: 564.05
A65: 1267 京華堂 | B65: M12Z 其他食品 | C65: M12Z 其他食品 | D65: 366.36 | F65: 334.34 | H65: 645.98 | J65: 629.78
A66: 1268 漢來美食 | B66: M27A 餐飲飯店 | C66: M27A2 餐飲業 | D66: 137.22 | E66: 161.34 | F66: 141.45 | G66: 138.7 | H66: 112.7 | I66: 136.33 | J66: 136.06 | K66: 138.65
A67: 1269 乾杯 | B67: M27A 餐飲飯店 | C67: M27A2 餐飲業 | D67: 135.91 | F67: 136.24 | H67: 119.68 | I67: 120.29 | J67: 153.35
A68: 1271 晨暉生技 | B68: M17C 藥 | C68: M17C2 機能性食品 | D68: 882.04 | F68: 615.82 | H68: 608.66 | J68: 370.04
A69: 1293 利統 | B69: M12Z 其他食品 | C69: M12Z 其他食品 | D69: 132.52 | F69: 128.21 | H69: 129.64 | J69: 156.55
A70: 1301 台塑 | B70: M13A 石化 | C70: M13A1 泛用塑膠 | D70: 151.98 | E70: 167 | F70: 196.7 | G70: 264.91 | H70: 208.18 | I70: 295.47 | J70: 221.87 | K70: 240.59
A71: 1303 南亞 | B71: M13A 石化 | C71: M13A1 泛用塑膠 | D71: 179.14 | E71: 213.79 | F71: 224.48 | G71: 207.66 | H71: 193.51 | I71: 273.57 | J71: 257.09 | K71: 245.43
A72: 1304 台聚 | B72: M13A 石化 | C72: M13A1 泛用塑膠 | D72: 224.51 | E72: 266.86 | F72: 221.78 | G72: 211.9 | H72: 216.93 | I72: 208.4 | J72: 205.43 | K72: 238.34
A73: 1305 華夏 | B73: M13A 石化 | C73: M13A1 泛用塑膠 | D73: 259.91 | E73: 313.63 | F73: 287.7 | G73: 298.43 | H73: 222.5 | I73: 295.26 | J73: 299.58 | K73: 307.67
A74: 1307 三芳 | B74: M13A 石化 | C74: M13A6 合成皮 | D74: 221.9 | E74: 198.82 | F74: 216.76 | G74: 221.38 | H74: 218.31 | I74: 220.32 | J74: 209.75 | K74: 203.14
A75: 1308 亞聚 | B75: M13A 石化 | C75: M13A1 泛用塑膠 | D75: 154.85 | E75: 166.61 | F75: 200.03 | G75: 179.16 | H75: 179.86 | I75: 205.39 | J75: 176.93 | K75: 196
A76: 1309 台達化 | B76: M13A 石化 | C76: M13A1 泛用塑膠 | D76: 197.07 | E76: 247.77 | F76: 210.71 | G76: 189.59 | H76: 191.22 | I76: 182.52 | J76: 162.56 | K76: 154.58
A77: 1310 台苯 | B77: M13A 石化 | C77: M13A1 泛用塑膠 | D77: 149.39 | E77: 195.11 | F77: 178.02 | G77: 180.85 | H77: 139.45 | I77: 193.22 | J77: 172.55 | K77: 167.85
A78: 1312 國喬 | B78: M13A 石化 | C78: M13A1 泛用塑膠 | D78: 576.83 | E78: 614.88 | F78: 461.53 | G78: 456.86 | H78: 453.09 | I78: 427.01 | J78: 377.19 | K78: 349.11
A79: 1313 聯成 | B79: M13A 石化 | C79: M13A7 可塑劑 | D79: 181.76 | E79: 170.02 | F79: 175.58 | G79: 163.16 | H79: 170.58 | I79: 190.71 | J79: 196.25 | K79: 134.45
A80: 1314 中石化 | B80: M13A 石化 | C80: M13A5 化纖 | D80: 250.9 | E80: 262.92 | F80: 274.4 | G80: 239.55 | H80: 277.21 | I80: 314.51 | J80: 288.76 | K80: 409.86
A81: 1315 達新 | B81: M13A 石化 | C81: M13A8 塑膠加工 | D81: 826.5 | E81: 489.11 | F81: 531.58 | G81: 534.08 | H81: 412.14 | I81: 339.52 | J81: 340.34 | K81: 373.22
A82: 1316 上曜 | B82: M25A 建設 | C82: M25A 建設 | D82: 138.97 | E82: 141.88 | F82: 142.03 | G82: 172.92 | H82: 191.36 | I82: 236.89 | J82: 240.32 | K82: 205.25
A83: 1319 東陽 | B83: M15D 汽車組件 | C83: M15D 汽車組件 | D83: 109.65 | E83: 120.06 | F83: 115.97 | G83: 123.2 | H83: 111.16 | I83: 118.62 | J83: 120.74 | K83: 120.87
A84: 1321 大洋 | B84: M13A 石化 | C84: M13A8 塑膠加工 | D84: 186.45 | E84: 207.17 | F84: 173.76 | G84: 117.06 | H84: 185.13 | I84: 181.87 | J84: 166.54 | K84: 165.88
A85: 1323 永裕 | B85: M13A 石化 | C85: M13A8 塑膠加工 | D85: 317.87 | E85: 313.21 | F85: 407.87 | G85: 423.7 | H85: 363.95 | I85: 380.12 | J85: 380.57 | K85: 402.07
A86: 1324 地球 | B86: M13A 石化 | C86: M13A9 膠帶 | D86: 337.6 | E86: 350.13 | F86: 354 | G86: 323.52 | H86: 293.64 | I86: 318.58 | J86: 307.65 | K86: 309.91
A87: 1325 恒大 | B87: M14F 不織布 | C87: M14F 不織布 | D87: 478.03 | E87: 608.24 | F87: 1880.99 | G87: 2617.13 | H87: 1014.44 | I87: 2208.97 | J87: 1746.96 | K87: 1647.3
A88: 1326 台化 | B88: M13A 石化 | C88: M13A1 泛用塑膠 | D88: 188.02 | E88: 207.88 | F88: 259.58 | G88: 273.72 | H88: 220.82 | I88: 266.91 | J88: 240.04 | K88: 248.6
A89: 1328 中油 | B89: M13C 輕油製解 | C89: M13C 輕油製解 | D89: 68.04 | F89: 81.17 | H89: 89.74 | J89: 79.91
A90: 1333 恩得利 | B90: M23D 電子零組件 | C90: M23D2 連接器 | G90: 118.46 | H90: 117.32 | I90: 116.27 | J90: 121.1 | K90: 120.66
A91: 1336 台翰 | B91: M23D 電子零組件 | C91: M23D4 機殼 | D91: 166.41 | E91: 149.18 | F91: 147.62 | G91: 142.71 | H91: 139.78 | I91: 144.58 | J91: 135.44 | K91: 142.65
A92: 1337 再生-KY | B92: M13B 塑膠製品 | C92: M13B 塑膠製品 | D92: 666.28 | E92: 825.73 | F92: 607.08 | G92: 906.14 | H92: 911.76 | I92: 794.7 | J92: 713.27 | K92: 889
A93: 1338 廣華-KY | B93: M15D 汽車組件 | C93: M15D 汽車組件 | D93: 177.41 | E93: 211.37 | F93: 195.58 | G93: 200.12 | H93: 206.96 | I93: 231.94 | J93: 218.96 | K93: 228
A94: 1339 昭輝 | B94: M15D 汽車組件 | C94: M15D 汽車組件 | D94: 177.45 | E94: 209.02 | F94: 174.56 | G94: 177.3 | H94: 159.23 | I94: 138.96 | J94: 144.46 | K94: 118.38
A95: 1340 勝悅-KY | B95: M13B 塑膠製品 | C95: M13B 塑膠製品 | D95: 2164.49 | E95: 3021.38 | F95: 1846.7 | G95: 2085.25 | H95: 1861.55 | I95: 1803.62 | J95: 2239.36 | K95: 1798.57
A96: 1341 富林-KY | B96: M13A 石化 | C96: M13A6 合成皮 | D96: 135.08 | E96: 177.15 | F96: 177.52 | G96: 171.82 | H96: 141.31 | I96: 170.08 | J96: 151.19 | K96: 124.43
A97: 1342 八貫 | B97: M13B 塑膠製品 | C97: M13B 塑膠製品 | D97: 224.54 | E97: 235.96 | F97: 189.99 | H97: 192.15 | I97: 180.34 | J97: 172.97
A98: 1343 旭東 | B98: M13B 塑膠製品 | C98: M13B 塑膠製品 | D98: 101.82 | F98: 108.82 | H98: 59.46 | J98: 69.48
A99: 1402 遠東新 | B99: M14A 人纖 | C99: M14A1 聚酯絲棉 | D99: 97.61 | E99: 85.12 | F99: 103.59 | G99: 82.18 | H99: 96.11 | I99: 100.27 | J99: 100.24 | K99: 103.73
A100: 1408 中紡 | B100: M14A 人纖 | C100: M14A1 聚酯絲棉 | D100: 41.81 | F100: 46.09 | H100: 47.94 | J100: 53.19
A101: 1409 新纖 | B101: M14A 人纖 | C101: M14A1 聚酯絲棉 | D101: 94.87 | E101: 93.68 | F101: 92.91 | G101: 91.86 | H101: 89.73 | I101: 91.03 | J101: 89.98 | K101: 88.61
A102: 1410 南染 | B102: M14E 染整 | C102: M14E 染整 | D102: 489.09 | E102: 538.96 | F102: 1095.47 | G102: 471.26 | H102: 482.4 | I102: 1035.17 | J102: 836.33 | K102: 748.11
A103: 1413 宏洲 | B103: M14A 人纖 | C103: M14A2 加工絲 | D103: 80.83 | E103: 88.69 | F103: 93.35 | G103: 98.37 | H103: 109.02 | I103: 110.73 | J103: 111.74 | K103: 107.3
A104: 1414 東和 | B104: M14B 棉紡 | C104: M14B1 聚酯紗棉紗 | D104: 154.12 | E104: 151.55 | F104: 150.93 | G104: 117.71 | H104: 123.05 | I104: 129.39 | J104: 130.48 | K104: 135.15
A105: 1416 廣豐 | B105: M29A 百貨批發 | C105: M29A1 百貨購物中 | D105: 121.58 | E105: 112.91 | F105: 115.4 | G105: 113.34 | H105: 108.74 | I105: 235.93 | J105: 248.67 | K105: 145.86
A106: 1417 嘉裕 | B106: M14C 成衣 | C106: M14C1 成衣製造 | D106: 514.04 | E106: 566.8 | F106: 254.53 | G106: 528.88 | H106: 521.22 | I106: 426.65 | J106: 278.99 | K106: 296.4
A107: 1418 東華 | B107: M14B 棉紡 | C107: M14B2 亞克力纖維 | D107: 335.8 | E107: 398.57 | F107: 142.62 | G107: 159.88 | H107: 168.26 | I107: 180.07 | J107: 586.98 | K107: 504.93
A108: 1419 新紡 | B108: M14C 成衣 | C108: M14C2 織布 | D108: 67.49 | E108: 63.58 | F108: 81 | G108: 76.03 | H108: 72.5 | I108: 75.97 | J108: 72.34 | K108: 76.12
A109: 1423 利華 | B109: M14D 毛紡 | C109: M14D2 毛紡 | D109: 5976.35 | E109: 6272.5 | F109: 5518.2 | G109: 4672.98 | H109: 5339.68 | I109: 4612.52 | J109: 4043.81 | K109: 429.22
A110: 1432 大魯閣 | B110: M29A 百貨批發 | C110: M29A1 百貨購物中 | D110: 105.51 | E110: 88.26 | F110: 91.57 | G110: 97.46 | H110: 80.59 | I110: 84.1 | J110: 150.56 | K110: 151.36
A111: 1434 福懋 | B111: M14C 成衣 | C111: M14C2 織布 | D111: 138.95 | E111: 191.57 | F111: 206.45 | G111: 231.82 | H111: 195.25 | I111: 258.9 | J111: 258.63 | K111: 282.15
A112: 1435 中福 | B112: M23E 網路設備 | C112: M23E1 數據機 | D112: 7755.69 | E112: 8015.95 | F112: 11882.1 | G112: 5588.48 | H112: 7944.7 | I112: 8257.88 | J112: 14150.06 | K112: 2501.01
A113: 1436 華友聯 | B113: M25A 建設 | C113: M25A 建設 | D113: 135.43 | E113: 171.59 | F113: 191.74 | G113: 153.52 | H113: 167.52 | I113: 202.42 | J113: 191.61 | K113: 173.66
A114: 1437 勤益控 | B114: M25F 物業管理 | C114: M25F 物業管理 | D114: 299.59 | E114: 739.36 | F114: 536.67 | G114: 579.84 | H114: 561.48 | I114: 703.66 | J114: 799.21 | K114: 796.69
A115: 1438 三地開發 | B115: M25A 建設 | C115: M25A 建設 | D115: 17929.5 | E115: 29152.01 | F115: 71149.48 | G115: 32926.5 | H115: 30722.9 | I115: 40256.96 | J115: 43344.07 | K115: 33338.38
A116: 1439 中和 | B116: M14D 毛紡 | C116: M14D2 毛紡 | D116: 428 | E116: 11818.23 | F116: 13744.81 | G116: 2730.05 | H116: 3071.48 | I116: 1274.15 | J116: 1294.23 | K116: 8194.94
A117: 1440 南紡 | B117: M14A 人纖 | C117: M14A1 聚酯絲棉 | D117: 100.86 | E117: 96.84 | F117: 94.79 | G117: 94.72 | H117: 97.41 | I117: 104.85 | J117: 108.53 | K117: 111.35
A118: 1441 大東 | B118: M14B 棉紡 | C118: M14B1 聚酯紗棉紗 | D118: 62.95 | E118: 68.46 | F118: 72.73 | G118: 78.79 | H118: 78.45 | I118: 83.59 | J118: 81.65 | K118: 92.38
A119: 1442 名軒 | B119: M25A 建設 | C119: M25A 建設 | D119: 416.32 | E119: 607.14 | F119: 594.71 | G119: 579.31 | H119: 326.08 | I119: 294.17 | J119: 285.44 | K119: 315.03
A120: 1443 立益 | B120: M14B 棉紡 | C120: M14B1 聚酯紗棉紗 | D120: 14.93 | E120: 15.38 | F120: 16.36 | G120: 17.18 | H120: 19.38 | I120: 21.09 | J120: 20.36 | K120: 23.12
A121: 1444 力麗 | B121: M14A 人纖 | C121: M14A2 加工絲 | D121: 103.29 | E121: 110.5 | F121: 120.15 | G121: 121.49 | H121: 126.91 | I121: 138.69 | J121: 138.97 | K121: 119.75
A122: 1445 大宇 | B122: M14C 成衣 | C122: M14C2 織布 | D122: 411.21 | E122: 589.74 | F122: 509.35 | G122: 597.05 | H122: 579.56 | I122: 571.68 | J122: 494.01 | K122: 590.37
A123: 1446 宏和 | B123: M14C 成衣 | C123: M14C2 織布 | D123: 659 | E123: 173.81 | F123: 173.66 | G123: 152.14 | H123: 144.95 | I123: 572.6 | J123: 584.71 | K123: 607.65
A124: 1447 力鵬 | B124: M14A 人纖 | C124: M14A7 尼龍絲 | D124: 93.85 | E124: 106.89 | F124: 123.68 | G124: 131.51 | H124: 133.33 | I124: 148.64 | J124: 150.94 | K124: 144.91
A125: 1449 佳和 | B125: M14C 成衣 | C125: M14C2 織布 | D125: 114.48 | E125: 64.23 | F125: 39.25 | G125: 65.87 | H125: 73.4 | I125: 77.65 | J125: 92.07 | K125: 81.83
A126: 1451 年興 | B126: M14C 成衣 | C126: M14C1 成衣製造 | D126: 353.76 | E126: 362.47 | F126: 362.9 | G126: 357.75 | H126: 364.13 | I126: 404.73 | J126: 346.91 | K126: 280.86
A127: 1452 宏益 | B127: M14A 人纖 | C127: M14A2 加工絲 | D127: 692.33 | E127: 1676.64 | F127: 1198.86 | G127: 1414.93 | H127: 542.12 | I127: 1205.65 | J127: 809.97 | K127: 1110.28
A128: 1453 大將 | B128: M25A 建設 | C128: M25A 建設 | D128: 8829.34 | E128: 2294.18 | F128: 2860.01 | G128: 3614.66 | H128: 3704.56 | I128: 6358.85 | J128: 5937.96 | K128: 7388.57
A129: 1454 台富 | B129: M14C 成衣 | C129: M14C2 織布 | D129: 279.91 | E129: 237.92 | F129: 254.11 | G129: 268.46 | H129: 271.23 | I129: 271.37 | J129: 265.99 | K129: 302.18
A130: 1455 集盛 | B130: M14A 人纖 | C130: M14A7 尼龍絲 | D130: 152.12 | E130: 149.62 | F130: 167.45 | G130: 154.27 | H130: 152.07 | I130: 158.87 | J130: 156.11 | K130: 150.47
A131: 1456 怡華 | B131: M14C 成衣 | C131: M14C2 織布 | D131: 180.46 | E131: 170.32 | F131: 167.9 | G131: 160.99 | H131: 164.76 | I131: 166.84 | J131: 167.77 | K131: 147.97
A132: 1457 宜進 | B132: M14A 人纖 | C132: M14A2 加工絲 | D132: 118.31 | E132: 90.46 | F132: 102.87 | G132: 99.23 | H132: 98.39 | I132: 110.7 | J132: 96.9 | K132: 84
A133: 1459 聯發 | B133: M14A 人纖 | C133: M14A2 加工絲 | D133: 97.63 | E133: 97.63 | F133: 139.82 | G133: 123.92 | H133: 133.84 | I133: 125.55 | J133: 127.22 | K133: 130.83
A134: 1460 宏遠 | B134: M14C 成衣 | C134: M14C2 織布 | D134: 129.94 | E134: 109.7 | F134: 114.36 | G134: 108.23 | H134: 103.52 | I134: 100.9 | J134: 97.97 | K134: 105.02
A135: 1463 強盛 | B135: M14E 染整 | C135: M14E 染整 | D135: 634.32 | E135: 885.31 | F135: 999.43 | G135: 911.44 | H135: 390.65 | I135: 864 | J135: 899.48 | K135: 776.95
A136: 1464 得力 | B136: M14C 成衣 | C136: M14C2 織布 | D136: 105.26 | E136: 117.33 | F136: 120.12 | G136: 121.4 | H136: 113.32 | I136: 115.66 | J136: 87.75 | K136: 111.83
A137: 1465 偉全 | B137: M14C 成衣 | C137: M14C2 織布 | D137: 537.32 | E137: 795.43 | F137: 891.47 | G137: 899.73 | H137: 1040.17 | I137: 776.23 | J137: 525.14 | K137: 507.19
A138: 1466 聚隆 | B138: M14A 人纖 | C138: M14A7 尼龍絲 | D138: 187.01 | E138: 199.99 | F138: 207.27 | G138: 208.19 | H138: 216.64 | I138: 142 | J138: 141.36 | K138: 140.84
A139: 1467 南緯 | B139: M14C 成衣 | C139: M14C1 成衣製造 | D139: 125.04 | E139: 142.5 | F139: 138.16 | G139: 141.99 | H139: 140.75 | I139: 140.7 | J139: 138.57 | K139: 123.5
A140: 1468 昶和 | B140: M14C 成衣 | C140: M14C2 織布 | D140: 174.2 | E140: 190.57 | F140: 188.66 | G140: 195.2 | H140: 187.18 | I140: 222.19 | J140: 231.53 | K140: 155.54
A141: 1470 大統新創 | B141: M14E 染整 | C141: M14E 染整 | D141: 345.93 | E141: 294.96 | F141: 399.66 | G141: 384.63 | H141: 337.7 | I141: 387.69 | J141: 357.81 | K141: 361.41
A142: 1471 首利 | B142: M23D 電子零組件 | C142: M23D3 電源供應器 | D142: 90.37 | E142: 91.25 | F142: 97.48 | G142: 93.72 | H142: 106.31 | I142: 117.87 | J142: 112.02 | K142: 119.99
A143: 1472 三洋紡 | B143: M14A 人纖 | C143: M14A7 尼龍絲 | D143: 106.03 | E143: 111.52 | F143: 123.12 | G143: 126.32 | H143: 163.88 | I143: 139.86 | J143: 61.03 | K143: 61.73
A144: 1473 台南 | B144: M14C 成衣 | C144: M14C1 成衣製造 | D144: 178.51 | E144: 188.01 | F144: 175.14 | G144: 183.09 | H144: 164.68 | I144: 165.86 | J144: 165.67 | K144: 163.89
A145: 1474 弘裕 | B145: M14C 成衣 | C145: M14C2 織布 | D145: 162.38 | E145: 165.2 | F145: 157.89 | G145: 131.16 | H145: 125.97 | I145: 130.11 | J145: 132.33 | K145: 126.92
A146: 1475 本盟 | B146: M14C 成衣 | C146: M14C2 織布 | D146: 426.72 | E146: 100.73 | F146: 107.08 | G146: 116.34 | H146: 87.88 | I146: 108.19 | J146: 129.66 | K146: 104
A147: 1476 儒鴻 | B147: M14C 成衣 | C147: M14C1 成衣製造 | D147: 169.94 | E147: 256.23 | F147: 237.89 | G147: 225.5 | H147: 161.92 | I147: 241.16 | J147: 219.34 | K147: 192.21
A148: 1477 聚陽 | B148: M14C 成衣 | C148: M14C1 成衣製造 | D148: 146.87 | E148: 190.19 | F148: 177.31 | G148: 170.75 | H148: 146.87 | I148: 198.16 | J148: 181.91 | K148: 185.51
A149: 1480 東盟開發 | B149: M20A 金屬基本 | C149: M20A6 不銹鋼 | D149: 93.71 | F149: 99.32 | H149: 99.66 | J149: 105.37
A150: 1489 日南紡織 | B150: M14B 棉紡 | C150: M14B1 聚酯紗棉紗 | D150: 2547.66 | F150: 2824.97 | H150: 3677.6 | J150: 3620.02
A151: 1503 士電 | B151: M15B 電機製品 | C151: M15B1 電機 | D151: 135 | E151: 141.31 | F151: 132.48 | G151: 129.58 | H151: 126.46 | I151: 131.7 | J151: 128.18 | K151: 126.36
A152: 1504 東元 | B152: M15B 電機製品 | C152: M15B1 電機 | D152: 212.01 | E152: 187.75 | F152: 216.55 | G152: 213.91 | H152: 201.44 | I152: 248.92 | J152: 241.22 | K152: 244.9
A153: 1506 正道 | B153: M15D 汽車組件 | C153: M15D 汽車組件 | D153: 115.8 | E153: 82.06 | F153: 87.75 | G153: 93.89 | H153: 106.02 | I153: 112.54 | J153: 117.44 | K153: 150.85
A154: 1507 永大 | B154: M15B 電機製品 | C154: M15B1 電機 | D154: 137.53 | E154: 151.73 | F154: 149.71 | G154: 147.05 | H154: 139.45 | I154: 152.23 | J154: 147.15 | K154: 143.86
A155: 1512 瑞利 | B155: M15D 汽車組件 | C155: M15D 汽車組件 | D155: 94.33 | E155: 95.06 | F155: 92.73 | G155: 98.26 | H155: 95.41 | I155: 92.99 | J155: 103.07 | K155: 107.71
A156: 1513 中興電 | B156: M15B 電機製品 | C156: M15B1 電機 | D156: 143.94 | E156: 141.9 | F156: 145.87 | G156: 108.63 | H156: 105.64 | I156: 104.76 | J156: 119.86 | K156: 128.84
A157: 1514 亞力 | B157: M15B 電機製品 | C157: M15B1 電機 | D157: 147.96 | E157: 158.24 | F157: 154.56 | G157: 148.48 | H157: 146.8 | I157: 153.36 | J157: 148.31 | K157: 157.83
A158: 1515 力山 | B158: M15A 機械業 | C158: M15A1 工具機 | D158: 121.45 | E158: 139.21 | F158: 122.52 | G158: 121.82 | H158: 116.26 | I158: 124.51 | J158: 109.08 | K158: 104.03
A159: 1516 川飛 | B159: M99Z 其他 | C159: M99ZC 其他製造業 | D159: 719.77 | E159: 488.61 | F159: 501.95 | G159: 581.23 | H159: 542.81 | I159: 16365.73 | J159: 1377.3 | K159: 419.41
A160: 1517 利奇 | B160: M15E 自行車組件 | C160: M15E 自行車組件 | D160: 326.42 | E160: 409.83 | F160: 346.69 | G160: 360.1 | H160: 346.86 | I160: 365.64 | J160: 347.41 | K160: 355.65
A161: 1519 華城 | B161: M15B 電機製品 | C161: M15B1 電機 | D161: 145.52 | E161: 141.69 | F161: 153.25 | G161: 138.88 | H161: 148.63 | I161: 153.82 | J161: 185.52 | K161: 167.96
A162: 1521 大億 | B162: M15D 汽車組件 | C162: M15D 汽車組件 | D162: 130.69 | E162: 154.41 | F162: 146.34 | G162: 139.58 | H162: 132.19 | I162: 163.79 | J162: 148.89 | K162: 138.07
A163: 1522 堤維西 | B163: M15D 汽車組件 | C163: M15D 汽車組件 | D163: 120.84 | E163: 122.18 | F163: 123.25 | G163: 117.69 | H163: 116.32 | I163: 117.27 | J163: 116.71 | K163: 118.74
A164: 1524 耿鼎 | B164: M15D 汽車組件 | C164: M15D 汽車組件 | D164: 116.15 | E164: 108.98 | F164: 96.89 | G164: 96.75 | H164: 99.8 | I164: 106.09 | J164: 108.32 | K164: 98.05
A165: 1525 江申 | B165: M15D 汽車組件 | C165: M15D 汽車組件 | D165: 149.43 | E165: 178.28 | F165: 175.83 | G165: 178.4 | H165: 159.23 | I165: 129.38 | J165: 122.02 | K165: 99.99
A166: 1526 日馳 | B166: M15E 自行車組件 | C166: M15E 自行車組件 | D166: 212.47 | E166: 253.71 | F166: 247.89 | G166: 159.12 | H166: 190.78 | I166: 241.88 | J166: 222.84 | K166: 161.16
A167: 1527 鑽全 | B167: M15A 機械業 | C167: M15A1 工具機 | D167: 446.76 | E167: 591.07 | F167: 505.68 | G167: 129.08 | H167: 123.4 | I167: 127.14 | J167: 125.04 | K167: 122.33
A168: 1528 恩德 | B168: M15A 機械業 | C168: M15A1 工具機 | D168: 137.35 | E168: 146.35 | F168: 150.62 | G168: 150.39 | H168: 160.28 | I168: 165.85 | J168: 159.75 | K168: 157.73
A169: 1529 樂士 | B169: M15B 電機製品 | C169: M15B1 電機 | D169: 220.51 | E169: 197.34 | F169: 170.48 | G169: 225.1 | H169: 194.48 | I169: 204.11 | J169: 230.21 | K169: 450.57
A170: 1530 亞崴 | B170: M15A 機械業 | C170: M15A1 工具機 | D170: 131.73 | E170: 142.61 | F170: 115.39 | G170: 119.92 | H170: 118.55 | I170: 118.77 | J170: 117.45 | K170: 117.55
A171: 1531 高林股 | B171: M15A 機械業 | C171: M15A3 紡織工具機 | D171: 607.04 | E171: 773.64 | F171: 802.77 | G171: 661.67 | H171: 571.06 | I171: 622.78 | J171: 515.78 | K171: 406.32
A172: 1532 勤美 | B172: M15A 機械業 | C172: M15A2 模具零件 | D172: 164.11 | E172: 156.43 | F172: 169.46 | G172: 153.8 | H172: 163.59 | I172: 186.12 | J172: 198.56 | K172: 178.54
A173: 1533 車王電 | B173: M15D 汽車組件 | C173: M15D 汽車組件 | D173: 193.01 | E173: 194.73 | F173: 169.73 | G173: 159.49 | H173: 159.62 | I173: 156.76 | J173: 155.6 | K173: 188.21
A174: 1535 中宇 | B174: M15B 電機製品 | C174: M15B2 機電工程 | D174: 177.58 | E174: 173.3 | F174: 169.15 | G174: 162.43 | H174: 158.67 | I174: 174.3 | J174: 149.13 | K174: 157.26
A175: 1536 和大 | B175: M15D 汽車組件 | C175: M15D 汽車組件 | D175: 94.62 | E175: 116.04 | F175: 106.19 | G175: 114.04 | H175: 112.12 | I175: 118.62 | J175: 129.37 | K175: 138.28
A176: 1537 廣隆 | B176: M23D 電子零組件 | C176: M23D7 3C二次電池 | D176: 265.47 | E176: 551.34 | F176: 422.62 | G176: 331.39 | H176: 284.41 | I176: 441.07 | J176: 296.4 | K176: 265.6
A177: 1538 正峰 | B177: M15A 機械業 | C177: M15A1 工具機 | D177: 212.84 | E177: 251.54 | F177: 179.69 | G177: 68.5 | H177: 71.63 | I177: 71.28 | J177: 75.35 | K177: 79.92
A178: 1539 巨庭 | B178: M15A 機械業 | C178: M15A1 工具機 | D178: 125.64 | E178: 134.7 | F178: 141.34 | G178: 152.98 | H178: 152.61 | I178: 155.65 | J178: 154.66 | K178: 131.45
A179: 1540 喬福 | B179: M15A 機械業 | C179: M15A1 工具機 | D179: 461.31 | E179: 635.84 | F179: 626.48 | G179: 651.68 | H179: 370.85 | I179: 355.63 | J179: 340.04 | K179: 347.02
A180: 1541 錩泰 | B180: M15A 機械業 | C180: M15A1 工具機 | D180: 153.13 | E180: 151.3 | F180: 136.81 | G180: 127.23 | H180: 119.11 | I180: 127.23 | J180: 123.2 | K180: 124.96
A181: 1550 台全電機 | B181: M15D 汽車組件 | C181: M15D 汽車組件 | D181: 292.26 | F181: 239.44 | H181: 249.25 | J181: 218.54
A182: 1557 金豐 | B182: M15A 機械業 | C182: M15A1 工具機 | D182: 181.41 | F182: 179.77 | H182: 172.15 | J182: 174.08
A183: 1558 伸興 | B183: M15A 機械業 | C183: M15A3 紡織工具機 | D183: 225.2 | E183: 369.93 | F183: 325.06 | G183: 306.96 | H183: 257.76 | I183: 334.18 | J183: 309.99 | K183: 260.69
A184: 1560 中砂 | B184: M15A 機械業 | C184: M15A2 模具零件 | D184: 116.81 | E184: 142.3 | F184: 177.74 | G184: 166.91 | H184: 122.19 | I184: 166.55 | J184: 180.37 | K184: 159.53
A185: 1563 巧新 | B185: M15D 汽車組件 | C185: M15D 汽車組件 | D185: 200.98 | F185: 234.78 | H185: 238.89 | J185: 301.87
A186: 1565 精華 | B186: M17G 醫療耗材 | C186: M17G 醫療耗材 | D186: 178.17 | E186: 275.39 | F186: 233.2 | G186: 196.22 | H186: 155.08 | I186: 248.18 | J186: 216.38 | K186: 197.33
A187: 1568 倉佑 | B187: M15D 汽車組件 | C187: M15D 汽車組件 | D187: 164.16 | E187: 161.24 | F187: 174.99 | G187: 180.26 | H187: 165.61 | I187: 170.58 | J187: 176.34 | K187: 165.83
A188: 1569 濱川 | B188: M23D 電子零組件 | C188: M23D9A 沖壓零組件 | D188: 125.85 | E188: 134.14 | F188: 126.44 | G188: 115.12 | H188: 117.63 | I188: 118.55 | J188: 120.67 | K188: 128.12
A189: 1570 力肯 | B189: M15A 機械業 | C189: M15A1 工具機 | D189: 409.58 | E189: 509.19 | F189: 490.12 | G189: 404.11 | H189: 331.83 | I189: 437.12 | J189: 449.9 | K189: 383.32
A190: 1580 新麥 | B190: M15Z 其他電製品 | C190: M15Z 其他電製品 | D190: 186.26 | E190: 291.05 | F190: 231.92 | G190: 245.11 | H190: 187.33 | I190: 275.87 | J190: 236.68 | K190: 225.27
A191: 1582 信錦 | B191: M23D 電子零組件 | C191: M23D4 機殼 | D191: 180.59 | E191: 209.47 | F191: 202.08 | G191: 274.13 | H191: 232.08 | I191: 312.36 | J191: 275.78 | K191: 242.86
A192: 1583 程泰 | B192: M15A 機械業 | C192: M15A1 工具機 | D192: 142.86 | E192: 155.8 | F192: 139.25 | G192: 137.27 | H192: 131.94 | I192: 132.41 | J192: 131.79 | K192: 128.06
A193: 1584 精剛 | B193: M20A 金屬基本 | C193: M20A6 不銹鋼 | D193: 142.26 | E193: 138.61 | F193: 141.03 | G193: 81.09 | H193: 86.67 | I193: 86.35 | J193: 96.04 | K193: 98.07
A194: 1585 鎧鉅 | B194: M23B 主機板 | C194: M23B3X PCB上-其他 | D194: 758.21 | F194: 360.01 | H194: 391.37 | J194: 68.47
A195: 1586 和勤 | B195: M23D 電子零組件 | C195: M23D9A 沖壓零組件 | D195: 126.83 | E195: 114.27 | F195: 115.29 | G195: 114.49 | H195: 116.79 | I195: 122.13 | J195: 124.16 | K195: 133.65
A196: 1587 吉茂 | B196: M15D 汽車組件 | C196: M15D 汽車組件 | D196: 135.8 | E196: 127.47 | F196: 127.91 | G196: 127.5 | H196: 133.62 | I196: 143.87 | J196: 141.84 | K196: 145.82
A197: 1589 永冠-KY | B197: M15A 機械業 | C197: M15A2 模具零件 | D197: 200.51 | E197: 218.42 | F197: 219.02 | G197: 212.07 | H197: 201.87 | I197: 199.09 | J197: 218.55 | K197: 231.74
A198: 1590 亞德客-KY | B198: M15A 機械業 | C198: M15A2 模具零件 | D198: 103.28 | E198: 102.1 | F198: 101.86 | G198: 99.97 | H198: 97.78 | I198: 103.9 | J198: 100.51 | K198: 99.26
A199: 1591 駿吉-KY | B199: M15A 機械業 | C199: M15A1 工具機 | D199: 102.21 | E199: 107.68 | F199: 117.18 | G199: 131.48 | H199: 133.58 | I199: 143.76 | J199: 135.78 | K199: 134.47
A200: 1592 英瑞-KY | B200: M15D 汽車組件 | C200: M15D 汽車組件 | D200: 101.9 | E200: 100.98 | F200: 100.02 | G200: 99.37 | H200: 100.52 | I200: 100.57 | J200: 104.1 | K200: 128.7
... 2288 more rows

Sheet Liabilities Ratio (hidden)
B1: TEJ產業名 | C1: TEJ子產業名 | D1: 負債比率 | E1: 負債比率 | F1: 負債比率 | G1: 負債比率 | H1: 負債比率 | I1: 負債比率 | J1: 負債比率 | K1: 負債比率
A2: 公司 | D2: 2020-06-30 | E2: 2020-03-31 | F2: 2019-12-31 | G2: 2019-09-27 | H2: 2019-06-28 | I2: 2019-03-29 | J2: 2018-12-28 | K2: 2018-09-28
A3: 000104 臺銀證券 | B3: M30A 證券 | C3: M30A 證券 | F3: 68.67 | H3: 67.95 | J3: 56.21
A4: 000116 日盛證券 | B4: M30A 證券 | C4: M30A 證券 | D4: 67.33 | E4: 67.5 | F4: 66.52 | G4: 68.02 | H4: 68.25 | I4: 65.86 | J4: 64.35 | K4: 65.21
A5: 000218 亞東證券 | B5: M30A 證券 | C5: M30A 證券 | F5: 48.38 | H5: 46.99 | J5: 43.78
A6: 000511 富隆證券 | B6: M30A 證券 | C6: M30A 證券 | F6: 28.11 | H6: 24 | J6: 19.74
A7: 000532 高橋證券 | B7: M30A 證券 | C7: M30A 證券 | D7: 48.96 | F7: 37.56 | H7: 33.24 | J7: 28.5
A8: 000538 第一金證 | B8: M30A 證券 | C8: M30A 證券 | E8: 70.78 | F8: 72.45 | G8: 70.89 | H8: 70.34 | I8: 71.09 | J8: 69.14 | K8: 73.53
A9: 000546 寶盛證券 | B9: M30A 證券 | C9: M30A 證券 | D9: 12.16 | F9: 9.82 | H9: 10.13 | J9: 8.1
A10: 000560 永興證券 | B10: M30A 證券 | C10: M30A 證券 | D10: 38.84 | F10: 27.27 | H10: 21.22 | J10: 19.35
A11: 000587 光隆證券 | B11: M30A 證券 | C11: M30A 證券 | F11: 15.86 | H11: 22.54 | J11: 14.81
A12: 000601 奔亞證券 | B12: M30A 證券 | C12: M30A 證券 | F12: 42.69 | H12: 44.38 | J12: 43.11
A13: 000616 中信證券 | B13: M30A 證券 | C13: M30A 證券 | E13: 71.9 | F13: 73.24 | G13: 73.93 | H13: 71.5 | I13: 68.84 | J13: 64.02 | K13: 67.79
A14: 000638 光和證券 | B14: M30A 證券 | C14: M30A 證券 | F14: 53.3 | H14: 47.45 | J14: 44.83
A15: 000646 大昌證券 | B15: M30A 證券 | C15: M30A 證券 | F15: 65.44 | H15: 62.56 | J15: 59.47
A16: 000695 福勝證券 | B16: M30A 證券 | C16: M30A 證券 | D16: 43.78 | F16: 36.78 | H16: 26.78 | J16: 26.02
A17: 000700 兆豐證券 | B17: M30A 證券 | C17: M30A 證券 | E17: 75.62 | F17: 75.94 | G17: 74.55 | H17: 74.25 | I17: 72.25 | J17: 73.73 | K17: 77.17
A18: 000708 石橋證券 | B18: M30A 證券 | C18: M30A 證券 | D18: 40.76 | F18: 31.72 | H18: 27.91 | J18: 22.5
A19: 000775 北城證券 | B19: M30A 證券 | C19: M30A 證券 | F19: 53.2 | H19: 46.78 | J19: 39.3
A20: 000779 國票證券 | B20: M30A 證券 | C20: M30A 證券 | E20: 79.97 | F20: 80.19 | G20: 78.89 | H20: 79.92 | I20: 78.83 | J20: 78.71 | K20: 79.18
A21: 000815 台新證券 | B21: M30A 證券 | C21: M30A 證券 | E21: 79.89 | F21: 78.75 | G21: 78.16 | H21: 77.12 | I21: 78.82 | J21: 74.52 | K21: 76.61
A22: 000838 安泰證券 | B22: M30A 證券 | C22: M30A 證券 | F22: 36.72 | H22: 33.66 | J22: 26.42
A23: 000856 新光證券 | B23: M30A 證券 | C23: M30A 證券 | F23: 72.14 | H23: 68.58 | J23: 65.06
A24: 000888 國泰證券 | B24: M30A 證券 | C24: M30A 證券 | E24: 77.78 | F24: 76.2 | G24: 74.55 | H24: 76.41 | I24: 78.01 | J24: 74.13 | K24: 74.97
A25: 000930 華南永昌證券 | B25: M30A 證券 | C25: M30A 證券 | E25: 82.03 | F25: 72.65 | G25: 71.61 | H25: 72.46 | I25: 71.13 | J25: 68.33 | K25: 72.32
A26: 000960 富邦證券 | B26: M30A 證券 | C26: M30A 證券 | E26: 71.43 | F26: 73.03 | G26: 73.31 | H26: 73.96 | I26: 73.33 | J26: 71.17 | K26: 72.87
A27: 000980 元大證券 | B27: M30A 證券 | C27: M30A 證券 | D27: 85.54 | E27: 85.24 | F27: 84.46 | G27: 84.71 | H27: 85.53 | I27: 84.65 | J27: 83.3 | K27: 83.91
A28: 0009A0 永豐金證券 | B28: M30A 證券 | C28: M30A 證券 | E28: 79.28 | F28: 77.91 | G28: 77.48 | H28: 78.87 | I28: 78.57 | J28: 76.65 | K28: 80.55
A29: 1101 台泥 | B29: M11A 水泥製造 | C29: M11A 水泥製造 | D29: 48.9 | E29: 42.28 | F29: 43.27 | G29: 44.65 | H29: 46.87 | I29: 42.51 | J29: 42.64 | K29: 39.8
A30: 1102 亞泥 | B30: M11A 水泥製造 | C30: M11A 水泥製造 | D30: 46.16 | E30: 45.35 | F30: 43 | G30: 42.95 | H30: 45 | I30: 42.15 | J30: 43.03 | K30: 42.96
A31: 1103 嘉泥 | B31: M11A 水泥製造 | C31: M11A 水泥製造 | D31: 41.41 | E31: 40.81 | F31: 38.85 | G31: 36.94 | H31: 37.58 | I31: 37.21 | J31: 34.6 | K31: 30.43
A32: 1104 環泥 | B32: M11A 水泥製造 | C32: M11A 水泥製造 | D32: 24.8 | E32: 22.46 | F32: 22.64 | G32: 22.33 | H32: 24.04 | I32: 21.11 | J32: 21.03 | K32: 20.15
A33: 1108 幸福 | B33: M11A 水泥製造 | C33: M11A 水泥製造 | D33: 40.71 | E33: 42.11 | F33: 41.04 | G33: 42.32 | H33: 42.89 | I33: 43.87 | J33: 42.04 | K33: 39.48
A34: 1109 信大 | B34: M11A 水泥製造 | C34: M11A 水泥製造 | D34: 21.17 | E34: 17.48 | F34: 22.89 | G34: 21.58 | H34: 24.3 | I34: 19.45 | J34: 24.4 | K34: 20.25
A35: 1110 東泥 | B35: M11A 水泥製造 | C35: M11A 水泥製造 | D35: 12.5 | E35: 10.9 | F35: 12.01 | G35: 11.23 | H35: 11.86 | I35: 10.81 | J35: 7.95 | K35: 7.37
A36: 1111 欣欣水泥 | B36: M11A 水泥製造 | C36: M11A 水泥製造 | D36: 5.8 | F36: 5.93 | H36: 9.02 | J36: 7.23
A37: 1201 味全 | B37: M12C 飲料乳品 | C37: M12C 飲料乳品 | D37: 66.09 | E37: 66.93 | F37: 63.64 | G37: 64.67 | H37: 66.07 | I37: 64.12 | J37: 70.81 | K37: 72.53
A38: 1203 味王 | B38: M12Z 其他食品 | C38: M12Z 其他食品 | D38: 35.56 | E38: 33.66 | F38: 34.05 | G38: 35.36 | H38: 36.14 | I38: 35.15 | J38: 34.85 | K38: 37.82
A39: 1210 大成 | B39: M12B 油脂飼料 | C39: M12B 油脂飼料 | D39: 50.34 | E39: 52.69 | F39: 48.57 | G39: 49.99 | H39: 49.58 | I39: 47.37 | J39: 47.74 | K39: 48.71
A40: 1213 大飲 | B40: M12C 飲料乳品 | C40: M12C 飲料乳品 | D40: 56.42 | E40: 56.78 | F40: 55.5 | G40: 56.22 | H40: 55.66 | I40: 56.34 | J40: 55.73 | K40: 52.36
A41: 1215 卜蜂 | B41: M12B 油脂飼料 | C41: M12B 油脂飼料 | D41: 55.88 | E41: 53.34 | F41: 53.74 | G41: 57.43 | H41: 56.86 | I41: 53.71 | J41: 54.04 | K41: 54.69
A42: 1216 統一 | B42: M12C 飲料乳品 | C42: M12C 飲料乳品 | D42: 66.21 | E42: 62.15 | F42: 63.56 | G42: 63.58 | H42: 64.16 | I42: 60.81 | J42: 58.17 | K42: 58.52
A43: 1217 愛之味 | B43: M12A 罐頭加工 | C43: M12A 罐頭加工 | D43: 49.63 | E43: 50.6 | F43: 50.07 | G43: 51.46 | H43: 50.9 | I43: 50.25 | J43: 50.16 | K43: 51.83
A44: 1218 泰山 | B44: M12B 油脂飼料 | C44: M12B 油脂飼料 | D44: 28.45 | E44: 21.8 | F44: 28.43 | G44: 31.01 | H44: 32.72 | I44: 24.44 | J44: 27.3 | K44: 33.49
A45: 1219 福壽 | B45: M12B 油脂飼料 | C45: M12B 油脂飼料 | D45: 51.92 | E45: 52.02 | F45: 55.7 | G45: 56.67 | H45: 56.94 | I45: 54.51 | J45: 55.18 | K45: 56.19
A46: 1220 台榮 | B46: M12B 油脂飼料 | C46: M12B 油脂飼料 | D46: 19.08 | E46: 19.36 | F46: 21.31 | G46: 18.77 | H46: 21.28 | I46: 19.54 | J46: 22.09 | K46: 20.95
A47: 1225 福懋油 | B47: M12B 油脂飼料 | C47: M12B 油脂飼料 | D47: 53.61 | E47: 50.96 | F47: 52.87 | G47: 56.37 | H47: 52.78 | I47: 45.67 | J47: 43.96 | K47: 46.78
A48: 1227 佳格 | B48: M12Z 其他食品 | C48: M12Z 其他食品 | D48: 37.22 | E48: 31.93 | F48: 33.5 | G48: 31.41 | H48: 34.98 | I48: 27.86 | J48: 33.16 | K48: 31.97
A49: 1229 聯華 | B49: M12B 油脂飼料 | C49: M12B 油脂飼料 | D49: 23.29 | E49: 19.92 | F49: 19.15 | G49: 22.58 | H49: 21.36 | I49: 18.41 | J49: 18.98 | K49: 17.7
A50: 1231 聯華食 | B50: M12Z 其他食品 | C50: M12Z 其他食品 | D50: 57.99 | E50: 50.15 | F50: 51.06 | G50: 53.8 | H50: 54.75 | I50: 50.99 | J50: 50.91 | K50: 54.38
A51: 1232 大統益 | B51: M12B 油脂飼料 | C51: M12B 油脂飼料 | D51: 41.69 | E51: 31.22 | F51: 28.86 | G51: 29.58 | H51: 37.79 | I51: 25.16 | J51: 27.94 | K51: 30.84
A52: 1233 天仁 | B52: M12Z 其他食品 | C52: M12Z 其他食品 | D52: 39.09 | E52: 33.07 | F52: 35.07 | G52: 35.66 | H52: 39.63 | I52: 34.38 | J52: 25.93 | K52: 25.96
A53: 1234 黑松 | B53: M12C 飲料乳品 | C53: M12C 飲料乳品 | D53: 23.58 | E53: 20.91 | F53: 21.03 | G53: 23.86 | H53: 26.15 | I53: 22.48 | J53: 23.25 | K53: 25.68
A54: 1235 興泰 | B54: M12B 油脂飼料 | C54: M12B 油脂飼料 | D54: 33.95 | E54: 39.69 | F54: 38.58 | G54: 37.05 | H54: 26.92 | I54: 28.36 | J54: 25.58 | K54: 22.68
A55: 1236 宏亞 | B55: M12Z 其他食品 | C55: M12Z 其他食品 | D55: 36.31 | E55: 37.36 | F55: 38.43 | G55: 35.03 | H55: 33.36 | I55: 31.83 | J55: 34.32 | K55: 32.44
A56: 1237 台糖 | B56: M12Z 其他食品 | C56: M12Z 其他食品 | D56: 30.66 | F56: 29.74 | H56: 31.32 | J56: 29.53
A57: 1240 茂生農經 | B57: M12B 油脂飼料 | C57: M12B 油脂飼料 | D57: 35.5 | E57: 37.36 | F57: 39.91 | G57: 33.83 | H57: 25.51 | I57: 28.29 | J57: 27.73 | K57: 27.16
A58: 1242 新東陽 | B58: M12A 罐頭加工 | C58: M12A 罐頭加工 | D58: 39.88 | F58: 41.96 | H58: 45.15 | J58: 37.57
A59: 1246 中聯油脂 | B59: M12B 油脂飼料 | C59: M12B 油脂飼料 | D59: 67.1 | F59: 64.63 | H59: 65.2 | J59: 63.22
A60: 1256 鮮活果汁-KY | B60: M12C 飲料乳品 | C60: M12C 飲料乳品 | D60: 37.93 | E60: 31.82 | F60: 34.59 | G60: 38.39 | H60: 39.66 | I60: 30.81 | J60: 31.77 | K60: 35.6
A61: 1258 其祥-KY | B61: M12Z 其他食品 | C61: M12Z 其他食品 | D61: 78.36 | E61: 79.05 | F61: 76.96 | G61: 74.24 | H61: 75.02 | I61: 72.24 | J61: 71.79 | K61: 71.23
A62: 1259 安心 | B62: M27A 餐飲飯店 | C62: M27A2 餐飲業 | D62: 60.43 | E62: 59.05 | F62: 59.24 | G62: 61.46 | H62: 62.68 | I62: 60.69 | J62: 39.37 | K62: 39.51
A63: 1260 富味鄉 | B63: M12B 油脂飼料 | C63: M12B 油脂飼料 | D63: 45.34 | F63: 48.7 | H63: 44.59 | J63: 47.29
A64: 1264 德麥 | B64: M12Z 其他食品 | C64: M12Z 其他食品 | D64: 24.28 | E64: 15.19 | F64: 17.82 | G64: 15.92 | H64: 24.77 | I64: 15.1 | J64: 16.35 | K64: 14.41
A65: 1267 京華堂 | B65: M12Z 其他食品 | C65: M12Z 其他食品 | D65: 22.58 | F65: 24.36 | H65: 24.81 | J65: 25.85
A66: 1268 漢來美食 | B66: M27A 餐飲飯店 | C66: M27A2 餐飲業 | D66: 65.53 | E66: 58.17 | F66: 62.33 | G66: 63.11 | H66: 67.08 | I66: 61.47 | J66: 46.08 | K66: 44.2
A67: 1269 乾杯 | B67: M27A 餐飲飯店 | C67: M27A2 餐飲業 | D67: 59.3 | F67: 59.6 | H67: 63.24 | I67: 59.17 | J67: 45.4
A68: 1271 晨暉生技 | B68: M17C 藥 | C68: M17C2 機能性食品 | D68: 8.78 | F68: 12.16 | H68: 12.67 | J68: 17.67
A69: 1293 利統 | B69: M12Z 其他食品 | C69: M12Z 其他食品 | D69: 59.01 | F69: 59.27 | H69: 58.26 | J69: 52.81
A70: 1301 台塑 | B70: M13A 石化 | C70: M13A1 泛用塑膠 | D70: 37.96 | E70: 32.37 | F70: 29.76 | G70: 28.88 | H70: 33.41 | I70: 27.32 | J70: 29.1 | K70: 28.91
A71: 1303 南亞 | B71: M13A 石化 | C71: M13A1 泛用塑膠 | D71: 41.66 | E71: 37.75 | F71: 35.9 | G71: 36.51 | H71: 38.12 | I71: 30.61 | J71: 32.15 | K71: 33.32
A72: 1304 台聚 | B72: M13A 石化 | C72: M13A1 泛用塑膠 | D72: 41.29 | E72: 42.6 | F72: 45.15 | G72: 46.09 | H72: 47.23 | I72: 47.41 | J72: 47.16 | K72: 46.64
A73: 1305 華夏 | B73: M13A 石化 | C73: M13A1 泛用塑膠 | D73: 30.07 | E73: 28.12 | F73: 29.35 | G73: 31.43 | H73: 37.01 | I73: 32.03 | J73: 33.37 | K73: 33.61
A74: 1307 三芳 | B74: M13A 石化 | C74: M13A6 合成皮 | D74: 47.03 | E74: 48.04 | F74: 45.4 | G74: 44.97 | H74: 43.94 | I74: 43.21 | J74: 43.42 | K74: 44.19
A75: 1308 亞聚 | B75: M13A 石化 | C75: M13A1 泛用塑膠 | D75: 34.37 | E75: 38.11 | F75: 39.55 | G75: 41.21 | H75: 40.84 | I75: 40.58 | J75: 38.42 | K75: 33.85
A76: 1309 台達化 | B76: M13A 石化 | C76: M13A1 泛用塑膠 | D76: 43.07 | E76: 42.42 | F76: 46.28 | G76: 49.19 | H76: 49.06 | I76: 50.41 | J76: 54.26 | K76: 57.02
A77: 1310 台苯 | B77: M13A 石化 | C77: M13A1 泛用塑膠 | D77: 21.88 | E77: 17.56 | F77: 22.3 | G77: 22 | H77: 31 | I77: 22.88 | J77: 26.57 | K77: 29.81
A78: 1312 國喬 | B78: M13A 石化 | C78: M13A1 泛用塑膠 | D78: 11.07 | E78: 11.81 | F78: 13.51 | G78: 13.52 | H78: 13.31 | I78: 14.38 | J78: 14.2 | K78: 14.52
A79: 1313 聯成 | B79: M13A 石化 | C79: M13A7 可塑劑 | D79: 50.92 | E79: 54.9 | F79: 54.44 | G79: 55.66 | H79: 55.89 | I79: 55.77 | J79: 56.8 | K79: 56.79
A80: 1314 中石化 | B80: M13A 石化 | C80: M13A5 化纖 | D80: 29.47 | E80: 29.61 | F80: 30.35 | G80: 27.08 | H80: 27.31 | I80: 26.06 | J80: 25.1 | K80: 23.32
A81: 1315 達新 | B81: M13A 石化 | C81: M13A8 塑膠加工 | D81: 10.75 | E81: 15.81 | F81: 15.44 | G81: 16.5 | H81: 18.98 | I81: 21.38 | J81: 21.78 | K81: 21.06
A82: 1316 上曜 | B82: M25A 建設 | C82: M25A 建設 | D82: 63.66 | E82: 64.94 | F82: 64.56 | G82: 57.92 | H82: 57.92 | I82: 49.42 | J82: 48.77 | K82: 47.06
A83: 1319 東陽 | B83: M15D 汽車組件 | C83: M15D 汽車組件 | D83: 39.23 | E83: 37.8 | F83: 38.72 | G83: 39.74 | H83: 41.43 | I83: 39.51 | J83: 41.29 | K83: 42.49
A84: 1321 大洋 | B84: M13A 石化 | C84: M13A8 塑膠加工 | D84: 48.32 | E84: 52.1 | F84: 53.98 | G84: 55.47 | H84: 55.81 | I84: 53.69 | J84: 54.09 | K84: 53.13
A85: 1323 永裕 | B85: M13A 石化 | C85: M13A8 塑膠加工 | D85: 56.36 | E85: 55.86 | F85: 53.79 | G85: 53.76 | H85: 53.82 | I85: 47.39 | J85: 46.18 | K85: 47.19
A86: 1324 地球 | B86: M13A 石化 | C86: M13A9 膠帶 | D86: 21.67 | E86: 20.92 | F86: 20.43 | G86: 22.2 | H86: 24.07 | I86: 22.07 | J86: 23.3 | K86: 23.62
A87: 1325 恒大 | B87: M14F 不織布 | C87: M14F 不織布 | D87: 14.51 | E87: 11.28 | F87: 5.91 | G87: 5.33 | H87: 8.51 | I87: 5.75 | J87: 6.47 | K87: 6.72
A88: 1326 台化 | B88: M13A 石化 | C88: M13A1 泛用塑膠 | D88: 32.7 | E88: 29.79 | F88: 25.66 | G88: 25.32 | H88: 29.07 | I88: 24.32 | J88: 26.74 | K88: 26.82
A89: 1328 中油 | B89: M13C 輕油製解 | C89: M13C 輕油製解 | D89: 62.53 | F89: 61.84 | H89: 60.06 | J89: 61.33
A90: 1333 恩得利 | B90: M23D 電子零組件 | C90: M23D2 連接器 | G90: 60.49 | H90: 59.89 | I90: 59.93 | J90: 55.51 | K90: 57.3
A91: 1336 台翰 | B91: M23D 電子零組件 | C91: M23D4 機殼 | D91: 29.49 | E91: 31.39 | F91: 28.87 | G91: 30.41 | H91: 32.85 | I91: 31.56 | J91: 33.7 | K91: 35.69
A92: 1337 再生-KY | B92: M13B 塑膠製品 | C92: M13B 塑膠製品 | D92: 7.13 | E92: 5.81 | F92: 7.78 | G92: 5.3 | H92: 5.27 | I92: 6.03 | J92: 6.79 | K92: 4.83
A93: 1338 廣華-KY | B93: M15D 汽車組件 | C93: M15D 汽車組件 | D93: 34.59 | E93: 31.08 | F93: 34.02 | G93: 33.52 | H93: 33.82 | I93: 31.25 | J93: 31.93 | K93: 31.67
A94: 1339 昭輝 | B94: M15D 汽車組件 | C94: M15D 汽車組件 | D94: 31.78 | E94: 29.59 | F94: 32.73 | G94: 35.02 | H94: 36.64 | I94: 45.1 | J94: 45.58 | K94: 46.67
A95: 1340 勝悅-KY | B95: M13B 塑膠製品 | C95: M13B 塑膠製品 | D95: 3.46 | E95: 2.87 | F95: 4.34 | G95: 4.25 | H95: 4.74 | I95: 5.12 | J95: 3.51 | K95: 4.52
A96: 1341 富林-KY | B96: M13A 石化 | C96: M13A6 合成皮 | D96: 53.02 | E96: 43.47 | F96: 42.95 | G96: 44.71 | H96: 52.72 | I96: 45.16 | J96: 51.2 | K96: 56.6
A97: 1342 八貫 | B97: M13B 塑膠製品 | C97: M13B 塑膠製品 | D97: 33.16 | E97: 31.92 | F97: 38.32 | H97: 42.6 | I97: 44.75 | J97: 41.71
A98: 1343 旭東 | B98: M13B 塑膠製品 | C98: M13B 塑膠製品 | D98: 42.22 | F98: 44.67 | H98: 54.35 | J98: 59.64
A99: 1402 遠東新 | B99: M14A 人纖 | C99: M14A1 聚酯絲棉 | D99: 58 | E99: 56.13 | F99: 52.9 | G99: 51.73 | H99: 54.55 | I99: 51.88 | J99: 52.66 | K99: 51.43
A100: 1408 中紡 | B100: M14A 人纖 | C100: M14A1 聚酯絲棉 | D100: 124.78 | F100: 120.42 | H100: 118.47 | J100: 112.78
A101: 1409 新纖 | B101: M14A 人纖 | C101: M14A1 聚酯絲棉 | D101: 75.39 | E101: 76.07 | F101: 75.71 | G101: 75.64 | H101: 75.05 | I101: 74.72 | J101: 74.31 | K101: 74.71
A102: 1410 南染 | B102: M14E 染整 | C102: M14E 染整 | D102: 22.27 | E102: 21.52 | F102: 16.9 | G102: 22.61 | H102: 22.17 | I102: 16.45 | J102: 17.55 | K102: 18.23
A103: 1413 宏洲 | B103: M14A 人纖 | C103: M14A2 加工絲 | D103: 57.96 | E103: 56.73 | F103: 56.4 | G103: 47.66 | H103: 46.7 | I103: 49.34 | J103: 51.8 | K103: 51.14
A104: 1414 東和 | B104: M14B 棉紡 | C104: M14B1 聚酯紗棉紗 | D104: 31.79 | E104: 30.95 | F104: 32.28 | G104: 34.36 | H104: 33.48 | I104: 32.86 | J104: 31.68 | K104: 30.4
A105: 1416 廣豐 | B105: M29A 百貨批發 | C105: M29A1 百貨購物中 | D105: 46.36 | E105: 45.41 | F105: 45.3 | G105: 45.23 | H105: 47.17 | I105: 44.85 | J105: 44.48 | K105: 51.19
A106: 1417 嘉裕 | B106: M14C 成衣 | C106: M14C1 成衣製造 | D106: 14.4 | E106: 13.3 | F106: 28.48 | G106: 15.24 | H106: 15.22 | I106: 17.84 | J106: 19.27 | K106: 19.29
A107: 1418 東華 | B107: M14B 棉紡 | C107: M14B2 亞克力纖維 | D107: 77.88 | E107: 75.86 | F107: 74.13 | G107: 72.85 | H107: 71.71 | I107: 70.5 | J107: 68.18 | K107: 94.83
A108: 1419 新紡 | B108: M14C 成衣 | C108: M14C2 織布 | D108: 35.69 | E108: 36.42 | F108: 32.35 | G108: 32.63 | H108: 32.88 | I108: 30.12 | J108: 31.28 | K108: 31.29
A109: 1423 利華 | B109: M14D 毛紡 | C109: M14D2 毛紡 | D109: 8.67 | E109: 8.62 | F109: 8.56 | G109: 8.72 | H109: 8.51 | I109: 8.59 | J109: 8.78 | K109: 19.28
A110: 1432 大魯閣 | B110: M29A 百貨批發 | C110: M29A1 百貨購物中 | D110: 82.1 | E110: 82.18 | F110: 80.6 | G110: 75.2 | H110: 72.59 | I110: 72.18 | J110: 27.11 | K110: 28.18
A111: 1434 福懋 | B111: M14C 成衣 | C111: M14C2 織布 | D111: 25.97 | E111: 22.17 | F111: 20.48 | G111: 22.2 | H111: 24.11 | I111: 19.73 | J111: 19.41 | K111: 17.52
A112: 1435 中福 | B112: M23E 網路設備 | C112: M23E1 數據機 | D112: 16.2 | E112: 16.05 | F112: 15.73 | G112: 16.2 | H112: 15.94 | I112: 15.87 | J112: 16 | K112: 16.82
A113: 1436 華友聯 | B113: M25A 建設 | C113: M25A 建設 | D113: 77.31 | E113: 73.15 | F113: 71.9 | G113: 75.58 | H113: 71.7 | I113: 66.64 | J113: 67.3 | K113: 69.3
A114: 1437 勤益控 | B114: M25F 物業管理 | C114: M25F 物業管理 | D114: 44.28 | E114: 43.65 | F114: 40.95 | G114: 41.31 | H114: 41.96 | I114: 42.98 | J114: 43.99 | K114: 45.4
A115: 1438 三地開發 | B115: M25A 建設 | C115: M25A 建設 | D115: 11.3 | E115: 11.2 | F115: 11.92 | G115: 12.03 | H115: 11.86 | I115: 11.77 | J115: 11.78 | K115: 11.69
A116: 1439 中和 | B116: M14D 毛紡 | C116: M14D2 毛紡 | D116: 17.7 | E116: 0.77 | F116: 0.69 | G116: 3.12 | H116: 3.12 | I116: 8.05 | J116: 7.76 | K116: 8.18
A117: 1440 南紡 | B117: M14A 人纖 | C117: M14A1 聚酯絲棉 | D117: 47.72 | E117: 46.99 | F117: 44.69 | G117: 44.22 | H117: 45.14 | I117: 43.3 | J117: 43.08 | K117: 42.35
A118: 1441 大東 | B118: M14B 棉紡 | C118: M14B1 聚酯紗棉紗 | D118: 62.56 | E118: 59.98 | F118: 56.8 | G118: 55.26 | H118: 52.67 | I118: 48.77 | J118: 44.84 | K118: 39.59
A119: 1442 名軒 | B119: M25A 建設 | C119: M25A 建設 | D119: 61.37 | E119: 58.65 | F119: 57.5 | G119: 55.3 | H119: 57.16 | I119: 51.38 | J119: 50.44 | K119: 48.68
A120: 1443 立益 | B120: M14B 棉紡 | C120: M14B1 聚酯紗棉紗 | D120: 85.87 | E120: 84.94 | F120: 84.63 | G120: 84.09 | H120: 84.76 | I120: 85.08 | J120: 84.88 | K120: 84.43
A121: 1444 力麗 | B121: M14A 人纖 | C121: M14A2 加工絲 | D121: 35.25 | E121: 42.67 | F121: 37.33 | G121: 40.98 | H121: 41.2 | I121: 37.03 | J121: 37.95 | K121: 41.56
A122: 1445 大宇 | B122: M14C 成衣 | C122: M14C2 織布 | D122: 19.45 | E122: 16.15 | F122: 17.41 | G122: 15.75 | H122: 16.06 | I122: 16.12 | J122: 17.41 | K122: 15.7
A123: 1446 宏和 | B123: M14C 成衣 | C123: M14C2 織布 | D123: 64.38 | E123: 63.32 | F123: 63.4 | G123: 60.39 | H123: 59.04 | I123: 57.69 | J123: 57.29 | K123: 57.1
A124: 1447 力鵬 | B124: M14A 人纖 | C124: M14A7 尼龍絲 | D124: 46.33 | E124: 47.26 | F124: 44.17 | G124: 45.75 | H124: 45.49 | I124: 41.6 | J124: 43.98 | K124: 46.88
A125: 1449 佳和 | B125: M14C 成衣 | C125: M14C2 織布 | D125: 82.92 | E125: 85.85 | F125: 88.94 | G125: 88 | H125: 88.26 | I125: 87.42 | J125: 86.38 | K125: 84.01
A126: 1451 年興 | B126: M14C 成衣 | C126: M14C1 成衣製造 | D126: 21.93 | E126: 23.55 | F126: 22.96 | G126: 23.8 | H126: 23.31 | I126: 21.08 | J126: 23.88 | K126: 28.44
A127: 1452 宏益 | B127: M14A 人纖 | C127: M14A2 加工絲 | D127: 11.75 | E127: 6.05 | F127: 7.6 | G127: 6.64 | H127: 14.25 | I127: 7.38 | J127: 10.02 | K127: 7.93
A128: 1453 大將 | B128: M25A 建設 | C128: M25A 建設 | D128: 0.95 | E128: 3.63 | F128: 2.93 | G128: 2.32 | H128: 2.27 | I128: 1.34 | J128: 1.43 | K128: 1.15
A129: 1454 台富 | B129: M14C 成衣 | C129: M14C2 織布 | D129: 22.33 | E129: 26.84 | F129: 25.45 | G129: 24.61 | H129: 24.37 | I129: 24.35 | J129: 24.67 | K129: 22.17
A130: 1455 集盛 | B130: M14A 人纖 | C130: M14A7 尼龍絲 | D130: 24.5 | E130: 28.85 | F130: 25.15 | G130: 31.74 | H130: 33.07 | I130: 33.6 | J130: 33.62 | K130: 36.88
A131: 1456 怡華 | B131: M14C 成衣 | C131: M14C2 織布 | D131: 78.35 | E131: 76.92 | F131: 76.13 | G131: 77.57 | H131: 76.96 | I131: 77.07 | J131: 76.85 | K131: 76.02
A132: 1457 宜進 | B132: M14A 人纖 | C132: M14A2 加工絲 | D132: 53.59 | E132: 61.62 | F132: 59.33 | G132: 56.75 | H132: 55.91 | I132: 54.74 | J132: 56.15 | K132: 56.15
A133: 1459 聯發 | B133: M14A 人纖 | C133: M14A2 加工絲 | D133: 56.6 | E133: 57.42 | F133: 49.64 | G133: 50.49 | H133: 47.99 | I133: 54.24 | J133: 55.45 | K133: 55.88
A134: 1460 宏遠 | B134: M14C 成衣 | C134: M14C2 織布 | D134: 66.68 | E134: 66.43 | F134: 64.19 | G134: 62.76 | H134: 61.08 | I134: 61.33 | J134: 58.7 | K134: 57.53
A135: 1463 強盛 | B135: M14E 染整 | C135: M14E 染整 | D135: 12.62 | E135: 10.33 | F135: 9.78 | G135: 9.84 | H135: 17.87 | I135: 10.22 | J135: 10.05 | K135: 11.01
A136: 1464 得力 | B136: M14C 成衣 | C136: M14C2 織布 | D136: 69.58 | E136: 66.45 | F136: 66.63 | G136: 66.04 | H136: 71.02 | I136: 68.53 | J136: 68.59 | K136: 68.48
A137: 1465 偉全 | B137: M14C 成衣 | C137: M14C2 織布 | D137: 21.99 | E137: 17.21 | F137: 16.62 | G137: 14.38 | H137: 13.37 | I137: 16.26 | J137: 17.5 | K137: 15.26
A138: 1466 聚隆 | B138: M14A 人纖 | C138: M14A7 尼龍絲 | D138: 53.3 | E138: 54.53 | F138: 54.67 | G138: 54.38 | H138: 53.73 | I138: 54.48 | J138: 55.29 | K138: 56.22
A139: 1467 南緯 | B139: M14C 成衣 | C139: M14C1 成衣製造 | D139: 66.32 | E139: 66.39 | F139: 63.22 | G139: 65.12 | H139: 64.37 | I139: 63.08 | J139: 64.33 | K139: 69.03
A140: 1468 昶和 | B140: M14C 成衣 | C140: M14C2 織布 | D140: 55.92 | E140: 54.14 | F140: 54.3 | G140: 55.47 | H140: 56.51 | I140: 57.25 | J140: 57.21 | K140: 57.54
A141: 1470 大統新創 | B141: M14E 染整 | C141: M14E 染整 | D141: 17.93 | E141: 21.76 | F141: 16.35 | G141: 16.9 | H141: 19.26 | I141: 16.7 | J141: 17.39 | K141: 16.71
A142: 1471 首利 | B142: M23D 電子零組件 | C142: M23D3 電源供應器 | D142: 58.78 | E142: 48.6 | F142: 48.75 | G142: 44.77 | H142: 40.1 | I142: 36.12 | J142: 40.51 | K142: 38.4
A143: 1472 三洋紡 | B143: M14A 人纖 | C143: M14A7 尼龍絲 | D143: 79.36 | E143: 72.78 | F143: 68.36 | G143: 66.49 | H143: 58.92 | I143: 68.55 | J143: 63.63 | K143: 63.7
A144: 1473 台南 | B144: M14C 成衣 | C144: M14C1 成衣製造 | D144: 39 | E144: 36.71 | F144: 34.55 | G144: 32.58 | H144: 37.21 | I144: 37.23 | J144: 36.39 | K144: 39.58
A145: 1474 弘裕 | B145: M14C 成衣 | C145: M14C2 織布 | D145: 48.5 | E145: 47.54 | F145: 47.54 | G145: 50.39 | H145: 50.45 | I145: 51.08 | J145: 49.27 | K145: 53.43
A146: 1475 本盟 | B146: M14C 成衣 | C146: M14C2 織布 | D146: 22.24 | E146: 69.12 | F146: 67.14 | G146: 64.27 | H146: 90.18 | I146: 76.62 | J146: 63.17 | K146: 74.32
A147: 1476 儒鴻 | B147: M14C 成衣 | C147: M14C1 成衣製造 | D147: 31.63 | E147: 21.04 | F147: 22.28 | G147: 23.01 | H147: 34.11 | I147: 22.31 | J147: 23.53 | K147: 25.57
A148: 1477 聚陽 | B148: M14C 成衣 | C148: M14C1 成衣製造 | D148: 45.42 | E148: 33.83 | F148: 37.66 | G148: 38.54 | H148: 45.12 | I148: 32.99 | J148: 34.99 | K148: 33.49
A149: 1480 東盟開發 | B149: M20A 金屬基本 | C149: M20A6 不銹鋼 | D149: 67.32 | F149: 64.79 | H149: 64.93 | J149: 64.02
A150: 1489 日南紡織 | B150: M14B 棉紡 | C150: M14B1 聚酯紗棉紗 | D150: 13.08 | F150: 8.45 | H150: 11.78 | J150: 8.25
A151: 1503 士電 | B151: M15B 電機製品 | C151: M15B1 電機 | D151: 38.52 | E151: 37.43 | F151: 39.46 | G151: 40.89 | H151: 41.78 | I151: 39.97 | J151: 41.07 | K151: 41.98
A152: 1504 東元 | B152: M15B 電機製品 | C152: M15B1 電機 | D152: 37.28 | E152: 41.8 | F152: 37.73 | G152: 38.26 | H152: 38.81 | I152: 38.77 | J152: 36.41 | K152: 37.84
A153: 1506 正道 | B153: M15D 汽車組件 | C153: M15D 汽車組件 | D153: 59.36 | E153: 69.84 | F153: 67.69 | G153: 64.59 | H153: 61.6 | I153: 61.32 | J153: 57.91 | K153: 54.35
A154: 1507 永大 | B154: M15B 電機製品 | C154: M15B1 電機 | D154: 52.23 | E154: 45.92 | F154: 47.27 | G154: 48.26 | H154: 50.19 | I154: 45 | J154: 47.01 | K154: 48.02
A155: 1512 瑞利 | B155: M15D 汽車組件 | C155: M15D 汽車組件 | D155: 90.41 | E155: 88.73 | F155: 89.92 | G155: 79.39 | H155: 77.76 | I155: 78.27 | J155: 78.58 | K155: 75.68
A156: 1513 中興電 | B156: M15B 電機製品 | C156: M15B1 電機 | D156: 68.09 | E156: 64.36 | F156: 61.35 | G156: 62.24 | H156: 61.12 | I156: 58.76 | J156: 55.04 | K156: 58.22
A157: 1514 亞力 | B157: M15B 電機製品 | C157: M15B1 電機 | D157: 49.73 | E157: 45.76 | F157: 46.53 | G157: 49.47 | H157: 49.99 | I157: 47.55 | J157: 49.29 | K157: 47.3
A158: 1515 力山 | B158: M15A 機械業 | C158: M15A1 工具機 | D158: 54.66 | E158: 46.54 | F158: 50.01 | G158: 53.8 | H158: 52.62 | I158: 54.41 | J158: 63.63 | K158: 58.31
A159: 1516 川飛 | B159: M99Z 其他 | C159: M99ZC 其他製造業 | D159: 12.29 | E159: 18.22 | F159: 17.67 | G159: 15.18 | H159: 16.44 | I159: 0.53 | J159: 6.27 | K159: 20.15
A160: 1517 利奇 | B160: M15E 自行車組件 | C160: M15E 自行車組件 | D160: 27.54 | E160: 23.83 | F160: 26.74 | G160: 26.63 | H160: 27.99 | I160: 27.68 | J160: 29.28 | K160: 28.72
A161: 1519 華城 | B161: M15B 電機製品 | C161: M15B1 電機 | D161: 64.51 | E161: 64.17 | F161: 60.65 | G161: 65.85 | H161: 61.93 | I161: 60 | J161: 55.13 | K161: 59.29
A162: 1521 大億 | B162: M15D 汽車組件 | C162: M15D 汽車組件 | D162: 51.34 | E162: 44.34 | F162: 47.72 | G162: 50.07 | H162: 52.55 | I162: 41.73 | J162: 46.45 | K162: 49.49
A163: 1522 堤維西 | B163: M15D 汽車組件 | C163: M15D 汽車組件 | D163: 71.79 | E163: 70.82 | F163: 70.94 | G163: 71.82 | H163: 72.09 | I163: 70.79 | J163: 69.18 | K163: 69.48
A164: 1524 耿鼎 | B164: M15D 汽車組件 | C164: M15D 汽車組件 | D164: 55.7 | E164: 55.38 | F164: 54.16 | G164: 53.89 | H164: 55.61 | I164: 53.33 | J164: 54.33 | K164: 54.33
A165: 1525 江申 | B165: M15D 汽車組件 | C165: M15D 汽車組件 | D165: 20.06 | E165: 16.96 | F165: 18.48 | G165: 17.24 | H165: 19.67 | I165: 17.55 | J165: 17.37 | K165: 18.29
A166: 1526 日馳 | B166: M15E 自行車組件 | C166: M15E 自行車組件 | D166: 37.29 | E166: 37.38 | F166: 38.24 | G166: 41.49 | H166: 42.04 | I166: 43.47 | J166: 43.22 | K166: 58.44
A167: 1527 鑽全 | B167: M15A 機械業 | C167: M15A1 工具機 | D167: 18.01 | E167: 13.75 | F167: 15.88 | G167: 71.35 | H167: 74.93 | I167: 72.92 | J167: 74.24 | K167: 75.63
A168: 1528 恩德 | B168: M15A 機械業 | C168: M15A1 工具機 | D168: 55.64 | E168: 52.62 | F168: 52.91 | G168: 55.11 | H168: 54.03 | I168: 53.14 | J168: 55.14 | K168: 55.28
A169: 1529 樂士 | B169: M15B 電機製品 | C169: M15B1 電機 | D169: 37.74 | E169: 40.41 | F169: 43.48 | G169: 35.25 | H169: 27.67 | I169: 28.24 | J169: 25.65 | K169: 10
A170: 1530 亞崴 | B170: M15A 機械業 | C170: M15A1 工具機 | D170: 51.93 | E170: 49.38 | F170: 55.28 | G170: 55.38 | H170: 56.55 | I170: 58.92 | J170: 59.73 | K170: 61.14
A171: 1531 高林股 | B171: M15A 機械業 | C171: M15A3 紡織工具機 | D171: 17.15 | E171: 17.1 | F171: 16.76 | G171: 16.18 | H171: 17.86 | I171: 16.95 | J171: 19.06 | K171: 24.32
A172: 1532 勤美 | B172: M15A 機械業 | C172: M15A2 模具零件 | D172: 65.52 | E172: 63.33 | F172: 63.33 | G172: 60.56 | H172: 59.44 | I172: 57.15 | J172: 55.42 | K172: 57.42
A173: 1533 車王電 | B173: M15D 汽車組件 | C173: M15D 汽車組件 | D173: 55.96 | E173: 53.42 | F173: 54.42 | G173: 52.39 | H173: 52.27 | I173: 51.82 | J173: 47.93 | K173: 47.72
A174: 1535 中宇 | B174: M15B 電機製品 | C174: M15B2 機電工程 | D174: 48.92 | E174: 50.35 | F174: 51.93 | G174: 54.89 | H174: 57.95 | I174: 54.2 | J174: 62.9 | K174: 59.23
A175: 1536 和大 | B175: M15D 汽車組件 | C175: M15D 汽車組件 | D175: 64.05 | E175: 61.69 | F175: 61.38 | G175: 61.54 | H175: 61.65 | I175: 55.98 | J175: 55.89 | K175: 57.04
A176: 1537 廣隆 | B176: M23D 電子零組件 | C176: M23D7 3C二次電池 | D176: 37.05 | E176: 21.41 | F176: 25.4 | G176: 30.12 | H176: 34.66 | I176: 24.49 | J176: 32.62 | K176: 34.83
A177: 1538 正峰 | B177: M15A 機械業 | C177: M15A1 工具機 | D177: 59.19 | E177: 52.36 | F177: 84.34 | G177: 80.07 | H177: 78.46 | I177: 76.68 | J177: 74.31 | K177: 72.76
A178: 1539 巨庭 | B178: M15A 機械業 | C178: M15A1 工具機 | D178: 67.99 | E178: 63.92 | F178: 60.81 | G178: 56.33 | H178: 55.81 | I178: 55.04 | J178: 56.41 | K178: 62.9
A179: 1540 喬福 | B179: M15A 機械業 | C179: M15A1 工具機 | D179: 17.66 | E179: 13.17 | F179: 13.24 | G179: 13.21 | H179: 22.61 | I179: 23.44 | J179: 24.18 | K179: 23.69
A180: 1541 錩泰 | B180: M15A 機械業 | C180: M15A1 工具機 | D180: 55.82 | E180: 55.08 | F180: 58.81 | G180: 63.21 | H180: 66.38 | I180: 60.44 | J180: 60.46 | K180: 59.08
A181: 1550 台全電機 | B181: M15D 汽車組件 | C181: M15D 汽車組件 | D181: 25.48 | F181: 32.28 | H181: 31.21 | J181: 35.86
A182: 1557 金豐 | B182: M15A 機械業 | C182: M15A1 工具機 | D182: 44.57 | F182: 44.68 | H182: 47.41 | J182: 47.54
A183: 1558 伸興 | B183: M15A 機械業 | C183: M15A3 紡織工具機 | D183: 34.56 | E183: 22.47 | F183: 25.43 | G183: 27.79 | H183: 32.17 | I183: 26.57 | J183: 28.84 | K183: 33.91
A184: 1560 中砂 | B184: M15A 機械業 | C184: M15A2 模具零件 | D184: 50.66 | E184: 43.67 | F184: 41.89 | G184: 39.79 | H184: 39.93 | I184: 30.88 | J184: 31.4 | K184: 34.05
A185: 1563 巧新 | B185: M15D 汽車組件 | C185: M15D 汽車組件 | D185: 59.07 | F185: 56.39 | H185: 59.2 | J185: 56.73
A186: 1565 精華 | B186: M17G 醫療耗材 | C186: M17G 醫療耗材 | D186: 37.46 | E186: 28.17 | F186: 31.52 | G186: 35.76 | H186: 44.28 | I186: 31.88 | J186: 33.63 | K186: 35.57
A187: 1568 倉佑 | B187: M15D 汽車組件 | C187: M15D 汽車組件 | D187: 54.27 | E187: 54.05 | F187: 53.46 | G187: 53.61 | H187: 54.77 | I187: 53.14 | J187: 55.39 | K187: 56.42
A188: 1569 濱川 | B188: M23D 電子零組件 | C188: M23D9A 沖壓零組件 | D188: 58.91 | E188: 57.68 | F188: 59.52 | G188: 58.59 | H188: 55.4 | I188: 56.14 | J188: 56.81 | K188: 55.26
A189: 1570 力肯 | B189: M15A 機械業 | C189: M15A1 工具機 | D189: 19.5 | E189: 15.85 | F189: 16.28 | G189: 19.5 | H189: 23.51 | I189: 17.81 | J189: 17 | K189: 19.74
A190: 1580 新麥 | B190: M15Z 其他電製品 | C190: M15Z 其他電製品 | D190: 35.53 | E190: 26.41 | F190: 32.29 | G190: 31.08 | H190: 39.9 | I190: 30.12 | J190: 34.45 | K190: 35.54
A191: 1582 信錦 | B191: M23D 電子零組件 | C191: M23D4 機殼 | D191: 48.14 | E191: 41.24 | F191: 42.95 | G191: 34.85 | H191: 39.98 | I191: 31.79 | J191: 33.82 | K191: 38.53
A192: 1583 程泰 | B192: M15A 機械業 | C192: M15A1 工具機 | D192: 51.14 | E192: 51.03 | F192: 53.84 | G192: 54.57 | H192: 57.35 | I192: 58.22 | J192: 59.04 | K192: 60.99
A193: 1584 精剛 | B193: M20A 金屬基本 | C193: M20A6 不銹鋼 | D193: 59.98 | E193: 61.59 | F193: 60.29 | G193: 56.74 | H193: 55.96 | I193: 54.93 | J193: 56.53 | K193: 56.16
A194: 1585 鎧鉅 | B194: M23B 主機板 | C194: M23B3X PCB上-其他 | D194: 79.5 | F194: 69.96 | H194: 66.65 | J194: 62.96
A195: 1586 和勤 | B195: M23D 電子零組件 | C195: M23D9A 沖壓零組件 | D195: 61.32 | E195: 61.98 | F195: 62.41 | G195: 56.6 | H195: 54.16 | I195: 53.76 | J195: 53.71 | K195: 54.04
A196: 1587 吉茂 | B196: M15D 汽車組件 | C196: M15D 汽車組件 | D196: 52.58 | E196: 53.92 | F196: 52.86 | G196: 52.98 | H196: 52.93 | I196: 54.48 | J196: 53.58 | K196: 52.04
A197: 1589 永冠-KY | B197: M15A 機械業 | C197: M15A2 模具零件 | D197: 44.87 | E197: 42.71 | F197: 42.15 | G197: 43.12 | H197: 43.93 | I197: 44.87 | J197: 43.01 | K197: 41.19
A198: 1590 亞德客-KY | B198: M15A 機械業 | C198: M15A2 模具零件 | D198: 54.67 | E198: 54.18 | F198: 54.47 | G198: 55.23 | H198: 54.3 | I198: 51.05 | J198: 51.18 | K198: 52.01
A199: 1591 駿吉-KY | B199: M15A 機械業 | C199: M15A1 工具機 | D199: 45.96 | E199: 41.39 | F199: 36.57 | G199: 38.71 | H199: 41.56 | I199: 39.96 | J199: 42.09 | K199: 42.38
A200: 1592 英瑞-KY | B200: M15D 汽車組件 | C200: M15D 汽車組件 | D200: 69.62 | E200: 68.16 | F200: 67.96 | G200: 67.2 | H200: 70.32 | I200: 68.65 | J200: 63.87 | K200: 64.05
... 2288 more rows

Sheet Contingent Liabilities (hidden)
B1: TEJ產業名 | C1: TEJ子產業名 | D1: 或有負債/淨值 | E1: 或有負債/淨值 | F1: 或有負債/淨值 | G1: 或有負債/淨值 | H1: 或有負債/淨值 | I1: 或有負債/淨值 | J1: 或有負債/淨值 | K1: 或有負債/淨值
A2: 公司 | D2: 2020-06-30 | E2: 2020-03-31 | F2: 2019-12-31 | G2: 2019-09-27 | H2: 2019-06-28 | I2: 2019-03-29 | J2: 2018-12-28 | K2: 2018-09-28
A3: 000104 臺銀證券 | B3: M30A 證券 | C3: M30A 證券 | F3: 0 | H3: 0 | J3: 0
A4: 000116 日盛證券 | B4: M30A 證券 | C4: M30A 證券 | E4: 0 | F4: 0 | G4: 0 | H4: 0 | I4: 0 | J4: 0 | K4: 0
A5: 000218 亞東證券 | B5: M30A 證券 | C5: M30A 證券 | F5: 0 | H5: 0 | J5: 0
A6: 000511 富隆證券 | B6: M30A 證券 | C6: M30A 證券 | F6: 0 | H6: 0 | J6: 0
A7: 000532 高橋證券 | B7: M30A 證券 | C7: M30A 證券 | F7: 0 | H7: 0 | J7: 0
A8: 000538 第一金證 | B8: M30A 證券 | C8: M30A 證券 | E8: 0 | F8: 0 | G8: 0 | H8: 0 | I8: 0 | J8: 0 | K8: 0
A9: 000546 寶盛證券 | B9: M30A 證券 | C9: M30A 證券 | F9: 0 | H9: 0 | J9: 0
A10: 000560 永興證券 | B10: M30A 證券 | C10: M30A 證券 | F10: 0 | H10: 0 | J10: 0
A11: 000587 光隆證券 | B11: M30A 證券 | C11: M30A 證券 | F11: 0 | H11: 0 | J11: 0
A12: 000601 奔亞證券 | B12: M30A 證券 | C12: M30A 證券 | F12: 0 | H12: 0 | J12: 0
A13: 000616 中信證券 | B13: M30A 證券 | C13: M30A 證券 | E13: 0 | F13: 0 | G13: 0 | H13: 0 | I13: 0 | J13: 0 | K13: 0
A14: 000638 光和證券 | B14: M30A 證券 | C14: M30A 證券 | F14: 0 | H14: 0 | J14: 0
A15: 000646 大昌證券 | B15: M30A 證券 | C15: M30A 證券 | F15: 0 | H15: 0 | J15: 0
A16: 000695 福勝證券 | B16: M30A 證券 | C16: M30A 證券 | F16: 0 | H16: 0 | J16: 0
A17: 000700 兆豐證券 | B17: M30A 證券 | C17: M30A 證券 | E17: 0 | F17: 0 | G17: 0 | H17: 0 | I17: 0 | J17: 0 | K17: 0
A18: 000708 石橋證券 | B18: M30A 證券 | C18: M30A 證券 | F18: 0 | H18: 0 | J18: 0
A19: 000775 北城證券 | B19: M30A 證券 | C19: M30A 證券 | F19: 0 | H19: 0 | J19: 0
A20: 000779 國票證券 | B20: M30A 證券 | C20: M30A 證券 | E20: 0 | F20: 0 | G20: 0 | H20: 0 | I20: 0 | J20: 0 | K20: 0
A21: 000815 台新證券 | B21: M30A 證券 | C21: M30A 證券 | E21: 0 | F21: 0 | G21: 0 | H21: 0 | I21: 0 | J21: 0 | K21: 0
A22: 000838 安泰證券 | B22: M30A 證券 | C22: M30A 證券 | F22: 0 | H22: 0 | J22: 0
A23: 000856 新光證券 | B23: M30A 證券 | C23: M30A 證券 | F23: 0 | H23: 0 | J23: 0
A24: 000888 國泰證券 | B24: M30A 證券 | C24: M30A 證券 | E24: 0 | F24: 0 | G24: 0 | H24: 0 | I24: 0 | J24: 0 | K24: 0
A25: 000930 華南永昌證券 | B25: M30A 證券 | C25: M30A 證券 | E25: 0 | F25: 0 | G25: 0 | H25: 0 | I25: 0 | J25: 0 | K25: 0
A26: 000960 富邦證券 | B26: M30A 證券 | C26: M30A 證券 | E26: 0 | F26: 0 | G26: 0 | H26: 0 | I26: 0 | J26: 0 | K26: 0
A27: 000980 元大證券 | B27: M30A 證券 | C27: M30A 證券 | D27: 0 | E27: 0 | F27: 0 | G27: 0 | H27: 0 | I27: 0 | J27: 0 | K27: 0
A28: 0009A0 永豐金證券 | B28: M30A 證券 | C28: M30A 證券 | E28: 0 | F28: 0 | G28: 0 | H28: 0 | I28: 0 | J28: 0 | K28: 0
A29: 1101 台泥 | B29: M11A 水泥製造 | C29: M11A 水泥製造 | D29: 0 | E29: 0 | F29: 0 | G29: 0 | H29: 0 | I29: 0 | J29: 0 | K29: 0
A30: 1102 亞泥 | B30: M11A 水泥製造 | C30: M11A 水泥製造 | D30: 0 | E30: 0 | F30: 0 | G30: 0 | H30: 0 | I30: 0 | J30: 0 | K30: 0
A31: 1103 嘉泥 | B31: M11A 水泥製造 | C31: M11A 水泥製造 | D31: 1.62 | E31: 1.64 | F31: 1.62 | G31: 1.71 | H31: 1.86 | I31: 1.92 | J31: 2.02 | K31: 1.88
A32: 1104 環泥 | B32: M11A 水泥製造 | C32: M11A 水泥製造 | D32: 0 | E32: 0 | F32: 0 | G32: 0 | H32: 0 | I32: 0 | J32: 0 | K32: 0
A33: 1108 幸福 | B33: M11A 水泥製造 | C33: M11A 水泥製造 | D33: 0 | E33: 0 | F33: 0 | G33: 0 | H33: 0 | I33: 0 | J33: 0 | K33: 0
A34: 1109 信大 | B34: M11A 水泥製造 | C34: M11A 水泥製造 | D34: 0 | E34: 0 | F34: 0 | G34: 0 | H34: 0 | I34: 0 | J34: 0 | K34: 0
A35: 1110 東泥 | B35: M11A 水泥製造 | C35: M11A 水泥製造 | D35: 0 | E35: 0 | F35: 0 | G35: 0 | H35: 0 | I35: 0 | J35: 0 | K35: 0
A36: 1111 欣欣水泥 | B36: M11A 水泥製造 | C36: M11A 水泥製造 | F36: 0 | H36: 0 | J36: 0
A37: 1201 味全 | B37: M12C 飲料乳品 | C37: M12C 飲料乳品 | D37: 0 | E37: 0 | F37: 0 | G37: 0 | H37: 0 | I37: 0 | J37: 0 | K37: 0
A38: 1203 味王 | B38: M12Z 其他食品 | C38: M12Z 其他食品 | D38: 0 | E38: 0 | F38: 0 | G38: 0 | H38: 0 | I38: 0 | J38: 0 | K38: 0
A39: 1210 大成 | B39: M12B 油脂飼料 | C39: M12B 油脂飼料 | D39: 0 | E39: 0 | F39: 0.62 | G39: 0.93 | H39: 0.81 | I39: 1.6 | J39: 1.23 | K39: 1.25
A40: 1213 大飲 | B40: M12C 飲料乳品 | C40: M12C 飲料乳品 | D40: 0 | E40: 0 | F40: 0 | G40: 0 | H40: 0 | I40: 0 | J40: 0 | K40: 0
A41: 1215 卜蜂 | B41: M12B 油脂飼料 | C41: M12B 油脂飼料 | D41: 0 | E41: 0 | F41: 0 | G41: 0 | H41: 0 | I41: 0 | J41: 0 | K41: 0
A42: 1216 統一 | B42: M12C 飲料乳品 | C42: M12C 飲料乳品 | D42: 0 | E42: 0 | F42: 0 | G42: 0 | H42: 0 | I42: 0 | J42: 0 | K42: 0
A43: 1217 愛之味 | B43: M12A 罐頭加工 | C43: M12A 罐頭加工 | D43: 0 | E43: 0 | F43: 0 | G43: 0.16 | H43: 0 | I43: 0.6 | J43: 0.83 | K43: 1.05
A44: 1218 泰山 | B44: M12B 油脂飼料 | C44: M12B 油脂飼料 | D44: 0 | E44: 0 | F44: 0 | G44: 0 | H44: 0 | I44: 0 | J44: 0 | K44: 0
A45: 1219 福壽 | B45: M12B 油脂飼料 | C45: M12B 油脂飼料 | D45: 0 | E45: 0 | F45: 0 | G45: 0 | H45: 0 | I45: 0 | J45: 0 | K45: 0
A46: 1220 台榮 | B46: M12B 油脂飼料 | C46: M12B 油脂飼料 | D46: 0 | E46: 0 | F46: 0 | G46: 0 | H46: 0 | I46: 0 | J46: 0 | K46: 0
A47: 1225 福懋油 | B47: M12B 油脂飼料 | C47: M12B 油脂飼料 | D47: 0 | E47: 0 | F47: 0 | G47: 0 | H47: 0 | I47: 0 | J47: 0 | K47: 0
A48: 1227 佳格 | B48: M12Z 其他食品 | C48: M12Z 其他食品 | D48: 0 | E48: 0 | F48: 0 | G48: 0 | H48: 0 | I48: 0 | J48: 0 | K48: 0
A49: 1229 聯華 | B49: M12B 油脂飼料 | C49: M12B 油脂飼料 | D49: 0 | E49: 4.02 | F49: 0 | G49: 0 | H49: 0 | I49: 6.63 | J49: 0 | K49: 0
A50: 1231 聯華食 | B50: M12Z 其他食品 | C50: M12Z 其他食品 | D50: 0 | E50: 0 | F50: 0 | G50: 0 | H50: 0 | I50: 0 | J50: 0 | K50: 0
A51: 1232 大統益 | B51: M12B 油脂飼料 | C51: M12B 油脂飼料 | D51: 0 | E51: 0 | F51: 0 | G51: 0 | H51: 0 | I51: 0 | J51: 0 | K51: 0
A52: 1233 天仁 | B52: M12Z 其他食品 | C52: M12Z 其他食品 | D52: 0 | E52: 0 | F52: 0 | G52: 0 | H52: 0 | I52: 0 | J52: 0 | K52: 0
A53: 1234 黑松 | B53: M12C 飲料乳品 | C53: M12C 飲料乳品 | D53: 0 | E53: 0 | F53: 0 | G53: 0 | H53: 0 | I53: 0 | J53: 0 | K53: 0
A54: 1235 興泰 | B54: M12B 油脂飼料 | C54: M12B 油脂飼料 | D54: 0 | E54: 0 | F54: 0 | G54: 0 | H54: 0 | I54: 0 | J54: 0 | K54: 0
A55: 1236 宏亞 | B55: M12Z 其他食品 | C55: M12Z 其他食品 | D55: 0 | E55: 0 | F55: 0 | G55: 0 | H55: 0 | I55: 0 | J55: 0 | K55: 0
A56: 1237 台糖 | B56: M12Z 其他食品 | C56: M12Z 其他食品 | F56: 0 | H56: 0 | J56: 0
A57: 1240 茂生農經 | B57: M12B 油脂飼料 | C57: M12B 油脂飼料 | D57: 0 | E57: 0 | F57: 0 | G57: 0 | H57: 0 | I57: 0 | J57: 0 | K57: 0
A58: 1242 新東陽 | B58: M12A 罐頭加工 | C58: M12A 罐頭加工 | F58: 0 | H58: 0 | J58: 0
A59: 1246 中聯油脂 | B59: M12B 油脂飼料 | C59: M12B 油脂飼料 | F59: 0 | H59: 0 | J59: 0
A60: 1256 鮮活果汁-KY | B60: M12C 飲料乳品 | C60: M12C 飲料乳品 | D60: 0 | E60: 0 | F60: 0 | G60: 0 | H60: 0 | I60: 0 | J60: 0 | K60: 0
A61: 1258 其祥-KY | B61: M12Z 其他食品 | C61: M12Z 其他食品 | D61: 27.11 | E61: 25.92 | F61: 0 | G61: 0 | H61: 0 | I61: 0 | J61: 0 | K61: 0
A62: 1259 安心 | B62: M27A 餐飲飯店 | C62: M27A2 餐飲業 | D62: 0 | E62: 0 | F62: 0 | G62: 0 | H62: 0 | I62: 0 | J62: 0 | K62: 0
A63: 1260 富味鄉 | B63: M12B 油脂飼料 | C63: M12B 油脂飼料 | D63: 0 | F63: 0 | H63: 0 | J63: 0
A64: 1264 德麥 | B64: M12Z 其他食品 | C64: M12Z 其他食品 | D64: 0 | E64: 0 | F64: 0 | G64: 0 | H64: 0 | I64: 0 | J64: 0 | K64: 0
A65: 1267 京華堂 | B65: M12Z 其他食品 | C65: M12Z 其他食品 | F65: 0 | H65: 0 | J65: 0
A66: 1268 漢來美食 | B66: M27A 餐飲飯店 | C66: M27A2 餐飲業 | D66: 0 | E66: 0 | F66: 0 | G66: 0 | H66: 0 | I66: 0 | J66: 0 | K66: 0
A67: 1269 乾杯 | B67: M27A 餐飲飯店 | C67: M27A2 餐飲業 | F67: 0 | H67: 0 | I67: 0 | J67: 0
A68: 1271 晨暉生技 | B68: M17C 藥 | C68: M17C2 機能性食品 | F68: 0 | H68: 0 | J68: 0
A69: 1293 利統 | B69: M12Z 其他食品 | C69: M12Z 其他食品 | F69: 0 | J69: 0
A70: 1301 台塑 | B70: M13A 石化 | C70: M13A1 泛用塑膠 | D70: 10.57 | E70: 10.18 | F70: 9.03 | G70: 9.27 | H70: 9.44 | I70: 10.31 | J70: 10.81 | K70: 10.38
A71: 1303 南亞 | B71: M13A 石化 | C71: M13A1 泛用塑膠 | D71: 9.72 | E71: 9.54 | F71: 9.03 | G71: 0.17 | H71: 9.67 | I71: 10.37 | J71: 11.24 | K71: 1.28
A72: 1304 台聚 | B72: M13A 石化 | C72: M13A1 泛用塑膠 | D72: 0 | E72: 0 | F72: 0 | G72: 0 | H72: 0 | I72: 0 | J72: 0 | K72: 0
A73: 1305 華夏 | B73: M13A 石化 | C73: M13A1 泛用塑膠 | D73: 0 | E73: 0 | F73: 0 | G73: 0 | H73: 0 | I73: 0 | J73: 0 | K73: 0
A74: 1307 三芳 | B74: M13A 石化 | C74: M13A6 合成皮 | D74: 0 | E74: 0 | F74: 0 | G74: 0 | H74: 0 | I74: 0 | J74: 0 | K74: 0
A75: 1308 亞聚 | B75: M13A 石化 | C75: M13A1 泛用塑膠 | D75: 0 | E75: 0 | F75: 0 | G75: 0 | H75: 0 | I75: 0 | J75: 0 | K75: 0
A76: 1309 台達化 | B76: M13A 石化 | C76: M13A1 泛用塑膠 | D76: 0 | E76: 0 | F76: 0 | G76: 0 | H76: 0 | I76: 0 | J76: 0 | K76: 0
A77: 1310 台苯 | B77: M13A 石化 | C77: M13A1 泛用塑膠 | D77: 0 | E77: 0 | F77: 0 | G77: 0 | H77: 0 | I77: 0 | J77: 0 | K77: 0
A78: 1312 國喬 | B78: M13A 石化 | C78: M13A1 泛用塑膠 | D78: 0 | E78: 0 | F78: 0 | G78: 0 | H78: 0 | I78: 0 | J78: 0 | K78: 0
A79: 1313 聯成 | B79: M13A 石化 | C79: M13A7 可塑劑 | D79: 0 | E79: 0 | F79: 0 | G79: 0 | H79: 0 | I79: 0 | J79: 0 | K79: 0
A80: 1314 中石化 | B80: M13A 石化 | C80: M13A5 化纖 | D80: 0 | E80: 0 | F80: 0 | G80: 0 | H80: 0 | I80: 0 | J80: 0 | K80: 0
A81: 1315 達新 | B81: M13A 石化 | C81: M13A8 塑膠加工 | D81: 0 | E81: 0 | F81: 0 | G81: 0 | H81: 0 | I81: 0 | J81: 0 | K81: 0
A82: 1316 上曜 | B82: M25A 建設 | C82: M25A 建設 | D82: 0 | E82: 0 | F82: 0 | G82: 0 | H82: 0 | I82: 0 | J82: 0 | K82: 0
A83: 1319 東陽 | B83: M15D 汽車組件 | C83: M15D 汽車組件 | D83: 0 | E83: 0 | F83: 0 | G83: 0.45 | H83: 0.45 | I83: 0.68 | J83: 0.8 | K83: 0.82
A84: 1321 大洋 | B84: M13A 石化 | C84: M13A8 塑膠加工 | D84: 0 | E84: 0 | F84: 0 | G84: 0 | H84: 0 | I84: 0 | J84: 0 | K84: 0
A85: 1323 永裕 | B85: M13A 石化 | C85: M13A8 塑膠加工 | D85: 0 | E85: 0 | F85: 0 | G85: 0 | H85: 0 | I85: 0 | J85: 0 | K85: 0
A86: 1324 地球 | B86: M13A 石化 | C86: M13A9 膠帶 | D86: 0 | E86: 0 | F86: 0 | G86: 0 | H86: 0 | I86: 0 | J86: 0 | K86: 0
A87: 1325 恒大 | B87: M14F 不織布 | C87: M14F 不織布 | D87: 0 | E87: 0 | F87: 0 | G87: 0 | H87: 0 | I87: 0 | J87: 0 | K87: 0
A88: 1326 台化 | B88: M13A 石化 | C88: M13A1 泛用塑膠 | D88: 11.03 | E88: 10.83 | F88: 9.4 | G88: 9.8 | H88: 9.49 | I88: 10.41 | J88: 10.1 | K88: 9.44
A89: 1328 中油 | B89: M13C 輕油製解 | C89: M13C 輕油製解 | D89: 6.64 | F89: 10.33 | H89: 9.42 | J89: 10.37
A90: 1333 恩得利 | B90: M23D 電子零組件 | C90: M23D2 連接器 | G90: 0 | H90: 0 | I90: 0 | J90: 0 | K90: 0
A91: 1336 台翰 | B91: M23D 電子零組件 | C91: M23D4 機殼 | D91: 0 | E91: 0 | F91: 0 | G91: 0 | H91: 0 | I91: 0 | J91: 0 | K91: 0
A92: 1337 再生-KY | B92: M13B 塑膠製品 | C92: M13B 塑膠製品 | D92: 0 | E92: 0 | F92: 0 | G92: 0 | H92: 0 | I92: 0 | J92: 0 | K92: 0
A93: 1338 廣華-KY | B93: M15D 汽車組件 | C93: M15D 汽車組件 | D93: 0 | E93: 0 | F93: 0 | G93: 0 | H93: 0 | I93: 0 | J93: 0 | K93: 0
A94: 1339 昭輝 | B94: M15D 汽車組件 | C94: M15D 汽車組件 | D94: 0 | E94: 0 | F94: 0 | G94: 0 | H94: 0 | I94: 0 | J94: 0 | K94: 0
A95: 1340 勝悅-KY | B95: M13B 塑膠製品 | C95: M13B 塑膠製品 | D95: 0 | E95: 0 | F95: 0 | G95: 0 | H95: 0 | I95: 0 | J95: 0 | K95: 0
A96: 1341 富林-KY | B96: M13A 石化 | C96: M13A6 合成皮 | D96: 0 | E96: 0 | F96: 0 | G96: 0 | H96: 0 | I96: 0 | J96: 0 | K96: 0
A97: 1342 八貫 | B97: M13B 塑膠製品 | C97: M13B 塑膠製品 | D97: 0 | E97: 0 | F97: 0 | H97: 0 | I97: 0 | J97: 0
A98: 1343 旭東 | B98: M13B 塑膠製品 | C98: M13B 塑膠製品 | D98: 0 | F98: 0 | H98: 0 | J98: 0
A99: 1402 遠東新 | B99: M14A 人纖 | C99: M14A1 聚酯絲棉 | D99: 0.04 | E99: 0.05 | F99: 0 | G99: 0 | H99: 0.07 | I99: 0.11 | J99: 0 | K99: 0
A100: 1408 中紡 | B100: M14A 人纖 | C100: M14A1 聚酯絲棉 | F100: 0 | H100: 0 | J100: 0
A101: 1409 新纖 | B101: M14A 人纖 | C101: M14A1 聚酯絲棉 | D101: 0 | E101: 0 | F101: 0 | G101: 0 | H101: 0 | I101: 0 | J101: 0 | K101: 0
A102: 1410 南染 | B102: M14E 染整 | C102: M14E 染整 | D102: 0 | E102: 0 | F102: 0 | G102: 0 | H102: 0 | I102: 0 | J102: 0 | K102: 0
A103: 1413 宏洲 | B103: M14A 人纖 | C103: M14A2 加工絲 | D103: 0 | E103: 0 | F103: 0 | G103: 0 | H103: 0 | I103: 0 | J103: 0 | K103: 0
A104: 1414 東和 | B104: M14B 棉紡 | C104: M14B1 聚酯紗棉紗 | D104: 0 | E104: 0 | F104: 0 | G104: 0 | H104: 0 | I104: 0 | J104: 0 | K104: 0
A105: 1416 廣豐 | B105: M29A 百貨批發 | C105: M29A1 百貨購物中 | D105: 0 | E105: 0 | F105: 0 | G105: 0 | H105: 0 | I105: 0 | J105: 0 | K105: 0
A106: 1417 嘉裕 | B106: M14C 成衣 | C106: M14C1 成衣製造 | D106: 0 | E106: 0 | F106: 0 | G106: 0 | H106: 0 | I106: 0 | J106: 0 | K106: 0
A107: 1418 東華 | B107: M14B 棉紡 | C107: M14B2 亞克力纖維 | D107: 0 | E107: 0 | F107: 0 | G107: 0 | H107: 0 | I107: 0 | J107: 0 | K107: 0
A108: 1419 新紡 | B108: M14C 成衣 | C108: M14C2 織布 | D108: 0.94 | E108: 0.98 | F108: 0.88 | G108: 0 | H108: 1.01 | I108: 0.99 | J108: 1.03 | K108: 0
A109: 1423 利華 | B109: M14D 毛紡 | C109: M14D2 毛紡 | D109: 0 | E109: 0 | F109: 0 | G109: 0 | H109: 0 | I109: 0 | J109: 0 | K109: 0
A110: 1432 大魯閣 | B110: M29A 百貨批發 | C110: M29A1 百貨購物中 | D110: 0 | E110: 0 | F110: 0 | G110: 0 | H110: 0 | I110: 0 | J110: 0 | K110: 0
A111: 1434 福懋 | B111: M14C 成衣 | C111: M14C2 織布 | D111: 11.94 | E111: 12.25 | F111: 10.83 | G111: 10.36 | H111: 9.7 | I111: 6.87 | J111: 7.14 | K111: 5.96
A112: 1435 中福 | B112: M23E 網路設備 | C112: M23E1 數據機 | D112: 0 | E112: 0 | F112: 0 | G112: 0 | H112: 0 | I112: 0 | J112: 0 | K112: 0
A113: 1436 華友聯 | B113: M25A 建設 | C113: M25A 建設 | D113: 0 | E113: 0 | F113: 0 | G113: 0 | H113: 0 | I113: 0 | J113: 0 | K113: 0
A114: 1437 勤益控 | B114: M25F 物業管理 | C114: M25F 物業管理 | D114: 5.53 | E114: 5.48 | F114: 5.34 | G114: 5.38 | H114: 0 | I114: 6.57 | J114: 6.55 | K114: 5.94
A115: 1438 三地開發 | B115: M25A 建設 | C115: M25A 建設 | D115: 0 | E115: 0 | F115: 0 | G115: 0 | H115: 0 | I115: 0 | J115: 0 | K115: 0
A116: 1439 中和 | B116: M14D 毛紡 | C116: M14D2 毛紡 | D116: 0 | E116: 0 | F116: 0 | G116: 0 | H116: 0 | I116: 0 | J116: 0 | K116: 0
A117: 1440 南紡 | B117: M14A 人纖 | C117: M14A1 聚酯絲棉 | D117: 0.28 | E117: 0.29 | F117: 0.28 | G117: 0.29 | H117: 0.29 | I117: 0.28 | J117: 0.29 | K117: 0.28
A118: 1441 大東 | B118: M14B 棉紡 | C118: M14B1 聚酯紗棉紗 | D118: 0 | E118: 0 | F118: 0 | G118: 0 | H118: 0 | I118: 0 | J118: 0 | K118: 0
A119: 1442 名軒 | B119: M25A 建設 | C119: M25A 建設 | D119: 0 | E119: 0 | F119: 0 | G119: 0 | H119: 0 | I119: 0 | J119: 0 | K119: 0
A120: 1443 立益 | B120: M14B 棉紡 | C120: M14B1 聚酯紗棉紗 | D120: 0 | E120: 0 | F120: 0 | G120: 0 | H120: 0 | I120: 0 | J120: 0 | K120: 0
A121: 1444 力麗 | B121: M14A 人纖 | C121: M14A2 加工絲 | D121: 0 | E121: 0 | F121: 0 | G121: 0 | H121: 0 | I121: 0 | J121: 0 | K121: 0
A122: 1445 大宇 | B122: M14C 成衣 | C122: M14C2 織布 | D122: 0 | E122: 0 | F122: 0 | G122: 0 | H122: 0 | I122: 0 | J122: 0 | K122: 0
A123: 1446 宏和 | B123: M14C 成衣 | C123: M14C2 織布 | D123: 0 | E123: 0 | F123: 0 | G123: 0 | H123: 0 | I123: 0 | J123: 0 | K123: 0
A124: 1447 力鵬 | B124: M14A 人纖 | C124: M14A7 尼龍絲 | D124: 0 | E124: 0 | F124: 0 | G124: 0 | H124: 0 | I124: 0 | J124: 0 | K124: 0
A125: 1449 佳和 | B125: M14C 成衣 | C125: M14C2 織布 | D125: 0 | E125: 0 | F125: 0 | G125: 0 | H125: 0 | I125: 0 | J125: 0 | K125: 0
A126: 1451 年興 | B126: M14C 成衣 | C126: M14C1 成衣製造 | D126: 0 | E126: 0 | F126: 0 | G126: 0 | H126: 0 | I126: 0 | J126: 0 | K126: 0
A127: 1452 宏益 | B127: M14A 人纖 | C127: M14A2 加工絲 | D127: 0 | E127: 0 | F127: 0 | G127: 0 | H127: 0 | I127: 0 | J127: 0 | K127: 0
A128: 1453 大將 | B128: M25A 建設 | C128: M25A 建設 | D128: 0 | E128: 0 | F128: 0 | G128: 0 | H128: 0 | I128: 0 | J128: 0 | K128: 0
A129: 1454 台富 | B129: M14C 成衣 | C129: M14C2 織布 | D129: 0 | E129: 0 | F129: 0 | G129: 0 | H129: 0 | I129: 0 | J129: 0 | K129: 0
A130: 1455 集盛 | B130: M14A 人纖 | C130: M14A7 尼龍絲 | D130: 0 | E130: 0 | F130: 0 | G130: 0 | H130: 0 | I130: 0 | J130: 0 | K130: 0
A131: 1456 怡華 | B131: M14C 成衣 | C131: M14C2 織布 | D131: 0 | E131: 0 | F131: 0 | G131: 0 | H131: 0 | I131: 0 | J131: 0 | K131: 0
A132: 1457 宜進 | B132: M14A 人纖 | C132: M14A2 加工絲 | D132: 0 | E132: 0 | F132: 0 | G132: 0 | H132: 0 | I132: 0 | J132: 0 | K132: 0
A133: 1459 聯發 | B133: M14A 人纖 | C133: M14A2 加工絲 | D133: 0 | E133: 0 | F133: 0 | G133: 0 | H133: 0 | I133: 0 | J133: 0 | K133: 0
A134: 1460 宏遠 | B134: M14C 成衣 | C134: M14C2 織布 | D134: 0 | E134: 0 | F134: 0 | G134: 0 | H134: 0 | I134: 0 | J134: 0 | K134: 0
A135: 1463 強盛 | B135: M14E 染整 | C135: M14E 染整 | D135: 0 | E135: 0 | F135: 0 | G135: 0 | H135: 0 | I135: 0 | J135: 0 | K135: 0
A136: 1464 得力 | B136: M14C 成衣 | C136: M14C2 織布 | D136: 0 | E136: 0 | F136: 0 | G136: 0 | H136: 0 | I136: 0 | J136: 0 | K136: 0
A137: 1465 偉全 | B137: M14C 成衣 | C137: M14C2 織布 | D137: 0 | E137: 0 | F137: 0 | G137: 0 | H137: 0 | I137: 0 | J137: 0 | K137: 0
A138: 1466 聚隆 | B138: M14A 人纖 | C138: M14A7 尼龍絲 | D138: 0 | E138: 0 | F138: 0 | G138: 0 | H138: 0 | I138: 0 | J138: 0 | K138: 0
A139: 1467 南緯 | B139: M14C 成衣 | C139: M14C1 成衣製造 | D139: 0 | E139: 0 | F139: 0 | G139: 0 | H139: 0 | I139: 0 | J139: 0 | K139: 0
A140: 1468 昶和 | B140: M14C 成衣 | C140: M14C2 織布 | D140: 0.73 | E140: 0 | F140: 0 | G140: 0.83 | H140: 0 | I140: 0 | J140: 0 | K140: 0
A141: 1470 大統新創 | B141: M14E 染整 | C141: M14E 染整 | D141: 0 | E141: 0 | F141: 0 | G141: 0 | H141: 0 | I141: 0 | J141: 0 | K141: 0
A142: 1471 首利 | B142: M23D 電子零組件 | C142: M23D3 電源供應器 | D142: 0 | E142: 0 | F142: 0 | G142: 0 | H142: 0 | I142: 0 | J142: 0 | K142: 0
A143: 1472 三洋紡 | B143: M14A 人纖 | C143: M14A7 尼龍絲 | D143: 0 | E143: 0 | F143: 0 | G143: 0 | H143: 0 | I143: 0 | J143: 0 | K143: 0
A144: 1473 台南 | B144: M14C 成衣 | C144: M14C1 成衣製造 | D144: 0 | E144: 0 | F144: 0 | G144: 0 | H144: 0 | I144: 0 | J144: 0 | K144: 0
A145: 1474 弘裕 | B145: M14C 成衣 | C145: M14C2 織布 | D145: 0 | E145: 0 | F145: 0 | G145: 0 | H145: 0 | I145: 0 | J145: 0 | K145: 0
A146: 1475 本盟 | B146: M14C 成衣 | C146: M14C2 織布 | D146: 0 | E146: 0 | F146: 0 | G146: 0 | H146: 0 | I146: 0 | J146: 0 | K146: 0
A147: 1476 儒鴻 | B147: M14C 成衣 | C147: M14C1 成衣製造 | D147: 0 | E147: 0 | F147: 0 | G147: 0 | H147: 0 | I147: 0 | J147: 0 | K147: 0
A148: 1477 聚陽 | B148: M14C 成衣 | C148: M14C1 成衣製造 | D148: 0 | E148: 0 | F148: 0 | G148: 0 | H148: 0 | I148: 0 | J148: 0 | K148: 0
A149: 1480 東盟開發 | B149: M20A 金屬基本 | C149: M20A6 不銹鋼 | F149: 0 | H149: 0 | J149: 0
A150: 1489 日南紡織 | B150: M14B 棉紡 | C150: M14B1 聚酯紗棉紗 | F150: 0 | H150: 0 | J150: 0
A151: 1503 士電 | B151: M15B 電機製品 | C151: M15B1 電機 | D151: 0 | E151: 0 | F151: 0 | G151: 0 | H151: 0 | I151: 0 | J151: 0.74 | K151: 0.28
A152: 1504 東元 | B152: M15B 電機製品 | C152: M15B1 電機 | D152: 0 | E152: 0 | F152: 0 | G152: 0 | H152: 0 | I152: 0 | J152: 0 | K152: 0
A153: 1506 正道 | B153: M15D 汽車組件 | C153: M15D 汽車組件 | D153: 0 | E153: 0 | F153: 0 | G153: 0 | H153: 0 | I153: 0 | J153: 0 | K153: 0
A154: 1507 永大 | B154: M15B 電機製品 | C154: M15B1 電機 | D154: 0 | E154: 0 | F154: 0 | G154: 0 | H154: 0 | I154: 0 | J154: 0 | K154: 0
A155: 1512 瑞利 | B155: M15D 汽車組件 | C155: M15D 汽車組件 | D155: 0 | E155: 0 | F155: 0 | G155: 0 | H155: 0 | I155: 0 | J155: 0 | K155: 0
A156: 1513 中興電 | B156: M15B 電機製品 | C156: M15B1 電機 | D156: 0 | E156: 0 | F156: 0 | G156: 0 | H156: 0.31 | I156: 0 | J156: 0 | K156: 0
A157: 1514 亞力 | B157: M15B 電機製品 | C157: M15B1 電機 | D157: 0.79 | E157: 0 | F157: 0.5 | G157: 0.44 | H157: 0.56 | I157: 0.56 | J157: 0.44 | K157: 0.41
A158: 1515 力山 | B158: M15A 機械業 | C158: M15A1 工具機 | D158: 0 | E158: 0 | F158: 0 | G158: 0 | H158: 0 | I158: 0 | J158: 0 | K158: 0
A159: 1516 川飛 | B159: M99Z 其他 | C159: M99ZC 其他製造業 | D159: 0 | E159: 0 | F159: 0 | G159: 0 | H159: 0 | I159: 0 | J159: 0 | K159: 0
A160: 1517 利奇 | B160: M15E 自行車組件 | C160: M15E 自行車組件 | D160: 0 | E160: 0 | F160: 0 | G160: 0 | H160: 0 | I160: 0 | J160: 0 | K160: 0
A161: 1519 華城 | B161: M15B 電機製品 | C161: M15B1 電機 | D161: 0 | E161: 0 | F161: 0 | G161: 0 | H161: 0 | I161: 0 | J161: 0 | K161: 0
A162: 1521 大億 | B162: M15D 汽車組件 | C162: M15D 汽車組件 | D162: 0 | E162: 0 | F162: 0 | G162: 0 | H162: 0 | I162: 0 | J162: 0 | K162: 0
A163: 1522 堤維西 | B163: M15D 汽車組件 | C163: M15D 汽車組件 | D163: 0 | E163: 0 | F163: 0 | G163: 0 | H163: 0 | I163: 0 | J163: 0 | K163: 0
A164: 1524 耿鼎 | B164: M15D 汽車組件 | C164: M15D 汽車組件 | D164: 0 | E164: 0 | F164: 0 | G164: 0 | H164: 0 | I164: 0 | J164: 0 | K164: 0
A165: 1525 江申 | B165: M15D 汽車組件 | C165: M15D 汽車組件 | D165: 0 | E165: 0 | F165: 0 | G165: 0 | H165: 0 | I165: 0 | J165: 0 | K165: 0
A166: 1526 日馳 | B166: M15E 自行車組件 | C166: M15E 自行車組件 | D166: 0 | E166: 0 | F166: 0 | G166: 0 | H166: 0 | I166: 0 | J166: 0 | K166: 0
A167: 1527 鑽全 | B167: M15A 機械業 | C167: M15A1 工具機 | D167: 0 | E167: 0 | F167: 0 | G167: 0 | H167: 0 | I167: 0 | J167: 0 | K167: 0
A168: 1528 恩德 | B168: M15A 機械業 | C168: M15A1 工具機 | D168: 0 | E168: 0 | F168: 0 | G168: 0 | H168: 0 | I168: 0 | J168: 0 | K168: 0
A169: 1529 樂士 | B169: M15B 電機製品 | C169: M15B1 電機 | D169: 0 | E169: 0 | F169: 0 | G169: 0 | H169: 0 | I169: 0 | J169: 0 | K169: 0
A170: 1530 亞崴 | B170: M15A 機械業 | C170: M15A1 工具機 | D170: 0 | E170: 0 | F170: 0 | G170: 0 | H170: 0 | I170: 0 | J170: 0 | K170: 0
A171: 1531 高林股 | B171: M15A 機械業 | C171: M15A3 紡織工具機 | D171: 0 | E171: 0 | F171: 0 | G171: 0 | H171: 0 | I171: 0 | J171: 0 | K171: 0
A172: 1532 勤美 | B172: M15A 機械業 | C172: M15A2 模具零件 | D172: 11.42 | E172: 10.72 | F172: 10.71 | G172: 10.63 | H172: 10.69 | I172: 9.82 | J172: 10.21 | K172: 10.36
A173: 1533 車王電 | B173: M15D 汽車組件 | C173: M15D 汽車組件 | D173: 0 | E173: 0 | F173: 0 | G173: 0 | H173: 0 | I173: 0 | J173: 0 | K173: 0
A174: 1535 中宇 | B174: M15B 電機製品 | C174: M15B2 機電工程 | D174: 0 | E174: 0 | F174: 0 | G174: 0 | H174: 0 | I174: 0 | J174: 0 | K174: 0
A175: 1536 和大 | B175: M15D 汽車組件 | C175: M15D 汽車組件 | D175: 0 | E175: 0 | F175: 0 | G175: 0 | H175: 0 | I175: 0 | J175: 0 | K175: 0
A176: 1537 廣隆 | B176: M23D 電子零組件 | C176: M23D7 3C二次電池 | D176: 0 | E176: 0 | F176: 0 | G176: 0 | H176: 0 | I176: 0 | J176: 0 | K176: 0
A177: 1538 正峰 | B177: M15A 機械業 | C177: M15A1 工具機 | D177: 0 | E177: 0 | F177: 0 | G177: 0 | H177: 0 | I177: 0 | J177: 0 | K177: 0
A178: 1539 巨庭 | B178: M15A 機械業 | C178: M15A1 工具機 | D178: 0 | E178: 0 | F178: 0 | G178: 0 | H178: 0 | I178: 0 | J178: 0 | K178: 0
A179: 1540 喬福 | B179: M15A 機械業 | C179: M15A1 工具機 | D179: 0 | E179: 0 | F179: 0 | G179: 0 | H179: 0 | I179: 0 | J179: 0 | K179: 0
A180: 1541 錩泰 | B180: M15A 機械業 | C180: M15A1 工具機 | D180: 0 | E180: 0 | F180: 0 | G180: 0 | H180: 0 | I180: 0 | J180: 0 | K180: 0
A181: 1550 台全電機 | B181: M15D 汽車組件 | C181: M15D 汽車組件 | D181: 0 | F181: 0 | H181: 0 | J181: 0
A182: 1557 金豐 | B182: M15A 機械業 | C182: M15A1 工具機 | D182: 0 | F182: 0 | H182: 0 | J182: 0
A183: 1558 伸興 | B183: M15A 機械業 | C183: M15A3 紡織工具機 | D183: 0 | E183: 0 | F183: 0 | G183: 0 | H183: 0 | I183: 0 | J183: 0 | K183: 0
A184: 1560 中砂 | B184: M15A 機械業 | C184: M15A2 模具零件 | D184: 0 | E184: 0 | F184: 0 | G184: 0 | H184: 0 | I184: 0 | J184: 0 | K184: 0
A185: 1563 巧新 | B185: M15D 汽車組件 | C185: M15D 汽車組件 | F185: 0 | H185: 0 | J185: 0
A186: 1565 精華 | B186: M17G 醫療耗材 | C186: M17G 醫療耗材 | D186: 0 | E186: 0 | F186: 0 | G186: 0 | H186: 0 | I186: 0 | J186: 0 | K186: 0
A187: 1568 倉佑 | B187: M15D 汽車組件 | C187: M15D 汽車組件 | D187: 0 | E187: 0 | F187: 0 | G187: 0 | H187: 0 | I187: 0 | J187: 0 | K187: 0
A188: 1569 濱川 | B188: M23D 電子零組件 | C188: M23D9A 沖壓零組件 | D188: 0 | E188: 0 | F188: 0 | G188: 0 | H188: 0 | I188: 0 | J188: 0 | K188: 0
A189: 1570 力肯 | B189: M15A 機械業 | C189: M15A1 工具機 | D189: 0 | E189: 0 | F189: 0 | G189: 0 | H189: 0 | I189: 0 | J189: 0 | K189: 0
A190: 1580 新麥 | B190: M15Z 其他電製品 | C190: M15Z 其他電製品 | D190: 0 | E190: 0 | F190: 0 | G190: 0 | H190: 0 | I190: 0 | J190: 0 | K190: 0
A191: 1582 信錦 | B191: M23D 電子零組件 | C191: M23D4 機殼 | D191: 0 | E191: 0 | F191: 0 | G191: 0 | H191: 0 | I191: 0 | J191: 0 | K191: 0
A192: 1583 程泰 | B192: M15A 機械業 | C192: M15A1 工具機 | D192: 0 | E192: 0 | F192: 0 | G192: 0 | H192: 0 | I192: 0 | J192: 0 | K192: 0
A193: 1584 精剛 | B193: M20A 金屬基本 | C193: M20A6 不銹鋼 | D193: 0 | E193: 0 | F193: 0 | G193: 0 | H193: 0 | I193: 0 | J193: 0 | K193: 0
A194: 1585 鎧鉅 | B194: M23B 主機板 | C194: M23B3X PCB上-其他 | D194: 0 | F194: 0 | H194: 0 | J194: 0
A195: 1586 和勤 | B195: M23D 電子零組件 | C195: M23D9A 沖壓零組件 | D195: 0 | E195: 0 | F195: 0 | G195: 0 | H195: 0 | I195: 0 | J195: 0 | K195: 0
A196: 1587 吉茂 | B196: M15D 汽車組件 | C196: M15D 汽車組件 | D196: 0 | E196: 0 | F196: 0 | G196: 0 | H196: 0 | I196: 0 | J196: 0 | K196: 0
A197: 1589 永冠-KY | B197: M15A 機械業 | C197: M15A2 模具零件 | D197: 0 | E197: 0 | F197: 0 | G197: 0 | H197: 0 | I197: 0 | J197: 0 | K197: 0
A198: 1590 亞德客-KY | B198: M15A 機械業 | C198: M15A2 模具零件 | D198: 0 | E198: 0 | F198: 0 | G198: 0 | H198: 0 | I198: 0 | J198: 0 | K198: 0
A199: 1591 駿吉-KY | B199: M15A 機械業 | C199: M15A1 工具機 | D199: 0 | E199: 0 | F199: 0 | G199: 0 | H199: 0 | I199: 0 | J199: 0 | K199: 0
A200: 1592 英瑞-KY | B200: M15D 汽車組件 | C200: M15D 汽車組件 | D200: 0 | E200: 0 | F200: 0 | G200: 0 | H200: 0 | I200: 0 | J200: 0 | K200: 0
... 2288 more rows

Sheet Dir. & Sup. Pledged (hidden)
B1: TEJ產業名 | C1: TEJ子產業名 | D1: 董監質押股% | E1: 董監質押股% | F1: 董監質押股% | G1: 董監質押股% | H1: 董監質押股% | I1: 董監質押股% | J1: 董監質押股% | K1: 董監質押股%
A2: 公司代碼 | D2: 2020-07-31 | E2: 2020-06-30 | F2: 2020-05-29 | G2: 2020-04-30 | H2: 2020-03-31 | I2: 2020-02-27 | J2: 2020-01-31 | K2: 2019-12-31
A3: 000104 臺銀證券 | B3: M30A 證券 | C3: M30A 證券 | D3: 0 | E3: 0 | F3: 0 | G3: 0 | H3: 0 | I3: 0 | J3: 0 | K3: 0
A4: 000116 日盛證券 | B4: M30A 證券 | C4: M30A 證券 | D4: 0 | E4: 0 | F4: 0 | G4: 0 | H4: 0 | I4: 0 | J4: 0 | K4: 0
A5: 000218 亞東證券 | B5: M30A 證券 | C5: M30A 證券 | D5: 96.41 | E5: 96.41 | F5: 96.41 | G5: 96.41 | H5: 96.41 | I5: 96.41 | J5: 96.41 | K5: 96.41
A6: 000511 富隆證券 | B6: M30A 證券 | C6: M30A 證券 | D6: 0 | E6: 0 | F6: 0 | G6: 0 | H6: 0 | I6: 0 | J6: 0 | K6: 0
A7: 000532 高橋證券 | B7: M30A 證券 | C7: M30A 證券 | D7: 0 | E7: 0 | F7: 0 | G7: 0 | H7: 0 | I7: 0 | J7: 0 | K7: 0
A8: 000538 第一金證 | B8: M30A 證券 | C8: M30A 證券 | D8: 0 | E8: 0 | F8: 0 | G8: 0 | H8: 0 | I8: 0 | J8: 0 | K8: 0
A9: 000546 寶盛證券 | B9: M30A 證券 | C9: M30A 證券 | D9: 0 | E9: 0 | F9: 0 | G9: 0 | H9: 0 | I9: 0 | J9: 0 | K9: 0
A10: 000560 永興證券 | B10: M30A 證券 | C10: M30A 證券 | D10: 0 | E10: 0 | F10: 0 | G10: 0 | H10: 0 | I10: 0 | J10: 0 | K10: 0
A11: 000587 光隆證券 | B11: M30A 證券 | C11: M30A 證券 | D11: 0 | E11: 0 | F11: 0 | G11: 0 | H11: 0 | I11: 0 | J11: 0 | K11: 0
A12: 000601 奔亞證券 | B12: M30A 證券 | C12: M30A 證券 | D12: 98.9 | E12: 98.9 | F12: 98.9 | G12: 98.9 | H12: 98.9 | I12: 98.9 | J12: 98.9 | K12: 98.9
A13: 000616 中信證券 | B13: M30A 證券 | C13: M30A 證券 | D13: 0 | E13: 0 | F13: 0 | G13: 0 | H13: 0 | I13: 0 | J13: 0 | K13: 0
A14: 000638 光和證券 | B14: M30A 證券 | C14: M30A 證券 | D14: 15.9 | E14: 16 | F14: 15.05 | G14: 15.05 | H14: 15.05 | I14: 11.56 | J14: 8.84 | K14: 8.93
A15: 000646 大昌證券 | B15: M30A 證券 | C15: M30A 證券 | D15: 0 | E15: 0 | F15: 0 | G15: 0 | H15: 0 | I15: 0 | J15: 0 | K15: 0
A16: 000695 福勝證券 | B16: M30A 證券 | C16: M30A 證券 | D16: 0 | E16: 0 | F16: 0 | G16: 0 | H16: 0 | I16: 0 | J16: 0 | K16: 0
A17: 000700 兆豐證券 | B17: M30A 證券 | C17: M30A 證券 | D17: 0 | E17: 0 | F17: 0 | G17: 0 | H17: 0 | I17: 0 | J17: 0 | K17: 0
A18: 000708 石橋證券 | B18: M30A 證券 | C18: M30A 證券 | D18: 0 | E18: 0 | F18: 0 | G18: 0 | H18: 0 | I18: 0 | J18: 0 | K18: 0
A19: 000775 北城證券 | B19: M30A 證券 | C19: M30A 證券 | D19: 0 | E19: 0 | F19: 0 | G19: 0 | H19: 0 | I19: 0 | J19: 0 | K19: 0
A20: 000779 國票證券 | B20: M30A 證券 | C20: M30A 證券 | D20: 0 | E20: 0 | F20: 0 | G20: 0 | H20: 0 | I20: 0 | J20: 0 | K20: 0
A21: 000815 台新證券 | B21: M30A 證券 | C21: M30A 證券 | D21: 0 | E21: 0 | F21: 0 | G21: 0 | H21: 0 | I21: 0 | J21: 0 | K21: 0
A22: 000838 安泰證券 | B22: M30A 證券 | C22: M30A 證券 | D22: 0 | E22: 0 | F22: 0 | G22: 0 | H22: 0 | I22: 0 | J22: 0 | K22: 0
A23: 000856 新光證券 | B23: M30A 證券 | C23: M30A 證券 | D23: 0 | E23: 0 | F23: 0 | G23: 0 | H23: 0 | I23: 0 | J23: 0 | K23: 0
A24: 000888 國泰證券 | B24: M30A 證券 | C24: M30A 證券 | D24: 0 | E24: 0 | F24: 0 | G24: 0 | H24: 0 | I24: 0 | J24: 0 | K24: 0
A25: 000930 華南永昌證券 | B25: M30A 證券 | C25: M30A 證券 | D25: 0 | E25: 0 | F25: 0 | G25: 0 | H25: 0 | I25: 0 | J25: 0 | K25: 0
A26: 000960 富邦證券 | B26: M30A 證券 | C26: M30A 證券 | D26: 0 | E26: 0 | F26: 0 | G26: 0 | H26: 0 | I26: 0 | J26: 0 | K26: 0
A27: 000980 元大證券 | B27: M30A 證券 | C27: M30A 證券 | D27: 0 | E27: 0 | F27: 0 | G27: 0 | H27: 0 | I27: 0 | J27: 0 | K27: 0
A28: 0009A0 永豐金證券 | B28: M30A 證券 | C28: M30A 證券 | D28: 0 | E28: 0 | F28: 0 | G28: 0 | H28: 0 | I28: 0 | J28: 0 | K28: 0
A29: 1101 台泥 | B29: M11A 水泥製造 | C29: M11A 水泥製造 | D29: 8.91 | E29: 8.91 | F29: 8.91 | G29: 8.91 | H29: 8.91 | I29: 8.91 | J29: 8.91 | K29: 8.91
A30: 1102 亞泥 | B30: M11A 水泥製造 | C30: M11A 水泥製造 | D30: 4.58 | E30: 4.58 | F30: 4.55 | G30: 4.55 | H30: 4.55 | I30: 4.55 | J30: 4.55 | K30: 4.55
A31: 1103 嘉泥 | B31: M11A 水泥製造 | C31: M11A 水泥製造 | D31: 0 | E31: 0 | F31: 0 | G31: 0 | H31: 0 | I31: 0 | J31: 0 | K31: 0
A32: 1104 環泥 | B32: M11A 水泥製造 | C32: M11A 水泥製造 | D32: 0 | E32: 0 | F32: 0 | G32: 0 | H32: 0 | I32: 0 | J32: 0 | K32: 0
A33: 1108 幸福 | B33: M11A 水泥製造 | C33: M11A 水泥製造 | D33: 0 | E33: 0 | F33: 0 | G33: 0 | H33: 0 | I33: 0 | J33: 0 | K33: 0
A34: 1109 信大 | B34: M11A 水泥製造 | C34: M11A 水泥製造 | D34: 13.42 | E34: 13.42 | F34: 13.42 | G34: 13.42 | H34: 13.42 | I34: 13.42 | J34: 12.72 | K34: 12.72
A35: 1110 東泥 | B35: M11A 水泥製造 | C35: M11A 水泥製造 | D35: 20.84 | E35: 20.84 | F35: 20.84 | G35: 20.84 | H35: 20.84 | I35: 20.84 | J35: 20.84 | K35: 20.84
A36: 1111 欣欣水泥 | B36: M11A 水泥製造 | C36: M11A 水泥製造 | D36: 0 | E36: 0 | F36: 0 | G36: 0 | H36: 0 | I36: 0 | J36: 0 | K36: 0
A37: 1201 味全 | B37: M12C 飲料乳品 | C37: M12C 飲料乳品 | D37: 0 | E37: 0 | F37: 0 | G37: 0 | H37: 0 | I37: 0 | J37: 0 | K37: 0
A38: 1203 味王 | B38: M12Z 其他食品 | C38: M12Z 其他食品 | D38: 4.06 | E38: 4.06 | F38: 4.06 | G38: 4.06 | H38: 4.06 | I38: 4.07 | J38: 4.08 | K38: 4.08
A39: 1210 大成 | B39: M12B 油脂飼料 | C39: M12B 油脂飼料 | D39: 4.24 | E39: 4.24 | F39: 4.24 | G39: 4.24 | H39: 4.24 | I39: 4.24 | J39: 4.24 | K39: 4.24
A40: 1213 大飲 | B40: M12C 飲料乳品 | C40: M12C 飲料乳品 | D40: 0 | E40: 0 | F40: 0 | G40: 0 | H40: 0 | I40: 0 | J40: 0 | K40: 0
A41: 1215 卜蜂 | B41: M12B 油脂飼料 | C41: M12B 油脂飼料 | D41: 0 | E41: 0 | F41: 0 | G41: 0 | H41: 0 | I41: 0 | J41: 0 | K41: 0
A42: 1216 統一 | B42: M12C 飲料乳品 | C42: M12C 飲料乳品 | D42: 14.19 | E42: 14.19 | F42: 14.19 | G42: 14.19 | H42: 14.19 | I42: 14.19 | J42: 14.19 | K42: 14.19
A43: 1217 愛之味 | B43: M12A 罐頭加工 | C43: M12A 罐頭加工 | D43: 14.61 | E43: 14.61 | F43: 14.61 | G43: 14.61 | H43: 14.61 | I43: 14.61 | J43: 14.61 | K43: 14.61
A44: 1218 泰山 | B44: M12B 油脂飼料 | C44: M12B 油脂飼料 | D44: 0 | E44: 0 | F44: 0 | G44: 0 | H44: 0 | I44: 0 | J44: 0 | K44: 0
A45: 1219 福壽 | B45: M12B 油脂飼料 | C45: M12B 油脂飼料 | D45: 0 | E45: 0 | F45: 0 | G45: 0 | H45: 0 | I45: 0 | J45: 0 | K45: 0
A46: 1220 台榮 | B46: M12B 油脂飼料 | C46: M12B 油脂飼料 | D46: 0 | E46: 0 | F46: 0 | G46: 0 | H46: 0 | I46: 0 | J46: 0 | K46: 0
A47: 1225 福懋油 | B47: M12B 油脂飼料 | C47: M12B 油脂飼料 | D47: 0 | E47: 0 | F47: 0 | G47: 0 | H47: 0 | I47: 0 | J47: 0 | K47: 0
A48: 1227 佳格 | B48: M12Z 其他食品 | C48: M12Z 其他食品 | D48: 0 | E48: 0 | F48: 0 | G48: 0 | H48: 0 | I48: 0 | J48: 0 | K48: 0
A49: 1229 聯華 | B49: M12B 油脂飼料 | C49: M12B 油脂飼料 | D49: 2.99 | E49: 2.99 | F49: 2.99 | G49: 2.99 | H49: 2.99 | I49: 2.99 | J49: 2.99 | K49: 2.99
A50: 1231 聯華食 | B50: M12Z 其他食品 | C50: M12Z 其他食品 | D50: 23.92 | E50: 23.92 | F50: 23.92 | G50: 23.92 | H50: 23.92 | I50: 23.92 | J50: 23.92 | K50: 24.31
A51: 1232 大統益 | B51: M12B 油脂飼料 | C51: M12B 油脂飼料 | D51: 0 | E51: 0 | F51: 0 | G51: 0 | H51: 0 | I51: 0 | J51: 0 | K51: 0
A52: 1233 天仁 | B52: M12Z 其他食品 | C52: M12Z 其他食品 | D52: 24.64 | E52: 24.64 | F52: 24.64 | G52: 24.64 | H52: 24.64 | I52: 24.64 | J52: 24.64 | K52: 24.64
A53: 1234 黑松 | B53: M12C 飲料乳品 | C53: M12C 飲料乳品 | D53: 2.79 | E53: 2.79 | F53: 2.79 | G53: 2.79 | H53: 2.79 | I53: 2.79 | J53: 2.79 | K53: 2.79
A54: 1235 興泰 | B54: M12B 油脂飼料 | C54: M12B 油脂飼料 | D54: 15.54 | E54: 15.54 | F54: 15.68 | G54: 15.68 | H54: 15.68 | I54: 15.68 | J54: 14.59 | K54: 14.59
A55: 1236 宏亞 | B55: M12Z 其他食品 | C55: M12Z 其他食品 | D55: 0 | E55: 0 | F55: 0 | G55: 0 | H55: 0 | I55: 0 | J55: 0 | K55: 0
A56: 1237 台糖 | B56: M12Z 其他食品 | C56: M12Z 其他食品 | D56: 0 | E56: 0 | F56: 0 | G56: 0 | H56: 0 | I56: 0 | J56: 0 | K56: 0
A57: 1240 茂生農經 | B57: M12B 油脂飼料 | C57: M12B 油脂飼料 | D57: 43.57 | E57: 43.57 | F57: 43.57 | G57: 43.57 | H57: 43.57 | I57: 43.57 | J57: 28.55 | K57: 28.55
A58: 1242 新東陽 | B58: M12A 罐頭加工 | C58: M12A 罐頭加工 | D58: 0 | E58: 0 | F58: 0 | G58: 0 | H58: 0 | I58: 0 | J58: 0 | K58: 0
A59: 1246 中聯油脂 | B59: M12B 油脂飼料 | C59: M12B 油脂飼料 | D59: 0 | E59: 0 | F59: 0 | G59: 0 | H59: 0 | I59: 0 | J59: 0 | K59: 0
A60: 1256 鮮活果汁-KY | B60: M12C 飲料乳品 | C60: M12C 飲料乳品 | D60: 0.43 | E60: 0.43 | F60: 0.43 | G60: 0.42 | H60: 0.42 | I60: 0.42 | J60: 0.42 | K60: 0.42
A61: 1258 其祥-KY | B61: M12Z 其他食品 | C61: M12Z 其他食品 | D61: 0 | E61: 0 | F61: 0 | G61: 0 | H61: 0 | I61: 0 | J61: 0 | K61: 0
A62: 1259 安心 | B62: M27A 餐飲飯店 | C62: M27A2 餐飲業 | D62: 25.85 | E62: 25.85 | F62: 22.24 | G62: 22.24 | H62: 22.24 | I62: 22.24 | J62: 22.24 | K62: 22.24
A63: 1260 富味鄉 | B63: M12B 油脂飼料 | C63: M12B 油脂飼料 | D63: 0 | E63: 0 | F63: 0 | G63: 0 | H63: 0 | I63: 0 | J63: 0 | K63: 0
A64: 1264 德麥 | B64: M12Z 其他食品 | C64: M12Z 其他食品 | D64: 0 | E64: 0 | F64: 0 | G64: 0 | H64: 0 | I64: 0 | J64: 0 | K64: 0
A65: 1267 京華堂 | B65: M12Z 其他食品 | C65: M12Z 其他食品 | D65: 0 | E65: 0 | F65: 0 | G65: 0 | H65: 0 | I65: 0 | J65: 0 | K65: 0
A66: 1268 漢來美食 | B66: M27A 餐飲飯店 | C66: M27A2 餐飲業 | D66: 0 | E66: 0 | F66: 0 | G66: 0 | H66: 0 | I66: 0 | J66: 0 | K66: 0
A67: 1269 乾杯 | B67: M27A 餐飲飯店 | C67: M27A2 餐飲業 | D67: 0 | E67: 0 | F67: 0 | G67: 0 | H67: 0 | I67: 0 | J67: 0 | K67: 0
A68: 1271 晨暉生技 | B68: M17C 藥 | C68: M17C2 機能性食品 | D68: 0 | E68: 0 | F68: 0 | G68: 0 | H68: 0 | I68: 0 | J68: 0 | K68: 0
A69: 1293 利統 | B69: M12Z 其他食品 | C69: M12Z 其他食品 | D69: 0 | E69: 0 | F69: 0 | G69: 0 | H69: 0 | I69: 0 | J69: 0 | K69: 0
A70: 1301 台塑 | B70: M13A 石化 | C70: M13A1 泛用塑膠 | D70: 0.81 | E70: 0.81 | F70: 0.81 | G70: 0.81 | H70: 0.81 | I70: 0.81 | J70: 0.81 | K70: 0.81
A71: 1303 南亞 | B71: M13A 石化 | C71: M13A1 泛用塑膠 | D71: 0.08 | E71: 0.08 | F71: 5.57 | G71: 5.57 | H71: 5.57 | I71: 5.57 | J71: 5.57 | K71: 5.57
A72: 1304 台聚 | B72: M13A 石化 | C72: M13A1 泛用塑膠 | D72: 0 | E72: 0 | F72: 0 | G72: 0 | H72: 0 | I72: 0 | J72: 0 | K72: 0
A73: 1305 華夏 | B73: M13A 石化 | C73: M13A1 泛用塑膠 | D73: 0 | E73: 0 | F73: 0 | G73: 0 | H73: 0 | I73: 0 | J73: 0 | K73: 0
A74: 1307 三芳 | B74: M13A 石化 | C74: M13A6 合成皮 | D74: 0 | E74: 0 | F74: 0 | G74: 0 | H74: 0 | I74: 0 | J74: 0 | K74: 0
A75: 1308 亞聚 | B75: M13A 石化 | C75: M13A1 泛用塑膠 | D75: 0 | E75: 0 | F75: 0 | G75: 0 | H75: 0 | I75: 0 | J75: 0 | K75: 0
A76: 1309 台達化 | B76: M13A 石化 | C76: M13A1 泛用塑膠 | D76: 6.33 | E76: 6.51 | F76: 6.51 | G76: 6.51 | H76: 6.51 | I76: 6.51 | J76: 6.51 | K76: 6.51
A77: 1310 台苯 | B77: M13A 石化 | C77: M13A1 泛用塑膠 | D77: 38.33 | E77: 38.65 | F77: 39 | G77: 78.95 | H77: 83.33 | I77: 48.25 | J77: 48.25 | K77: 41.92
A78: 1312 國喬 | B78: M13A 石化 | C78: M13A1 泛用塑膠 | D78: 70.11 | E78: 70.11 | F78: 70.25 | G78: 70.25 | H78: 70.25 | I78: 70.25 | J78: 70.25 | K78: 70.25
A79: 1313 聯成 | B79: M13A 石化 | C79: M13A7 可塑劑 | D79: 0.08 | E79: 0.08 | F79: 0.08 | G79: 0.08 | H79: 0.08 | I79: 0.08 | J79: 0.08 | K79: 0.08
A80: 1314 中石化 | B80: M13A 石化 | C80: M13A5 化纖 | D80: 82.31 | E80: 82.41 | F80: 82.41 | G80: 82.41 | H80: 82.41 | I80: 82.41 | J80: 78.67 | K80: 73.2
A81: 1315 達新 | B81: M13A 石化 | C81: M13A8 塑膠加工 | D81: 26.8 | E81: 26.8 | F81: 23.91 | G81: 23.91 | H81: 27.22 | I81: 28.63 | J81: 28.67 | K81: 28.67
A82: 1316 上曜 | B82: M25A 建設 | C82: M25A 建設 | D82: 0 | E82: 0 | F82: 0 | G82: 0 | H82: 0 | I82: 0 | J82: 0 | K82: 0
A83: 1319 東陽 | B83: M15D 汽車組件 | C83: M15D 汽車組件 | D83: 6.92 | E83: 6.92 | F83: 12.84 | G83: 12.84 | H83: 12.84 | I83: 12.84 | J83: 12.84 | K83: 12.84
A84: 1321 大洋 | B84: M13A 石化 | C84: M13A8 塑膠加工 | D84: 0 | E84: 0 | F84: 0 | G84: 0 | H84: 0 | I84: 0 | J84: 0 | K84: 0
A85: 1323 永裕 | B85: M13A 石化 | C85: M13A8 塑膠加工 | D85: 0 | E85: 0 | F85: 0 | G85: 0 | H85: 0 | I85: 0 | J85: 0 | K85: 0
A86: 1324 地球 | B86: M13A 石化 | C86: M13A9 膠帶 | D86: 0 | E86: 0 | F86: 0 | G86: 0 | H86: 0 | I86: 0 | J86: 0 | K86: 0
A87: 1325 恒大 | B87: M14F 不織布 | C87: M14F 不織布 | D87: 0 | E87: 0 | F87: 0 | G87: 0 | H87: 0 | I87: 0 | J87: 0 | K87: 0
A88: 1326 台化 | B88: M13A 石化 | C88: M13A1 泛用塑膠 | D88: 0 | E88: 0 | F88: 0 | G88: 0 | H88: 0 | I88: 0 | J88: 0 | K88: 0
A89: 1328 中油 | B89: M13C 輕油製解 | C89: M13C 輕油製解 | D89: 0 | E89: 0 | F89: 0 | G89: 0 | H89: 0 | I89: 0 | J89: 0 | K89: 0
A90: 1333 恩得利 | B90: M23D 電子零組件 | C90: M23D2 連接器 | D90: 94.69 | E90: 94.69 | F90: 95.73 | G90: 95.73 | H90: 95.59 | I90: 97.01 | J90: 97.01 | K90: 97.01
A91: 1336 台翰 | B91: M23D 電子零組件 | C91: M23D4 機殼 | D91: 87.26 | E91: 87.3 | F91: 75.28 | G91: 68.74 | H91: 82.47 | I91: 82.55 | J91: 83.03 | K91: 83.03
A92: 1337 再生-KY | B92: M13B 塑膠製品 | C92: M13B 塑膠製品 | D92: 0 | E92: 0 | F92: 0 | G92: 0 | H92: 0 | I92: 0 | J92: 0 | K92: 0
A93: 1338 廣華-KY | B93: M15D 汽車組件 | C93: M15D 汽車組件 | D93: 88.14 | E93: 88.14 | F93: 88.14 | G93: 88.14 | H93: 88.14 | I93: 88.14 | J93: 67.45 | K93: 67.45
A94: 1339 昭輝 | B94: M15D 汽車組件 | C94: M15D 汽車組件 | D94: 0 | E94: 0 | F94: 0 | G94: 0 | H94: 0 | I94: 0 | J94: 0 | K94: 0
A95: 1340 勝悅-KY | B95: M13B 塑膠製品 | C95: M13B 塑膠製品 | D95: 0 | E95: 0 | F95: 0 | G95: 0 | H95: 0 | I95: 0 | J95: 0 | K95: 0
A96: 1341 富林-KY | B96: M13A 石化 | C96: M13A6 合成皮 | D96: 0 | E96: 0 | F96: 0 | G96: 0 | H96: 0 | I96: 0 | J96: 0 | K96: 0
A97: 1342 八貫 | B97: M13B 塑膠製品 | C97: M13B 塑膠製品 | D97: 0 | E97: 0 | F97: 0 | G97: 0 | H97: 0 | I97: 0 | J97: 0 | K97: 0
A98: 1343 旭東 | B98: M13B 塑膠製品 | C98: M13B 塑膠製品 | D98: 0 | E98: 0 | F98: 0 | G98: 0 | H98: 0 | I98: 0 | J98: 0 | K98: 0
A99: 1402 遠東新 | B99: M14A 人纖 | C99: M14A1 聚酯絲棉 | D99: 13.34 | E99: 13.34 | F99: 13.34 | G99: 22.37 | H99: 22.37 | I99: 22.37 | J99: 22.37 | K99: 22.37
A100: 1408 中紡 | B100: M14A 人纖 | C100: M14A1 聚酯絲棉 | D100: 0 | E100: 0 | F100: 0 | G100: 0 | H100: 0 | I100: 0 | J100: 0 | K100: 0
A101: 1409 新纖 | B101: M14A 人纖 | C101: M14A1 聚酯絲棉 | D101: 33.34 | E101: 33.34 | F101: 33.34 | G101: 33.34 | H101: 33.34 | I101: 33.34 | J101: 33.34 | K101: 33.34
A102: 1410 南染 | B102: M14E 染整 | C102: M14E 染整 | D102: 0 | E102: 0 | F102: 0 | G102: 0 | H102: 0 | I102: 0 | J102: 0 | K102: 0
A103: 1413 宏洲 | B103: M14A 人纖 | C103: M14A2 加工絲 | D103: 0 | E103: 0 | F103: 0 | G103: 0 | H103: 0 | I103: 0 | J103: 0 | K103: 0
A104: 1414 東和 | B104: M14B 棉紡 | C104: M14B1 聚酯紗棉紗 | D104: 41.96 | E104: 41.96 | F104: 41.96 | G104: 41.96 | H104: 41.96 | I104: 30.53 | J104: 30.53 | K104: 30.53
A105: 1416 廣豐 | B105: M29A 百貨批發 | C105: M29A1 百貨購物中 | D105: 0 | E105: 0 | F105: 0 | G105: 0 | H105: 0 | I105: 0 | J105: 0 | K105: 0
A106: 1417 嘉裕 | B106: M14C 成衣 | C106: M14C1 成衣製造 | D106: 0 | E106: 0 | F106: 0 | G106: 0 | H106: 0 | I106: 0 | J106: 0 | K106: 0
A107: 1418 東華 | B107: M14B 棉紡 | C107: M14B2 亞克力纖維 | D107: 0 | E107: 0 | F107: 0 | G107: 0 | H107: 0 | I107: 0 | J107: 0 | K107: 0
A108: 1419 新紡 | B108: M14C 成衣 | C108: M14C2 織布 | D108: 25.38 | E108: 25.38 | F108: 25.38 | G108: 25.38 | H108: 25.38 | I108: 20.3 | J108: 20.3 | K108: 20.3
A109: 1423 利華 | B109: M14D 毛紡 | C109: M14D2 毛紡 | D109: 0 | E109: 0 | F109: 0 | G109: 0 | H109: 0 | I109: 0 | J109: 0 | K109: 0
A110: 1432 大魯閣 | B110: M29A 百貨批發 | C110: M29A1 百貨購物中 | D110: 26.05 | E110: 26.05 | F110: 26.05 | G110: 26.05 | H110: 26.05 | I110: 6.22 | J110: 3.57 | K110: 3.57
A111: 1434 福懋 | B111: M14C 成衣 | C111: M14C2 織布 | D111: 0.71 | E111: 0.71 | F111: 0.71 | G111: 0.71 | H111: 0.71 | I111: 0.71 | J111: 0.71 | K111: 0.71
A112: 1435 中福 | B112: M23E 網路設備 | C112: M23E1 數據機 | D112: 0 | E112: 0 | F112: 0 | G112: 0 | H112: 0 | I112: 0 | J112: 0 | K112: 0
A113: 1436 華友聯 | B113: M25A 建設 | C113: M25A 建設 | D113: 0 | E113: 0 | F113: 0 | G113: 0 | H113: 0 | I113: 0 | J113: 0 | K113: 0
A114: 1437 勤益控 | B114: M25F 物業管理 | C114: M25F 物業管理 | D114: 0 | E114: 0 | F114: 0 | G114: 0 | H114: 0 | I114: 0 | J114: 0 | K114: 0
A115: 1438 三地開發 | B115: M25A 建設 | C115: M25A 建設 | D115: 0 | E115: 0 | F115: 0 | G115: 0 | H115: 0 | I115: 0 | J115: 0 | K115: 0
A116: 1439 中和 | B116: M14D 毛紡 | C116: M14D2 毛紡 | D116: 0 | E116: 0 | F116: 0 | G116: 0 | H116: 0 | I116: 0 | J116: 100 | K116: 100
A117: 1440 南紡 | B117: M14A 人纖 | C117: M14A1 聚酯絲棉 | D117: 0 | E117: 0 | F117: 0 | G117: 0 | H117: 0 | I117: 0 | J117: 0 | K117: 0
A118: 1441 大東 | B118: M14B 棉紡 | C118: M14B1 聚酯紗棉紗 | D118: 0 | E118: 0 | F118: 0 | G118: 0 | H118: 0 | I118: 0 | J118: 0 | K118: 0
A119: 1442 名軒 | B119: M25A 建設 | C119: M25A 建設 | D119: 0 | E119: 0 | F119: 0 | G119: 0 | H119: 0 | I119: 0 | J119: 0 | K119: 0
A120: 1443 立益 | B120: M14B 棉紡 | C120: M14B1 聚酯紗棉紗 | D120: 0 | E120: 0 | F120: 0 | G120: 0 | H120: 0 | I120: 0 | J120: 0 | K120: 0
A121: 1444 力麗 | B121: M14A 人纖 | C121: M14A2 加工絲 | D121: 0 | E121: 0 | F121: 0 | G121: 0 | H121: 0 | I121: 0 | J121: 0 | K121: 0
A122: 1445 大宇 | B122: M14C 成衣 | C122: M14C2 織布 | D122: 0 | E122: 0 | F122: 0 | G122: 0 | H122: 0 | I122: 0 | J122: 0 | K122: 0
A123: 1446 宏和 | B123: M14C 成衣 | C123: M14C2 織布 | D123: 0 | E123: 0 | F123: 0 | G123: 0 | H123: 0 | I123: 0 | J123: 0 | K123: 0
A124: 1447 力鵬 | B124: M14A 人纖 | C124: M14A7 尼龍絲 | D124: 0 | E124: 0 | F124: 0 | G124: 0 | H124: 0 | I124: 0 | J124: 0 | K124: 0
